Workbook

Sheet Contents
A1: 80 | M1: ESC USE ONLY
D2: ESSENTIAL SERVICES COMMISSION
D3: Water Price Review
D4: Financial Model Template
B7: Table of Contents | F7: Water Business: | H7: =+N24 -> Westernport Water | I7: =+O24 -> WPW
B8: Section & Sheet Titles | F8: Regulatory Period: | H8: 2018-19 to 2022-23 (Fourth) | N8: [Decision] | O8: [Month] | P8: [Year] | Q8: [Version]
F9: Model Name: | H9: =I7&"_Price Review Template_"&O9&P9&Q9 -> WPW_Price Review Template_Mar2017- v1.2 | N9: Draft | O9: Mar | P9: 2017 | Q9: - v1.2 | R9: << Select
B10: a. | C10: =+KeyAssumptionsPriceControl_FO!B1 -> Key Assumptions Price Control | F10: Decision type: | H10: =+N9&" Decision" -> Draft Decision | N10: Draft | O10: Jan | P10: 2016 | Q10: - v1
B11: b. | C11: Expenditure Detail - Removed as it contained confidential information | N11: Final | O11: Feb | P11: 2017 | Q11: - v1.2
B12: c. | C12: =Opex_FO!B1 -> Operating Expenditure - Forecast | F12: Model Key: | O12: Mar | P12: 2018 | Q12: - v3
B13: d. | C13: =Opex_Breakdown!B1 -> Operating Expenditure - Breakdown | O13: Apr | P13: 2019 | Q13: - v3.1
B14: e. | C14: =+'Capex_FO input'!B1 -> Capital Expenditure - Forecast Input | G14: BLUE | H14: =+I7&" - DATA INPUT CELL" -> WPW - DATA INPUT CELL | O14: May | P14: 2020 | Q14: - v4
B15: f. | C15: =Capex_FO_AC!B1 -> Capital Expenditure - Asset Category Breakdown | O15: Jun | P15: 2021 | Q15: - v4.1
B16: g. | C16: =ExpSummary_FO!B1 -> Expenditure Summary | G16: YELLOW | H16: NOTES / INSTRUCTIONS | O16: Jul | Q16: - v5
B17: h. | C17: =RollForward_FO!B1 -> Rolled forward regulatory asset base (RAB) | O17: Aug | Q17: - v5.1
B18: i. | C18: =PrevPerAdj_FO!B1 -> Previous period adjustments | G18: GREY | H18: MODEL PARAMETERS / ASSUMPTIONS | O18: Sep | Q18: - v6
B19: j. | C19: =RevenuePriceCap_FO!C1 -> Revenue forecast (price caps) | O19: Oct | Q19: - v6.1
B20: k. | C20: Revenue forecast (tariff basket) | G20: WHITE | H20: FORMULA / HARDCODED VALUES | O20: Nov | Q20: - v7
B21: l. | C21: =NotPres_FO!B1 -> Non Prescribed Services | O21: Dec | Q21: - v7.1
B22: m. | C22: ='Finance&Tax_FO'!B1 -> Cash, debt and tax assumptions | G22: ORANGE | H22: FORMULA DIFFERENT TO ADJACENT CELL
B23: n. | C23: ='Rev&RAV_FO'!B1 -> Revenue requirement detail | N23: [Business]
B24: o. | C24: =Indicators_FO!B1 -> Financial indicators | G24: GREEN | H24: DATA FROM 2013 DECISION OR PERFORMANCE REPORT | N24: Westernport Water | O24: =+VLOOKUP(N24,N25:O42,2,FALSE) -> WPW
B25: p. | C25: =Outcomes!B1 -> Outcomes | N25: Barwon Water | O25: BW
B26: q. | C26: =GSL!B1 -> Guaranteed Service Levels (GSL) | G26: RED | H26: ERROR CHECK | N26: Central Highlands Water | O26: CHW
N27: City West Water | O27: CWW
N28: Coliban Water | O28: CW
N29: East Gippsland Water | O29: EGW
N30: Gippsland Water | O30: CGW
N31: Goulburn Valley Water | O31: GVW
N32: GWM Water | O32: GWMW | P32: diff model
N33: Lower Murray Water - Urban | O33: LMW-U | P33: diff model
N34: Lower Murray Water - Rural | O34: LMW-R
N35: North East Water | O35: NEW
N36: South East Water | O36: SEW
N37: South Gippsland Water | O37: SGW
N38: Southern Rural Water | O38: SRW | P38: diff model
N39: Wannon Water | O39: WNW
N40: Western Water | O40: WW
N41: Westernport Water | O41: WPW
N42: Yarra Valley Water | O42: YVW

Sheet KeyAssumptionsPriceControl_FO
A1: 80 | B1: Key Assumptions Price Control
B2: =+Contents!H7 -> Westernport Water
B3: Go to Table of Contents
L4: FIRST REG PERIOD | P4: SECOND REG PERIOD | U4: THIRD REG PERIOD | Z4: FOURTH REG PERIOD | AC4: FIFTH REG PERIOD
F6: Straight Line | K6: 2006 | L6: 2007 | M6: 2008 | N6: 2009 | O6: 2010 | P6: 2011 | Q6: 2012 | R6: 2013 | S6: 2014 | T6: 2015 | U6: 2016 | V6: 2017 | W6: 2018 | X6: 2019 | Y6: 2020 | Z6: 2021 | AA6: 2022 | AB6: 2023 | AC6: 2024 | AD6: 2025 | AE6: 2026 | AF6: 2027 | AG6: 2028
F7: Declining Balance | I7: 2003-04 | J7: 2004-05 | K7: =+CONCATENATE(K6-1,"-",RIGHT(K6,2)) -> 2005-06 | L7: =+CONCATENATE(L6-1,"-",RIGHT(L6,2)) -> 2006-07 | M7: 2007-08 | N7: 2008-09 | O7: 2009-10 | P7: 2010-11 | Q7: 2011-12 | R7: 2012-13 | S7: 2013-14 | T7: 2014-15 | U7: 2015-16 | V7: 2016-17 | W7: 2017-18 | X7: 2018-19 | Y7: 2019-20 | Z7: 2020-21 | AA7: 2021-22 | AB7: 2022-23 | AC7: 2023-24 | AD7: 2024-25 | AE7: 2025-26 | AF7: 2026-27 | AG7: 2027-28
E11: Inflation assumptions
W12: Estimate
F13: March quarter annual CPI | I13: 141.3 | J13: 144.1 | K13: 147.5 | L13: 151.9 | M13: 155.6 | N13: 162.2 | O13: 166.2 | P13: 171 | Q13: 176.7 | R13: 99.9 | S13: 102.4 | T13: 105.4 | U13: 106.8 | V13: 108.2 | W13: 110.5
F14: Inflation | J14: =+J13/I13-1 -> 0.01981599434 | K14: 0.02359472588 | L14: 0.02983050847 | M14: 0.02435813035 | N14: 0.04241645244 | O14: 0.02466091245 | P14: 0.02888086643 | Q14: 0.03333333333 | R14: 0.01584606678 | S14: =+IF(S13=0,$X$44,S13/R13-1) -> 0.02502502503 | T14: 0.029296875 | U14: 0.01328273245 | V14: 0.01310861423 | W14: 0.02125693161 | X14: 0.023 | Y14: 0.023 | Z14: 0.023 | AA14: 0.023 | AB14: 0.023 | AC14: 0.023 | AD14: 0.023 | AE14: 0.023 | AF14: 0.023 | AG14: 0.023
F15: Inflation factor | I15: 0.7871866295 | J15: 0.8027855153 | K15: 0.8217270195 | L15: 0.8462395543 | M15: 0.8668523677 | N15: 0.9036211699 | O15: 0.9259052925 | P15: 0.9526462396 | Q15: 0.9844011142 | R15: =+R13/$W$13 -> 0.9040723982 | S15: 0.9266968326 | T15: 0.9538461538 | U15: 0.9665158371 | V15: =+V13/$W$13 -> 0.9791855204 | W15: =+W13/$W$13 -> 1 | X15: =+W15*(1+X14) -> 1.023 | Y15: =+X15*(1+Y14) -> 1.046529 | Z15: 1.070599167 | AA15: 1.095222948 | AB15: 1.120413076 | AC15: 1.146182576 | AD15: 1.172544776 | AE15: 1.199513305 | AF15: 1.227102112 | AG15: 1.25532546
I16: CPI index re-referenced in 2012-13, shaded values have been hardcoded to lock in RAB value.
E21: Cost of debt - 10 year trailing average (Nominal)
V22: Estimate | W22: Estimate
E23: Cost of debt | L23: 0.06981666667 | M23: 0.07414 | N23: 0.0691525788 | O23: 0.07361870984 | P23: 0.07046784142 | Q23: 0.06308887941 | R23: 0.0526945046 | S23: 0.070525 | T23: 0.05360833333 | U23: 0.05270138413 | V23: 0.0491 | W23: 0.0491
E24: Re-financing weightings - average 10 yrs | L24: =1/10 -> 0.1 | M24: =1/10 -> 0.1 | N24: =1/10 -> 0.1 | O24: =1/10 -> 0.1 | P24: =1/10 -> 0.1 | Q24: 0.1 | R24: 0.1 | S24: 0.1 | T24: 0.1 | U24: 0.1 | V24: 0.1 | W24: 0.1 | X24: 0.1 | Y24: 0.1 | Z24: 0.1 | AA24: 0.1 | AB24: 0.1 | AC24: 0.1 | AD24: 0.1 | AE24: 0.1 | AF24: 0.1 | AG24: 0.1
E26: Cost of debt - 10 year trailing average | V26: =IF(U23<>"",SUMPRODUCT(L23:U23,L24:U24),"") -> 0.06498138982 | W26: =IF(V23<>"",SUMPRODUCT(M23:V23,M24:V24),"") -> 0.06290972315 | X26: =IF(W23<>"",SUMPRODUCT(N23:W23,N24:W24),"") -> 0.06040572315 | Y26: =IF(X23<>"",SUMPRODUCT(O23:X23,O24:X24),"") ->  | Z26: =IF(Y23<>"",SUMPRODUCT(P23:Y23,P24:Y24),"") -> 
E30: WACC assumptions (retained for historical purposes only) | U30: Regulatory Rate of Return (RRR) - Nominal
K32: 1st period | M32: 2nd period | O32: 3rd period | U32: Cost of Debt | X32: =+X26 -> 0.06040572315 | Y32: =+$X$32 -> 0.06040572315 | Z32: 0.06040572315 | AA32: 0.06040572315 | AB32: 0.06040572315 | AC32: 0.06040572315 | AD32: 0.06040572315 | AE32: 0.06040572315 | AF32: 0.06040572315 | AG32: 0.06040572315 | AI32: << Linked to Benchmark tax liability calculation (Rev&RAV_FO)
E33: Parameters
F34: Risk Free Rate (Real) | K34: =+HLOOKUP(Contents!$I$7&1,Determination_Lookup!$C$54:$BD$61,2,FALSE) -> 0.0267 | M34: =+HLOOKUP(Contents!$I$7&2,Determination_Lookup!$C$54:$BD$61,2,FALSE) -> 0.0323 | O34: =+HLOOKUP(Contents!$I$7&3,Determination_Lookup!$C$54:$BD$61,2,FALSE) -> 0.005959
F35: Debt Premium | K35: =+HLOOKUP(Contents!$I$7&1,Determination_Lookup!$C$54:$BD$61,3,FALSE) -> 0.0116 | M35: =+HLOOKUP(Contents!$I$7&2,Determination_Lookup!$C$54:$BD$61,3,FALSE) -> 0.0175 | O35: =+HLOOKUP(Contents!$I$7&3,Determination_Lookup!$C$54:$BD$61,3,FALSE) -> 0.0399
F36: Equity Premium | K36: =+HLOOKUP(Contents!$I$7&1,Determination_Lookup!$C$54:$BD$61,4,FALSE) -> 0.06 | M36: =+HLOOKUP(Contents!$I$7&2,Determination_Lookup!$C$54:$BD$61,4,FALSE) -> 0.06 | O36: =+HLOOKUP(Contents!$I$7&3,Determination_Lookup!$C$54:$BD$61,4,FALSE) -> 0.06 | U36: Regulatory Rate of Return (RRR) - Real
F37: Equity Beta | K37: =+HLOOKUP(Contents!$I$7&1,Determination_Lookup!$C$54:$BD$61,5,FALSE) -> 0.75 | M37: =+HLOOKUP(Contents!$I$7&2,Determination_Lookup!$C$54:$BD$61,5,FALSE) -> 0.65 | O37: =+HLOOKUP(Contents!$I$7&3,Determination_Lookup!$C$54:$BD$61,5,FALSE) -> 0.65
F38: Gearing (Debt/Assets) | K38: =+HLOOKUP(Contents!$I$7&1,Determination_Lookup!$C$54:$BD$61,6,FALSE) -> 0.6 | M38: =+HLOOKUP(Contents!$I$7&2,Determination_Lookup!$C$54:$BD$61,6,FALSE) -> 0.6 | O38: =+HLOOKUP(Contents!$I$7&3,Determination_Lookup!$C$54:$BD$61,6,FALSE) -> 0.6 | U38: Cost of Debt | X38: =(1+X32)/(1+X44)-1 -> 0.03656473426 | Y38: =+$X$38 -> 0.03656473426 | Z38: =+$X$38 -> 0.03656473426 | AA38: 0.03656473426 | AB38: 0.03656473426 | AC38: 0.03656473426 | AD38: 0.03656473426 | AE38: 0.03656473426 | AF38: 0.03656473426 | AG38: 0.03656473426
F39: Forecast Inflation | K39: =+HLOOKUP(Contents!$I$7&1,Determination_Lookup!$C$54:$BD$61,7,FALSE) -> 0.0255 | M39: =+HLOOKUP(Contents!$I$7&2,Determination_Lookup!$C$54:$BD$61,7,FALSE) -> 0.029 | O39: =+HLOOKUP(Contents!$I$7&3,Determination_Lookup!$C$54:$BD$61,7,FALSE) -> 0.0275
F40: Franking credit value | K40: =+HLOOKUP(Contents!$I$7&1,Determination_Lookup!$C$54:$BD$61,8,FALSE) -> 0.5 | M40: =+HLOOKUP(Contents!$I$7&2,Determination_Lookup!$C$54:$BD$61,8,FALSE) -> 0.5 | O40: =+HLOOKUP(Contents!$I$7&3,Determination_Lookup!$C$54:$BD$61,8,FALSE) -> 0.5 | U40: Return on Equity | X40: =IF(AG65<>0,(AG65/100),IF(AG63<>0,(AG63/100),(AG61/100))) -> 0.045 | Y40: =+$X$40 -> 0.045 | Z40: 0.045 | AA40: 0.045 | AB40: 0.045 | AC40: 0.045 | AD40: 0.045 | AE40: 0.045 | AF40: 0.045 | AG40: 0.045 | AI40: << Source: PREMO Assessment Matrix
E42: 'Vanilla' After Tax WACC (Real) | K42: =ROUND(((K34+K36*K37)*(1-K38))+((K34+K35)*K38),3) -> 0.052 | M42: =ROUND(((M34+M36*M37)*(1-M38))+((M34+M35)*M38),3) -> 0.058 | O42: =ROUND(((O34+O36*O37)*(1-O38))+((O34+O35)*O38),3) -> 0.045 | U42: RRR (real) | X42: =ROUND((X40*(1-X43)+X38*X43),3) -> 0.04 | Y42: 0.04 | Z42: 0.04 | AA42: 0.04 | AB42: 0.04 | AC42: 0.04 | AD42: 0.04 | AE42: 0.04 | AF42: 0.04 | AG42: 0.04
U43: Gearing | X43: 0.6 | Y43: =+X43 -> 0.6 | Z43: =+Y43 -> 0.6 | AA43: 0.6 | AB43: 0.6 | AC43: 0.6 | AD43: 0.6 | AE43: 0.6 | AF43: 0.6 | AG43: 0.6
U44: Forecast Inflation | X44: 0.023 | Y44: =+X44 -> 0.023 | Z44: 0.023 | AA44: 0.023 | AB44: 0.023 | AC44: 0.023 | AD44: 0.023 | AE44: 0.023 | AF44: 0.023 | AG44: 0.023
E46: Form of price control selected
E48: Price caps | I48: 1
U49: PREMO Graded Scoring System (for reference only) | AB49: PREMO Assessment Matrix (linked to Regulatory Rate of Return calculation above)
E50: Revenue cap / Hybrid Tariff Basket
V52: Water business | X52: ESC assessment | Z52: Difference | AD52: Water business self-assessment
V53: self-assessment | X53: of submission
AD54: Leading | AE54: Advanced | AF54: Standard | AG54: Basic
U55: Risk | V55: 2.5 | Z55: =IFERROR(IF(X55=0,"",X55-V55),"") ->  | AB55: ESC assessment of submission | AC55: Leading | AD55: 5.3
U56: Engagement | V56: 3 | Z56: =IFERROR(IF(X56=0,"",X56-V56),"") ->  | AC56: Advanced | AD56: 4.7 | AE56: 4.9
U57: Management | V57: 2.25 | Z57: =IFERROR(IF(X57=0,"",X57-V57),"") ->  | AC57: Standard | AD57: 4.1 | AE57: 4.3 | AF57: 4.5
U58: Outcomes | V58: 2.5 | Z58: =IFERROR(IF(X58=0,"",X58-V58),"") ->  | AC58: Basic | AF58: 3.9 | AG58: 4.1
U60: Total Score | V60: =SUM(V55:V58) -> 10.25 | X60: =SUM(X55:X58) -> 0 | Z60: =IFERROR(IF(X60=0,"",X60-V60),"") -> 
AB61: Water business self-assessment (Maximum allowable ROE) | AF61: Standard | AG61: =+VLOOKUP(AF61,$AF$72:$AG$76,2,FALSE) -> 4.5
AB63: ROE Override (Must be less than Maximum allowable ROE) | AG63: =+IF(AF63<=AG61,AF63,"CHECK") -> 0
U64: Rating | V64: =IF(V60<4,"",IF(AND(V60>=4,V60<=7.25),"Basic",IF(AND(V60>=7.5,V60<=11.25),"Standard",IF(AND(V60>=11.5,V60<=15.25),"Advanced",IF(AND(V60>=15.5,V60<=16),"Leading"))))) -> Standard | X64: =IF(X60<4,"",IF(AND(X60>=4,X60<=7.25),"Basic",IF(AND(X60>=7.5,X60<=11.25),"Standard",IF(AND(X60>=11.5,X60<=15.25),"Advanced",IF(AND(X60>=15.5,X60<=16),"Leading"))))) -> 
AB65: ESC assessment of submission | AG65: =IFERROR(IF(AF65=AF61,AG61,VLOOKUP(AF61&AF65,AF79:AG83,2,FALSE)),0) -> 0
AF67: Difference | AG67: =IFERROR(IF(AG65=0,"",AG65-AG61),"") -> 
U70: ESC USE ONLY
W71: [Select] | Y71: Rating | Z71: Aggregate score for overall PREMO rating | AF71: Business self assessment
W72: 1 | Y72: Leading | Z72: 15.5 to 16.0 | AF72: [Select]
W73: 1.25 | Y73: Advanced | Z73: 11.5 to 15.25 | AF73: Leading | AG73: =+AD55 -> 5.3
W74: 1.5 | Y74: Standard | Z74: 7.5 to 11.25 | AF74: Advanced | AG74: =+AE56 -> 4.9
W75: 1.75 | Y75: Basic | Z75: 4.0 to 7.25 | AF75: Standard | AG75: =+AF57 -> 4.5
W76: 2 | AF76: Basic | AG76: =+AG58 -> 4.1
W77: 2.25
W78: 2.5 | AF78: downgrading
W79: 2.75 | AF79: =AF54&AC58 -> StandardBasic | AG79: =+AF58 -> 3.9
W80: 3 | AF80: =+AE54&AC57 -> AdvancedStandard | AG80: =+AE57 -> 4.3
W81: 3.25 | AF81: =+AD54&AC56 -> LeadingAdvanced | AG81: =+AD56 -> 4.7
W82: 3.5 | AF82: =+AD54&AC57 -> LeadingStandard | AG82: =+AD57 -> 4.1
W83: 3.75 | AF83: =+AF61&"Basic" -> StandardBasic | AG83: CHECK
W84: 4

Sheet Opex_FO
B1: Operating Expenditure - Forecast
B2: =+Model_Name -> Westernport Water
B3: Go to Table of Contents
L4: FIRST REG PERIOD | P4: SECOND REG PERIOD | S4: THIRD REG PERIOD | X4: FOURTH REG PERIOD | AC4: FIFTH REG PERIOD
K5: 2006 | L5: 2007 | M5: 2008 | N5: 2009 | O5: 2010 | P5: 2011 | Q5: 2012 | R5: 2013 | S5: 2014 | T5: 2015 | U5: 2016 | V5: 2017 | W5: 2018 | X5: 2019 | Y5: 2020 | Z5: 2021 | AA5: 2022 | AB5: 2023 | AC5: 2024 | AD5: 2025 | AE5: 2026 | AF5: 2027 | AG5: 2028
B6: $m, 01/01/18 | K6: =+CONCATENATE(K5-1,"-",RIGHT(K5,2)) -> 2005-06 | L6: =+CONCATENATE(L5-1,"-",RIGHT(L5,2)) -> 2006-07 | M6: 2007-08 | N6: 2008-09 | O6: 2009-10 | P6: 2010-11 | Q6: 2011-12 | R6: 2012-13 | S6: 2013-14 | T6: 2014-15 | U6: 2015-16 | V6: 2016-17 | W6: 2017-18 | X6: 2018-19 | Y6: 2019-20 | Z6: 2020-21 | AA6: 2021-22 | AB6: 2022-23 | AC6: 2023-24 | AD6: 2024-25 | AE6: 2025-26 | AF6: 2026-27 | AG6: 2027-28
C9: Parameters | F9: 3rd period | H9: 4th period
D11: Cost efficiency improvement rate (% per annum) | F11: 0.01 | H11: =+SUM(X11:AB11)/5 -> 0.02661221894 | X11: 0.05494451801 | Y11: 0.01982 | Z11: 0.02200589404 | AA11: 0.01705 | AB11: 0.01924068264 | AC11: 0.01924549227 | AD11: 0.01925032306 | AE11: 0.01705 | AF11: 0.01705 | AG11: 0.01705
D13: Customer growth forecast (% per annum) | F13: =AVERAGE(T13:W13) -> 0.01188483377 | H13: =+SUM(X13:AB13)/5 -> 0.018712 | T13: =IF(T15="","",T15/S15-1) -> -0.001144601297 | U13: =IF(U15="","",U15/T15-1) -> 0.01680672269 | V13: 0.01239669421 | W13: 0.01948051948 | X13: 0.01982 | Y13: 0.01982 | Z13: 0.01982 | AA13: 0.01705 | AB13: 0.01705 | AC13: 0.01705 | AD13: 0.01705 | AE13: 0.01705 | AF13: 0.01705 | AG13: 0.01705
E14: Net baseline opex growth | F14: =IFERROR(F13-F11,"-") -> 0.001884833772 | H14: =IFERROR(H13-H11,"-") -> -0.007900218938
D15: Water customers (No.) - Residential & Non-Residential - [BED 1] | S15: =+Determination_Lookup!BF3 -> 15726 | T15: =+Determination_Lookup!BG3 -> 15708 | U15: =+Determination_Lookup!BH3 -> 15972 | V15: 16170 | W15: =+V$15*(1+W$13) -> 16485 | X15: =+W$15*(1+X$13) -> 16811.7327 | Y15: =+X$15*(1+Y$13) -> 17144.94124 | Z15: 17484.75398 | AA15: 17782.86903 | AB15: 18086.06695 | AC15: 18394.43439 | AD15: 18708.0595 | AE15: 19027.03191 | AF15: 19351.44281 | AG15: 19681.38491 | AI15: << Used as normalising metric for dashboard graphs
D17: Sewer customers (No.) - Residential & Non-Residential - [BED 2] | S17: =+Determination_Lookup!BJ3 -> 14372 | T17: =+Determination_Lookup!BK3 -> 14213 | U17: =+Determination_Lookup!BL3 -> 14439 | V17: 14810 | W17: =+V$17*(1+W$13) -> 15098.50649 | X17: =+W$17*(1+X$13) -> 15397.75889 | Y17: =+X$17*(1+Y$13) -> 15702.94247 | Z17: 16014.17479 | AA17: 16287.21647 | AB17: 16564.91351 | AC17: 16847.34529 | AD17: 17134.59253 | AE17: 17426.73733 | AF17: 17723.8632 | AG17: 18026.05507 | AI17: << Used as normalising metric for dashboard graphs
D19: Total metered volume of water delivered to customers (ML) - [BED 10] | S19: =+Determination_Lookup!BB3 -> 1756 | T19: =+Determination_Lookup!BC3 -> 1777 | U19: =+Determination_Lookup!BD3 -> 1889 | V19: 1901.88481 | W19: 2020.131833 | X19: 2059.191013 | Y19: 2099.04467 | Z19: 2142.3798 | AA19: 2180.143523 | AB19: 2218.413367 | AC19: 2257.19764 | AD19: 2298.505313 | AE19: 2338.949845 | AF19: 2379.254765 | AG19: 2420.025253 | AI19: << Used as normalising metric for dashboard graphs
D20: Residential, Non-Residential & Recycled (Residential & Non-Residential)
C24: Baseline Forecast
D26: Baseline year - total prescribed operating expenditure in 2016-17: | V26: =+Opex_Breakdown!V37 -> 14.6674364
D28: Less non-controllable expenditure items incurred in 2016-17:
E29: External bulk water charges (excl. temporary purchases) | V29: =+Opex_Breakdown!V29 -> 0
E30: External temporary water purchases | V30: =+Opex_Breakdown!V30 -> 0 | X30: Comparison with approved 2016-17 total controllable opex
E31: Licence fees | V31: =+Opex_Breakdown!V31 -> 0.04225538918 | X31: per 2013 determination model
E32: Environment Contribution | V32: =+Opex_Breakdown!V32 -> 0.810879025
E33: Other non-controllable | V33: =+Opex_Breakdown!V33 -> 0.06889142129
V34: =SUM(V29:V33) -> 0.9220258354 | Y34: 2016-17 | Z34: Difference | AA34: %
D36: Baseline year - total controllable operating expenditure in 2016-17: | V36: =+V26-V34 -> 13.74541057 | Y36: =+Determination_Lookup!AX3 -> 12.87133516 | Z36: =+V52-Y36 -> 0.7990754134 | AA36: =+Z36/Y36 -> 0.06208178124
D38: Adjustments for non-recurring expenditure items incurred in 2016-17 and any efficiency savings to be realised from 2016-17: | X38: ($, 2017-18)
D40: 1 | E40: Pricing submission and customer engagement | V40: 0.075
D41: 2
D42: 3
D43: 4
D44: 5
D45: 6
D46: 7
D47: 8
D48: 9
D49: 10
V50: =SUM(V40:V49) -> 0.075
D52: Baseline controllable operating expenditure (2016-17) | V52: =+V36-V50 -> 13.67041057
D54: Adjusted Baseline controllable operating expenditure (Forecast) | W54: =+V52*(1+$W$13-$F$11) -> 13.80001316 | X54: =+$W$54*(1+X$13-X$11) -> 13.31529435 | Y54: =+X$54*(1+Y$13-Y$11) -> 13.31529435 | Z54: 13.28618853 | AA54: 13.28618853 | AB54: 13.25708271 | AC54: 13.22797688 | AD54: 13.19887106 | AE54: 13.19887106 | AF54: 13.19887106 | AG54: 13.19887106
C58: Operating expenditure - reconciliation
D61: Adjusted Baseline controllable operating expenditure (Forecast) | X61: =+X54 -> 13.31529435 | Y61: 13.31529435 | Z61: 13.28618853 | AA61: 13.28618853 | AB61: 13.25708271 | AC61: 13.22797688 | AD61: 13.19887106 | AE61: 13.19887106 | AF61: 13.19887106 | AG61: 13.19887106
H62: Controllable
D63: Forecast variations to baseline operating expenditure (above or below baseline) | H63: only
D65: 1 | H65: [Service]
D66: 2 | H66: [Service]
D67: 3 | H67: [Service]
D68: 4 | H68: [Service]
D69: 5 | H69: [Service]
D70: 6 | H70: [Service]
D71: 7 | H71: [Service]
D72: 8 | H72: [Service]
D73: 9 | H73: [Service]
D74: 10 | H74: [Service]
D75: 11 | H75: [Service]
D76: 12 | H76: [Service]
D77: 13 | H77: [Service]
D78: 14 | H78: [Service]
D79: 15 | H79: [Service]
D81: Total changes required to baseline operating expenditure | X81: =SUM(X65:X80) -> 0 | Y81: 0 | Z81: 0 | AA81: 0 | AB81: 0 | AC81: 0 | AD81: 0 | AE81: 0 | AF81: 0 | AG81: 0
W82: % Change in baseline opex per annum | X82: =IFERROR(X81/X61,"-") -> 0 | Y82: =IFERROR(Y81/Y61,"-") -> 0 | Z82: 0 | AA82: 0 | AB82: 0 | AC82: 0 | AD82: 0 | AE82: 0 | AF82: 0 | AG82: 0
W83: % Change in baseline opex per reg period | AB83: =IFERROR(AVERAGE(X82:AB82),"-") -> 0 | AG83: =IFERROR(AVERAGE(AC82:AG82),"-") -> 0
D84: Total controllable operating expenditure | X84: =+X81+X61 -> 13.31529435 | Y84: 13.31529435 | Z84: 13.28618853 | AA84: 13.28618853 | AB84: 13.25708271 | AC84: 13.22797688 | AD84: 13.19887106 | AE84: 13.19887106 | AF84: 13.19887106 | AG84: 13.19887106
W85: Controllable Opex growth from baseline to 5th year | AB85: =IFERROR(AB84-V52,"-") -> -0.4133278623 | AC85: =IFERROR(AB84/V52-1,"-") -> -0.03023521936
D86: Non-controllable operating expenditure
D87: External bulk water charges (excl. temporary purchases) | X87: =+Opex_Breakdown!X29 -> 0.5775108129 | Y87: =+Opex_Breakdown!Y29 -> 0.5775108129 | Z87: =+Opex_Breakdown!Z29 -> 0.5775108129 | AA87: =+Opex_Breakdown!AA29 -> 0.3513440616 | AB87: =+Opex_Breakdown!AB29 -> 0.3513440616 | AC87: =+Opex_Breakdown!AC29 -> 0.3513440616 | AD87: =+Opex_Breakdown!AD29 -> 0.3513440616 | AE87: =+Opex_Breakdown!AE29 -> 0.3513440616 | AF87: =+Opex_Breakdown!AF29 -> 0.3513440616 | AG87: =+Opex_Breakdown!AG29 -> 0.3513440616
D88: External temporary water purchases | X88: =+Opex_Breakdown!X30 -> 0 | Y88: =+Opex_Breakdown!Y30 -> 0 | Z88: =+Opex_Breakdown!Z30 -> 0 | AA88: =+Opex_Breakdown!AA30 -> 0 | AB88: =+Opex_Breakdown!AB30 -> 0 | AC88: =+Opex_Breakdown!AC30 -> 0 | AD88: =+Opex_Breakdown!AD30 -> 0 | AE88: =+Opex_Breakdown!AE30 -> 0 | AF88: =+Opex_Breakdown!AF30 -> 0 | AG88: =+Opex_Breakdown!AG30 -> 0
D89: Licence fees | X89: =+Opex_Breakdown!X31 -> 0.04225538918 | Y89: =+Opex_Breakdown!Y31 -> 0.04225538918 | Z89: =+Opex_Breakdown!Z31 -> 0.04225538918 | AA89: =+Opex_Breakdown!AA31 -> 0.04225538918 | AB89: =+Opex_Breakdown!AB31 -> 0.04225538918 | AC89: =+Opex_Breakdown!AC31 -> 0.04225538918 | AD89: =+Opex_Breakdown!AD31 -> 0.04225538918 | AE89: =+Opex_Breakdown!AE31 -> 0.04225538918 | AF89: =+Opex_Breakdown!AF31 -> 0.04225538918 | AG89: =+Opex_Breakdown!AG31 -> 0.04225538918
D90: Environment Contribution | X90: =+Opex_Breakdown!X32 -> 1.026434461 | Y90: =+Opex_Breakdown!Y32 -> 1.003357245 | Z90: =+Opex_Breakdown!Z32 -> 0.9807988708 | AA90: =+Opex_Breakdown!AA32 -> 0.9587476743 | AB90: =+Opex_Breakdown!AB32 -> 0.9371922525 | AC90: =+Opex_Breakdown!AC32 -> 1.009476943 | AD90: =+Opex_Breakdown!AD32 -> 0.9867809808 | AE90: =+Opex_Breakdown!AE32 -> 0.9645952891 | AF90: =+Opex_Breakdown!AF32 -> 0.942908396 | AG90: =+Opex_Breakdown!AG32 -> 0.921709087
D91: Other non-controllable | X91: =+Opex_Breakdown!X33 -> 0.06594084282 | Y91: =+Opex_Breakdown!Y33 -> 0.06445830187 | Z91: =+Opex_Breakdown!Z33 -> 0.06300909274 | AA91: =+Opex_Breakdown!AA33 -> 0.06159246602 | AB91: =+Opex_Breakdown!AB33 -> 0.06020768917 | AC91: =+Opex_Breakdown!AC33 -> 0.05885404611 | AD91: =+Opex_Breakdown!AD33 -> 0.05753083686 | AE91: =+Opex_Breakdown!AE33 -> 0.05623737719 | AF91: =+Opex_Breakdown!AF33 -> 0.05497299823 | AG91: =+Opex_Breakdown!AG33 -> 0.05373704617
D92: Total non-controllable operating expenditure | X92: =SUM(X87:X91) -> 1.712141506 | Y92: 1.687581749 | Z92: 1.663574166 | AA92: 1.413939591 | AB92: 1.390999392 | AC92: 1.46193044 | AD92: 1.437911268 | AE92: 1.414432117 | AF92: 1.391480845 | AG92: 1.369045584
W93: Non-controllable Opex growth from baseline to 5th year | AB93: =IFERROR(AB92-V34,"-") -> 0.468973557 | AC93: =IFERROR(AB92/V34-1,"-") -> 0.5086338571
D95: Total prescribed operating expenditure | X95: =+X92+X84 -> 15.02743586 | Y95: 15.0028761 | Z95: 14.94976269 | AA95: 14.70012812 | AB95: 14.6480821 | AC95: 14.68990732 | AD95: 14.63678233 | AE95: 14.61330318 | AF95: 14.59035191 | AG95: =+AG92+AG84 -> 14.56791664
W96: Prescribed Opex growth from baseline to 5th year | AB96: =IFERROR(AB95-(V52+V34),"-") -> 0.05564569471 | AC96: =IFERROR((AB95/(V52+V34))-1,"-") -> 0.003813324463
W98: To reconcile to 'Opex_Breakdown' tab row 37 >> | X98: =+Opex_Breakdown!X37 -> 15.02743586 | Y98: =+Opex_Breakdown!Y37 -> 15.0028761 | Z98: =+Opex_Breakdown!Z37 -> 14.94976269 | AA98: =+Opex_Breakdown!AA37 -> 14.70012812 | AB98: =+Opex_Breakdown!AB37 -> 14.6480821 | AC98: =+Opex_Breakdown!AC37 -> 14.68990732 | AD98: =+Opex_Breakdown!AD37 -> 14.63678233 | AE98: =+Opex_Breakdown!AE37 -> 14.61330318 | AF98: =+Opex_Breakdown!AF37 -> 14.59035191 | AG98: =+Opex_Breakdown!AG37 -> 14.56791664
W99: Difference | X99: =+X98-X95 -> 0 | Y99: 0 | Z99: 0 | AA99: 0 | AB99: 0 | AC99: 0 | AD99: 0 | AE99: 0 | AF99: 0 | AG99: 0
W100: Test | X100: =ROUND(X98,2)=ROUND(X95,2) -> TRUE | Y100: =ROUND(Y98,2)=ROUND(Y95,2) -> TRUE | Z100: TRUE | AA100: TRUE | AB100: TRUE | AC100: TRUE | AD100: TRUE | AE100: TRUE | AF100: TRUE | AG100: TRUE
X139: =+X$160 -> 2018-19 | Y139: 2019-20 | Z139: 2020-21 | AA139: 2021-22 | AB139: 2022-23 | AC139: 2023-24 | AD139: 2024-25 | AE139: 2025-26 | AF139: 2026-27 | AG139: 2027-28
W140: Total controllable opex | X140: =+X84 -> 13.31529435 | Y140: 13.31529435 | Z140: 13.28618853 | AA140: 13.28618853 | AB140: 13.25708271 | AC140: 13.22797688 | AD140: 13.19887106 | AE140: 13.19887106 | AF140: 13.19887106 | AG140: 13.19887106
W141: Change - $ | Y141: =+Y140-X140 -> 0 | Z141: -0.02910582255 | AA141: 0 | AB141: -0.02910582255 | AC141: -0.02910582255 | AD141: -0.02910582255 | AE141: 0 | AF141: 0 | AG141: 0
W142: Change - % | Y142: =IFERROR(Y141/X140,"") -> 0 | Z142: -0.002185894039 | AA142: 0 | AB142: -0.002190682639 | AC142: -0.002195492266 | AD142: -0.002200323058 | AE142: 0 | AF142: 0 | AG142: 0
X144: =+X$160 -> 2018-19 | Y144: 2019-20 | Z144: 2020-21 | AA144: 2021-22 | AB144: 2022-23 | AC144: 2023-24 | AD144: 2024-25 | AE144: 2025-26 | AF144: 2026-27 | AG144: 2027-28
W145: Total non-controllable opex | X145: =+X92 -> 1.712141506 | Y145: 1.687581749 | Z145: 1.663574166 | AA145: 1.413939591 | AB145: 1.390999392 | AC145: 1.46193044 | AD145: 1.437911268 | AE145: 1.414432117 | AF145: 1.391480845 | AG145: 1.369045584
W146: Change - $ | Y146: =+Y145-X145 -> -0.02455975757 | Z146: -0.02400758316 | AA146: -0.2496345745 | AB146: -0.02294019866 | AC146: 0.07093104783 | AD146: -0.02401917181 | AE146: -0.02347915133 | AF146: -0.02295127207 | AG146: -0.02243526106
W147: Change - % | Y147: =IFERROR(Y146/X145,"") -> -0.01434446714 | Z147: -0.01422602679 | AA147: -0.1500591796 | AB147: -0.01622431312 | AC147: 0.05099286759 | AD147: -0.01642976379 | AE147: -0.01632865104 | AF147: -0.01622649245 | AG147: -0.01612329853
X149: =+X$160 -> 2018-19 | Y149: 2019-20 | Z149: 2020-21 | AA149: 2021-22 | AB149: 2022-23 | AC149: 2023-24 | AD149: 2024-25 | AE149: 2025-26 | AF149: 2026-27 | AG149: 2027-28
W150: Total prescribed opex | X150: =+X140+X145 -> 15.02743586 | Y150: 15.0028761 | Z150: 14.94976269 | AA150: 14.70012812 | AB150: 14.6480821 | AC150: 14.68990732 | AD150: 14.63678233 | AE150: 14.61330318 | AF150: 14.59035191 | AG150: 14.56791664
W151: Change - $ | Y151: =+Y150-X150 -> -0.02455975757 | Z151: -0.05311340571 | AA151: -0.2496345745 | AB151: -0.05204602121 | AC151: 0.04182522528 | AD151: -0.05312499436 | AE151: -0.02347915133 | AF151: -0.02295127207 | AG151: -0.02243526106
W152: Change - % | Y152: =IFERROR(Y151/X150,"") -> -0.001634327892 | Z152: -0.003540214913 | AA152: -0.01669822991 | AB152: -0.003540514803 | AC152: 0.002855337989 | AD152: -0.003616428149 | AE152: -0.00160411973 | AF152: -0.001570573866 | AG152: -0.001537677858
W155: Controllable vs. Non-controllable opex - % | X155: =+X$160 -> 2018-19 | Y155: 2019-20 | Z155: 2020-21 | AA155: 2021-22 | AB155: 2022-23 | AC155: 2023-24 | AD155: 2024-25 | AE155: 2025-26 | AF155: 2026-27 | AG155: 2027-28
W156: Controllable opex - % | X156: =+X84/X95 -> 0.8860656254 | Y156: 0.8875161177 | Z156: 0.8887223697 | AA156: 0.9038144716 | AB156: 0.9050388042 | AC156: 0.900480622 | AD156: 0.9017604255 | AE156: 0.9032092813 | AF156: 0.9046300697 | AG156: 0.9060232415
W157: Non-controllable opex - % | X157: =+X92/X95 -> 0.1139343746 | Y157: 0.1124838823 | Z157: 0.1112776303 | AA157: 0.09618552842 | AB157: 0.09496119581 | AC157: 0.09951937804 | AD157: 0.09823957452 | AE157: 0.0967907187 | AF157: 0.09536993035 | AG157: 0.09397675847
X158: =SUM(X156:X157) -> 1 | Y158: 1 | Z158: 1 | AA158: 1 | AB158: 1 | AC158: 1 | AD158: 1 | AE158: 1 | AF158: 1 | AG158: 1
V160: =+V6 -> 2016-17 | W160: 2017-18 | X160: 2018-19 | Y160: 2019-20 | Z160: 2020-21 | AA160: 2021-22 | AB160: 2022-23 | AC160: 2023-24 | AD160: 2024-25 | AE160: 2025-26 | AF160: 2026-27 | AG160: 2027-28
U161: Third Reg period Opex | V161: =+V169-SUM(V162:V168) -> 13.74541057 | W161: =+W169-SUM(W162:W168) -> 13.76887106
U162: Adjusted baseline opex | X162: =+X61 -> 13.31529435 | Y162: 13.31529435 | Z162: 13.28618853 | AA162: 13.28618853 | AB162: 13.25708271 | AC162: 13.22797688 | AD162: 13.19887106 | AE162: 13.19887106 | AF162: 13.19887106 | AG162: 13.19887106
U163: Forecast variations to baseline operating expenditure | X163: =+X81 -> 0 | Y163: 0 | Z163: 0 | AA163: 0 | AB163: 0 | AC163: 0 | AD163: 0 | AE163: 0 | AF163: 0 | AG163: 0
U164: Licence fees | V164: =+V193 -> 0.04225538918 | W164: =+W193 -> 0.05646100004 | X164: =+X89 -> 0.04225538918 | Y164: 0.04225538918 | Z164: 0.04225538918 | AA164: 0.04225538918 | AB164: 0.04225538918 | AC164: 0.04225538918 | AD164: 0.04225538918 | AE164: 0.04225538918 | AF164: 0.04225538918 | AG164: 0.04225538918
U165: Environment Contribution | V165: =+V194 -> 0.810879025 | W165: =+W194 -> 0.812263023 | X165: =+X90 -> 1.026434461 | Y165: 1.003357245 | Z165: 0.9807988708 | AA165: 0.9587476743 | AB165: 0.9371922525 | AC165: 1.009476943 | AD165: 0.9867809808 | AE165: 0.9645952891 | AF165: 0.942908396 | AG165: 0.921709087
U166: External bulk water charges | V166: =+V191 -> 0 | W166: =+W191 -> 0 | X166: =+X87 -> 0.5775108129 | Y166: 0.5775108129 | Z166: 0.5775108129 | AA166: 0.3513440616 | AB166: 0.3513440616 | AC166: 0.3513440616 | AD166: 0.3513440616 | AE166: 0.3513440616 | AF166: 0.3513440616 | AG166: 0.3513440616
U167: External temporary water purchases | V167: =+V192 -> 0 | W167: =+W192 -> 0 | X167: =+X88 -> 0 | Y167: 0 | Z167: 0 | AA167: 0 | AB167: 0 | AC167: 0 | AD167: 0 | AE167: 0 | AF167: 0 | AG167: 0
U168: Other non-controllable | V168: =+V195 -> 0.06889142129 | W168: =+W195 -> 0.0674574822 | X168: =+X91 -> 0.06594084282 | Y168: 0.06445830187 | Z168: 0.06300909274 | AA168: 0.06159246602 | AB168: 0.06020768917 | AC168: 0.05885404611 | AD168: 0.05753083686 | AE168: 0.05623737719 | AF168: 0.05497299823 | AG168: 0.05373704617
U169: Total prescribed opex | V169: =+Opex_Breakdown!V37 -> 14.6674364 | W169: =+Opex_Breakdown!W37 -> 14.70505257 | X169: =SUM(X162:X168) -> 15.02743586 | Y169: 15.0028761 | Z169: 14.94976269 | AA169: 14.70012812 | AB169: 14.6480821 | AC169: 14.68990732 | AD169: 14.63678233 | AE169: 14.61330318 | AF169: 14.59035191 | AG169: 14.56791664
X171: =+X$160 -> 2018-19 | Y171: 2019-20 | Z171: 2020-21 | AA171: 2021-22 | AB171: 2022-23 | AC171: 2023-24 | AD171: 2024-25 | AE171: 2025-26 | AF171: 2026-27 | AG171: 2027-28
W172: Adjusted baseline opex | X172: =+X162/X$169 -> 0.8860656254 | Y172: 0.8875161177 | Z172: 0.8887223697 | AA172: 0.9038144716 | AB172: 0.9050388042 | AC172: 0.900480622 | AD172: 0.9017604255 | AE172: 0.9032092813 | AF172: 0.9046300697 | AG172: 0.9060232415
W173: Forecast variations to baseline operating expenditure | X173: =+X163/X$169 -> 0 | Y173: 0 | Z173: 0 | AA173: 0 | AB173: 0 | AC173: 0 | AD173: 0 | AE173: 0 | AF173: 0 | AG173: 0
W174: Licence fees | X174: =+X164/X$169 -> 0.002811882851 | Y174: 0.002816485912 | Z174: 0.002826492303 | AA174: 0.002874491218 | AB174: 0.002884704557 | AC174: 0.002876491202 | AD174: 0.002886931583 | AE174: 0.002891570008 | AF174: 0.002896118576 | AG174: 0.002900578731
W175: Environment Contribution | X175: =+X165/X$169 -> 0.06830403212 | Y175: 0.06687765986 | Z175: 0.06560631703 | AA175: 0.06522036179 | AB175: 0.0639805434 | AC175: 0.06871908182 | AD175: 0.06741788998 | AE175: 0.06600802552 | AF175: 0.0646254732 | AG175: 0.06326979413
W176: External bulk water charges (excl. temporary purchases) | X176: =+X166/X$169 -> 0.03843042941 | Y176: 0.03849334015 | Z176: 0.038630099 | AA176: 0.02390074826 | AB176: 0.02398566988 | AC176: 0.02391737768 | AD176: 0.0240041871 | AE176: 0.02404275456 | AF176: 0.02408057488 | AG176: 0.02411766007
W177: External temporary water purchases | X177: =+X167/X$169 -> 0 | Y177: 0 | Z177: 0 | AA177: 0 | AB177: 0 | AC177: 0 | AD177: 0 | AE177: 0 | AF177: 0 | AG177: 0
W178: Other non-controllable | X178: =+X168/X$169 -> 0.00438803023 | Y178: 0.004296396334 | Z178: 0.004214721934 | AA178: 0.004189927157 | AB178: 0.004110277971 | AC178: 0.004006427325 | AD178: 0.003930565856 | AE178: 0.003848368606 | AF178: 0.003767763696 | AG178: 0.003688725538
W179: Total prescribed opex | X179: =+X169/X$169 -> 1 | Y179: 1 | Z179: 1 | AA179: 1 | AB179: 1 | AC179: 1 | AD179: 1 | AE179: 1 | AF179: 1 | AG179: 1
X181: =+X$160 -> 2018-19 | Y181: 2019-20 | Z181: 2020-21 | AA181: 2021-22 | AB181: 2022-23 | AC181: 2023-24 | AD181: 2024-25 | AE181: 2025-26 | AF181: 2026-27 | AG181: 2027-28
W182: Water | X182: =+SUMIF($H$65:$H$80,$W182,X$65:X$80) -> 0 | Y182: 0 | Z182: 0 | AA182: 0 | AB182: 0 | AC182: 0 | AD182: 0 | AE182: 0 | AF182: 0 | AG182: 0
W183: Sewerage | X183: 0 | Y183: 0 | Z183: 0 | AA183: 0 | AB183: 0 | AC183: 0 | AD183: 0 | AE183: 0 | AF183: 0 | AG183: 0
W184: Recycled Water | X184: 0 | Y184: 0 | Z184: 0 | AA184: 0 | AB184: 0 | AC184: 0 | AD184: 0 | AE184: 0 | AF184: 0 | AG184: 0
W185: Rural water | X185: 0 | Y185: 0 | Z185: 0 | AA185: 0 | AB185: 0 | AC185: 0 | AD185: 0 | AE185: 0 | AF185: 0 | AG185: 0
W186: Bulk Water | X186: 0 | Y186: 0 | Z186: 0 | AA186: 0 | AB186: 0 | AC186: 0 | AD186: 0 | AE186: 0 | AF186: 0 | AG186: 0
W187: Forecast variations to baseline operating expenditure | X187: =SUM(X182:X186) -> 0 | Y187: 0 | Z187: 0 | AA187: 0 | AB187: 0 | AC187: 0 | AD187: 0 | AE187: 0 | AF187: 0 | AG187: 0
V190: =+V6 -> 2016-17 | W190: 2017-18 | X190: 2018-19 | Y190: 2019-20 | Z190: 2020-21 | AA190: 2021-22 | AB190: 2022-23 | AC190: 2023-24 | AD190: 2024-25 | AE190: 2025-26 | AF190: 2026-27 | AG190: 2027-28
U191: External bulk water charges (excl. temporary purchases) | V191: =+Opex_Breakdown!V29 -> 0 | W191: =+Opex_Breakdown!W29 -> 0 | X191: =+X87 -> 0.5775108129 | Y191: 0.5775108129 | Z191: 0.5775108129 | AA191: 0.3513440616 | AB191: 0.3513440616 | AC191: 0.3513440616 | AD191: 0.3513440616 | AE191: 0.3513440616 | AF191: 0.3513440616 | AG191: 0.3513440616
U192: External temporary water purchases | V192: =+Opex_Breakdown!V30 -> 0 | W192: =+Opex_Breakdown!W30 -> 0 | X192: =+X88 -> 0 | Y192: 0 | Z192: 0 | AA192: 0 | AB192: 0 | AC192: 0 | AD192: 0 | AE192: 0 | AF192: 0 | AG192: 0
U193: Licence fees | V193: =+Opex_Breakdown!V31 -> 0.04225538918 | W193: =+Opex_Breakdown!W31 -> 0.05646100004 | X193: =+X89 -> 0.04225538918 | Y193: 0.04225538918 | Z193: 0.04225538918 | AA193: 0.04225538918 | AB193: 0.04225538918 | AC193: 0.04225538918 | AD193: 0.04225538918 | AE193: 0.04225538918 | AF193: 0.04225538918 | AG193: 0.04225538918
U194: Environment Contribution | V194: =+Opex_Breakdown!V32 -> 0.810879025 | W194: =+Opex_Breakdown!W32 -> 0.812263023 | X194: =+X90 -> 1.026434461 | Y194: 1.003357245 | Z194: 0.9807988708 | AA194: 0.9587476743 | AB194: 0.9371922525 | AC194: 1.009476943 | AD194: 0.9867809808 | AE194: 0.9645952891 | AF194: 0.942908396 | AG194: 0.921709087
U195: Other non-controllable | V195: =+Opex_Breakdown!V33 -> 0.06889142129 | W195: =+Opex_Breakdown!W33 -> 0.0674574822 | X195: =+X91 -> 0.06594084282 | Y195: 0.06445830187 | Z195: 0.06300909274 | AA195: 0.06159246602 | AB195: 0.06020768917 | AC195: 0.05885404611 | AD195: 0.05753083686 | AE195: 0.05623737719 | AF195: 0.05497299823 | AG195: 0.05373704617
U196: Total Non-controllable operating expenditure | V196: =+Opex_Breakdown!V34 -> 0.9220258354 | W196: =+Opex_Breakdown!W34 -> 0.9361815052 | X196: =SUM(X191:X195) -> 1.712141506 | Y196: 1.687581749 | Z196: 1.663574166 | AA196: 1.413939591 | AB196: 1.390999392 | AC196: 1.46193044 | AD196: 1.437911268 | AE196: 1.414432117 | AF196: 1.391480845 | AG196: 1.369045584
V198: ERROR CHECK | X198: =+X169=X95 -> TRUE | Y198: TRUE | Z198: TRUE | AA198: TRUE | AB198: TRUE | AC198: TRUE | AD198: TRUE | AE198: TRUE | AF198: TRUE | AG198: TRUE
X199: =+X187=X163 -> TRUE | Y199: TRUE | Z199: TRUE | AA199: TRUE | AB199: TRUE | AC199: TRUE | AD199: TRUE | AE199: TRUE | AF199: TRUE | AG199: TRUE
X200: =+X150=X169 -> TRUE | Y200: TRUE | Z200: TRUE | AA200: TRUE | AB200: TRUE | AC200: TRUE | AD200: TRUE | AE200: TRUE | AF200: TRUE | AG200: TRUE
X201: =+X196=X145 -> TRUE | Y201: TRUE | Z201: TRUE | AA201: TRUE | AB201: TRUE | AC201: TRUE | AD201: TRUE | AE201: TRUE | AF201: TRUE | AG201: TRUE

Sheet Opex_Breakdown
A1: 80 | B1: Operating Expenditure - Breakdown
B2: =+Contents!H7 -> Westernport Water
B3: Go to Table of Contents
L4: FIRST REG PERIOD | P4: SECOND REG PERIOD | U4: THIRD REG PERIOD | Z4: FOURTH REG PERIOD | AC4: FIFTH REG PERIOD
K6: 2006 | L6: 2007 | M6: 2008 | N6: 2009 | O6: 2010 | P6: 2011 | Q6: 2012 | R6: 2013 | S6: 2014 | T6: 2015 | U6: 2016 | V6: 2017 | W6: 2018 | X6: 2019 | Y6: 2020 | Z6: 2021 | AA6: 2022 | AB6: 2023 | AC6: 2024 | AD6: 2025 | AE6: 2026 | AF6: 2027 | AG6: 2028
B7: $m, 01/01/18 | K7: =+CONCATENATE(K6-1,"-",RIGHT(K6,2)) -> 2005-06 | L7: =+CONCATENATE(L6-1,"-",RIGHT(L6,2)) -> 2006-07 | M7: 2007-08 | N7: 2008-09 | O7: 2009-10 | P7: 2010-11 | Q7: 2011-12 | R7: 2012-13 | S7: 2013-14 | T7: 2014-15 | U7: 2015-16 | V7: 2016-17 | W7: 2017-18 | X7: =+CONCATENATE(X6-1,"-",RIGHT(X6,2)) -> 2018-19 | Y7: =+CONCATENATE(Y6-1,"-",RIGHT(Y6,2)) -> 2019-20 | Z7: =+CONCATENATE(Z6-1,"-",RIGHT(Z6,2)) -> 2020-21 | AA7: =+CONCATENATE(AA6-1,"-",RIGHT(AA6,2)) -> 2021-22 | AB7: =+CONCATENATE(AB6-1,"-",RIGHT(AB6,2)) -> 2022-23 | AC7: =+CONCATENATE(AC6-1,"-",RIGHT(AC6,2)) -> 2023-24 | AD7: 2024-25 | AE7: 2025-26 | AF7: 2026-27 | AG7: 2027-28
D10: Operating Expenditure Summary
E12: =C48 -> Water | K12: =+K57-K50-K54 -> 0 | L12: =+L57-L50-L54 -> 0 | M12: 0 | N12: 0 | O12: 0 | P12: 0 | Q12: =+Q57-Q50-Q54 -> 0 | R12: 6.660948849 | S12: 5.915246289 | T12: 6.928790323 | U12: 8.189208801 | V12: 7.055780954 | W12: 7.067823672 | X12: 6.784035317 | Y12: 6.784035317 | Z12: 6.769482405 | AA12: 6.769482405 | AB12: 6.754929494 | AC12: =+AC57-AC50-AC54 -> 6.740376583 | AD12: 6.725823672 | AE12: 6.725823672 | AF12: 6.725823672 | AG12: 6.725823672
E13: =C59 -> Sewerage | K13: =K68-K61-K65 -> 0 | L13: =L68-L61-L65 -> 0 | M13: 0 | N13: 0 | O13: 0 | P13: 0 | Q13: 0 | R13: 7.881448448 | S13: 6.813231445 | T13: 5.398145161 | U13: 6.022663858 | V13: 6.489506535 | W13: 6.500582742 | X13: 6.336494388 | Y13: 6.336494388 | Z13: 6.321941476 | AA13: 6.321941476 | AB13: 6.307388565 | AC13: =AC68-AC61-AC65 -> 6.292835654 | AD13: 6.278282742 | AE13: 6.278282742 | AF13: 6.278282742 | AG13: 6.278282742
E14: =C70 -> Recycled Water | K14: =K79-K72-K76 -> 0 | L14: =L79-L72-L76 -> 0 | M14: 0 | N14: 0 | O14: 0 | P14: 0 | Q14: 0 | R14: 0.3913845846 | S14: 0.1441248047 | T14: 0.08282258065 | U14: 0.1448501873 | V14: 0.2001230794 | W14: 0.2004646469 | X14: 0.1947646469 | Y14: 0.1947646469 | Z14: 0.1947646469 | AA14: 0.1947646469 | AB14: 0.1947646469 | AC14: =AC79-AC72-AC76 -> 0.1947646469 | AD14: 0.1947646469 | AE14: 0.1947646469 | AF14: 0.1947646469 | AG14: 0.1947646469
E15: =C81 -> Rural Water | K15: =K90-K83-K87 -> 0 | L15: =L90-L83-L87 -> 0 | M15: 0 | N15: 0 | O15: 0 | P15: 0 | Q15: 0 | R15: 0 | S15: 0 | T15: 0 | U15: 0 | V15: 0 | W15: 0 | X15: 0 | Y15: 0 | Z15: 0 | AA15: 0 | AB15: 0 | AC15: =AC90-AC83-AC87 -> 0 | AD15: 0 | AE15: 0 | AF15: 0 | AG15: 0
E16: Bulk Water | K16: =K100-K97 -> 0 | L16: =L100-L97 -> 0 | M16: 0 | N16: 0 | O16: 0 | P16: 0 | Q16: 0 | R16: 0 | S16: 0 | T16: 0 | U16: 0 | V16: 0 | W16: 0 | X16: 0 | Y16: 0 | Z16: 0 | AA16: 0 | AB16: 0 | AC16: =AC100-AC97 -> 0 | AD16: 0 | AE16: 0 | AF16: 0 | AG16: 0
E17: Total controllable operating expenditure | K17: =SUM(K12:K16) -> 0 | L17: 0 | M17: 0 | N17: 0 | O17: 0 | P17: 0 | Q17: 0 | R17: 14.93378188 | S17: 12.87260254 | T17: 12.40975806 | U17: 14.35672285 | V17: 13.74541057 | W17: 13.76887106 | X17: 13.31529435 | Y17: 13.31529435 | Z17: 13.28618853 | AA17: 13.28618853 | AB17: 13.25708271 | AC17: 13.22797688 | AD17: 13.19887106 | AE17: 13.19887106 | AF17: 13.19887106 | AG17: 13.19887106
V18: Controllable Opex for 3rd Reg Period | W18: =SUM(S17:W17) -> 67.15336508 | AA18: Controllable Opex for 4th Reg Period | AB18: =SUM(X17:AB17) -> 66.46004847
AA19: Controllable Opex growth from 3rd to 4th Reg Period | AB19: =IFERROR(AB18-W18,"-") -> -0.6933166136 | AC19: =IFERROR(AB18/W18-1,"-") -> -0.01032437634
E20: Operations & Maintenance | K20: =K49+K60+K71+K82+K93 -> 0 | L20: 0 | M20: 0 | N20: 0 | O20: 0 | P20: 0 | Q20: 0 | R20: 5.230775776 | S20: 6.2846875 | T20: 4.082419355 | U20: 4.581404494 | V20: 3.719501488 | W20: 3.725849886 | X20: 3.277973176 | Y20: 3.277973176 | Z20: 3.248867354 | AA20: 3.248867354 | AB20: 3.219761531 | AC20: 3.190655709 | AD20: 3.161549886 | AE20: 3.161549886 | AF20: 3.161549886 | AG20: 3.161549886
E21: Treatment | K21: =K51+K62+K73+K84+K94 -> 0 | L21: 0 | M21: 0 | N21: 0 | O21: 0 | P21: 0 | Q21: 0 | R21: 4.119692192 | S21: 1.318662109 | T21: 2.897741935 | U21: 3.028403558 | V21: 2.552204815 | W21: 2.556560886 | X21: 2.550860886 | Y21: 2.550860886 | Z21: 2.550860886 | AA21: 2.550860886 | AB21: 2.550860886 | AC21: 2.550860886 | AD21: 2.550860886 | AE21: 2.550860886 | AF21: 2.550860886 | AG21: 2.550860886
E22: Customer Service and billing | K22: =K52+K63+K74+K85+K95 -> 0 | L22: 0 | M22: 0 | N22: 0 | O22: 0 | P22: 0 | Q22: 0 | R22: 0.9420926927 | S22: 1.055361328 | T22: 1.092419355 | U22: 1.208464419 | V22: 1.521214284 | W22: 1.523810673 | X22: 1.523810673 | Y22: 1.523810673 | Z22: 1.523810673 | AA22: 1.523810673 | AB22: 1.523810673 | AC22: 1.523810673 | AD22: 1.523810673 | AE22: 1.523810673 | AF22: 1.523810673 | AG22: 1.523810673
E23: GSL Payments | K23: =K53+K64+K75+K86+K96 -> 0 | L23: 0 | M23: 0 | N23: 0 | O23: 0 | P23: 0 | Q23: 0 | R23: 0 | S23: 0.001079101562 | T23: 0 | U23: 0 | V23: 0 | W23: 0 | X23: 0 | Y23: 0 | Z23: 0 | AA23: 0 | AB23: 0 | AC23: 0 | AD23: 0 | AE23: 0 | AF23: 0 | AG23: 0
E24: Corporate | K24: =K55+K66+K77+K88+K98 -> 0 | L24: 0 | M24: 0 | N24: 0 | O24: 0 | P24: 0 | Q24: 0 | R24: 4.625735736 | S24: 4.2128125 | T24: 4.337177419 | U24: 5.538450375 | V24: 5.952489982 | W24: 5.962649616 | X24: 5.962649616 | Y24: 5.962649616 | Z24: 5.962649616 | AA24: 5.962649616 | AB24: 5.962649616 | AC24: 5.962649616 | AD24: 5.962649616 | AE24: 5.962649616 | AF24: 5.962649616 | AG24: 5.962649616
E25: Other operating expenditure | K25: =K56+K67+K78+K89+K99 -> 0 | L25: 0 | M25: 0 | N25: 0 | O25: 0 | P25: 0 | Q25: 0 | R25: 0.01548548549 | S25: 0 | T25: 0 | U25: 0 | V25: 0 | W25: 0 | X25: 0 | Y25: 0 | Z25: 0 | AA25: 0 | AB25: 0 | AC25: 0 | AD25: 0 | AE25: 0 | AF25: 0 | AG25: 0
E26: Total controllable operating expenditure | K26: =SUM(K20:K25) -> 0 | L26: =SUM(L20:L25) -> 0 | M26: 0 | N26: 0 | O26: 0 | P26: 0 | Q26: 0 | R26: 14.93378188 | S26: 12.87260254 | T26: 12.40975806 | U26: 14.35672285 | V26: 13.74541057 | W26: 13.76887106 | X26: 13.31529435 | Y26: 13.31529435 | Z26: 13.28618853 | AA26: 13.28618853 | AB26: 13.25708271 | AC26: 13.22797688 | AD26: 13.19887106 | AE26: 13.19887106 | AF26: 13.19887106 | AG26: 13.19887106
E29: External bulk water charges (excl. temporary purchases) | K29: =K50+K61+K72+K83 -> 0 | L29: 0 | M29: 0 | N29: 0 | O29: 0 | P29: 0 | Q29: 0 | R29: 0 | S29: 0 | T29: 0 | U29: 0 | V29: 0 | W29: 0 | X29: =X50+X61+X72+X83 -> 0.5775108129 | Y29: =Y50+Y61+Y72+Y83 -> 0.5775108129 | Z29: 0.5775108129 | AA29: 0.3513440616 | AB29: 0.3513440616 | AC29: 0.3513440616 | AD29: 0.3513440616 | AE29: 0.3513440616 | AF29: 0.3513440616 | AG29: 0.3513440616
E30: External temporary water purchases | K30: =+K102 -> 0 | L30: 0 | M30: 0 | N30: 0 | O30: 0 | P30: 0 | Q30: 0 | R30: 0 | S30: 0 | T30: 0 | U30: 0 | V30: 0 | W30: 0 | X30: 0 | Y30: 0 | Z30: 0 | AA30: 0 | AB30: 0 | AC30: 0 | AD30: 0 | AE30: 0 | AF30: 0 | AG30: 0
E31: Licence fees | K31: =+K109 -> 0 | L31: 0 | M31: 0 | N31: 0 | O31: 0 | P31: 0 | Q31: 0 | R31: 0.04977477477 | S31: 0.04855957031 | T31: 0.04088709677 | U31: 0.04362368159 | V31: 0.04225538918 | W31: 0.05646100004 | X31: 0.04225538918 | Y31: 0.04225538918 | Z31: 0.04225538918 | AA31: 0.04225538918 | AB31: 0.04225538918 | AC31: 0.04225538918 | AD31: 0.04225538918 | AE31: 0.04225538918 | AF31: 0.04225538918 | AG31: 0.04225538918
E32: Environment Contribution | K32: =K111 -> 0 | L32: 0 | M32: 0 | N32: 0 | O32: 0 | P32: 0 | Q32: 0 | R32: 0.60504004 | S32: 0.8568066406 | T32: 0.8072580645 | U32: 0.8499679561 | V32: 0.810879025 | W32: 0.812263023 | X32: 1.026434461 | Y32: 1.003357245 | Z32: 0.9807988708 | AA32: 0.9587476743 | AB32: 0.9371922525 | AC32: 1.009476943 | AD32: 0.9867809808 | AE32: 0.9645952891 | AF32: 0.942908396 | AG32: 0.921709087
E33: Other non-controllable | K33: =+K124 -> 0 | L33: 0 | M33: 0 | N33: 0 | O33: 0 | P33: 0 | Q33: 0 | R33: 0 | S33: 0.07279347445 | T33: 0.07072155392 | U33: 0.06979449235 | V33: 0.06889142129 | W33: 0.0674574822 | X33: 0.06594084282 | Y33: 0.06445830187 | Z33: 0.06300909274 | AA33: 0.06159246602 | AB33: 0.06020768917 | AC33: 0.05885404611 | AD33: 0.05753083686 | AE33: 0.05623737719 | AF33: 0.05497299823 | AG33: =+AG124 -> 0.05373704617
E34: Total non-controllable operating expenditure | K34: =SUM(K29:K33) -> 0 | L34: =SUM(L29:L33) -> 0 | M34: 0 | N34: 0 | O34: 0 | P34: 0 | Q34: 0 | R34: 0.6548148148 | S34: 0.9781596854 | T34: 0.9188667152 | U34: 0.9633861301 | V34: 0.9220258354 | W34: 0.9361815052 | X34: 1.712141506 | Y34: 1.687581749 | Z34: 1.663574166 | AA34: 1.413939591 | AB34: 1.390999392 | AC34: 1.46193044 | AD34: 1.437911268 | AE34: 1.414432117 | AF34: 1.391480845 | AG34: 1.369045584
V35: Non-controllable Opex for 3rd Reg Period | W35: =SUM(S34:W34) -> 4.718619871 | AA35: Non-controllable Opex for 4th Reg Period | AB35: =SUM(X34:AB34) -> 7.868236404
AA36: Non-controllable Opex growth from 3rd to 4th Reg Period | AB36: =IFERROR(AB35-W35,"-") -> 3.149616533 | AC36: =IFERROR(AB35/W35-1,"-") -> 0.6674868115
E37: Total prescribed operating expenditure | K37: =+K34+K17 -> 0 | L37: 0 | M37: 0 | N37: 0 | O37: 0 | P37: 0 | Q37: 0 | R37: 15.5885967 | S37: 13.85076222 | T37: 13.32862478 | U37: 15.32010898 | V37: 14.6674364 | W37: 14.70505257 | X37: 15.02743586 | Y37: 15.0028761 | Z37: 14.94976269 | AA37: 14.70012812 | AB37: 14.6480821 | AC37: 14.68990732 | AD37: 14.63678233 | AE37: 14.61330318 | AF37: 14.59035191 | AG37: 14.56791664
V38: Prescribed Opex for 3rd Reg Period | W38: =SUM(S37:W37) -> 71.87198495 | AA38: Prescribed Opex for 4th Reg Period | AB38: =SUM(X37:AB37) -> 74.32828487
AA39: Prescribed Opex growth from 3rd to 4th Reg Period | AB39: =IFERROR(AB38-W38,"-") -> 2.456299919 | AC39: =IFERROR(AB38/W38-1,"-") -> 0.03417604121
W40: To reconcile to 'Opex_FO' tab row 123>> | X40: =+Opex_FO!X95 -> 15.02743586 | Y40: =+Opex_FO!Y95 -> 15.0028761 | Z40: =+Opex_FO!Z95 -> 14.94976269 | AA40: =+Opex_FO!AA95 -> 14.70012812 | AB40: =+Opex_FO!AB95 -> 14.6480821 | AC40: =+Opex_FO!AC95 -> 14.68990732 | AD40: =+Opex_FO!AD95 -> 14.63678233 | AE40: =+Opex_FO!AE95 -> 14.61330318 | AF40: =+Opex_FO!AF95 -> 14.59035191 | AG40: =+Opex_FO!AG95 -> 14.56791664
W41: Difference | X41: =+X40-X37 -> 0 | Y41: 0 | Z41: 0 | AA41: 0 | AB41: 0 | AC41: 0 | AD41: 0 | AE41: 0 | AF41: 0 | AG41: 0
W42: Test | X42: =ROUND(X40,2)=ROUND(X37,2) -> TRUE | Y42: =ROUND(Y40,2)=ROUND(Y37,2) -> TRUE | Z42: TRUE | AA42: TRUE | AB42: TRUE | AC42: TRUE | AD42: TRUE | AE42: TRUE | AF42: TRUE | AG42: TRUE
B46: Total operating expenditure
C48: Water
D49: Operations & Maintenance | R49: 2.744249249 | S49: 2.96278125 | T49: 2.327419355 | U49: 2.73042603 | V49: 1.736396007 | W49: 1.739359665 | X49: 1.45557131 | Y49: 1.45557131 | Z49: 1.441018399 | AA49: 1.441018399 | AB49: 1.426465488 | AC49: 1.411912577 | AD49: 1.397359665 | AE49: 1.397359665 | AF49: 1.397359665 | AG49: 1.397359665
D50: External bulk charges (excl. temporary purchases) | R50: =+R131 -> 0 | S50: =+S131 -> 0 | T50: =+T131 -> 0 | U50: 0 | V50: 0 | W50: 0 | X50: 0.5775108129 | Y50: 0.5775108129 | Z50: 0.5775108129 | AA50: 0.3513440616 | AB50: 0.3513440616 | AC50: 0.3513440616 | AD50: 0.3513440616 | AE50: 0.3513440616 | AF50: 0.3513440616 | AG50: 0.3513440616 | AH50: see reconciliation below
D51: Treatment | R51: 1.72994995 | S51: 0.8710507812 | T51: 1.590403226 | U51: 1.577832397 | V51: 1.289991606 | W51: 1.292193348 | X51: 1.292193348 | Y51: 1.292193348 | Z51: 1.292193348 | AA51: 1.292193348 | AB51: 1.292193348 | AC51: 1.292193348 | AD51: 1.292193348 | AE51: 1.292193348 | AF51: 1.292193348 | AG51: 1.292193348
D52: Customer Service and billing | R52: 0.3672272272 | S52: 0.4346297363 | T52: 0.8418548387 | U52: 1.111207865 | V52: 1.05314835 | W52: 1.054945851 | X52: 1.054945851 | Y52: 1.054945851 | Z52: 1.054945851 | AA52: 1.054945851 | AB52: 1.054945851 | AC52: 1.054945851 | AD52: 1.054945851 | AE52: 1.054945851 | AF52: 1.054945851 | AG52: 1.054945851
D53: GSL Payments | R53: 0 | S53: 0 | T53: 0 | U53: 0 | V53: 0 | W53: 0 | X53: 0 | Y53: 0 | Z53: 0 | AA53: 0 | AB53: 0 | AC53: 0 | AD53: 0 | AE53: 0 | AF53: 0 | AG53: 0
D54: Licence Fees | R54: 0 | S54: 0 | T54: 0 | U54: 0 | V54: 0 | W54: 0 | X54: 0 | Y54: 0 | Z54: 0 | AA54: 0 | AB54: 0 | AC54: 0 | AD54: 0 | AE54: 0 | AF54: 0 | AG54: 0
D55: Corporate | R55: 1.804036937 | S55: 1.646784521 | T55: 2.169112903 | U55: 2.769742509 | V55: 2.976244991 | W55: 2.981324808 | X55: 2.981324808 | Y55: 2.981324808 | Z55: 2.981324808 | AA55: 2.981324808 | AB55: 2.981324808 | AC55: 2.981324808 | AD55: 2.981324808 | AE55: 2.981324808 | AF55: 2.981324808 | AG55: 2.981324808
D56: Other operating expenditure | R56: 0.01548548549 | S56: 0 | T56: 0 | U56: 0 | V56: 0 | W56: 0 | X56: 0 | Y56: 0 | Z56: 0 | AA56: 0 | AB56: 0 | AC56: 0 | AD56: 0 | AE56: 0 | AF56: 0 | AG56: 0
C57: =+CONCATENATE("Total ",C48) -> Total Water | K57: =+SUM(K49:K56) -> 0 | L57: =+SUM(L49:L56) -> 0 | M57: 0 | N57: 0 | O57: 0 | P57: 0 | Q57: 0 | R57: 6.660948849 | S57: 5.915246289 | T57: 6.928790323 | U57: 8.189208801 | V57: 7.055780954 | W57: 7.067823672 | X57: 7.36154613 | Y57: 7.36154613 | Z57: 7.346993218 | AA57: 7.120826467 | AB57: 7.106273556 | AC57: =+SUM(AC49:AC56) -> 7.091720645 | AD57: 7.077167733 | AE57: 7.077167733 | AF57: 7.077167733 | AG57: 7.077167733
C59: Sewerage
D60: =+D49 -> Operations & Maintenance | R60: 2.455555556 | S60: 3.308957031 | T60: 1.74766129 | U60: 1.847874532 | V60: 1.983105481 | W60: 1.986490221 | X60: 1.822401866 | Y60: 1.822401866 | Z60: 1.807848955 | AA60: 1.807848955 | AB60: 1.793296043 | AC60: 1.778743132 | AD60: 1.764190221 | AE60: 1.764190221 | AF60: 1.764190221 | AG60: 1.764190221
D61: =+D50 -> External bulk charges (excl. temporary purchases) | R61: =+R132 -> 0 | S61: =+S132 -> 0 | T61: =+T132 -> 0 | U61: 0 | V61: 0 | W61: 0 | X61: 0 | Y61: 0 | Z61: 0 | AA61: 0 | AB61: 0 | AC61: 0 | AD61: 0 | AE61: 0 | AF61: 0 | AG61: 0 | AH61: see reconciliation below
D62: Treatment | R62: 2.08501001 | S62: 0.3688369141 | T62: 1.231854839 | U62: 1.308824906 | V62: 1.062090129 | W62: 1.063902891 | X62: 1.063902891 | Y62: 1.063902891 | Z62: 1.063902891 | AA62: 1.063902891 | AB62: 1.063902891 | AC62: 1.063902891 | AD62: 1.063902891 | AE62: 1.063902891 | AF62: 1.063902891 | AG62: 1.063902891
D63: Customer Service and billing | R63: 0.5654414414 | S63: 0.6105556641 | T63: 0.2505645161 | U63: 0.09725655431 | V63: 0.4680659335 | W63: 0.4688648225 | X63: 0.4688648225 | Y63: 0.4688648225 | Z63: 0.4688648225 | AA63: 0.4688648225 | AB63: 0.4688648225 | AC63: 0.4688648225 | AD63: 0.4688648225 | AE63: 0.4688648225 | AF63: 0.4688648225 | AG63: 0.4688648225
D64: GSL Payments | R64: 0 | S64: 0.001079101562 | T64: 0 | U64: 0 | V64: 0 | W64: 0 | X64: 0 | Y64: 0 | Z64: 0 | AA64: 0 | AB64: 0 | AC64: 0 | AD64: 0 | AE64: 0 | AF64: 0 | AG64: 0
D65: Licence Fees | R65: 0 | S65: 0 | T65: 0 | U65: 0 | V65: 0 | W65: 0 | X65: 0 | Y65: 0 | Z65: 0 | AA65: 0 | AB65: 0 | AC65: 0 | AD65: 0 | AE65: 0 | AF65: 0 | AG65: 0
D66: Corporate | R66: 2.775441441 | S66: 2.523802734 | T66: 2.168064516 | U66: 2.768707865 | V66: 2.976244991 | W66: 2.981324808 | X66: 2.981324808 | Y66: 2.981324808 | Z66: 2.981324808 | AA66: 2.981324808 | AB66: 2.981324808 | AC66: 2.981324808 | AD66: 2.981324808 | AE66: 2.981324808 | AF66: 2.981324808 | AG66: 2.981324808
D67: Other operating expenditure | R67: 0 | S67: 0 | T67: 0 | U67: 0 | V67: 0 | W67: 0 | X67: 0 | Y67: 0 | Z67: 0 | AA67: 0 | AB67: 0 | AC67: 0 | AD67: 0 | AE67: 0 | AF67: 0 | AG67: 0
C68: =+CONCATENATE("Total ",C59) -> Total Sewerage | K68: =+SUM(K60:K67) -> 0 | L68: 0 | M68: 0 | N68: 0 | O68: 0 | P68: 0 | Q68: 0 | R68: 7.881448448 | S68: 6.813231445 | T68: 5.398145161 | U68: 6.022663858 | V68: 6.489506535 | W68: 6.500582742 | X68: 6.336494388 | Y68: 6.336494388 | Z68: 6.321941476 | AA68: 6.321941476 | AB68: 6.307388565 | AC68: =+SUM(AC60:AC67) -> 6.292835654 | AD68: 6.278282742 | AE68: 6.278282742 | AF68: 6.278282742 | AG68: 6.278282742
C70: Recycled Water
D71: =+D60 -> Operations & Maintenance | R71: 0.03097097097 | S71: 0.01294921875 | T71: 0.007338709677 | U71: 0.003103932584 | V71: 0 | W71: 0 | X71: 0 | Y71: 0 | Z71: 0 | AA71: 0 | AB71: 0 | AC71: 0 | AD71: 0 | AE71: 0 | AF71: 0 | AG71: 0
D72: =+D61 -> External bulk charges (excl. temporary purchases) | R72: =+R133 -> 0 | S72: =+S133 -> 0 | T72: =+T133 -> 0 | U72: 0 | V72: 0 | W72: 0 | X72: 0 | Y72: 0 | Z72: 0 | AA72: 0 | AB72: 0 | AC72: 0 | AD72: 0 | AE72: 0 | AF72: 0 | AG72: 0 | AH72: see reconciliation below
D73: Treatment | R73: 0.3047322322 | S73: 0.07877441406 | T73: 0.07548387097 | U73: 0.1417462547 | V73: 0.2001230794 | W73: 0.2004646469 | X73: 0.1947646469 | Y73: 0.1947646469 | Z73: 0.1947646469 | AA73: 0.1947646469 | AB73: 0.1947646469 | AC73: 0.1947646469 | AD73: 0.1947646469 | AE73: 0.1947646469 | AF73: 0.1947646469 | AG73: 0.1947646469
D74: Customer Service and billing | R74: 0.009424024024 | S74: 0.01017592773 | T74: 0 | U74: 0 | V74: 0 | W74: 0 | X74: 0 | Y74: 0 | Z74: 0 | AA74: 0 | AB74: 0 | AC74: 0 | AD74: 0 | AE74: 0 | AF74: 0 | AG74: 0
D75: GSL Payments | R75: 0 | S75: 0 | T75: 0 | U75: 0 | V75: 0 | W75: 0 | X75: 0 | Y75: 0 | Z75: 0 | AA75: 0 | AB75: 0 | AC75: 0 | AD75: 0 | AE75: 0 | AF75: 0 | AG75: 0
D76: Licence Fees | R76: 0 | S76: 0 | T76: 0 | U76: 0 | V76: 0 | W76: 0 | X76: 0 | Y76: 0 | Z76: 0 | AA76: 0 | AB76: 0 | AC76: 0 | AD76: 0 | AE76: 0 | AF76: 0 | AG76: 0
D77: Corporate | R77: 0.04625735736 | S77: 0.04222524414 | T77: 0 | U77: 0 | V77: 0 | W77: 0 | X77: 0 | Y77: 0 | Z77: 0 | AA77: 0 | AB77: 0 | AC77: 0 | AD77: 0 | AE77: 0 | AF77: 0 | AG77: 0
D78: Other operating expenditure | R78: 0 | S78: 0 | T78: 0 | U78: 0 | V78: 0 | W78: 0 | X78: 0 | Y78: 0 | Z78: 0 | AA78: 0 | AB78: 0 | AC78: 0 | AD78: 0 | AE78: 0 | AF78: 0 | AG78: 0
C79: =+CONCATENATE("Total ",C70) -> Total Recycled Water | K79: =+SUM(K71:K78) -> 0 | L79: =+SUM(L71:L78) -> 0 | M79: =+SUM(M71:M78) -> 0 | N79: =+SUM(N71:N78) -> 0 | O79: 0 | P79: 0 | Q79: 0 | R79: 0.3913845846 | S79: 0.1441248047 | T79: 0.08282258065 | U79: 0.1448501873 | V79: 0.2001230794 | W79: 0.2004646469 | X79: =+SUM(X71:X78) -> 0.1947646469 | Y79: =+SUM(Y71:Y78) -> 0.1947646469 | Z79: =+SUM(Z71:Z78) -> 0.1947646469 | AA79: =+SUM(AA71:AA78) -> 0.1947646469 | AB79: =+SUM(AB71:AB78) -> 0.1947646469 | AC79: =+SUM(AC71:AC78) -> 0.1947646469 | AD79: 0.1947646469 | AE79: 0.1947646469 | AF79: 0.1947646469 | AG79: 0.1947646469
C81: Rural Water
D82: =+D60 -> Operations & Maintenance
D83: =+D61 -> External bulk charges (excl. temporary purchases) | R83: =+R134 -> 0 | S83: =+S134 -> 0 | T83: =+T134 -> 0 | U83: 0 | V83: 0 | W83: 0 | X83: 0 | Y83: 0 | Z83: 0 | AA83: 0 | AB83: 0 | AC83: 0 | AD83: 0 | AE83: 0 | AF83: 0 | AG83: 0 | AH83: see reconciliation below
D84: Treatment
D85: Customer Service and billing
D86: GSL Payments
D87: Licence Fees
D88: Corporate
D89: Other operating expenditure
C90: =+CONCATENATE("Total ",C81) -> Total Rural Water | K90: =+SUM(K82:K89) -> 0 | L90: 0 | M90: 0 | N90: 0 | O90: 0 | P90: 0 | Q90: 0 | R90: 0 | S90: 0 | T90: 0 | U90: 0 | V90: 0 | W90: 0 | X90: =+SUM(X82:X89) -> 0 | Y90: =+SUM(Y82:Y89) -> 0 | Z90: =+SUM(Z82:Z89) -> 0 | AA90: =+SUM(AA82:AA89) -> 0 | AB90: =+SUM(AB82:AB89) -> 0 | AC90: =+SUM(AC82:AC89) -> 0 | AD90: 0 | AE90: 0 | AF90: 0 | AG90: 0
C92: Bulk Water
D93: Operations & Maintenance
D94: Treatment
D95: Customer Service and billing
D96: GSL Payments
D97: Licence Fees
D98: Corporate
D99: Other operating expenditure
C100: Total Bulk water | K100: =+SUM(K93:K99) -> 0 | L100: 0 | M100: 0 | N100: 0 | O100: 0 | P100: 0 | Q100: 0 | R100: 0 | S100: 0 | T100: 0 | U100: 0 | V100: 0 | W100: 0 | X100: 0 | Y100: 0 | Z100: 0 | AA100: 0 | AB100: 0 | AC100: =+SUM(AC93:AC99) -> 0 | AD100: 0 | AE100: 0 | AF100: 0 | AG100: 0
C102: External temporary water purchases
C105: Licence fees
D106: Essential Services Commission | R106: 0.01990990991 | S106: 0.01942382813 | T106: 0.01258064516 | U106: 0.008277153558 | V106: 0.01042889936 | W106: 0.02370936289 | X106: 0.01042889936 | Y106: 0.01042889936 | Z106: 0.01042889936 | AA106: 0.01042889936 | AB106: 0.01042889936 | AC106: 0.01042889936 | AD106: 0.01042889936 | AE106: 0.01042889936 | AF106: 0.01042889936 | AG106: 0.01042889936
D107: Department of Human Services | R107: 0.007742742743 | S107: 0.007553710938 | T107: 0.007338709677 | U107: 0.007338709677 | V107: 0.007338709677 | W107: 0.007687272779 | X107: 0.007338709677 | Y107: 0.007338709677 | Z107: 0.007338709677 | AA107: 0.007338709677 | AB107: 0.007338709677 | AC107: 0.007338709677 | AD107: 0.007338709677 | AE107: 0.007338709677 | AF107: 0.007338709677 | AG107: 0.007338709677
D108: Environment Protection Authority | R108: 0.02212212212 | S108: 0.02158203125 | T108: 0.02096774194 | U108: 0.02800781835 | V108: 0.02448778014 | W108: 0.02506436436 | X108: 0.02448778014 | Y108: 0.02448778014 | Z108: 0.02448778014 | AA108: 0.02448778014 | AB108: 0.02448778014 | AC108: 0.02448778014 | AD108: 0.02448778014 | AE108: 0.02448778014 | AF108: 0.02448778014 | AG108: 0.02448778014
C109: =+CONCATENATE("Total ",C105) -> Total Licence fees | K109: =+SUM(K106:K108) -> 0 | L109: =+SUM(L106:L108) -> 0 | M109: 0 | N109: 0 | O109: 0 | P109: 0 | Q109: 0 | R109: 0.04977477477 | S109: 0.04855957031 | T109: 0.04088709677 | U109: 0.04362368159 | V109: 0.04225538918 | W109: 0.05646100004 | X109: =+SUM(X106:X108) -> 0.04225538918 | Y109: =+SUM(Y106:Y108) -> 0.04225538918 | Z109: =+SUM(Z106:Z108) -> 0.04225538918 | AA109: =+SUM(AA106:AA108) -> 0.04225538918 | AB109: =+SUM(AB106:AB108) -> 0.04225538918 | AC109: =+SUM(AC106:AC108) -> 0.04225538918 | AD109: 0.04225538918 | AE109: 0.04225538918 | AF109: 0.04225538918 | AG109: 0.04225538918
C111: Environment Contribution | R111: 0.60504004 | S111: 0.8568066406 | T111: 0.8072580645 | U111: 0.8499679561 | V111: 0.810879025 | W111: 0.812263023 | X111: 1.026434461 | Y111: 1.003357245 | Z111: 0.9807988708 | AA111: 0.9587476743 | AB111: 0.9371922525 | AC111: 1.009476943 | AD111: 0.9867809808 | AE111: 0.9645952891 | AF111: 0.942908396 | AG111: 0.921709087
C113: Other non-controllable
D114: Defined benefits superannuation | R114: 0 | S114: 0.07279347445 | T114: 0.07072155392 | U114: 0.06979449235 | V114: 0.06889142129 | W114: 0.0674574822 | X114: 0.06594084282 | Y114: 0.06445830187 | Z114: 0.06300909274 | AA114: 0.06159246602 | AB114: 0.06020768917 | AC114: 0.05885404611 | AD114: 0.05753083686 | AE114: 0.05623737719 | AF114: 0.05497299823 | AG114: 0.05373704617
D115: [Non-controllable 2]
D116: [Non-controllable 3]
D117: [Non-controllable 4]
D118: [Non-controllable 5]
D119: [Non-controllable 6]
D120: [Non-controllable 7]
D121: [Non-controllable 8]
D122: [Non-controllable 9]
D123: [Non-controllable 10]
K124: =SUM(K114:K123) -> 0 | L124: 0 | M124: 0 | N124: 0 | O124: 0 | P124: 0 | Q124: 0 | R124: 0 | S124: 0.07279347445 | T124: 0.07072155392 | U124: 0.06979449235 | V124: 0.06889142129 | W124: 0.0674574822 | X124: 0.06594084282 | Y124: 0.06445830187 | Z124: 0.06300909274 | AA124: 0.06159246602 | AB124: 0.06020768917 | AC124: 0.05885404611 | AD124: 0.05753083686 | AE124: 0.05623737719 | AF124: 0.05497299823 | AG124: 0.05373704617
C127: External bulk charges (excl. temporary purchases)
C128: Reconciliation
C130: Service | R130: =+R7 -> 2012-13 | S130: 2013-14 | T130: 2014-15 | U130: 2015-16 | V130: 2016-17 | W130: 2017-18 | X130: 2018-19 | Y130: 2019-20 | Z130: 2020-21 | AA130: 2021-22 | AB130: 2022-23 | AC130: 2023-24 | AD130: 2024-25 | AE130: 2025-26 | AF130: 2026-27 | AG130: 2027-28
D131: Water | R131: =+SUMIF($I$138:$I$179,$D$131,R$138:R$179) -> 0 | S131: 0 | T131: 0 | U131: 0 | V131: 0 | W131: 0 | X131: 0.5775108129 | Y131: 0.5775108129 | Z131: 0.5775108129 | AA131: 0.3513440616 | AB131: 0.3513440616 | AC131: 0.3513440616 | AD131: 0.3513440616 | AE131: 0.3513440616 | AF131: 0.3513440616 | AG131: 0.3513440616
D132: Sewerage | R132: =+SUMIF($I$138:$I$179,$D$132,R$138:R$179) -> 0 | S132: 0 | T132: 0 | U132: 0 | V132: 0 | W132: 0 | X132: 0 | Y132: 0 | Z132: 0 | AA132: 0 | AB132: 0 | AC132: 0 | AD132: 0 | AE132: 0 | AF132: 0 | AG132: 0
D133: Recycled Water | R133: =+SUMIF($I$138:$I$179,$D$133,R$138:R$179) -> 0 | S133: 0 | T133: 0 | U133: 0 | V133: 0 | W133: 0 | X133: 0 | Y133: 0 | Z133: 0 | AA133: 0 | AB133: 0 | AC133: 0 | AD133: 0 | AE133: 0 | AF133: 0 | AG133: 0
D134: Rural Water | R134: =+SUMIF($I$138:$I$179,$D$134,R$138:R$179) -> 0 | S134: 0 | T134: 0 | U134: 0 | V134: 0 | W134: 0 | X134: 0 | Y134: 0 | Z134: 0 | AA134: 0 | AB134: 0 | AC134: 0 | AD134: 0 | AE134: 0 | AF134: 0 | AG134: 0
C135: Total External Bulk Charges | R135: =SUM(R131:R134) -> 0 | S135: =SUM(S131:S134) -> 0 | T135: =SUM(T131:T134) -> 0 | U135: 0 | V135: 0 | W135: 0 | X135: 0.5775108129 | Y135: 0.5775108129 | Z135: 0.5775108129 | AA135: 0.3513440616 | AB135: 0.3513440616 | AC135: 0.3513440616 | AD135: 0.3513440616 | AE135: 0.3513440616 | AF135: 0.3513440616 | AG135: 0.3513440616
C137: Description | H137: Source | I137: Service | J137: Price
B138: 1 | C138: Greater Yarra System - Thomson River Entitlement charge | H138: Melbourne Water | I138: Water | J138: Fixed | R138: 0 | S138: 0 | T138: 0 | U138: 0 | V138: 0 | W138: 0 | X138: 0.5775108129 | Y138: 0.5775108129 | Z138: 0.5775108129 | AA138: 0.3513440616 | AB138: 0.3513440616 | AC138: 0.3513440616 | AD138: 0.3513440616 | AE138: 0.3513440616 | AF138: 0.3513440616 | AG138: 0.3513440616 | AJ138: ESC USE ONLY
B139: 2 | C139: Transfer charges | H139: Melbourne Water | I139: Water | J139: Variable | R139: 0 | S139: 0 | T139: 0 | U139: 0 | V139: 0 | W139: 0 | X139: 0 | Y139: 0 | Z139: 0 | AA139: 0 | AB139: 0 | AC139: 0 | AD139: 0 | AE139: 0 | AF139: 0 | AG139: 0
B140: 3 | H140: [Source] | I140: [Service] | J140: [Price] | AJ140: [Service]
B141: 4 | H141: [Source] | I141: [Service] | J141: [Price] | AJ141: Water
B142: 5 | H142: [Source] | I142: [Service] | J142: [Price] | AJ142: Sewerage
B143: 6 | H143: [Source] | I143: [Service] | J143: [Price] | AJ143: Recycled Water
B144: 7 | H144: [Source] | I144: [Service] | J144: [Price] | AJ144: Rural Water
B145: 8 | H145: [Source] | I145: [Service] | J145: [Price]
B146: 9 | H146: [Source] | I146: [Service] | J146: [Price] | AJ146: [Source]
B147: 10 | H147: [Source] | I147: [Service] | J147: [Price] | AJ147: Melbourne Water
B148: 11 | H148: [Source] | I148: [Service] | J148: [Price] | AJ148: Goulburn-Murray Water
B149: 12 | H149: [Source] | I149: [Service] | J149: [Price] | AJ149: Other Sources
B150: 13 | H150: [Source] | I150: [Service] | J150: [Price]
B151: 14 | H151: [Source] | I151: [Service] | J151: [Price]
B152: 15 | H152: [Source] | I152: [Service] | J152: [Price]
B153: 16 | H153: [Source] | I153: [Service] | J153: [Price]
B154: 17 | H154: [Source] | I154: [Service] | J154: [Price]
B155: 18 | H155: [Source] | I155: [Service] | J155: [Price]
B156: 19 | H156: [Source] | I156: [Service] | J156: [Price]
B157: 20 | H157: [Source] | I157: [Service] | J157: [Price]
B158: 21 | H158: [Source] | I158: [Service] | J158: [Price]
B159: 22 | H159: [Source] | I159: [Service] | J159: [Price]
B160: 23 | H160: [Source] | I160: [Service] | J160: [Price]
B161: 24 | H161: [Source] | I161: [Service] | J161: [Price]
B162: 25 | H162: [Source] | I162: [Service] | J162: [Price]
B163: 26 | H163: [Source] | I163: [Service] | J163: [Price]
B164: 27 | H164: [Source] | I164: [Service] | J164: [Price]
B165: 28 | H165: [Source] | I165: [Service] | J165: [Price]
B166: 29 | H166: [Source] | I166: [Service] | J166: [Price]
B167: 30 | H167: [Source] | I167: [Service] | J167: [Price]
B168: 31 | H168: [Source] | I168: [Service] | J168: [Price]
B169: 32 | H169: [Source] | I169: [Service] | J169: [Price]
B170: 33 | H170: [Source] | I170: [Service] | J170: [Price]
B171: 34 | H171: [Source] | I171: [Service] | J171: [Price]
B172: 35 | H172: [Source] | I172: [Service] | J172: [Price]
B173: 36 | H173: [Source] | I173: [Service] | J173: [Price]
B174: 37 | H174: [Source] | I174: [Service] | J174: [Price]
B175: 38 | H175: [Source] | I175: [Service] | J175: [Price]
B176: 39 | H176: [Source] | I176: [Service] | J176: [Price]
B177: 40 | H177: [Source] | I177: [Service] | J177: [Price]

Sheet Capex_FO input
B1: Capital Expenditure - Forecast Input
B2: =+Contents!H7 -> Westernport Water
B3: Go to Table of Contents
C7: Input Summary | F7: FOURTH REG PERIOD | K7: FIFTH REG PERIOD
D9: =+O39 -> 2018-19 | E9: 2019-20 | F9: 2020-21 | G9: 2021-22 | H9: 2022-23 | I9: 2023-24 | J9: 2024-25 | K9: 2025-26 | L9: 2026-27 | M9: 2027-28 | P9: 4th Reg Period | S9: 5th Reg Period
C10: By Cost Driver | P10: Total | Q10: % of Total | S10: Total | T10: % of Total
C11: Net capital expenditure - Renewals | D11: =+SUMIF($F$42:$F$1019,"Renewals",AV$42:AV$1019) -> 1.495 | E11: 1.522 | F11: 2.741 | G11: 2.95 | H11: 4.048 | I11: 2.415060241 | J11: 2.401672598 | K11: 2.295408348 | L11: 2.921099744 | M11: 3.930507505 | P11: =SUM(D11:H11) -> 12.756 | Q11: =IFERROR(P11/$P$16,"-") -> 0.4808286718 | S11: =SUM(I11:M11) -> 13.96374844 | T11: =IFERROR(S11/$S$16,"-") -> 0.4464003908
C12: Net capital expenditure - Growth | D12: =+SUMIF($F$42:$F$1019,"Growth",AV$42:AV$1019) -> -0.1310977478 | E12: 0.5843130654 | F12: 1.053142381 | G12: 0.7797436309 | H12: -0.2069196216 | I12: 1.292654592 | J12: 1.665247829 | K12: 2.769217827 | L12: 2.614256786 | M12: 2.665988494 | P12: =SUM(D12:H12) -> 2.079181708 | Q12: =IFERROR(P12/$P$16,"-") -> 0.07837332855 | S12: =SUM(I12:M12) -> 11.00736553 | T12: =IFERROR(S12/$S$16,"-") -> 0.3518892005
C13: Net capital expenditure - Improvements / Compliance | D13: =+SUMIF($F$42:$F$1019,"Improvements / Compliance",AV$42:AV$1019) -> 3.34475 | E13: 2.835 | F13: 1.014 | G13: 0.506 | H13: 1.088 | I13: 0.6272168675 | J13: 1.588202847 | K13: 0.4712794918 | L13: 0.3472250639 | M13: 0.4071658327 | P13: 8.78775 | Q13: 0.3312482095 | S13: 3.441090103 | T13: 0.1100065626
C14: Government Contributions | D14: =+Z41 -> 0 | E14: =+AA41 -> 0 | F14: 0 | G14: 0 | H14: 0 | I14: 0 | J14: 0 | K14: 0 | L14: 0 | M14: 0 | P14: 0 | Q14: 0 | S14: 0 | T14: 0
C15: Customer Contributions | D15: =+AK41 -> 0.5794477478 | E15: =+AL41 -> 0.5947869346 | F15: 0.606857619 | G15: 0.5782563691 | H15: 0.5469196216 | I15: 0.5558393837 | J15: 0.5648767259 | K15: 0.5740943327 | L15: 0.5824184055 | M15: 0.5913381676 | P15: 2.906268292 | Q15: 0.1095497901 | S15: 2.868567015 | T15: 0.09170384604
C16: Total prescribed capex | D16: =SUM(D11:D15) -> 5.2881 | E16: 5.5361 | F16: 5.415 | G16: 4.814 | H16: 5.476 | I16: 4.890771084 | J16: 6.22 | K16: 6.11 | L16: 6.465 | M16: 7.595 | P16: 26.5292 | Q16: 1 | S16: 31.28077108 | T16: 1
C18: By Capital Type
C19: Top 10 Major Projects | D19: =+SUMIF($H$42:$H$1019,$C$19,O$42:O$1019) -> 1.45 | E19: 3.075 | F19: 3.835 | G19: 3.228 | H19: 2.615 | I19: 2.746987952 | J19: 3.541637011 | K19: 3.881125227 | L19: 1.432992327 | M19: 1.954395997 | P19: =SUM(D19:H19) -> 14.203 | Q19: =IFERROR(P19/$P$23,"-") -> 0.5353723444 | S19: =SUM(I19:M19) -> 13.55713851 | T19: =IFERROR(S19/$S$23,"-") -> 0.4334016728
C20: Significant projects | D20: =+SUMIF($H$42:$H$1019,$C$20,O$42:O$1019) -> 1.4142 | E20: 0.385 | F20: 0.055 | G20: 0.055 | H20: 0.055 | I20: 0.05722891566 | J20: 0.05533807829 | K20: 0.0554446461 | L20: 0.05511508951 | M20: 0.0542887777 | P20: =SUM(D20:H20) -> 1.9642 | Q20: =IFERROR(P20/$P$23,"-") -> 0.07403917193 | S20: =SUM(I20:M20) -> 0.2774155073 | T20: =IFERROR(S20/$S$23,"-") -> 0.008868563582
C21: Capital Programs / Allocation | D21: =+SUMIF($H$42:$H$1019,$C$21,O$42:O$1019) -> 0.447 | E21: 0.664 | F21: 0.528 | G21: 0.372 | H21: 1.134 | I21: 0.6295180723 | J21: 0.6640569395 | K21: 0.6098911071 | L21: 0.6062659847 | M21: 0.5971765547 | P21: 3.145 | Q21: 0.1185486181 | S21: 3.106908658 | T21: 0.09932327595
C22: Other Capital expenditure | D22: =+SUMIF($H$42:$H$1019,$C$22,O$42:O$1019) -> 1.9769 | E22: 1.4121 | F22: 0.997 | G22: 1.159 | H22: 1.672 | I22: 1.457036145 | J22: 1.958967972 | K22: 1.56353902 | L22: 4.370626598 | M22: 4.98913867 | P22: 7.217 | Q22: 0.2720398655 | S22: 14.33930841 | T22: 0.4584064877
C23: Total prescribed capex | D23: =SUM(D19:D22) -> 5.2881 | E23: =SUM(E19:E22) -> 5.5361 | F23: 5.415 | G23: 4.814 | H23: 5.476 | I23: 4.890771084 | J23: 6.22 | K23: 6.11 | L23: 6.465 | M23: 7.595 | P23: 26.5292 | Q23: 1 | S23: 31.28077108 | T23: 1
C25: Difference | D25: =+D23-D16 -> 0 | E25: =+E23-E16 -> 0 | F25: 0 | G25: 0 | H25: 0 | I25: 0 | J25: 0 | K25: 0 | L25: 0 | M25: 0
C26: Test | D26: =+D23=D16 -> TRUE | E26: TRUE | F26: TRUE | G26: TRUE | H26: TRUE | I26: TRUE | J26: TRUE | K26: TRUE | L26: TRUE | M26: TRUE
C29: Total prescribed capex | D29: =+D23 -> 5.2881 | E29: =+E23 -> 5.5361 | F29: 5.415 | G29: 4.814 | H29: 5.476 | I29: 4.890771084 | J29: 6.22 | K29: 6.11 | L29: 6.465 | M29: 7.595
C32: Regulatory Depreciation | D32: =+BG41 -> 0.09850220158 | E32: =+BH41 -> 0.3401684015 | F32: 0.6017957897 | G32: 0.8656042439 | H32: 1.155701477 | I32: 1.347225986 | J32: 1.556621561 | K32: 1.848852034 | L32: 2.008620413 | M32: 2.228936667
B35: $m, 01/01/18
O36: Gross capital expenditure | Z36: Government contributions | AK36: Customer contributions | AV36: Net capital expenditure | BG36: Regulatory Depreciation | BR36: Accumulated capex | CC36: Gross capital expenditure | CN36: Tax Depreciation
O37: $m, 01/01/18 | Z37: $m, 01/01/18 | AK37: $m, 01/01/18 | AV37: $m, 01/01/18 | BG37: $m, 01/01/18 | BR37: $m, 01/01/18 | CC37: Nominal,$ | CN37: Nominal,$
O39: 2018-19 | P39: 2019-20 | Q39: 2020-21 | R39: 2021-22 | S39: 2022-23 | T39: 2023-24 | U39: 2024-25 | V39: 2025-26 | W39: 2026-27 | X39: 2027-28 | Z39: 2018-19 | AA39: 2019-20 | AB39: 2020-21 | AC39: 2021-22 | AD39: 2022-23 | AE39: 2023-24 | AF39: 2024-25 | AG39: 2025-26 | AH39: 2026-27 | AI39: 2027-28 | AK39: 2018-19 | AL39: 2019-20 | AM39: 2020-21 | AN39: 2021-22 | AO39: 2022-23 | AP39: 2023-24 | AQ39: 2024-25 | AR39: 2025-26 | AS39: 2026-27 | AT39: 2027-28 | AV39: 2018-19 | AW39: 2019-20 | AX39: 2020-21 | AY39: 2021-22 | AZ39: 2022-23 | BA39: 2023-24 | BB39: 2024-25 | BC39: 2025-26 | BD39: 2026-27 | BE39: 2027-28 | BG39: 2018-19 | BH39: 2019-20 | BI39: 2020-21 | BJ39: 2021-22 | BK39: 2022-23 | BL39: 2023-24 | BM39: 2024-25 | BN39: 2025-26 | BO39: 2026-27 | BP39: 2027-28 | BR39: 2018-19 | BS39: 2019-20 | BT39: 2020-21 | BU39: 2021-22 | BV39: 2022-23 | BW39: 2023-24 | BX39: 2024-25 | BY39: 2025-26 | BZ39: 2026-27 | CA39: 2027-28 | CC39: 2018-19 | CD39: 2019-20 | CE39: 2020-21 | CF39: 2021-22 | CG39: 2022-23 | CH39: 2023-24 | CI39: 2024-25 | CJ39: 2025-26 | CK39: 2026-27 | CL39: 2027-28 | CN39: 2018-19 | CO39: 2019-20 | CP39: 2020-21 | CQ39: 2021-22 | CR39: 2022-23 | CS39: 2023-24 | CT39: 2024-25 | CU39: 2025-26 | CV39: 2026-27 | CW39: 2027-28
BG40: 1 | BH40: 2 | BI40: 3 | BJ40: 4 | BK40: 5 | BL40: 6 | BM40: 7 | BN40: 8 | BO40: 9 | BP40: 10 | CN40: 1 | CO40: 2 | CP40: 3 | CQ40: 4 | CR40: 5 | CS40: 6 | CT40: 7 | CU40: 8 | CV40: 9 | CW40: 10
C41: Project/program Name | E41: Service | F41: Major cost driver | G41: Asset category | H41: Capital type | J41: Depreciation Method | K41: Year asset operational | L41: Asset life (Regulatory) | M41: Asset life (Tax) | O41: =SUM(O42:O1019) -> 5.2881 | P41: 5.5361 | Q41: 5.415 | R41: 4.814 | S41: 5.476 | T41: 4.890771084 | U41: 6.22 | V41: 6.11 | W41: 6.465 | X41: 7.595 | Z41: =SUM(Z42:Z1019) -> 0 | AA41: 0 | AB41: 0 | AC41: 0 | AD41: 0 | AE41: 0 | AF41: 0 | AG41: 0 | AH41: 0 | AI41: 0 | AK41: =SUM(AK42:AK1019) -> 0.5794477478 | AL41: 0.5947869346 | AM41: 0.606857619 | AN41: 0.5782563691 | AO41: 0.5469196216 | AP41: 0.5558393837 | AQ41: 0.5648767259 | AR41: 0.5740943327 | AS41: 0.5824184055 | AT41: 0.5913381676 | AV41: =SUM(AV42:AV1019) -> 4.708652252 | AW41: 4.941313065 | AX41: 4.808142381 | AY41: 4.235743631 | AZ41: 4.929080378 | BA41: 4.334931701 | BB41: 5.655123274 | BC41: 5.535905667 | BD41: 5.882581595 | BE41: 7.003661832 | BG41: =SUM(BG42:BG1019) -> 0.09850220158 | BH41: 0.3401684015 | BI41: 0.6017957897 | BJ41: 0.8656042439 | BK41: 1.155701477 | BL41: 1.347225986 | BM41: 1.556621561 | BN41: 1.848852034 | BO41: 2.008620413 | BP41: 2.228936667 | BR41: =SUM(BR42:BR1019) -> 2.052902252 | BS41: 4.472063065 | BT41: 4.528142381 | BU41: 5.440743631 | BV41: 6.929080378 | BW41: 2.503606399 | BX41: 7.686448575 | BY41: 5.203237791 | BZ41: 3.126827119 | CA41: 10.09208418 | CC41: =SUM(CC42:CC1019) -> 5.4097263 | CD41: 5.793689197 | CE41: 5.797294489 | CF41: 5.272403271 | CG41: 6.135382002 | CH41: 5.605716602 | CI41: 7.293228504 | CJ41: 7.329026296 | CK41: 7.933215151 | CL41: 9.534196869 | CN41: =SUM(CN42:CN1019) -> 0.1335523943 | CO41: 0.4345027707 | CP41: 0.7497036592 | CQ41: 1.016444127 | CR41: 1.290246991 | CS41: 1.551798586 | CT41: 1.811215858 | CU41: 2.135335767 | CV41: 2.426331147 | CW41: 2.719225739
C42: Cowes WWTP Upgrade Stage 2 | E42: Sewerage | F42: Growth | G42: Headworks | H42: Top 10 Major Projects | J42: Straight line | K42: 2021-22 | L42: 25 | M42: 25 | O42: 0.175 | P42: 0.85 | Q42: 1.35 | R42: 0.995 | S42: 0 | T42: 0 | U42: 0.3320284698 | V42: 2.328675136 | W42: 0 | X42: 0 | AK42: 0 | AL42: 0 | AM42: 0 | AN42: 0 | AO42: 0 | AP42: 0 | AQ42: 0 | AR42: 0 | AS42: 0 | AT42: 0 | AV42: =+O42-Z42-AK42 -> 0.175 | AW42: =+P42-AA42-AL42 -> 0.85 | AX42: 1.35 | AY42: 0.995 | AZ42: 0 | BA42: 0 | BB42: 0.3320284698 | BC42: 2.328675136 | BD42: 0 | BE42: 0 | BG42: =IF($L42=0,0, IF($L42<=0.5,BR42, IF($J42="straight line", IF((LEFT(BG$39,4)*1)-INT($L42)<LEFT($BG$39,4)*1,0,((OFFSET(BR42,0,-INT($L42+0.5),1,1))/$L42)*(IF($L42-INT($L42)>0.5,$L42-0.5-INT($L42),IF($L42-INT($L42)<=0.5,$L42-0.5-INT($L42)+1,0)))) +BR42/$L42*0.5, IF($J42="Declining Balance",-$BG$38,0)))) -> 0 | BH42: =IF($L42=0,0, IF($L42<=0.5,BS42, IF(AND($J42="straight line",$L42<1.51),(BR42-((BR42/$L42)*0.5))+BS42/$L42*0.5, IF($J42="straight line", IF((LEFT(BH$39,4)*1)-INT($L42)<LEFT($BG$39,4)*1,0,((OFFSET(BS42,0,-INT($L42+0.5),1,1))/$L42)*(IF($L42-INT($L42)>0.5,$L42-0.5-INT($L42),IF($L42-INT($L42)<=0.5,$L42-0.5-INT($L42)+1,0)))) +BS42/$L42*0.5 +SUM(OFFSET(BS42,0,MAX(-INT($L42+(0.5-(10^-12))),-BH$40)+1,1,MIN(INT($L42+(0.5-(10^-12))),BH$40)-1))*1/$L42, IF($J42="Declining Balance",-$BG$38,0))))) -> 0 | BI42: =IF($L42=0,0, IF($L42<=0.5,BT42, IF(AND($J42="straight line",$L42<1.51),(BS42-((BS42/$L42)*0.5))+BT42/$L42*0.5, IF($J42="straight line", IF((LEFT(BI$39,4)*1)-INT($L42)<LEFT($BG$39,4)*1,0,((OFFSET(BT42,0,-INT($L42+0.5),1,1))/$L42)*(IF($L42-INT($L42)>0.5,$L42-0.5-INT($L42),IF($L42-INT($L42)<=0.5,$L42-0.5-INT($L42)+1,0)))) +BT42/$L42*0.5 +SUM(OFFSET(BT42,0,MAX(-INT($L42+(0.5-(10^-12))),-BI$40)+1,1,MIN(INT($L42+(0.5-(10^-12))),BI$40)-1))*1/$L42, IF($J42="Declining Balance",-$BG$38,0))))) -> 0 | BJ42: 0.0674 | BK42: 0.1348 | BL42: 0.1348 | BM42: 0.1414405694 | BN42: 0.1946546415 | BO42: 0.2412281442 | BP42: 0.2412281442 | BR42: =+IF($K42="Ongoing",AV42,IF(RIGHT($K42,2)=RIGHT(BR$39,2),SUM($AV42:AV42),0)+IF(RIGHT(BR$39,2)>RIGHT($K42,2),AV42,0)) -> 0 | BS42: =+IF($K42="Ongoing",AW42,IF(RIGHT($K42,2)=RIGHT(BS$39,2),SUM($AV42:AW42),0)+IF(RIGHT(BS$39,2)>RIGHT($K42,2),AW42,0)) -> 0 | BT42: =+IF($K42="Ongoing",AX42,IF(RIGHT($K42,2)=RIGHT(BT$39,2),SUM($AV42:AX42),0)+IF(RIGHT(BT$39,2)>RIGHT($K42,2),AX42,0)) -> 0 | BU42: =+IF($K42="Ongoing",AY42,IF(RIGHT($K42,2)=RIGHT(BU$39,2),SUM($AV42:AY42),0)+IF(RIGHT(BU$39,2)>RIGHT($K42,2),AY42,0)) -> 3.37 | BV42: =+IF($K42="Ongoing",AZ42,IF(RIGHT($K42,2)=RIGHT(BV$39,2),SUM($AV42:AZ42),0)+IF(RIGHT(BV$39,2)>RIGHT($K42,2),AZ42,0)) -> 0 | BW42: =+IF($K42="Ongoing",BA42,IF(RIGHT($K42,2)=RIGHT(BW$39,2),SUM($AV42:BA42),0)+IF(RIGHT(BW$39,2)>RIGHT($K42,2),BA42,0)) -> 0 | BX42: =+IF($K42="Ongoing",BB42,IF(RIGHT($K42,2)=RIGHT(BX$39,2),SUM($AV42:BB42),0)+IF(RIGHT(BX$39,2)>RIGHT($K42,2),BB42,0)) -> 0.3320284698 | BY42: =+IF($K42="Ongoing",BC42,IF(RIGHT($K42,2)=RIGHT(BY$39,2),SUM($AV42:BC42),0)+IF(RIGHT(BY$39,2)>RIGHT($K42,2),BC42,0)) -> 2.328675136 | BZ42: =+IF($K42="Ongoing",BD42,IF(RIGHT($K42,2)=RIGHT(BZ$39,2),SUM($AV42:BD42),0)+IF(RIGHT(BZ$39,2)>RIGHT($K42,2),BD42,0)) -> 0 | CA42: =+IF($K42="Ongoing",BE42,IF(RIGHT($K42,2)=RIGHT(CA$39,2),SUM($AV42:BE42),0)+IF(RIGHT(CA$39,2)>RIGHT($K42,2),BE42,0)) -> 0 | CC42: =+O42*KeyAssumptionsPriceControl_FO!X$15 -> 0.179025 | CD42: =+P42*KeyAssumptionsPriceControl_FO!Y$15 -> 0.88954965 | CE42: =+Q42*KeyAssumptionsPriceControl_FO!Z$15 -> 1.445308875 | CF42: =+R42*KeyAssumptionsPriceControl_FO!AA$15 -> 1.089746833 | CG42: =+S42*KeyAssumptionsPriceControl_FO!AB$15 -> 0 | CH42: =+T42*KeyAssumptionsPriceControl_FO!AC$15 -> 0 | CI42: =+U42*KeyAssumptionsPriceControl_FO!AD$15 -> 0.3893182476 | CJ42: =+V42*KeyAssumptionsPriceControl_FO!AE$15 -> 2.79327681 | CK42: =+W42*KeyAssumptionsPriceControl_FO!AF$15 -> 0 | CL42: =+X42*KeyAssumptionsPriceControl_FO!AG$15 -> 0 | CN42: =IF($M42=0,0, IF($M42<=0.5,CC42, IF($J42="straight line", IF((LEFT(CN$39,4)*1)-INT($M42)<LEFT($CN$39,4)*1,0,((OFFSET(CC42,0,-INT($M42+0.5),1,1))/$M42)*(IF($M42-INT($M42)>0.5,$M42-0.5-INT($M42),IF($M42-INT($M42)<=0.5,$M42-0.5-INT($M42)+1,0)))) +CC42/$M42*0.5, IF($J42="Declining Balance",-$CN$38,0)))) -> 0.0035805 | CO42: =IF($M42=0,0, IF($M42<=0.5,CD42, IF(AND($J42="straight line",$M42<1.51),(CC42-((CC42/$M42)*0.5))+CD42/$M42*0.5, IF($J42="straight line", IF((LEFT(CO$39,4)*1)-INT($M42)<LEFT($CN$39,4)*1,0,((OFFSET(CD42,0,-INT($M42+0.5),1,1))/$M42)*(IF($M42-INT($M42)>0.5,$M42-0.5-INT($M42),IF($M42-INT($M42)<=0.5,$M42-0.5-INT($M42)+1,0)))) +CD42/$M42*0.5 +SUM(OFFSET(CD42,0,MAX(-INT($M42+(0.5-(10^-12))),-CO$40)+1,1,MIN(INT($M42+(0.5-(10^-12))),CO$40)-1))*1/$M42, IF($J42="Declining Balance",-$CN$38,0))))) -> 0.024951993 | CP42: =IF($M42=0,0, IF($M42<=0.5,CE42, IF(AND($J42="straight line",$M42<1.51),(CD42-((CD42/$M42)*0.5))+CE42/$M42*0.5, IF($J42="straight line", IF((LEFT(CP$39,4)*1)-INT($M42)<LEFT($CN$39,4)*1,0,((OFFSET(CE42,0,-INT($M42+0.5),1,1))/$M42)*(IF($M42-INT($M42)>0.5,$M42-0.5-INT($M42),IF($M42-INT($M42)<=0.5,$M42-0.5-INT($M42)+1,0)))) +CE42/$M42*0.5 +SUM(OFFSET(CE42,0,MAX(-INT($M42+(0.5-(10^-12))),-CP$40)+1,1,MIN(INT($M42+(0.5-(10^-12))),CP$40)-1))*1/$M42, IF($J42="Declining Balance",-$CN$38,0))))) -> 0.07164916351 | CQ42: 0.1223502777 | CR42: 0.1441452143 | CS42: 0.1441452143 | CT42: 0.1519315793 | CU42: 0.2155834804 | CV42: 0.2714490166 | CW42: 0.2714490166
C43: Water Main Replacement Program | E43: Water | F43: Renewals | G43: Pipelines/network | H43: Top 10 Major Projects | J43: Straight line | K43: Ongoing | L43: 80 | M43: 80 | O43: 0.2 | P43: 0.25 | Q43: 0.45 | R43: 0.45 | S43: 0.486 | T43: 0.686746988 | U43: 0.6640569395 | V43: 0.6653357532 | W43: 0.6613810742 | X43: 0.6514653324 | AK43: 0 | AL43: 0 | AM43: 0 | AN43: 0 | AO43: 0 | AP43: 0 | AQ43: 0 | AR43: 0 | AS43: 0 | AT43: 0 | AV43: =+O43-Z43-AK43 -> 0.2 | AW43: 0.25 | AX43: 0.45 | AY43: 0.45 | AZ43: 0.486 | BA43: 0.686746988 | BB43: 0.6640569395 | BC43: 0.6653357532 | BD43: 0.6613810742 | BE43: 0.6514653324 | BG43: =IF($L43=0,0, IF($L43<=0.5,BR43, IF($J43="straight line", IF((LEFT(BG$39,4)*1)-INT($L43)<LEFT($BG$39,4)*1,0,((OFFSET(BR43,0,-INT($L43+0.5),1,1))/$L43)*(IF($L43-INT($L43)>0.5,$L43-0.5-INT($L43),IF($L43-INT($L43)<=0.5,$L43-0.5-INT($L43)+1,0)))) +BR43/$L43*0.5, IF($J43="Declining Balance",-$BG$38,0)))) -> 0.00125 | BH43: =IF($L43=0,0, IF($L43<=0.5,BS43, IF(AND($J43="straight line",$L43<1.51),(BR43-((BR43/$L43)*0.5))+BS43/$L43*0.5, IF($J43="straight line", IF((LEFT(BH$39,4)*1)-INT($L43)<LEFT($BG$39,4)*1,0,((OFFSET(BS43,0,-INT($L43+0.5),1,1))/$L43)*(IF($L43-INT($L43)>0.5,$L43-0.5-INT($L43),IF($L43-INT($L43)<=0.5,$L43-0.5-INT($L43)+1,0)))) +BS43/$L43*0.5 +SUM(OFFSET(BS43,0,MAX(-INT($L43+(0.5-(10^-12))),-BH$40)+1,1,MIN(INT($L43+(0.5-(10^-12))),BH$40)-1))*1/$L43, IF($J43="Declining Balance",-$BG$38,0))))) -> 0.0040625 | BI43: 0.0084375 | BJ43: 0.0140625 | BK43: 0.0199125 | BL43: 0.02724216867 | BM43: 0.03568469322 | BN43: 0.04399339755 | BO43: 0.05228537772 | BP43: 0.06049066776 | BR43: =+IF($K43="Ongoing",AV43,IF(RIGHT($K43,2)=RIGHT(BR$39,2),SUM($AV43:AV43),0)+IF(RIGHT(BR$39,2)>RIGHT($K43,2),AV43,0)) -> 0.2 | BS43: =+IF($K43="Ongoing",AW43,IF(RIGHT($K43,2)=RIGHT(BS$39,2),SUM($AV43:AW43),0)+IF(RIGHT(BS$39,2)>RIGHT($K43,2),AW43,0)) -> 0.25 | BT43: =+IF($K43="Ongoing",AX43,IF(RIGHT($K43,2)=RIGHT(BT$39,2),SUM($AV43:AX43),0)+IF(RIGHT(BT$39,2)>RIGHT($K43,2),AX43,0)) -> 0.45 | BU43: =+IF($K43="Ongoing",AY43,IF(RIGHT($K43,2)=RIGHT(BU$39,2),SUM($AV43:AY43),0)+IF(RIGHT(BU$39,2)>RIGHT($K43,2),AY43,0)) -> 0.45 | BV43: =+IF($K43="Ongoing",AZ43,IF(RIGHT($K43,2)=RIGHT(BV$39,2),SUM($AV43:AZ43),0)+IF(RIGHT(BV$39,2)>RIGHT($K43,2),AZ43,0)) -> 0.486 | BW43: =+IF($K43="Ongoing",BA43,IF(RIGHT($K43,2)=RIGHT(BW$39,2),SUM($AV43:BA43),0)+IF(RIGHT(BW$39,2)>RIGHT($K43,2),BA43,0)) -> 0.686746988 | BX43: =+IF($K43="Ongoing",BB43,IF(RIGHT($K43,2)=RIGHT(BX$39,2),SUM($AV43:BB43),0)+IF(RIGHT(BX$39,2)>RIGHT($K43,2),BB43,0)) -> 0.6640569395 | BY43: =+IF($K43="Ongoing",BC43,IF(RIGHT($K43,2)=RIGHT(BY$39,2),SUM($AV43:BC43),0)+IF(RIGHT(BY$39,2)>RIGHT($K43,2),BC43,0)) -> 0.6653357532 | BZ43: =+IF($K43="Ongoing",BD43,IF(RIGHT($K43,2)=RIGHT(BZ$39,2),SUM($AV43:BD43),0)+IF(RIGHT(BZ$39,2)>RIGHT($K43,2),BD43,0)) -> 0.6613810742 | CA43: =+IF($K43="Ongoing",BE43,IF(RIGHT($K43,2)=RIGHT(CA$39,2),SUM($AV43:BE43),0)+IF(RIGHT(CA$39,2)>RIGHT($K43,2),BE43,0)) -> 0.6514653324 | CC43: =+O43*KeyAssumptionsPriceControl_FO!X$15 -> 0.2046 | CD43: =+P43*KeyAssumptionsPriceControl_FO!Y$15 -> 0.26163225 | CE43: =+Q43*KeyAssumptionsPriceControl_FO!Z$15 -> 0.4817696251 | CF43: =+R43*KeyAssumptionsPriceControl_FO!AA$15 -> 0.4928503265 | CG43: =+S43*KeyAssumptionsPriceControl_FO!AB$15 -> 0.5445207548 | CH43: =+T43*KeyAssumptionsPriceControl_FO!AC$15 -> 0.787137432 | CI43: =+U43*KeyAssumptionsPriceControl_FO!AD$15 -> 0.7786364951 | CJ43: =+V43*KeyAssumptionsPriceControl_FO!AE$15 -> 0.7980790885 | CK43: =+W43*KeyAssumptionsPriceControl_FO!AF$15 -> 0.8115821126 | CL43: =+X43*KeyAssumptionsPriceControl_FO!AG$15 -> 0.8178010181 | CN43: =IF($M43=0,0, IF($M43<=0.5,CC43, IF($J43="straight line", IF((LEFT(CN$39,4)*1)-INT($M43)<LEFT($CN$39,4)*1,0,((OFFSET(CC43,0,-INT($M43+0.5),1,1))/$M43)*(IF($M43-INT($M43)>0.5,$M43-0.5-INT($M43),IF($M43-INT($M43)<=0.5,$M43-0.5-INT($M43)+1,0)))) +CC43/$M43*0.5, IF($J43="Declining Balance",-$CN$38,0)))) -> 0.00127875 | CO43: =IF($M43=0,0, IF($M43<=0.5,CD43, IF(AND($J43="straight line",$M43<1.51),(CC43-((CC43/$M43)*0.5))+CD43/$M43*0.5, IF($J43="straight line", IF((LEFT(CO$39,4)*1)-INT($M43)<LEFT($CN$39,4)*1,0,((OFFSET(CD43,0,-INT($M43+0.5),1,1))/$M43)*(IF($M43-INT($M43)>0.5,$M43-0.5-INT($M43),IF($M43-INT($M43)<=0.5,$M43-0.5-INT($M43)+1,0)))) +CD43/$M43*0.5 +SUM(OFFSET(CD43,0,MAX(-INT($M43+(0.5-(10^-12))),-CO$40)+1,1,MIN(INT($M43+(0.5-(10^-12))),CO$40)-1))*1/$M43, IF($J43="Declining Balance",-$CN$38,0))))) -> 0.004192701562 | CP43: 0.008838963282 | CQ43: 0.01493033798 | CR43: 0.02141390724 | CS43: 0.02973677091 | CT43: 0.03952285795 | CU43: 0.04937733035 | CV43: 0.05943771286 | CW43: 0.06962135742
C44: San Remo Basin Renewal Project | E44: Water | F44: Renewals | G44: Headworks | H44: Top 10 Major Projects | J44: Straight line | K44: 2022-23 | L44: 100 | M44: 100 | O44: 0 | P44: 0 | Q44: 0.5 | R44: 0.5 | S44: 1.022 | T44: 0 | U44: 0 | V44: 0 | W44: 0.110230179 | X44: 1.085775554 | AK44: 0 | AL44: 0 | AM44: 0 | AN44: 0 | AO44: 0 | AP44: 0 | AQ44: 0 | AR44: 0 | AS44: 0 | AT44: 0 | AV44: 0 | AW44: 0 | AX44: 0.5 | AY44: 0.5 | AZ44: 1.022 | BA44: 0 | BB44: 0 | BC44: 0 | BD44: 0.110230179 | BE44: 1.085775554 | BG44: 0 | BH44: 0 | BI44: 0 | BJ44: 0 | BK44: 0.01011 | BL44: 0.02022 | BM44: 0.02022 | BN44: 0.02022 | BO44: 0.0207711509 | BP44: 0.02675117956 | BR44: =+IF($K44="Ongoing",AV44,IF(RIGHT($K44,2)=RIGHT(BR$39,2),SUM($AV44:AV44),0)+IF(RIGHT(BR$39,2)>RIGHT($K44,2),AV44,0)) -> 0 | BS44: =+IF($K44="Ongoing",AW44,IF(RIGHT($K44,2)=RIGHT(BS$39,2),SUM($AV44:AW44),0)+IF(RIGHT(BS$39,2)>RIGHT($K44,2),AW44,0)) -> 0 | BT44: =+IF($K44="Ongoing",AX44,IF(RIGHT($K44,2)=RIGHT(BT$39,2),SUM($AV44:AX44),0)+IF(RIGHT(BT$39,2)>RIGHT($K44,2),AX44,0)) -> 0 | BU44: =+IF($K44="Ongoing",AY44,IF(RIGHT($K44,2)=RIGHT(BU$39,2),SUM($AV44:AY44),0)+IF(RIGHT(BU$39,2)>RIGHT($K44,2),AY44,0)) -> 0 | BV44: =+IF($K44="Ongoing",AZ44,IF(RIGHT($K44,2)=RIGHT(BV$39,2),SUM($AV44:AZ44),0)+IF(RIGHT(BV$39,2)>RIGHT($K44,2),AZ44,0)) -> 2.022 | BW44: =+IF($K44="Ongoing",BA44,IF(RIGHT($K44,2)=RIGHT(BW$39,2),SUM($AV44:BA44),0)+IF(RIGHT(BW$39,2)>RIGHT($K44,2),BA44,0)) -> 0 | BX44: =+IF($K44="Ongoing",BB44,IF(RIGHT($K44,2)=RIGHT(BX$39,2),SUM($AV44:BB44),0)+IF(RIGHT(BX$39,2)>RIGHT($K44,2),BB44,0)) -> 0 | BY44: =+IF($K44="Ongoing",BC44,IF(RIGHT($K44,2)=RIGHT(BY$39,2),SUM($AV44:BC44),0)+IF(RIGHT(BY$39,2)>RIGHT($K44,2),BC44,0)) -> 0 | BZ44: =+IF($K44="Ongoing",BD44,IF(RIGHT($K44,2)=RIGHT(BZ$39,2),SUM($AV44:BD44),0)+IF(RIGHT(BZ$39,2)>RIGHT($K44,2),BD44,0)) -> 0.110230179 | CA44: =+IF($K44="Ongoing",BE44,IF(RIGHT($K44,2)=RIGHT(CA$39,2),SUM($AV44:BE44),0)+IF(RIGHT(CA$39,2)>RIGHT($K44,2),BE44,0)) -> 1.085775554 | CC44: =+O44*KeyAssumptionsPriceControl_FO!X$15 -> 0 | CD44: =+P44*KeyAssumptionsPriceControl_FO!Y$15 -> 0 | CE44: =+Q44*KeyAssumptionsPriceControl_FO!Z$15 -> 0.5352995835 | CF44: =+R44*KeyAssumptionsPriceControl_FO!AA$15 -> 0.5476114739 | CG44: =+S44*KeyAssumptionsPriceControl_FO!AB$15 -> 1.145062163 | CH44: =+T44*KeyAssumptionsPriceControl_FO!AC$15 -> 0 | CI44: =+U44*KeyAssumptionsPriceControl_FO!AD$15 -> 0 | CJ44: =+V44*KeyAssumptionsPriceControl_FO!AE$15 -> 0 | CK44: =+W44*KeyAssumptionsPriceControl_FO!AF$15 -> 0.1352636854 | CL44: =+X44*KeyAssumptionsPriceControl_FO!AG$15 -> 1.363001697 | CN44: 0 | CO44: 0 | CP44: 0.002676497917 | CQ44: 0.008091053205 | CR44: 0.01655442139 | CS44: 0.02227973221 | CT44: 0.02227973221 | CU44: 0.02227973221 | CV44: 0.02295605063 | CW44: 0.03044737755
C45: Sustainable Water Reuse and Land Management | E45: Recycled Water | F45: Growth | G45: Pipelines/network | H45: Top 10 Major Projects | J45: Straight line | K45: Ongoing | L45: 50 | M45: 50 | O45: 0 | P45: 0 | Q45: 0.11 | R45: 0.363 | S45: 0.34 | T45: 0 | U45: 1.106761566 | V45: 0.6653357532 | W45: 0.4409207161 | X45: 0 | AK45: 0 | AL45: 0 | AM45: 0 | AN45: 0 | AO45: 0 | AP45: 0 | AQ45: 0 | AR45: 0 | AS45: 0 | AT45: 0 | AV45: 0 | AW45: 0 | AX45: 0.11 | AY45: 0.363 | AZ45: 0.34 | BA45: 0 | BB45: 1.106761566 | BC45: 0.6653357532 | BD45: 0.4409207161 | BE45: 0 | BG45: 0 | BH45: 0 | BI45: 0.0011 | BJ45: 0.00583 | BK45: 0.01286 | BL45: 0.01626 | BM45: 0.02732761566 | BN45: 0.04504858885 | BO45: 0.05611115354 | BP45: 0.0605203607 | BR45: =+IF($K45="Ongoing",AV45,IF(RIGHT($K45,2)=RIGHT(BR$39,2),SUM($AV45:AV45),0)+IF(RIGHT(BR$39,2)>RIGHT($K45,2),AV45,0)) -> 0 | BS45: =+IF($K45="Ongoing",AW45,IF(RIGHT($K45,2)=RIGHT(BS$39,2),SUM($AV45:AW45),0)+IF(RIGHT(BS$39,2)>RIGHT($K45,2),AW45,0)) -> 0 | BT45: =+IF($K45="Ongoing",AX45,IF(RIGHT($K45,2)=RIGHT(BT$39,2),SUM($AV45:AX45),0)+IF(RIGHT(BT$39,2)>RIGHT($K45,2),AX45,0)) -> 0.11 | BU45: =+IF($K45="Ongoing",AY45,IF(RIGHT($K45,2)=RIGHT(BU$39,2),SUM($AV45:AY45),0)+IF(RIGHT(BU$39,2)>RIGHT($K45,2),AY45,0)) -> 0.363 | BV45: =+IF($K45="Ongoing",AZ45,IF(RIGHT($K45,2)=RIGHT(BV$39,2),SUM($AV45:AZ45),0)+IF(RIGHT(BV$39,2)>RIGHT($K45,2),AZ45,0)) -> 0.34 | BW45: =+IF($K45="Ongoing",BA45,IF(RIGHT($K45,2)=RIGHT(BW$39,2),SUM($AV45:BA45),0)+IF(RIGHT(BW$39,2)>RIGHT($K45,2),BA45,0)) -> 0 | BX45: =+IF($K45="Ongoing",BB45,IF(RIGHT($K45,2)=RIGHT(BX$39,2),SUM($AV45:BB45),0)+IF(RIGHT(BX$39,2)>RIGHT($K45,2),BB45,0)) -> 1.106761566 | BY45: =+IF($K45="Ongoing",BC45,IF(RIGHT($K45,2)=RIGHT(BY$39,2),SUM($AV45:BC45),0)+IF(RIGHT(BY$39,2)>RIGHT($K45,2),BC45,0)) -> 0.6653357532 | BZ45: =+IF($K45="Ongoing",BD45,IF(RIGHT($K45,2)=RIGHT(BZ$39,2),SUM($AV45:BD45),0)+IF(RIGHT(BZ$39,2)>RIGHT($K45,2),BD45,0)) -> 0.4409207161 | CA45: =+IF($K45="Ongoing",BE45,IF(RIGHT($K45,2)=RIGHT(CA$39,2),SUM($AV45:BE45),0)+IF(RIGHT(CA$39,2)>RIGHT($K45,2),BE45,0)) -> 0 | CC45: =+O45*KeyAssumptionsPriceControl_FO!X$15 -> 0 | CD45: =+P45*KeyAssumptionsPriceControl_FO!Y$15 -> 0 | CE45: =+Q45*KeyAssumptionsPriceControl_FO!Z$15 -> 0.1177659084 | CF45: =+R45*KeyAssumptionsPriceControl_FO!AA$15 -> 0.3975659301 | CG45: =+S45*KeyAssumptionsPriceControl_FO!AB$15 -> 0.3809404457 | CH45: =+T45*KeyAssumptionsPriceControl_FO!AC$15 -> 0 | CI45: =+U45*KeyAssumptionsPriceControl_FO!AD$15 -> 1.297727492 | CJ45: =+V45*KeyAssumptionsPriceControl_FO!AE$15 -> 0.7980790885 | CK45: =+W45*KeyAssumptionsPriceControl_FO!AF$15 -> 0.5410547417 | CL45: =+X45*KeyAssumptionsPriceControl_FO!AG$15 -> 0 | CN45: 0 | CO45: 0 | CP45: 0.001177659084 | CQ45: 0.006330977468 | CR45: 0.01411604123 | CS45: 0.01792544568 | CT45: 0.0309027206 | CU45: 0.05186078641 | CV45: 0.06525212471 | CW45: 0.07066267213
C46: Phillip Island Water Supply Security Project | E46: Water | F46: Improvements / Compliance | G46: Pipelines/network | H46: Top 10 Major Projects | J46: Straight line | K46: 2020-21 | L46: 50 | M46: 50 | O46: 0.6 | P46: 1.5 | Q46: 0.695 | R46: 0 | S46: 0 | T46: 0 | U46: 0 | V46: 0 | W46: 0 | X46: 0 | AK46: 0 | AL46: 0 | AM46: 0 | AN46: 0 | AO46: 0 | AP46: 0 | AQ46: 0 | AR46: 0 | AS46: 0 | AT46: 0 | AV46: 0.6 | AW46: 1.5 | AX46: 0.695 | AY46: 0 | AZ46: 0 | BA46: 0 | BB46: 0 | BC46: 0 | BD46: 0 | BE46: 0 | BG46: 0 | BH46: 0 | BI46: 0.02795 | BJ46: 0.0559 | BK46: 0.0559 | BL46: 0.0559 | BM46: 0.0559 | BN46: 0.0559 | BO46: 0.0559 | BP46: 0.0559 | BR46: =+IF($K46="Ongoing",AV46,IF(RIGHT($K46,2)=RIGHT(BR$39,2),SUM($AV46:AV46),0)+IF(RIGHT(BR$39,2)>RIGHT($K46,2),AV46,0)) -> 0 | BS46: =+IF($K46="Ongoing",AW46,IF(RIGHT($K46,2)=RIGHT(BS$39,2),SUM($AV46:AW46),0)+IF(RIGHT(BS$39,2)>RIGHT($K46,2),AW46,0)) -> 0 | BT46: =+IF($K46="Ongoing",AX46,IF(RIGHT($K46,2)=RIGHT(BT$39,2),SUM($AV46:AX46),0)+IF(RIGHT(BT$39,2)>RIGHT($K46,2),AX46,0)) -> 2.795 | BU46: =+IF($K46="Ongoing",AY46,IF(RIGHT($K46,2)=RIGHT(BU$39,2),SUM($AV46:AY46),0)+IF(RIGHT(BU$39,2)>RIGHT($K46,2),AY46,0)) -> 0 | BV46: =+IF($K46="Ongoing",AZ46,IF(RIGHT($K46,2)=RIGHT(BV$39,2),SUM($AV46:AZ46),0)+IF(RIGHT(BV$39,2)>RIGHT($K46,2),AZ46,0)) -> 0 | BW46: =+IF($K46="Ongoing",BA46,IF(RIGHT($K46,2)=RIGHT(BW$39,2),SUM($AV46:BA46),0)+IF(RIGHT(BW$39,2)>RIGHT($K46,2),BA46,0)) -> 0 | BX46: =+IF($K46="Ongoing",BB46,IF(RIGHT($K46,2)=RIGHT(BX$39,2),SUM($AV46:BB46),0)+IF(RIGHT(BX$39,2)>RIGHT($K46,2),BB46,0)) -> 0 | BY46: =+IF($K46="Ongoing",BC46,IF(RIGHT($K46,2)=RIGHT(BY$39,2),SUM($AV46:BC46),0)+IF(RIGHT(BY$39,2)>RIGHT($K46,2),BC46,0)) -> 0 | BZ46: =+IF($K46="Ongoing",BD46,IF(RIGHT($K46,2)=RIGHT(BZ$39,2),SUM($AV46:BD46),0)+IF(RIGHT(BZ$39,2)>RIGHT($K46,2),BD46,0)) -> 0 | CA46: =+IF($K46="Ongoing",BE46,IF(RIGHT($K46,2)=RIGHT(CA$39,2),SUM($AV46:BE46),0)+IF(RIGHT(CA$39,2)>RIGHT($K46,2),BE46,0)) -> 0 | CC46: =+O46*KeyAssumptionsPriceControl_FO!X$15 -> 0.6138 | CD46: =+P46*KeyAssumptionsPriceControl_FO!Y$15 -> 1.5697935 | CE46: =+Q46*KeyAssumptionsPriceControl_FO!Z$15 -> 0.7440664211 | CF46: =+R46*KeyAssumptionsPriceControl_FO!AA$15 -> 0 | CG46: =+S46*KeyAssumptionsPriceControl_FO!AB$15 -> 0 | CH46: =+T46*KeyAssumptionsPriceControl_FO!AC$15 -> 0 | CI46: =+U46*KeyAssumptionsPriceControl_FO!AD$15 -> 0 | CJ46: =+V46*KeyAssumptionsPriceControl_FO!AE$15 -> 0 | CK46: =+W46*KeyAssumptionsPriceControl_FO!AF$15 -> 0 | CL46: =+X46*KeyAssumptionsPriceControl_FO!AG$15 -> 0 | CN46: 0.006138 | CO46: 0.027973935 | CP46: 0.05111253421 | CQ46: 0.05855319842 | CR46: 0.05855319842 | CS46: 0.05855319842 | CT46: 0.05855319842 | CU46: 0.05855319842 | CV46: 0.05855319842 | CW46: 0.05855319842
C47: King Road WWTP – Upgrade Stage 1 | E47: Sewerage | F47: Growth | G47: Headworks | H47: Top 10 Major Projects | J47: Straight line | K47: 2024-25 | L47: 25 | M47: 25 | O47: 0 | P47: 0 | Q47: 0.2 | R47: 0 | S47: 0 | T47: 1.831325301 | U47: 0.4427046263 | V47: 0 | W47: 0 | X47: 0 | AK47: 0 | AL47: 0 | AM47: 0 | AN47: 0 | AO47: 0 | AP47: 0 | AQ47: 0 | AR47: 0 | AS47: 0 | AT47: 0 | AV47: 0 | AW47: 0 | AX47: 0.2 | AY47: 0 | AZ47: 0 | BA47: 1.831325301 | BB47: 0.4427046263 | BC47: 0 | BD47: 0 | BE47: 0 | BG47: 0 | BH47: 0 | BI47: 0 | BJ47: 0 | BK47: 0 | BL47: 0 | BM47: 0.04948059855 | BN47: 0.0989611971 | BO47: 0.0989611971 | BP47: 0.0989611971 | BR47: =+IF($K47="Ongoing",AV47,IF(RIGHT($K47,2)=RIGHT(BR$39,2),SUM($AV47:AV47),0)+IF(RIGHT(BR$39,2)>RIGHT($K47,2),AV47,0)) -> 0 | BS47: =+IF($K47="Ongoing",AW47,IF(RIGHT($K47,2)=RIGHT(BS$39,2),SUM($AV47:AW47),0)+IF(RIGHT(BS$39,2)>RIGHT($K47,2),AW47,0)) -> 0 | BT47: =+IF($K47="Ongoing",AX47,IF(RIGHT($K47,2)=RIGHT(BT$39,2),SUM($AV47:AX47),0)+IF(RIGHT(BT$39,2)>RIGHT($K47,2),AX47,0)) -> 0 | BU47: =+IF($K47="Ongoing",AY47,IF(RIGHT($K47,2)=RIGHT(BU$39,2),SUM($AV47:AY47),0)+IF(RIGHT(BU$39,2)>RIGHT($K47,2),AY47,0)) -> 0 | BV47: =+IF($K47="Ongoing",AZ47,IF(RIGHT($K47,2)=RIGHT(BV$39,2),SUM($AV47:AZ47),0)+IF(RIGHT(BV$39,2)>RIGHT($K47,2),AZ47,0)) -> 0 | BW47: =+IF($K47="Ongoing",BA47,IF(RIGHT($K47,2)=RIGHT(BW$39,2),SUM($AV47:BA47),0)+IF(RIGHT(BW$39,2)>RIGHT($K47,2),BA47,0)) -> 0 | BX47: =+IF($K47="Ongoing",BB47,IF(RIGHT($K47,2)=RIGHT(BX$39,2),SUM($AV47:BB47),0)+IF(RIGHT(BX$39,2)>RIGHT($K47,2),BB47,0)) -> 2.474029928 | BY47: =+IF($K47="Ongoing",BC47,IF(RIGHT($K47,2)=RIGHT(BY$39,2),SUM($AV47:BC47),0)+IF(RIGHT(BY$39,2)>RIGHT($K47,2),BC47,0)) -> 0 | BZ47: =+IF($K47="Ongoing",BD47,IF(RIGHT($K47,2)=RIGHT(BZ$39,2),SUM($AV47:BD47),0)+IF(RIGHT(BZ$39,2)>RIGHT($K47,2),BD47,0)) -> 0 | CA47: =+IF($K47="Ongoing",BE47,IF(RIGHT($K47,2)=RIGHT(CA$39,2),SUM($AV47:BE47),0)+IF(RIGHT(CA$39,2)>RIGHT($K47,2),BE47,0)) -> 0 | CC47: =+O47*KeyAssumptionsPriceControl_FO!X$15 -> 0 | CD47: =+P47*KeyAssumptionsPriceControl_FO!Y$15 -> 0 | CE47: =+Q47*KeyAssumptionsPriceControl_FO!Z$15 -> 0.2141198334 | CF47: =+R47*KeyAssumptionsPriceControl_FO!AA$15 -> 0 | CG47: =+S47*KeyAssumptionsPriceControl_FO!AB$15 -> 0 | CH47: =+T47*KeyAssumptionsPriceControl_FO!AC$15 -> 2.099033152 | CI47: =+U47*KeyAssumptionsPriceControl_FO!AD$15 -> 0.5190909968 | CJ47: =+V47*KeyAssumptionsPriceControl_FO!AE$15 -> 0 | CK47: =+W47*KeyAssumptionsPriceControl_FO!AF$15 -> 0 | CL47: =+X47*KeyAssumptionsPriceControl_FO!AG$15 -> 0 | CN47: 0 | CO47: 0 | CP47: 0.004282396668 | CQ47: 0.008564793336 | CR47: 0.008564793336 | CS47: 0.05054545637 | CT47: 0.1029079393 | CU47: 0.1132897593 | CV47: 0.1132897593 | CW47: 0.1132897593
C48: Sewer Junction Rebuild Program | E48: Sewerage | F48: Renewals | G48: Pipelines/network | H48: Top 10 Major Projects | J48: Straight line | K48: Ongoing | L48: 80 | M48: 80 | O48: 0.2 | P48: 0.2 | Q48: 0.2 | R48: 0.25 | S48: 0.25 | T48: 0.2289156627 | U48: 0.2213523132 | V48: 0.2217785844 | W48: 0.2204603581 | X48: 0.2171551108 | AK48: 0 | AL48: 0 | AM48: 0 | AN48: 0 | AO48: 0 | AP48: 0 | AQ48: 0 | AR48: 0 | AS48: 0 | AT48: 0 | AV48: 0.2 | AW48: 0.2 | AX48: 0.2 | AY48: 0.25 | AZ48: 0.25 | BA48: 0.2289156627 | BB48: 0.2213523132 | BC48: 0.2217785844 | BD48: 0.2204603581 | BE48: 0.2171551108 | BG48: 0.00125 | BH48: 0.00375 | BI48: 0.00625 | BJ48: 0.0090625 | BK48: 0.0121875 | BL48: 0.01518072289 | BM48: 0.01799489774 | BN48: 0.02076446585 | BO48: 0.02352845924 | BP48: 0.02626355592 | BR48: =+IF($K48="Ongoing",AV48,IF(RIGHT($K48,2)=RIGHT(BR$39,2),SUM($AV48:AV48),0)+IF(RIGHT(BR$39,2)>RIGHT($K48,2),AV48,0)) -> 0.2 | BS48: =+IF($K48="Ongoing",AW48,IF(RIGHT($K48,2)=RIGHT(BS$39,2),SUM($AV48:AW48),0)+IF(RIGHT(BS$39,2)>RIGHT($K48,2),AW48,0)) -> 0.2 | BT48: =+IF($K48="Ongoing",AX48,IF(RIGHT($K48,2)=RIGHT(BT$39,2),SUM($AV48:AX48),0)+IF(RIGHT(BT$39,2)>RIGHT($K48,2),AX48,0)) -> 0.2 | BU48: =+IF($K48="Ongoing",AY48,IF(RIGHT($K48,2)=RIGHT(BU$39,2),SUM($AV48:AY48),0)+IF(RIGHT(BU$39,2)>RIGHT($K48,2),AY48,0)) -> 0.25 | BV48: =+IF($K48="Ongoing",AZ48,IF(RIGHT($K48,2)=RIGHT(BV$39,2),SUM($AV48:AZ48),0)+IF(RIGHT(BV$39,2)>RIGHT($K48,2),AZ48,0)) -> 0.25 | BW48: =+IF($K48="Ongoing",BA48,IF(RIGHT($K48,2)=RIGHT(BW$39,2),SUM($AV48:BA48),0)+IF(RIGHT(BW$39,2)>RIGHT($K48,2),BA48,0)) -> 0.2289156627 | BX48: =+IF($K48="Ongoing",BB48,IF(RIGHT($K48,2)=RIGHT(BX$39,2),SUM($AV48:BB48),0)+IF(RIGHT(BX$39,2)>RIGHT($K48,2),BB48,0)) -> 0.2213523132 | BY48: =+IF($K48="Ongoing",BC48,IF(RIGHT($K48,2)=RIGHT(BY$39,2),SUM($AV48:BC48),0)+IF(RIGHT(BY$39,2)>RIGHT($K48,2),BC48,0)) -> 0.2217785844 | BZ48: =+IF($K48="Ongoing",BD48,IF(RIGHT($K48,2)=RIGHT(BZ$39,2),SUM($AV48:BD48),0)+IF(RIGHT(BZ$39,2)>RIGHT($K48,2),BD48,0)) -> 0.2204603581 | CA48: =+IF($K48="Ongoing",BE48,IF(RIGHT($K48,2)=RIGHT(CA$39,2),SUM($AV48:BE48),0)+IF(RIGHT(CA$39,2)>RIGHT($K48,2),BE48,0)) -> 0.2171551108 | CC48: =+O48*KeyAssumptionsPriceControl_FO!X$15 -> 0.2046 | CD48: =+P48*KeyAssumptionsPriceControl_FO!Y$15 -> 0.2093058 | CE48: =+Q48*KeyAssumptionsPriceControl_FO!Z$15 -> 0.2141198334 | CF48: =+R48*KeyAssumptionsPriceControl_FO!AA$15 -> 0.273805737 | CG48: =+S48*KeyAssumptionsPriceControl_FO!AB$15 -> 0.2801032689 | CH48: =+T48*KeyAssumptionsPriceControl_FO!AC$15 -> 0.262379144 | CI48: =+U48*KeyAssumptionsPriceControl_FO!AD$15 -> 0.2595454984 | CJ48: =+V48*KeyAssumptionsPriceControl_FO!AE$15 -> 0.2660263628 | CK48: =+W48*KeyAssumptionsPriceControl_FO!AF$15 -> 0.2705273709 | CL48: =+X48*KeyAssumptionsPriceControl_FO!AG$15 -> 0.2726003394 | CN48: 0.00127875 | CO48: 0.00386566125 | CP48: 0.006512071459 | CQ48: 0.009561606274 | CR48: 0.01302353756 | CS48: 0.01641405264 | CT48: 0.01967608166 | CU48: 0.02296090579 | CV48: 0.02631436662 | CW48: 0.02970891481
C49: Water Quality Improvement Program | E49: Water | F49: Improvements / Compliance | G49: Treatment | H49: Top 10 Major Projects | J49: Straight line | K49: 2019-20 | L49: 25 | M49: 25 | O49: 0.275 | P49: 0.275 | Q49: 0 | R49: 0 | S49: 0 | T49: 0 | U49: 0.7747330961 | V49: 0 | W49: 0 | X49: 0 | AK49: 0 | AL49: 0 | AM49: 0 | AN49: 0 | AO49: 0 | AP49: 0 | AQ49: 0 | AR49: 0 | AS49: 0 | AT49: 0 | AV49: 0.275 | AW49: 0.275 | AX49: 0 | AY49: 0 | AZ49: 0 | BA49: 0 | BB49: 0.7747330961 | BC49: 0 | BD49: 0 | BE49: 0 | BG49: 0 | BH49: 0.011 | BI49: 0.022 | BJ49: 0.022 | BK49: 0.022 | BL49: 0.022 | BM49: 0.03749466192 | BN49: 0.05298932384 | BO49: 0.05298932384 | BP49: 0.05298932384 | BR49: =+IF($K49="Ongoing",AV49,IF(RIGHT($K49,2)=RIGHT(BR$39,2),SUM($AV49:AV49),0)+IF(RIGHT(BR$39,2)>RIGHT($K49,2),AV49,0)) -> 0 | BS49: =+IF($K49="Ongoing",AW49,IF(RIGHT($K49,2)=RIGHT(BS$39,2),SUM($AV49:AW49),0)+IF(RIGHT(BS$39,2)>RIGHT($K49,2),AW49,0)) -> 0.55 | BT49: =+IF($K49="Ongoing",AX49,IF(RIGHT($K49,2)=RIGHT(BT$39,2),SUM($AV49:AX49),0)+IF(RIGHT(BT$39,2)>RIGHT($K49,2),AX49,0)) -> 0 | BU49: =+IF($K49="Ongoing",AY49,IF(RIGHT($K49,2)=RIGHT(BU$39,2),SUM($AV49:AY49),0)+IF(RIGHT(BU$39,2)>RIGHT($K49,2),AY49,0)) -> 0 | BV49: =+IF($K49="Ongoing",AZ49,IF(RIGHT($K49,2)=RIGHT(BV$39,2),SUM($AV49:AZ49),0)+IF(RIGHT(BV$39,2)>RIGHT($K49,2),AZ49,0)) -> 0 | BW49: =+IF($K49="Ongoing",BA49,IF(RIGHT($K49,2)=RIGHT(BW$39,2),SUM($AV49:BA49),0)+IF(RIGHT(BW$39,2)>RIGHT($K49,2),BA49,0)) -> 0 | BX49: =+IF($K49="Ongoing",BB49,IF(RIGHT($K49,2)=RIGHT(BX$39,2),SUM($AV49:BB49),0)+IF(RIGHT(BX$39,2)>RIGHT($K49,2),BB49,0)) -> 0.7747330961 | BY49: =+IF($K49="Ongoing",BC49,IF(RIGHT($K49,2)=RIGHT(BY$39,2),SUM($AV49:BC49),0)+IF(RIGHT(BY$39,2)>RIGHT($K49,2),BC49,0)) -> 0 | BZ49: =+IF($K49="Ongoing",BD49,IF(RIGHT($K49,2)=RIGHT(BZ$39,2),SUM($AV49:BD49),0)+IF(RIGHT(BZ$39,2)>RIGHT($K49,2),BD49,0)) -> 0 | CA49: =+IF($K49="Ongoing",BE49,IF(RIGHT($K49,2)=RIGHT(CA$39,2),SUM($AV49:BE49),0)+IF(RIGHT(CA$39,2)>RIGHT($K49,2),BE49,0)) -> 0 | CC49: =+O49*KeyAssumptionsPriceControl_FO!X$15 -> 0.281325 | CD49: =+P49*KeyAssumptionsPriceControl_FO!Y$15 -> 0.287795475 | CE49: =+Q49*KeyAssumptionsPriceControl_FO!Z$15 -> 0 | CF49: =+R49*KeyAssumptionsPriceControl_FO!AA$15 -> 0 | CG49: =+S49*KeyAssumptionsPriceControl_FO!AB$15 -> 0 | CH49: =+T49*KeyAssumptionsPriceControl_FO!AC$15 -> 0 | CI49: =+U49*KeyAssumptionsPriceControl_FO!AD$15 -> 0.9084092443 | CJ49: =+V49*KeyAssumptionsPriceControl_FO!AE$15 -> 0 | CK49: =+W49*KeyAssumptionsPriceControl_FO!AF$15 -> 0 | CL49: =+X49*KeyAssumptionsPriceControl_FO!AG$15 -> 0 | CN49: 0.0056265 | CO49: 0.0170089095 | CP49: 0.022764819 | CQ49: 0.022764819 | CR49: 0.022764819 | CS49: 0.022764819 | CT49: 0.04093300389 | CU49: 0.05910118877 | CV49: 0.05910118877 | CW49: 0.05910118877
C50: San Remo to Newhaven Bridge Pipeline and Fittings Renewal Project | E50: Water | F50: Renewals | G50: Pipelines/network | H50: Top 10 Major Projects | J50: Straight line | K50: 2022-23 | L50: 80 | M50: 80 | O50: 0 | P50: 0 | Q50: 0 | R50: 0.55 | S50: 0.367 | T50: 0 | U50: 0 | V50: 0 | W50: 0 | X50: 0 | AK50: 0 | AL50: 0 | AM50: 0 | AN50: 0 | AO50: 0 | AP50: 0 | AQ50: 0 | AR50: 0 | AS50: 0 | AT50: 0 | AV50: 0 | AW50: 0 | AX50: 0 | AY50: 0.55 | AZ50: 0.367 | BA50: 0 | BB50: 0 | BC50: 0 | BD50: 0 | BE50: 0 | BG50: 0 | BH50: 0 | BI50: 0 | BJ50: 0 | BK50: 0.00573125 | BL50: 0.0114625 | BM50: 0.0114625 | BN50: 0.0114625 | BO50: 0.0114625 | BP50: 0.0114625 | BR50: =+IF($K50="Ongoing",AV50,IF(RIGHT($K50,2)=RIGHT(BR$39,2),SUM($AV50:AV50),0)+IF(RIGHT(BR$39,2)>RIGHT($K50,2),AV50,0)) -> 0 | BS50: =+IF($K50="Ongoing",AW50,IF(RIGHT($K50,2)=RIGHT(BS$39,2),SUM($AV50:AW50),0)+IF(RIGHT(BS$39,2)>RIGHT($K50,2),AW50,0)) -> 0 | BT50: =+IF($K50="Ongoing",AX50,IF(RIGHT($K50,2)=RIGHT(BT$39,2),SUM($AV50:AX50),0)+IF(RIGHT(BT$39,2)>RIGHT($K50,2),AX50,0)) -> 0 | BU50: =+IF($K50="Ongoing",AY50,IF(RIGHT($K50,2)=RIGHT(BU$39,2),SUM($AV50:AY50),0)+IF(RIGHT(BU$39,2)>RIGHT($K50,2),AY50,0)) -> 0 | BV50: =+IF($K50="Ongoing",AZ50,IF(RIGHT($K50,2)=RIGHT(BV$39,2),SUM($AV50:AZ50),0)+IF(RIGHT(BV$39,2)>RIGHT($K50,2),AZ50,0)) -> 0.917 | BW50: =+IF($K50="Ongoing",BA50,IF(RIGHT($K50,2)=RIGHT(BW$39,2),SUM($AV50:BA50),0)+IF(RIGHT(BW$39,2)>RIGHT($K50,2),BA50,0)) -> 0 | BX50: =+IF($K50="Ongoing",BB50,IF(RIGHT($K50,2)=RIGHT(BX$39,2),SUM($AV50:BB50),0)+IF(RIGHT(BX$39,2)>RIGHT($K50,2),BB50,0)) -> 0 | BY50: =+IF($K50="Ongoing",BC50,IF(RIGHT($K50,2)=RIGHT(BY$39,2),SUM($AV50:BC50),0)+IF(RIGHT(BY$39,2)>RIGHT($K50,2),BC50,0)) -> 0 | BZ50: =+IF($K50="Ongoing",BD50,IF(RIGHT($K50,2)=RIGHT(BZ$39,2),SUM($AV50:BD50),0)+IF(RIGHT(BZ$39,2)>RIGHT($K50,2),BD50,0)) -> 0 | CA50: =+IF($K50="Ongoing",BE50,IF(RIGHT($K50,2)=RIGHT(CA$39,2),SUM($AV50:BE50),0)+IF(RIGHT(CA$39,2)>RIGHT($K50,2),BE50,0)) -> 0 | CC50: =+O50*KeyAssumptionsPriceControl_FO!X$15 -> 0 | CD50: =+P50*KeyAssumptionsPriceControl_FO!Y$15 -> 0 | CE50: =+Q50*KeyAssumptionsPriceControl_FO!Z$15 -> 0 | CF50: =+R50*KeyAssumptionsPriceControl_FO!AA$15 -> 0.6023726213 | CG50: =+S50*KeyAssumptionsPriceControl_FO!AB$15 -> 0.4111915988 | CH50: =+T50*KeyAssumptionsPriceControl_FO!AC$15 -> 0 | CI50: =+U50*KeyAssumptionsPriceControl_FO!AD$15 -> 0 | CJ50: =+V50*KeyAssumptionsPriceControl_FO!AE$15 -> 0 | CK50: =+W50*KeyAssumptionsPriceControl_FO!AF$15 -> 0 | CL50: =+X50*KeyAssumptionsPriceControl_FO!AG$15 -> 0 | CN50: 0 | CO50: 0 | CP50: 0 | CQ50: 0.003764828883 | CR50: 0.01009960526 | CS50: 0.01266955275 | CT50: 0.01266955275 | CU50: 0.01266955275 | CV50: 0.01266955275 | CW50: 0.01266955275
C51: San Remo Basin to Cowes '648 Pipeline Valve Renewal Program | E51: Sewerage | F51: Renewals | G51: Pipelines/network | H51: Top 10 Major Projects | J51: Straight line | K51: 2022-23 | L51: 50 | M51: 50 | O51: 0 | P51: 0 | Q51: 0.33 | R51: 0.12 | S51: 0.15 | T51: 0 | U51: 0 | V51: 0 | W51: 0 | X51: 0 | AK51: 0 | AL51: 0 | AM51: 0 | AN51: 0 | AO51: 0 | AP51: 0 | AQ51: 0 | AR51: 0 | AS51: 0 | AT51: 0 | AV51: 0 | AW51: 0 | AX51: 0.33 | AY51: 0.12 | AZ51: 0.15 | BA51: 0 | BB51: 0 | BC51: 0 | BD51: 0 | BE51: 0 | BG51: 0 | BH51: 0 | BI51: 0 | BJ51: 0 | BK51: 0.006 | BL51: 0.012 | BM51: 0.012 | BN51: 0.012 | BO51: 0.012 | BP51: 0.012 | BR51: =+IF($K51="Ongoing",AV51,IF(RIGHT($K51,2)=RIGHT(BR$39,2),SUM($AV51:AV51),0)+IF(RIGHT(BR$39,2)>RIGHT($K51,2),AV51,0)) -> 0 | BS51: =+IF($K51="Ongoing",AW51,IF(RIGHT($K51,2)=RIGHT(BS$39,2),SUM($AV51:AW51),0)+IF(RIGHT(BS$39,2)>RIGHT($K51,2),AW51,0)) -> 0 | BT51: =+IF($K51="Ongoing",AX51,IF(RIGHT($K51,2)=RIGHT(BT$39,2),SUM($AV51:AX51),0)+IF(RIGHT(BT$39,2)>RIGHT($K51,2),AX51,0)) -> 0 | BU51: =+IF($K51="Ongoing",AY51,IF(RIGHT($K51,2)=RIGHT(BU$39,2),SUM($AV51:AY51),0)+IF(RIGHT(BU$39,2)>RIGHT($K51,2),AY51,0)) -> 0 | BV51: =+IF($K51="Ongoing",AZ51,IF(RIGHT($K51,2)=RIGHT(BV$39,2),SUM($AV51:AZ51),0)+IF(RIGHT(BV$39,2)>RIGHT($K51,2),AZ51,0)) -> 0.6 | BW51: =+IF($K51="Ongoing",BA51,IF(RIGHT($K51,2)=RIGHT(BW$39,2),SUM($AV51:BA51),0)+IF(RIGHT(BW$39,2)>RIGHT($K51,2),BA51,0)) -> 0 | BX51: =+IF($K51="Ongoing",BB51,IF(RIGHT($K51,2)=RIGHT(BX$39,2),SUM($AV51:BB51),0)+IF(RIGHT(BX$39,2)>RIGHT($K51,2),BB51,0)) -> 0 | BY51: =+IF($K51="Ongoing",BC51,IF(RIGHT($K51,2)=RIGHT(BY$39,2),SUM($AV51:BC51),0)+IF(RIGHT(BY$39,2)>RIGHT($K51,2),BC51,0)) -> 0 | BZ51: =+IF($K51="Ongoing",BD51,IF(RIGHT($K51,2)=RIGHT(BZ$39,2),SUM($AV51:BD51),0)+IF(RIGHT(BZ$39,2)>RIGHT($K51,2),BD51,0)) -> 0 | CA51: =+IF($K51="Ongoing",BE51,IF(RIGHT($K51,2)=RIGHT(CA$39,2),SUM($AV51:BE51),0)+IF(RIGHT(CA$39,2)>RIGHT($K51,2),BE51,0)) -> 0 | CC51: =+O51*KeyAssumptionsPriceControl_FO!X$15 -> 0 | CD51: =+P51*KeyAssumptionsPriceControl_FO!Y$15 -> 0 | CE51: =+Q51*KeyAssumptionsPriceControl_FO!Z$15 -> 0.3532977251 | CF51: =+R51*KeyAssumptionsPriceControl_FO!AA$15 -> 0.1314267537 | CG51: =+S51*KeyAssumptionsPriceControl_FO!AB$15 -> 0.1680619613 | CH51: =+T51*KeyAssumptionsPriceControl_FO!AC$15 -> 0 | CI51: =+U51*KeyAssumptionsPriceControl_FO!AD$15 -> 0 | CJ51: =+V51*KeyAssumptionsPriceControl_FO!AE$15 -> 0 | CK51: =+W51*KeyAssumptionsPriceControl_FO!AF$15 -> 0 | CL51: =+X51*KeyAssumptionsPriceControl_FO!AG$15 -> 0 | CN51: 0 | CO51: 0 | CP51: 0.003532977251 | CQ51: 0.00838022204 | CR51: 0.01137510919 | CS51: 0.0130557288 | CT51: 0.0130557288 | CU51: 0.0130557288 | CV51: 0.0130557288 | CW51: 0.0130557288
C53: Plant Replacement - Fleet & Equipment | E53: Water | F53: Renewals | G53: Corporate | H53: Capital Programs / Allocation | J53: Straight line | K53: Ongoing | L53: 4 | M53: 4 | O53: 0.0791873814 | P53: 0.183330786 | Q53: 0.1180611868 | R53: 0.04319311713 | S53: 0.2869942671 | T53: 0.1647930172 | U53: 0.1593482732 | V53: 0.1596551395 | W53: 0.1587061678 | X53: 0.1563267689 | AK53: 0 | AL53: 0 | AM53: 0 | AN53: 0 | AO53: 0 | AP53: 0 | AQ53: 0 | AR53: 0 | AS53: 0 | AT53: 0 | AV53: 0.0791873814 | AW53: 0.183330786 | AX53: 0.1180611868 | AY53: 0.04319311713 | AZ53: 0.2869942671 | BA53: 0.1647930172 | BB53: 0.1593482732 | BC53: 0.1596551395 | BD53: 0.1587061678 | BE53: 0.1563267689 | BG53: 0.009898422676 | BH53: 0.04271319361 | BI53: 0.08038719021 | BJ53: 0.1005439782 | BK53: 0.1319189786 | BL53: 0.1555776182 | BM53: 0.1584212829 | BN53: 0.1781399215 | BO53: 0.1766616618 | BP53: 0.1595673684 | BR53: =+IF($K53="Ongoing",AV53,IF(RIGHT($K53,2)=RIGHT(BR$39,2),SUM($AV53:AV53),0)+IF(RIGHT(BR$39,2)>RIGHT($K53,2),AV53,0)) -> 0.0791873814 | BS53: =+IF($K53="Ongoing",AW53,IF(RIGHT($K53,2)=RIGHT(BS$39,2),SUM($AV53:AW53),0)+IF(RIGHT(BS$39,2)>RIGHT($K53,2),AW53,0)) -> 0.183330786 | BT53: =+IF($K53="Ongoing",AX53,IF(RIGHT($K53,2)=RIGHT(BT$39,2),SUM($AV53:AX53),0)+IF(RIGHT(BT$39,2)>RIGHT($K53,2),AX53,0)) -> 0.1180611868 | BU53: =+IF($K53="Ongoing",AY53,IF(RIGHT($K53,2)=RIGHT(BU$39,2),SUM($AV53:AY53),0)+IF(RIGHT(BU$39,2)>RIGHT($K53,2),AY53,0)) -> 0.04319311713 | BV53: =+IF($K53="Ongoing",AZ53,IF(RIGHT($K53,2)=RIGHT(BV$39,2),SUM($AV53:AZ53),0)+IF(RIGHT(BV$39,2)>RIGHT($K53,2),AZ53,0)) -> 0.2869942671 | BW53: =+IF($K53="Ongoing",BA53,IF(RIGHT($K53,2)=RIGHT(BW$39,2),SUM($AV53:BA53),0)+IF(RIGHT(BW$39,2)>RIGHT($K53,2),BA53,0)) -> 0.1647930172 | BX53: =+IF($K53="Ongoing",BB53,IF(RIGHT($K53,2)=RIGHT(BX$39,2),SUM($AV53:BB53),0)+IF(RIGHT(BX$39,2)>RIGHT($K53,2),BB53,0)) -> 0.1593482732 | BY53: =+IF($K53="Ongoing",BC53,IF(RIGHT($K53,2)=RIGHT(BY$39,2),SUM($AV53:BC53),0)+IF(RIGHT(BY$39,2)>RIGHT($K53,2),BC53,0)) -> 0.1596551395 | BZ53: =+IF($K53="Ongoing",BD53,IF(RIGHT($K53,2)=RIGHT(BZ$39,2),SUM($AV53:BD53),0)+IF(RIGHT(BZ$39,2)>RIGHT($K53,2),BD53,0)) -> 0.1587061678 | CA53: =+IF($K53="Ongoing",BE53,IF(RIGHT($K53,2)=RIGHT(CA$39,2),SUM($AV53:BE53),0)+IF(RIGHT(CA$39,2)>RIGHT($K53,2),BE53,0)) -> 0.1563267689 | CC53: =+O53*KeyAssumptionsPriceControl_FO!X$15 -> 0.08100869118 | CD53: =+P53*KeyAssumptionsPriceControl_FO!Y$15 -> 0.1918609842 | CE53: =+Q53*KeyAssumptionsPriceControl_FO!Z$15 -> 0.1263962083 | CF53: =+R53*KeyAssumptionsPriceControl_FO!AA$15 -> 0.04730609307 | CG53: =+S53*KeyAssumptionsPriceControl_FO!AB$15 -> 0.3215521295 | CH53: =+T53*KeyAssumptionsPriceControl_FO!AC$15 -> 0.188882885 | CI53: =+U53*KeyAssumptionsPriceControl_FO!AD$15 -> 0.1868429852 | CJ53: =+V53*KeyAssumptionsPriceControl_FO!AE$15 -> 0.1915084642 | CK53: =+W53*KeyAssumptionsPriceControl_FO!AF$15 -> 0.1947486736 | CL53: =+X53*KeyAssumptionsPriceControl_FO!AG$15 -> 0.1962409731 | CN53: 0.0101260864 | CO53: 0.04423479582 | CP53: 0.08401694487 | CQ53: 0.1057297325 | CR53: 0.141710924 | CS53: 0.1714065914 | CT53: 0.1785901761 | CU53: 0.2041713196 | CV53: 0.206346184 | CW53: 0.191415513
C54: Plant Replacement - Fleet & Equipment | E54: Sewerage | F54: Renewals | G54: Corporate | H54: Capital Programs / Allocation | J54: Straight line | K54: Ongoing | L54: 4 | M54: 4 | O54: 0.08252408029 | P54: 0.1910557495 | Q54: 0.1230359015 | R54: 0.0450131347 | S54: 0.2990872728 | T54: 0.1717368593 | U54: 0.1660626915 | V54: 0.1663824882 | W54: 0.1653935299 | X54: 0.1629138709 | AK54: 0 | AL54: 0 | AM54: 0 | AN54: 0 | AO54: 0 | AP54: 0 | AQ54: 0 | AR54: 0 | AS54: 0 | AT54: 0 | AV54: 0.08252408029 | AW54: 0.1910557495 | AX54: 0.1230359015 | AY54: 0.0450131347 | AZ54: 0.2990872728 | BA54: 0.1717368593 | BB54: 0.1660626915 | BC54: 0.1663824882 | BD54: 0.1653935299 | BE54: 0.1629138709 | BG54: 0.01031551004 | BH54: 0.04451298876 | BI54: 0.08377444514 | BJ54: 0.1047805747 | BK54: 0.1374776156 | BL54: 0.1621331534 | BM54: 0.1650966408 | BN54: 0.1856461588 | BO54: 0.1841056101 | BP54: 0.1662910187 | BR54: =+IF($K54="Ongoing",AV54,IF(RIGHT($K54,2)=RIGHT(BR$39,2),SUM($AV54:AV54),0)+IF(RIGHT(BR$39,2)>RIGHT($K54,2),AV54,0)) -> 0.08252408029 | BS54: =+IF($K54="Ongoing",AW54,IF(RIGHT($K54,2)=RIGHT(BS$39,2),SUM($AV54:AW54),0)+IF(RIGHT(BS$39,2)>RIGHT($K54,2),AW54,0)) -> 0.1910557495 | BT54: =+IF($K54="Ongoing",AX54,IF(RIGHT($K54,2)=RIGHT(BT$39,2),SUM($AV54:AX54),0)+IF(RIGHT(BT$39,2)>RIGHT($K54,2),AX54,0)) -> 0.1230359015 | BU54: =+IF($K54="Ongoing",AY54,IF(RIGHT($K54,2)=RIGHT(BU$39,2),SUM($AV54:AY54),0)+IF(RIGHT(BU$39,2)>RIGHT($K54,2),AY54,0)) -> 0.0450131347 | BV54: =+IF($K54="Ongoing",AZ54,IF(RIGHT($K54,2)=RIGHT(BV$39,2),SUM($AV54:AZ54),0)+IF(RIGHT(BV$39,2)>RIGHT($K54,2),AZ54,0)) -> 0.2990872728 | BW54: =+IF($K54="Ongoing",BA54,IF(RIGHT($K54,2)=RIGHT(BW$39,2),SUM($AV54:BA54),0)+IF(RIGHT(BW$39,2)>RIGHT($K54,2),BA54,0)) -> 0.1717368593 | BX54: =+IF($K54="Ongoing",BB54,IF(RIGHT($K54,2)=RIGHT(BX$39,2),SUM($AV54:BB54),0)+IF(RIGHT(BX$39,2)>RIGHT($K54,2),BB54,0)) -> 0.1660626915 | BY54: =+IF($K54="Ongoing",BC54,IF(RIGHT($K54,2)=RIGHT(BY$39,2),SUM($AV54:BC54),0)+IF(RIGHT(BY$39,2)>RIGHT($K54,2),BC54,0)) -> 0.1663824882 | BZ54: =+IF($K54="Ongoing",BD54,IF(RIGHT($K54,2)=RIGHT(BZ$39,2),SUM($AV54:BD54),0)+IF(RIGHT(BZ$39,2)>RIGHT($K54,2),BD54,0)) -> 0.1653935299 | CA54: =+IF($K54="Ongoing",BE54,IF(RIGHT($K54,2)=RIGHT(CA$39,2),SUM($AV54:BE54),0)+IF(RIGHT(CA$39,2)>RIGHT($K54,2),BE54,0)) -> 0.1629138709 | CC54: =+O54*KeyAssumptionsPriceControl_FO!X$15 -> 0.08442213414 | CD54: =+P54*KeyAssumptionsPriceControl_FO!Y$15 -> 0.1999453825 | CE54: =+Q54*KeyAssumptionsPriceControl_FO!Z$15 -> 0.1317221337 | CF54: =+R54*KeyAssumptionsPriceControl_FO!AA$15 -> 0.04929941808 | CG54: =+S54*KeyAssumptionsPriceControl_FO!AB$15 -> 0.3351012912 | CH54: =+T54*KeyAssumptionsPriceControl_FO!AC$15 -> 0.1968417959 | CI54: =+U54*KeyAssumptionsPriceControl_FO!AD$15 -> 0.1947159413 | CJ54: =+V54*KeyAssumptionsPriceControl_FO!AE$15 -> 0.1995780084 | CK54: =+W54*KeyAssumptionsPriceControl_FO!AF$15 -> 0.2029547498 | CL54: =+X54*KeyAssumptionsPriceControl_FO!AG$15 -> 0.2045099299 | CN54: 0.01055276677 | CO54: 0.04609870635 | CP54: 0.08755714587 | CQ54: 0.1101848398 | CR54: 0.1476821617 | CS54: 0.178629108 | CT54: 0.1861153857 | CU54: 0.2127744354 | CV54: 0.2150409415 | CW54: 0.1994811406
C55: Plant Replacement - Fleet & Equipment | E55: Recycled Water | F55: Renewals | G55: Corporate | H55: Capital Programs / Allocation | J55: Straight line | K55: Ongoing | L55: 4 | M55: 4 | O55: 0.003288538304 | P55: 0.007613464437 | Q55: 0.004902911653 | R55: 0.001793748166 | S55: 0.01191846003 | T55: 0.0068436175 | U55: 0.006617505095 | V55: 0.006630248816 | W55: 0.006590839381 | X55: 0.006492026361 | AK55: 0 | AL55: 0 | AM55: 0 | AN55: 0 | AO55: 0 | AP55: 0 | AQ55: 0 | AR55: 0 | AS55: 0 | AT55: 0 | AV55: 0.003288538304 | AW55: 0.007613464437 | AX55: 0.004902911653 | AY55: 0.001793748166 | AZ55: 0.01191846003 | BA55: 0.0068436175 | BB55: 0.006617505095 | BC55: 0.006630248816 | BD55: 0.006590839381 | BE55: 0.006492026361 | BG55: 0.000411067288 | BH55: 0.001773817631 | BI55: 0.003338364642 | BJ55: 0.004175447119 | BK55: 0.005478405856 | BL55: 0.006460915205 | BM55: 0.006579008519 | BN55: 0.00739789528 | BO55: 0.00733650528 | BP55: 0.006626603806 | BR55: =+IF($K55="Ongoing",AV55,IF(RIGHT($K55,2)=RIGHT(BR$39,2),SUM($AV55:AV55),0)+IF(RIGHT(BR$39,2)>RIGHT($K55,2),AV55,0)) -> 0.003288538304 | BS55: =+IF($K55="Ongoing",AW55,IF(RIGHT($K55,2)=RIGHT(BS$39,2),SUM($AV55:AW55),0)+IF(RIGHT(BS$39,2)>RIGHT($K55,2),AW55,0)) -> 0.007613464437 | BT55: =+IF($K55="Ongoing",AX55,IF(RIGHT($K55,2)=RIGHT(BT$39,2),SUM($AV55:AX55),0)+IF(RIGHT(BT$39,2)>RIGHT($K55,2),AX55,0)) -> 0.004902911653 | BU55: =+IF($K55="Ongoing",AY55,IF(RIGHT($K55,2)=RIGHT(BU$39,2),SUM($AV55:AY55),0)+IF(RIGHT(BU$39,2)>RIGHT($K55,2),AY55,0)) -> 0.001793748166 | BV55: =+IF($K55="Ongoing",AZ55,IF(RIGHT($K55,2)=RIGHT(BV$39,2),SUM($AV55:AZ55),0)+IF(RIGHT(BV$39,2)>RIGHT($K55,2),AZ55,0)) -> 0.01191846003 | BW55: =+IF($K55="Ongoing",BA55,IF(RIGHT($K55,2)=RIGHT(BW$39,2),SUM($AV55:BA55),0)+IF(RIGHT(BW$39,2)>RIGHT($K55,2),BA55,0)) -> 0.0068436175 | BX55: =+IF($K55="Ongoing",BB55,IF(RIGHT($K55,2)=RIGHT(BX$39,2),SUM($AV55:BB55),0)+IF(RIGHT(BX$39,2)>RIGHT($K55,2),BB55,0)) -> 0.006617505095 | BY55: =+IF($K55="Ongoing",BC55,IF(RIGHT($K55,2)=RIGHT(BY$39,2),SUM($AV55:BC55),0)+IF(RIGHT(BY$39,2)>RIGHT($K55,2),BC55,0)) -> 0.006630248816 | BZ55: =+IF($K55="Ongoing",BD55,IF(RIGHT($K55,2)=RIGHT(BZ$39,2),SUM($AV55:BD55),0)+IF(RIGHT(BZ$39,2)>RIGHT($K55,2),BD55,0)) -> 0.006590839381 | CA55: =+IF($K55="Ongoing",BE55,IF(RIGHT($K55,2)=RIGHT(CA$39,2),SUM($AV55:BE55),0)+IF(RIGHT(CA$39,2)>RIGHT($K55,2),BE55,0)) -> 0.006492026361 | CC55: =+O55*KeyAssumptionsPriceControl_FO!X$15 -> 0.003364174685 | CD55: =+P55*KeyAssumptionsPriceControl_FO!Y$15 -> 0.007967711324 | CE55: =+Q55*KeyAssumptionsPriceControl_FO!Z$15 -> 0.005249053132 | CF55: =+R55*KeyAssumptionsPriceControl_FO!AA$15 -> 0.001964554154 | CG55: =+S55*KeyAssumptionsPriceControl_FO!AB$15 -> 0.01335359846 | CH55: =+T55*KeyAssumptionsPriceControl_FO!AC$15 -> 0.007844035138 | CI55: =+U55*KeyAssumptionsPriceControl_FO!AD$15 -> 0.007759321027 | CJ55: =+V55*KeyAssumptionsPriceControl_FO!AE$15 -> 0.007953071673 | CK55: =+W55*KeyAssumptionsPriceControl_FO!AF$15 -> 0.008087632922 | CL55: =+X55*KeyAssumptionsPriceControl_FO!AG$15 -> 0.008149605979 | CN55: 0.0004205218356 | CO55: 0.001837007587 | CP55: 0.003489103144 | CQ55: 0.004390804054 | CR55: 0.005885051296 | CS55: 0.007118269745 | CT55: 0.007416593709 | CU55: 0.008478941886 | CV55: 0.008569260883 | CW55: 0.007949211545
C56: SPS Electrical Switchboard Renewal Program | E56: Sewerage | F56: Renewals | G56: Treatment | H56: Other Capital expenditure | J56: Straight line | K56: Ongoing | L56: 15 | M56: 15 | O56: 0.24 | P56: 0 | Q56: 0.25 | R56: 0.21 | S56: 0.315 | T56: 0.1602409639 | U56: 0.1660142349 | V56: 0.1108892922 | W56: 0.1984143223 | X56: 0.1628663331 | AK56: 0 | AL56: 0 | AM56: 0 | AN56: 0 | AO56: 0 | AP56: 0 | AQ56: 0 | AR56: 0 | AS56: 0 | AT56: 0 | AV56: 0.24 | AW56: 0 | AX56: 0.25 | AY56: 0.21 | AZ56: 0.315 | BA56: 0.1602409639 | BB56: 0.1660142349 | BC56: 0.1108892922 | BD56: 0.1984143223 | BE56: 0.1628663331 | BG56: 0.008 | BH56: 0.016 | BI56: 0.02433333333 | BJ56: 0.03966666667 | BK56: 0.05716666667 | BL56: 0.07300803213 | BM56: 0.08388320542 | BN56: 0.09311332299 | BO56: 0.1034234435 | BP56: 0.115466132 | BR56: =+IF($K56="Ongoing",AV56,IF(RIGHT($K56,2)=RIGHT(BR$39,2),SUM($AV56:AV56),0)+IF(RIGHT(BR$39,2)>RIGHT($K56,2),AV56,0)) -> 0.24 | BS56: =+IF($K56="Ongoing",AW56,IF(RIGHT($K56,2)=RIGHT(BS$39,2),SUM($AV56:AW56),0)+IF(RIGHT(BS$39,2)>RIGHT($K56,2),AW56,0)) -> 0 | BT56: =+IF($K56="Ongoing",AX56,IF(RIGHT($K56,2)=RIGHT(BT$39,2),SUM($AV56:AX56),0)+IF(RIGHT(BT$39,2)>RIGHT($K56,2),AX56,0)) -> 0.25 | BU56: =+IF($K56="Ongoing",AY56,IF(RIGHT($K56,2)=RIGHT(BU$39,2),SUM($AV56:AY56),0)+IF(RIGHT(BU$39,2)>RIGHT($K56,2),AY56,0)) -> 0.21 | BV56: =+IF($K56="Ongoing",AZ56,IF(RIGHT($K56,2)=RIGHT(BV$39,2),SUM($AV56:AZ56),0)+IF(RIGHT(BV$39,2)>RIGHT($K56,2),AZ56,0)) -> 0.315 | BW56: =+IF($K56="Ongoing",BA56,IF(RIGHT($K56,2)=RIGHT(BW$39,2),SUM($AV56:BA56),0)+IF(RIGHT(BW$39,2)>RIGHT($K56,2),BA56,0)) -> 0.1602409639 | BX56: =+IF($K56="Ongoing",BB56,IF(RIGHT($K56,2)=RIGHT(BX$39,2),SUM($AV56:BB56),0)+IF(RIGHT(BX$39,2)>RIGHT($K56,2),BB56,0)) -> 0.1660142349 | BY56: =+IF($K56="Ongoing",BC56,IF(RIGHT($K56,2)=RIGHT(BY$39,2),SUM($AV56:BC56),0)+IF(RIGHT(BY$39,2)>RIGHT($K56,2),BC56,0)) -> 0.1108892922 | BZ56: =+IF($K56="Ongoing",BD56,IF(RIGHT($K56,2)=RIGHT(BZ$39,2),SUM($AV56:BD56),0)+IF(RIGHT(BZ$39,2)>RIGHT($K56,2),BD56,0)) -> 0.1984143223 | CA56: =+IF($K56="Ongoing",BE56,IF(RIGHT($K56,2)=RIGHT(CA$39,2),SUM($AV56:BE56),0)+IF(RIGHT(CA$39,2)>RIGHT($K56,2),BE56,0)) -> 0.1628663331 | CC56: =+O56*KeyAssumptionsPriceControl_FO!X$15 -> 0.24552 | CD56: =+P56*KeyAssumptionsPriceControl_FO!Y$15 -> 0 | CE56: =+Q56*KeyAssumptionsPriceControl_FO!Z$15 -> 0.2676497917 | CF56: =+R56*KeyAssumptionsPriceControl_FO!AA$15 -> 0.229996819 | CG56: =+S56*KeyAssumptionsPriceControl_FO!AB$15 -> 0.3529301188 | CH56: =+T56*KeyAssumptionsPriceControl_FO!AC$15 -> 0.1836654008 | CI56: =+U56*KeyAssumptionsPriceControl_FO!AD$15 -> 0.1946591238 | CJ56: =+V56*KeyAssumptionsPriceControl_FO!AE$15 -> 0.1330131814 | CK56: =+W56*KeyAssumptionsPriceControl_FO!AF$15 -> 0.2434746338 | CL56: =+X56*KeyAssumptionsPriceControl_FO!AG$15 -> 0.2044502545 | CN56: 0.008184 | CO56: 0.016368 | CP56: 0.02528965972 | CQ56: 0.04187788008 | CR56: 0.06130877801 | CS56: 0.07919529533 | CT56: 0.09180611282 | CU56: 0.102728523 | CV56: 0.1152781168 | CW56: 0.1302089464
C57: Business Transformation Project | E57: Water | F57: Improvements / Compliance | G57: Corporate | H57: Significant projects | J57: Straight line | K57: 2019-20 | L57: 80 | M57: 80 | O57: 0.6523120534 | P57: 0.1583747628 | Q57: 0 | R57: 0 | S57: 0 | T57: 0 | U57: 0 | V57: 0 | W57: 0 | X57: 0 | AK57: 0 | AL57: 0 | AM57: 0 | AN57: 0 | AO57: 0 | AP57: 0 | AQ57: 0 | AR57: 0 | AS57: 0 | AT57: 0 | AV57: 0.6523120534 | AW57: 0.1583747628 | AX57: 0 | AY57: 0 | AZ57: 0 | BA57: 0 | BB57: 0 | BC57: 0 | BD57: 0 | BE57: 0 | BG57: 0 | BH57: 0.005066792601 | BI57: 0.0101335852 | BJ57: 0.0101335852 | BK57: 0.0101335852 | BL57: 0.0101335852 | BM57: 0.0101335852 | BN57: 0.0101335852 | BO57: 0.0101335852 | BP57: 0.0101335852 | BR57: =+IF($K57="Ongoing",AV57,IF(RIGHT($K57,2)=RIGHT(BR$39,2),SUM($AV57:AV57),0)+IF(RIGHT(BR$39,2)>RIGHT($K57,2),AV57,0)) -> 0 | BS57: =+IF($K57="Ongoing",AW57,IF(RIGHT($K57,2)=RIGHT(BS$39,2),SUM($AV57:AW57),0)+IF(RIGHT(BS$39,2)>RIGHT($K57,2),AW57,0)) -> 0.8106868162 | BT57: =+IF($K57="Ongoing",AX57,IF(RIGHT($K57,2)=RIGHT(BT$39,2),SUM($AV57:AX57),0)+IF(RIGHT(BT$39,2)>RIGHT($K57,2),AX57,0)) -> 0 | BU57: =+IF($K57="Ongoing",AY57,IF(RIGHT($K57,2)=RIGHT(BU$39,2),SUM($AV57:AY57),0)+IF(RIGHT(BU$39,2)>RIGHT($K57,2),AY57,0)) -> 0 | BV57: =+IF($K57="Ongoing",AZ57,IF(RIGHT($K57,2)=RIGHT(BV$39,2),SUM($AV57:AZ57),0)+IF(RIGHT(BV$39,2)>RIGHT($K57,2),AZ57,0)) -> 0 | BW57: =+IF($K57="Ongoing",BA57,IF(RIGHT($K57,2)=RIGHT(BW$39,2),SUM($AV57:BA57),0)+IF(RIGHT(BW$39,2)>RIGHT($K57,2),BA57,0)) -> 0 | BX57: =+IF($K57="Ongoing",BB57,IF(RIGHT($K57,2)=RIGHT(BX$39,2),SUM($AV57:BB57),0)+IF(RIGHT(BX$39,2)>RIGHT($K57,2),BB57,0)) -> 0 | BY57: =+IF($K57="Ongoing",BC57,IF(RIGHT($K57,2)=RIGHT(BY$39,2),SUM($AV57:BC57),0)+IF(RIGHT(BY$39,2)>RIGHT($K57,2),BC57,0)) -> 0 | BZ57: =+IF($K57="Ongoing",BD57,IF(RIGHT($K57,2)=RIGHT(BZ$39,2),SUM($AV57:BD57),0)+IF(RIGHT(BZ$39,2)>RIGHT($K57,2),BD57,0)) -> 0 | CA57: =+IF($K57="Ongoing",BE57,IF(RIGHT($K57,2)=RIGHT(CA$39,2),SUM($AV57:BE57),0)+IF(RIGHT(CA$39,2)>RIGHT($K57,2),BE57,0)) -> 0 | CC57: =+O57*KeyAssumptionsPriceControl_FO!X$15 -> 0.6673152306 | CD57: =+P57*KeyAssumptionsPriceControl_FO!Y$15 -> 0.1657437821 | CE57: =+Q57*KeyAssumptionsPriceControl_FO!Z$15 -> 0 | CF57: =+R57*KeyAssumptionsPriceControl_FO!AA$15 -> 0 | CG57: =+S57*KeyAssumptionsPriceControl_FO!AB$15 -> 0 | CH57: =+T57*KeyAssumptionsPriceControl_FO!AC$15 -> 0 | CI57: =+U57*KeyAssumptionsPriceControl_FO!AD$15 -> 0 | CJ57: =+V57*KeyAssumptionsPriceControl_FO!AE$15 -> 0 | CK57: =+W57*KeyAssumptionsPriceControl_FO!AF$15 -> 0 | CL57: =+X57*KeyAssumptionsPriceControl_FO!AG$15 -> 0 | CN57: 0.004170720191 | CO57: 0.009377339021 | CP57: 0.01041323766 | CQ57: 0.01041323766 | CR57: 0.01041323766 | CS57: 0.01041323766 | CT57: 0.01041323766 | CU57: 0.01041323766 | CV57: 0.01041323766 | CW57: 0.01041323766
C58: Business Transformation Project | E58: Sewerage | F58: Improvements / Compliance | G58: Corporate | H58: Significant projects | J58: Straight line | K58: 2019-20 | L58: 80 | M58: 80 | O58: 0.6797983632 | P58: 0.1650481606 | Q58: 0 | R58: 0 | S58: 0 | T58: 0 | U58: 0 | V58: 0 | W58: 0 | X58: 0 | AK58: 0 | AL58: 0 | AM58: 0 | AN58: 0 | AO58: 0 | AP58: 0 | AQ58: 0 | AR58: 0 | AS58: 0 | AT58: 0 | AV58: 0.6797983632 | AW58: 0.1650481606 | AX58: 0 | AY58: 0 | AZ58: 0 | BA58: 0 | BB58: 0 | BC58: 0 | BD58: 0 | BE58: 0 | BG58: 0 | BH58: 0.005280290774 | BI58: 0.01056058155 | BJ58: 0.01056058155 | BK58: 0.01056058155 | BL58: 0.01056058155 | BM58: 0.01056058155 | BN58: 0.01056058155 | BO58: 0.01056058155 | BP58: 0.01056058155 | BR58: =+IF($K58="Ongoing",AV58,IF(RIGHT($K58,2)=RIGHT(BR$39,2),SUM($AV58:AV58),0)+IF(RIGHT(BR$39,2)>RIGHT($K58,2),AV58,0)) -> 0 | BS58: =+IF($K58="Ongoing",AW58,IF(RIGHT($K58,2)=RIGHT(BS$39,2),SUM($AV58:AW58),0)+IF(RIGHT(BS$39,2)>RIGHT($K58,2),AW58,0)) -> 0.8448465238 | BT58: =+IF($K58="Ongoing",AX58,IF(RIGHT($K58,2)=RIGHT(BT$39,2),SUM($AV58:AX58),0)+IF(RIGHT(BT$39,2)>RIGHT($K58,2),AX58,0)) -> 0 | BU58: =+IF($K58="Ongoing",AY58,IF(RIGHT($K58,2)=RIGHT(BU$39,2),SUM($AV58:AY58),0)+IF(RIGHT(BU$39,2)>RIGHT($K58,2),AY58,0)) -> 0 | BV58: =+IF($K58="Ongoing",AZ58,IF(RIGHT($K58,2)=RIGHT(BV$39,2),SUM($AV58:AZ58),0)+IF(RIGHT(BV$39,2)>RIGHT($K58,2),AZ58,0)) -> 0 | BW58: =+IF($K58="Ongoing",BA58,IF(RIGHT($K58,2)=RIGHT(BW$39,2),SUM($AV58:BA58),0)+IF(RIGHT(BW$39,2)>RIGHT($K58,2),BA58,0)) -> 0 | BX58: =+IF($K58="Ongoing",BB58,IF(RIGHT($K58,2)=RIGHT(BX$39,2),SUM($AV58:BB58),0)+IF(RIGHT(BX$39,2)>RIGHT($K58,2),BB58,0)) -> 0 | BY58: =+IF($K58="Ongoing",BC58,IF(RIGHT($K58,2)=RIGHT(BY$39,2),SUM($AV58:BC58),0)+IF(RIGHT(BY$39,2)>RIGHT($K58,2),BC58,0)) -> 0 | BZ58: =+IF($K58="Ongoing",BD58,IF(RIGHT($K58,2)=RIGHT(BZ$39,2),SUM($AV58:BD58),0)+IF(RIGHT(BZ$39,2)>RIGHT($K58,2),BD58,0)) -> 0 | CA58: =+IF($K58="Ongoing",BE58,IF(RIGHT($K58,2)=RIGHT(CA$39,2),SUM($AV58:BE58),0)+IF(RIGHT(CA$39,2)>RIGHT($K58,2),BE58,0)) -> 0 | CC58: =+O58*KeyAssumptionsPriceControl_FO!X$15 -> 0.6954337256 | CD58: =+P58*KeyAssumptionsPriceControl_FO!Y$15 -> 0.1727276864 | CE58: =+Q58*KeyAssumptionsPriceControl_FO!Z$15 -> 0 | CF58: =+R58*KeyAssumptionsPriceControl_FO!AA$15 -> 0 | CG58: =+S58*KeyAssumptionsPriceControl_FO!AB$15 -> 0 | CH58: =+T58*KeyAssumptionsPriceControl_FO!AC$15 -> 0 | CI58: =+U58*KeyAssumptionsPriceControl_FO!AD$15 -> 0 | CJ58: =+V58*KeyAssumptionsPriceControl_FO!AE$15 -> 0 | CK58: =+W58*KeyAssumptionsPriceControl_FO!AF$15 -> 0 | CL58: =+X58*KeyAssumptionsPriceControl_FO!AG$15 -> 0 | CN58: 0.004346460785 | CO58: 0.00977246961 | CP58: 0.01085201765 | CQ58: 0.01085201765 | CR58: 0.01085201765 | CS58: 0.01085201765 | CT58: 0.01085201765 | CU58: 0.01085201765 | CV58: 0.01085201765 | CW58: 0.01085201765
C59: Business Transformation Project | E59: Recycled Water | F59: Improvements / Compliance | G59: Corporate | H59: Significant projects | J59: Straight line | K59: 2019-20 | L59: 80 | M59: 80 | O59: 0.02708958341 | P59: 0.006577076608 | Q59: 0 | R59: 0 | S59: 0 | T59: 0 | U59: 0 | V59: 0 | W59: 0 | X59: 0 | AK59: 0 | AL59: 0 | AM59: 0 | AN59: 0 | AO59: 0 | AP59: 0 | AQ59: 0 | AR59: 0 | AS59: 0 | AT59: 0 | AV59: 0.02708958341 | AW59: 0.006577076608 | AX59: 0 | AY59: 0 | AZ59: 0 | BA59: 0 | BB59: 0 | BC59: 0 | BD59: 0 | BE59: 0 | BG59: 0 | BH59: 0.0002104166251 | BI59: 0.0004208332502 | BJ59: 0.0004208332502 | BK59: 0.0004208332502 | BL59: 0.0004208332502 | BM59: 0.0004208332502 | BN59: 0.0004208332502 | BO59: 0.0004208332502 | BP59: 0.0004208332502 | BR59: =+IF($K59="Ongoing",AV59,IF(RIGHT($K59,2)=RIGHT(BR$39,2),SUM($AV59:AV59),0)+IF(RIGHT(BR$39,2)>RIGHT($K59,2),AV59,0)) -> 0 | BS59: =+IF($K59="Ongoing",AW59,IF(RIGHT($K59,2)=RIGHT(BS$39,2),SUM($AV59:AW59),0)+IF(RIGHT(BS$39,2)>RIGHT($K59,2),AW59,0)) -> 0.03366666002 | BT59: =+IF($K59="Ongoing",AX59,IF(RIGHT($K59,2)=RIGHT(BT$39,2),SUM($AV59:AX59),0)+IF(RIGHT(BT$39,2)>RIGHT($K59,2),AX59,0)) -> 0 | BU59: =+IF($K59="Ongoing",AY59,IF(RIGHT($K59,2)=RIGHT(BU$39,2),SUM($AV59:AY59),0)+IF(RIGHT(BU$39,2)>RIGHT($K59,2),AY59,0)) -> 0 | BV59: =+IF($K59="Ongoing",AZ59,IF(RIGHT($K59,2)=RIGHT(BV$39,2),SUM($AV59:AZ59),0)+IF(RIGHT(BV$39,2)>RIGHT($K59,2),AZ59,0)) -> 0 | BW59: =+IF($K59="Ongoing",BA59,IF(RIGHT($K59,2)=RIGHT(BW$39,2),SUM($AV59:BA59),0)+IF(RIGHT(BW$39,2)>RIGHT($K59,2),BA59,0)) -> 0 | BX59: =+IF($K59="Ongoing",BB59,IF(RIGHT($K59,2)=RIGHT(BX$39,2),SUM($AV59:BB59),0)+IF(RIGHT(BX$39,2)>RIGHT($K59,2),BB59,0)) -> 0 | BY59: =+IF($K59="Ongoing",BC59,IF(RIGHT($K59,2)=RIGHT(BY$39,2),SUM($AV59:BC59),0)+IF(RIGHT(BY$39,2)>RIGHT($K59,2),BC59,0)) -> 0 | BZ59: =+IF($K59="Ongoing",BD59,IF(RIGHT($K59,2)=RIGHT(BZ$39,2),SUM($AV59:BD59),0)+IF(RIGHT(BZ$39,2)>RIGHT($K59,2),BD59,0)) -> 0 | CA59: =+IF($K59="Ongoing",BE59,IF(RIGHT($K59,2)=RIGHT(CA$39,2),SUM($AV59:BE59),0)+IF(RIGHT(CA$39,2)>RIGHT($K59,2),BE59,0)) -> 0 | CC59: =+O59*KeyAssumptionsPriceControl_FO!X$15 -> 0.02771264383 | CD59: =+P59*KeyAssumptionsPriceControl_FO!Y$15 -> 0.006883101405 | CE59: =+Q59*KeyAssumptionsPriceControl_FO!Z$15 -> 0 | CF59: =+R59*KeyAssumptionsPriceControl_FO!AA$15 -> 0 | CG59: =+S59*KeyAssumptionsPriceControl_FO!AB$15 -> 0 | CH59: =+T59*KeyAssumptionsPriceControl_FO!AC$15 -> 0 | CI59: =+U59*KeyAssumptionsPriceControl_FO!AD$15 -> 0 | CJ59: =+V59*KeyAssumptionsPriceControl_FO!AE$15 -> 0 | CK59: =+W59*KeyAssumptionsPriceControl_FO!AF$15 -> 0 | CL59: =+X59*KeyAssumptionsPriceControl_FO!AG$15 -> 0 | CN59: 0.0001732040239 | CO59: 0.0003894274316 | CP59: 0.0004324468154 | CQ59: 0.0004324468154 | CR59: 0.0004324468154 | CS59: 0.0004324468154 | CT59: 0.0004324468154 | CU59: 0.0004324468154 | CV59: 0.0004324468154 | CW59: 0.0004324468154
C60: IBWPP Civil, Mech & Electrical Works | E60: Water | F60: Renewals | G60: Treatment | H60: Capital Programs / Allocation | J60: Straight line | K60: Ongoing | L60: 15 | M60: 15 | O60: 0.15 | P60: 0.15 | Q60: 0.15 | R60: 0.15 | S60: 0.15 | T60: 0.171686747 | U60: 0.2213523132 | V60: 0.1663339383 | W60: 0.1653452685 | X60: 0.1628663331 | AK60: 0 | AL60: 0 | AM60: 0 | AN60: 0 | AO60: 0 | AP60: 0 | AQ60: 0 | AR60: 0 | AS60: 0 | AT60: 0 | AV60: 0.15 | AW60: 0.15 | AX60: 0.15 | AY60: 0.15 | AZ60: 0.15 | BA60: 0.171686747 | BB60: 0.2213523132 | BC60: 0.1663339383 | BD60: 0.1653452685 | BE60: 0.1628663331 | BG60: 0.005 | BH60: 0.015 | BI60: 0.025 | BJ60: 0.035 | BK60: 0.045 | BL60: 0.05572289157 | BM60: 0.06882419357 | BN60: 0.08174706862 | BO60: 0.09280304218 | BP60: 0.1037434289 | BR60: =+IF($K60="Ongoing",AV60,IF(RIGHT($K60,2)=RIGHT(BR$39,2),SUM($AV60:AV60),0)+IF(RIGHT(BR$39,2)>RIGHT($K60,2),AV60,0)) -> 0.15 | BS60: =+IF($K60="Ongoing",AW60,IF(RIGHT($K60,2)=RIGHT(BS$39,2),SUM($AV60:AW60),0)+IF(RIGHT(BS$39,2)>RIGHT($K60,2),AW60,0)) -> 0.15 | BT60: =+IF($K60="Ongoing",AX60,IF(RIGHT($K60,2)=RIGHT(BT$39,2),SUM($AV60:AX60),0)+IF(RIGHT(BT$39,2)>RIGHT($K60,2),AX60,0)) -> 0.15 | BU60: =+IF($K60="Ongoing",AY60,IF(RIGHT($K60,2)=RIGHT(BU$39,2),SUM($AV60:AY60),0)+IF(RIGHT(BU$39,2)>RIGHT($K60,2),AY60,0)) -> 0.15 | BV60: =+IF($K60="Ongoing",AZ60,IF(RIGHT($K60,2)=RIGHT(BV$39,2),SUM($AV60:AZ60),0)+IF(RIGHT(BV$39,2)>RIGHT($K60,2),AZ60,0)) -> 0.15 | BW60: =+IF($K60="Ongoing",BA60,IF(RIGHT($K60,2)=RIGHT(BW$39,2),SUM($AV60:BA60),0)+IF(RIGHT(BW$39,2)>RIGHT($K60,2),BA60,0)) -> 0.171686747 | BX60: =+IF($K60="Ongoing",BB60,IF(RIGHT($K60,2)=RIGHT(BX$39,2),SUM($AV60:BB60),0)+IF(RIGHT(BX$39,2)>RIGHT($K60,2),BB60,0)) -> 0.2213523132 | BY60: =+IF($K60="Ongoing",BC60,IF(RIGHT($K60,2)=RIGHT(BY$39,2),SUM($AV60:BC60),0)+IF(RIGHT(BY$39,2)>RIGHT($K60,2),BC60,0)) -> 0.1663339383 | BZ60: =+IF($K60="Ongoing",BD60,IF(RIGHT($K60,2)=RIGHT(BZ$39,2),SUM($AV60:BD60),0)+IF(RIGHT(BZ$39,2)>RIGHT($K60,2),BD60,0)) -> 0.1653452685 | CA60: =+IF($K60="Ongoing",BE60,IF(RIGHT($K60,2)=RIGHT(CA$39,2),SUM($AV60:BE60),0)+IF(RIGHT(CA$39,2)>RIGHT($K60,2),BE60,0)) -> 0.1628663331 | CC60: =+O60*KeyAssumptionsPriceControl_FO!X$15 -> 0.15345 | CD60: =+P60*KeyAssumptionsPriceControl_FO!Y$15 -> 0.15697935 | CE60: =+Q60*KeyAssumptionsPriceControl_FO!Z$15 -> 0.160589875 | CF60: =+R60*KeyAssumptionsPriceControl_FO!AA$15 -> 0.1642834422 | CG60: =+S60*KeyAssumptionsPriceControl_FO!AB$15 -> 0.1680619613 | CH60: =+T60*KeyAssumptionsPriceControl_FO!AC$15 -> 0.196784358 | CI60: =+U60*KeyAssumptionsPriceControl_FO!AD$15 -> 0.2595454984 | CJ60: =+V60*KeyAssumptionsPriceControl_FO!AE$15 -> 0.1995197721 | CK60: =+W60*KeyAssumptionsPriceControl_FO!AF$15 -> 0.2028955282 | CL60: =+X60*KeyAssumptionsPriceControl_FO!AG$15 -> 0.2044502545 | CN60: 0.005115 | CO60: 0.015462645 | CP60: 0.02604828583 | CQ60: 0.03687739641 | CR60: 0.04795557653 | CS60: 0.0601171205 | CT60: 0.07532811572 | CU60: 0.0906302914 | CV60: 0.1040441347 | CW60: 0.1176223275
C61: Zone Metering and Pressure Management Program | E61: Water | F61: Improvements / Compliance | G61: Treatment | H61: Capital Programs / Allocation | J61: Straight line | K61: Ongoing | L61: 15 | M61: 15 | O61: 0.132 | P61: 0.132 | Q61: 0.132 | R61: 0.132 | S61: 0.386 | T61: 0.1144578313 | U61: 0.1106761566 | V61: 0.1108892922 | W61: 0.110230179 | X61: 0.1085775554 | AK61: 0 | AL61: 0 | AM61: 0 | AN61: 0 | AO61: 0 | AP61: 0 | AQ61: 0 | AR61: 0 | AS61: 0 | AT61: 0 | AV61: 0.132 | AW61: 0.132 | AX61: 0.132 | AY61: 0.132 | AZ61: 0.386 | BA61: 0.1144578313 | BB61: 0.1106761566 | BC61: 0.1108892922 | BD61: 0.110230179 | BE61: 0.1085775554 | BG61: 0.0044 | BH61: 0.0132 | BI61: 0.022 | BJ61: 0.0308 | BK61: 0.04806666667 | BL61: 0.06474859438 | BM61: 0.07225306064 | BN61: 0.0796385756 | BO61: 0.08700922464 | BP61: 0.09430281579 | BR61: =+IF($K61="Ongoing",AV61,IF(RIGHT($K61,2)=RIGHT(BR$39,2),SUM($AV61:AV61),0)+IF(RIGHT(BR$39,2)>RIGHT($K61,2),AV61,0)) -> 0.132 | BS61: =+IF($K61="Ongoing",AW61,IF(RIGHT($K61,2)=RIGHT(BS$39,2),SUM($AV61:AW61),0)+IF(RIGHT(BS$39,2)>RIGHT($K61,2),AW61,0)) -> 0.132 | BT61: =+IF($K61="Ongoing",AX61,IF(RIGHT($K61,2)=RIGHT(BT$39,2),SUM($AV61:AX61),0)+IF(RIGHT(BT$39,2)>RIGHT($K61,2),AX61,0)) -> 0.132 | BU61: =+IF($K61="Ongoing",AY61,IF(RIGHT($K61,2)=RIGHT(BU$39,2),SUM($AV61:AY61),0)+IF(RIGHT(BU$39,2)>RIGHT($K61,2),AY61,0)) -> 0.132 | BV61: =+IF($K61="Ongoing",AZ61,IF(RIGHT($K61,2)=RIGHT(BV$39,2),SUM($AV61:AZ61),0)+IF(RIGHT(BV$39,2)>RIGHT($K61,2),AZ61,0)) -> 0.386 | BW61: =+IF($K61="Ongoing",BA61,IF(RIGHT($K61,2)=RIGHT(BW$39,2),SUM($AV61:BA61),0)+IF(RIGHT(BW$39,2)>RIGHT($K61,2),BA61,0)) -> 0.1144578313 | BX61: =+IF($K61="Ongoing",BB61,IF(RIGHT($K61,2)=RIGHT(BX$39,2),SUM($AV61:BB61),0)+IF(RIGHT(BX$39,2)>RIGHT($K61,2),BB61,0)) -> 0.1106761566 | BY61: =+IF($K61="Ongoing",BC61,IF(RIGHT($K61,2)=RIGHT(BY$39,2),SUM($AV61:BC61),0)+IF(RIGHT(BY$39,2)>RIGHT($K61,2),BC61,0)) -> 0.1108892922 | BZ61: =+IF($K61="Ongoing",BD61,IF(RIGHT($K61,2)=RIGHT(BZ$39,2),SUM($AV61:BD61),0)+IF(RIGHT(BZ$39,2)>RIGHT($K61,2),BD61,0)) -> 0.110230179 | CA61: =+IF($K61="Ongoing",BE61,IF(RIGHT($K61,2)=RIGHT(CA$39,2),SUM($AV61:BE61),0)+IF(RIGHT(CA$39,2)>RIGHT($K61,2),BE61,0)) -> 0.1085775554 | CC61: =+O61*KeyAssumptionsPriceControl_FO!X$15 -> 0.135036 | CD61: =+P61*KeyAssumptionsPriceControl_FO!Y$15 -> 0.138141828 | CE61: =+Q61*KeyAssumptionsPriceControl_FO!Z$15 -> 0.14131909 | CF61: =+R61*KeyAssumptionsPriceControl_FO!AA$15 -> 0.1445694291 | CG61: =+S61*KeyAssumptionsPriceControl_FO!AB$15 -> 0.4324794472 | CH61: =+T61*KeyAssumptionsPriceControl_FO!AC$15 -> 0.131189572 | CI61: =+U61*KeyAssumptionsPriceControl_FO!AD$15 -> 0.1297727492 | CJ61: =+V61*KeyAssumptionsPriceControl_FO!AE$15 -> 0.1330131814 | CK61: =+W61*KeyAssumptionsPriceControl_FO!AF$15 -> 0.1352636854 | CL61: =+X61*KeyAssumptionsPriceControl_FO!AG$15 -> 0.1363001697 | CN61: 0.0045012 | CO61: 0.0136071276 | CP61: 0.02292249153 | CQ61: 0.03245210884 | CR61: 0.05168707138 | CS61: 0.07047603869 | CT61: 0.07917478273 | CU61: 0.08793431375 | CV61: 0.09687687598 | CW61: 0.1059290045
C62: Cowes WWTP Civil, Mech & Electrical Works | E62: Sewerage | F62: Renewals | G62: Treatment | H62: Other Capital expenditure | J62: Straight line | K62: Ongoing | L62: 15 | M62: 15 | O62: 0.1 | P62: 0.1 | Q62: 0.125 | R62: 0.125 | S62: 0.15 | T62: 0.171686747 | U62: 0.1660142349 | V62: 0.1663339383 | W62: 0.1653452685 | X62: 0.1628663331 | AK62: 0 | AL62: 0 | AM62: 0 | AN62: 0 | AO62: 0 | AP62: 0 | AQ62: 0 | AR62: 0 | AS62: 0 | AT62: 0 | AV62: 0.1 | AW62: 0.1 | AX62: 0.125 | AY62: 0.125 | AZ62: 0.15 | BA62: 0.171686747 | BB62: 0.1660142349 | BC62: 0.1663339383 | BD62: 0.1653452685 | BE62: 0.1628663331 | BG62: 0.003333333333 | BH62: 0.01 | BI62: 0.0175 | BJ62: 0.02583333333 | BK62: 0.035 | BL62: 0.04572289157 | BM62: 0.05697959096 | BN62: 0.0680578634 | BO62: 0.07911383696 | BP62: 0.09005422368 | BR62: =+IF($K62="Ongoing",AV62,IF(RIGHT($K62,2)=RIGHT(BR$39,2),SUM($AV62:AV62),0)+IF(RIGHT(BR$39,2)>RIGHT($K62,2),AV62,0)) -> 0.1 | BS62: =+IF($K62="Ongoing",AW62,IF(RIGHT($K62,2)=RIGHT(BS$39,2),SUM($AV62:AW62),0)+IF(RIGHT(BS$39,2)>RIGHT($K62,2),AW62,0)) -> 0.1 | BT62: =+IF($K62="Ongoing",AX62,IF(RIGHT($K62,2)=RIGHT(BT$39,2),SUM($AV62:AX62),0)+IF(RIGHT(BT$39,2)>RIGHT($K62,2),AX62,0)) -> 0.125 | BU62: =+IF($K62="Ongoing",AY62,IF(RIGHT($K62,2)=RIGHT(BU$39,2),SUM($AV62:AY62),0)+IF(RIGHT(BU$39,2)>RIGHT($K62,2),AY62,0)) -> 0.125 | BV62: =+IF($K62="Ongoing",AZ62,IF(RIGHT($K62,2)=RIGHT(BV$39,2),SUM($AV62:AZ62),0)+IF(RIGHT(BV$39,2)>RIGHT($K62,2),AZ62,0)) -> 0.15 | BW62: =+IF($K62="Ongoing",BA62,IF(RIGHT($K62,2)=RIGHT(BW$39,2),SUM($AV62:BA62),0)+IF(RIGHT(BW$39,2)>RIGHT($K62,2),BA62,0)) -> 0.171686747 | BX62: =+IF($K62="Ongoing",BB62,IF(RIGHT($K62,2)=RIGHT(BX$39,2),SUM($AV62:BB62),0)+IF(RIGHT(BX$39,2)>RIGHT($K62,2),BB62,0)) -> 0.1660142349 | BY62: =+IF($K62="Ongoing",BC62,IF(RIGHT($K62,2)=RIGHT(BY$39,2),SUM($AV62:BC62),0)+IF(RIGHT(BY$39,2)>RIGHT($K62,2),BC62,0)) -> 0.1663339383 | BZ62: =+IF($K62="Ongoing",BD62,IF(RIGHT($K62,2)=RIGHT(BZ$39,2),SUM($AV62:BD62),0)+IF(RIGHT(BZ$39,2)>RIGHT($K62,2),BD62,0)) -> 0.1653452685 | CA62: =+IF($K62="Ongoing",BE62,IF(RIGHT($K62,2)=RIGHT(CA$39,2),SUM($AV62:BE62),0)+IF(RIGHT(CA$39,2)>RIGHT($K62,2),BE62,0)) -> 0.1628663331 | CC62: =+O62*KeyAssumptionsPriceControl_FO!X$15 -> 0.1023 | CD62: =+P62*KeyAssumptionsPriceControl_FO!Y$15 -> 0.1046529 | CE62: =+Q62*KeyAssumptionsPriceControl_FO!Z$15 -> 0.1338248959 | CF62: =+R62*KeyAssumptionsPriceControl_FO!AA$15 -> 0.1369028685 | CG62: =+S62*KeyAssumptionsPriceControl_FO!AB$15 -> 0.1680619613 | CH62: =+T62*KeyAssumptionsPriceControl_FO!AC$15 -> 0.196784358 | CI62: =+U62*KeyAssumptionsPriceControl_FO!AD$15 -> 0.1946591238 | CJ62: =+V62*KeyAssumptionsPriceControl_FO!AE$15 -> 0.1995197721 | CK62: =+W62*KeyAssumptionsPriceControl_FO!AF$15 -> 0.2028955282 | CL62: =+X62*KeyAssumptionsPriceControl_FO!AG$15 -> 0.2044502545 | CN62: 0.00341 | CO62: 0.01030843 | CP62: 0.01825768986 | CQ62: 0.02728194867 | CR62: 0.037447443 | CS62: 0.04960898698 | CT62: 0.06265710304 | CU62: 0.07579639957 | CV62: 0.08921024291 | CW62: 0.1027884357
C63: SPS Civil, Mech & Electrical Works | E63: Sewerage | F63: Renewals | G63: Treatment | H63: Other Capital expenditure | J63: Straight line | K63: Ongoing | L63: 15 | M63: 15 | O63: 0.1 | P63: 0.1 | Q63: 0.15 | R63: 0.1 | S63: 0.15 | T63: 0.1144578313 | U63: 0.1106761566 | V63: 0.1663339383 | W63: 0.1653452685 | X63: 0.1628663331 | AK63: 0 | AL63: 0 | AM63: 0 | AN63: 0 | AO63: 0 | AP63: 0 | AQ63: 0 | AR63: 0 | AS63: 0 | AT63: 0 | AV63: 0.1 | AW63: 0.1 | AX63: 0.15 | AY63: 0.1 | AZ63: 0.15 | BA63: 0.1144578313 | BB63: 0.1106761566 | BC63: 0.1663339383 | BD63: 0.1653452685 | BE63: 0.1628663331 | BG63: 0.003333333333 | BH63: 0.01 | BI63: 0.01833333333 | BJ63: 0.02666666667 | BK63: 0.035 | BL63: 0.04381526104 | BM63: 0.05131972731 | BN63: 0.06055339714 | BO63: 0.0716093707 | BP63: 0.08254975742 | BR63: =+IF($K63="Ongoing",AV63,IF(RIGHT($K63,2)=RIGHT(BR$39,2),SUM($AV63:AV63),0)+IF(RIGHT(BR$39,2)>RIGHT($K63,2),AV63,0)) -> 0.1 | BS63: =+IF($K63="Ongoing",AW63,IF(RIGHT($K63,2)=RIGHT(BS$39,2),SUM($AV63:AW63),0)+IF(RIGHT(BS$39,2)>RIGHT($K63,2),AW63,0)) -> 0.1 | BT63: =+IF($K63="Ongoing",AX63,IF(RIGHT($K63,2)=RIGHT(BT$39,2),SUM($AV63:AX63),0)+IF(RIGHT(BT$39,2)>RIGHT($K63,2),AX63,0)) -> 0.15 | BU63: =+IF($K63="Ongoing",AY63,IF(RIGHT($K63,2)=RIGHT(BU$39,2),SUM($AV63:AY63),0)+IF(RIGHT(BU$39,2)>RIGHT($K63,2),AY63,0)) -> 0.1 | BV63: =+IF($K63="Ongoing",AZ63,IF(RIGHT($K63,2)=RIGHT(BV$39,2),SUM($AV63:AZ63),0)+IF(RIGHT(BV$39,2)>RIGHT($K63,2),AZ63,0)) -> 0.15 | BW63: =+IF($K63="Ongoing",BA63,IF(RIGHT($K63,2)=RIGHT(BW$39,2),SUM($AV63:BA63),0)+IF(RIGHT(BW$39,2)>RIGHT($K63,2),BA63,0)) -> 0.1144578313 | BX63: =+IF($K63="Ongoing",BB63,IF(RIGHT($K63,2)=RIGHT(BX$39,2),SUM($AV63:BB63),0)+IF(RIGHT(BX$39,2)>RIGHT($K63,2),BB63,0)) -> 0.1106761566 | BY63: =+IF($K63="Ongoing",BC63,IF(RIGHT($K63,2)=RIGHT(BY$39,2),SUM($AV63:BC63),0)+IF(RIGHT(BY$39,2)>RIGHT($K63,2),BC63,0)) -> 0.1663339383 | BZ63: =+IF($K63="Ongoing",BD63,IF(RIGHT($K63,2)=RIGHT(BZ$39,2),SUM($AV63:BD63),0)+IF(RIGHT(BZ$39,2)>RIGHT($K63,2),BD63,0)) -> 0.1653452685 | CA63: =+IF($K63="Ongoing",BE63,IF(RIGHT($K63,2)=RIGHT(CA$39,2),SUM($AV63:BE63),0)+IF(RIGHT(CA$39,2)>RIGHT($K63,2),BE63,0)) -> 0.1628663331 | CC63: =+O63*KeyAssumptionsPriceControl_FO!X$15 -> 0.1023 | CD63: =+P63*KeyAssumptionsPriceControl_FO!Y$15 -> 0.1046529 | CE63: =+Q63*KeyAssumptionsPriceControl_FO!Z$15 -> 0.160589875 | CF63: =+R63*KeyAssumptionsPriceControl_FO!AA$15 -> 0.1095222948 | CG63: =+S63*KeyAssumptionsPriceControl_FO!AB$15 -> 0.1680619613 | CH63: =+T63*KeyAssumptionsPriceControl_FO!AC$15 -> 0.131189572 | CI63: =+U63*KeyAssumptionsPriceControl_FO!AD$15 -> 0.1297727492 | CJ63: =+V63*KeyAssumptionsPriceControl_FO!AE$15 -> 0.1995197721 | CK63: =+W63*KeyAssumptionsPriceControl_FO!AF$15 -> 0.2028955282 | CL63: =+X63*KeyAssumptionsPriceControl_FO!AG$15 -> 0.2044502545 | CN63: 0.00341 | CO63: 0.01030843 | CP63: 0.01914985583 | CQ63: 0.02815359483 | CR63: 0.03740640337 | CS63: 0.04738145448 | CT63: 0.05608019852 | CU63: 0.0670566159 | CV63: 0.08047045924 | CW63: 0.09404865199
C64: Sewer Main Renewals | E64: Sewerage | F64: Renewals | G64: Pipelines/network | H64: Other Capital expenditure | J64: Straight line | K64: Ongoing | L64: 80 | M64: 80 | O64: 0.055 | P64: 0.055 | Q64: 0.055 | R64: 0.11 | S64: 0.11 | T64: 0.171686747 | U64: 0.1660142349 | V64: 0.1108892922 | W64: 0.110230179 | X64: 0.1085775554 | AK64: 0 | AL64: 0 | AM64: 0 | AN64: 0 | AO64: 0 | AP64: 0 | AQ64: 0 | AR64: 0 | AS64: 0 | AT64: 0 | AV64: 0.055 | AW64: 0.055 | AX64: 0.055 | AY64: 0.11 | AZ64: 0.11 | BA64: 0.171686747 | BB64: 0.1660142349 | BC64: 0.1108892922 | BD64: 0.110230179 | BE64: 0.1085775554 | BG64: 0.00034375 | BH64: 0.00103125 | BI64: 0.00171875 | BJ64: 0.00275 | BK64: 0.004125 | BL64: 0.005885542169 | BM64: 0.007996173305 | BN64: 0.00972682035 | BO64: 0.01110881704 | BP64: 0.01247636538 | BR64: =+IF($K64="Ongoing",AV64,IF(RIGHT($K64,2)=RIGHT(BR$39,2),SUM($AV64:AV64),0)+IF(RIGHT(BR$39,2)>RIGHT($K64,2),AV64,0)) -> 0.055 | BS64: =+IF($K64="Ongoing",AW64,IF(RIGHT($K64,2)=RIGHT(BS$39,2),SUM($AV64:AW64),0)+IF(RIGHT(BS$39,2)>RIGHT($K64,2),AW64,0)) -> 0.055 | BT64: =+IF($K64="Ongoing",AX64,IF(RIGHT($K64,2)=RIGHT(BT$39,2),SUM($AV64:AX64),0)+IF(RIGHT(BT$39,2)>RIGHT($K64,2),AX64,0)) -> 0.055 | BU64: =+IF($K64="Ongoing",AY64,IF(RIGHT($K64,2)=RIGHT(BU$39,2),SUM($AV64:AY64),0)+IF(RIGHT(BU$39,2)>RIGHT($K64,2),AY64,0)) -> 0.11 | BV64: =+IF($K64="Ongoing",AZ64,IF(RIGHT($K64,2)=RIGHT(BV$39,2),SUM($AV64:AZ64),0)+IF(RIGHT(BV$39,2)>RIGHT($K64,2),AZ64,0)) -> 0.11 | BW64: =+IF($K64="Ongoing",BA64,IF(RIGHT($K64,2)=RIGHT(BW$39,2),SUM($AV64:BA64),0)+IF(RIGHT(BW$39,2)>RIGHT($K64,2),BA64,0)) -> 0.171686747 | BX64: =+IF($K64="Ongoing",BB64,IF(RIGHT($K64,2)=RIGHT(BX$39,2),SUM($AV64:BB64),0)+IF(RIGHT(BX$39,2)>RIGHT($K64,2),BB64,0)) -> 0.1660142349 | BY64: =+IF($K64="Ongoing",BC64,IF(RIGHT($K64,2)=RIGHT(BY$39,2),SUM($AV64:BC64),0)+IF(RIGHT(BY$39,2)>RIGHT($K64,2),BC64,0)) -> 0.1108892922 | BZ64: =+IF($K64="Ongoing",BD64,IF(RIGHT($K64,2)=RIGHT(BZ$39,2),SUM($AV64:BD64),0)+IF(RIGHT(BZ$39,2)>RIGHT($K64,2),BD64,0)) -> 0.110230179 | CA64: =+IF($K64="Ongoing",BE64,IF(RIGHT($K64,2)=RIGHT(CA$39,2),SUM($AV64:BE64),0)+IF(RIGHT(CA$39,2)>RIGHT($K64,2),BE64,0)) -> 0.1085775554 | CC64: =+O64*KeyAssumptionsPriceControl_FO!X$15 -> 0.056265 | CD64: =+P64*KeyAssumptionsPriceControl_FO!Y$15 -> 0.057559095 | CE64: =+Q64*KeyAssumptionsPriceControl_FO!Z$15 -> 0.05888295418 | CF64: =+R64*KeyAssumptionsPriceControl_FO!AA$15 -> 0.1204745243 | CG64: =+S64*KeyAssumptionsPriceControl_FO!AB$15 -> 0.1232454383 | CH64: =+T64*KeyAssumptionsPriceControl_FO!AC$15 -> 0.196784358 | CI64: =+U64*KeyAssumptionsPriceControl_FO!AD$15 -> 0.1946591238 | CJ64: =+V64*KeyAssumptionsPriceControl_FO!AE$15 -> 0.1330131814 | CK64: =+W64*KeyAssumptionsPriceControl_FO!AF$15 -> 0.1352636854 | CL64: =+X64*KeyAssumptionsPriceControl_FO!AG$15 -> 0.1363001697 | CN64: 0.00035165625 | CO64: 0.001063056844 | CP64: 0.001790819651 | CQ64: 0.002911803891 | CR64: 0.004435053658 | CS64: 0.006435239885 | CT64: 0.008881761646 | CU64: 0.01092971355 | CV64: 0.01260644397 | CW64: 0.01430371807
C65: Water Meter Renewal Program | E65: Water | F65: Renewals | G65: Treatment | H65: Other Capital expenditure | J65: Straight line | K65: Ongoing | L65: 15 | M65: 15 | O65: 0.045 | P65: 0.045 | Q65: 0.045 | R65: 0.045 | S65: 0.045 | T65: 0.05722891566 | U65: 0.05533807829 | V65: 0.0554446461 | W65: 0.2755754476 | X65: 0.2714438885 | AK65: 0 | AL65: 0 | AM65: 0 | AN65: 0 | AO65: 0 | AP65: 0 | AQ65: 0 | AR65: 0 | AS65: 0 | AT65: 0 | AV65: 0.045 | AW65: 0.045 | AX65: 0.045 | AY65: 0.045 | AZ65: 0.045 | BA65: 0.05722891566 | BB65: 0.05533807829 | BC65: 0.0554446461 | BD65: 0.2755754476 | BE65: 0.2714438885 | BG65: 0.0015 | BH65: 0.0045 | BI65: 0.0075 | BJ65: 0.0105 | BK65: 0.0135 | BL65: 0.01690763052 | BM65: 0.02065986365 | BN65: 0.02435262113 | BO65: 0.03538662426 | BP65: 0.05362060212 | BR65: =+IF($K65="Ongoing",AV65,IF(RIGHT($K65,2)=RIGHT(BR$39,2),SUM($AV65:AV65),0)+IF(RIGHT(BR$39,2)>RIGHT($K65,2),AV65,0)) -> 0.045 | BS65: =+IF($K65="Ongoing",AW65,IF(RIGHT($K65,2)=RIGHT(BS$39,2),SUM($AV65:AW65),0)+IF(RIGHT(BS$39,2)>RIGHT($K65,2),AW65,0)) -> 0.045 | BT65: =+IF($K65="Ongoing",AX65,IF(RIGHT($K65,2)=RIGHT(BT$39,2),SUM($AV65:AX65),0)+IF(RIGHT(BT$39,2)>RIGHT($K65,2),AX65,0)) -> 0.045 | BU65: =+IF($K65="Ongoing",AY65,IF(RIGHT($K65,2)=RIGHT(BU$39,2),SUM($AV65:AY65),0)+IF(RIGHT(BU$39,2)>RIGHT($K65,2),AY65,0)) -> 0.045 | BV65: =+IF($K65="Ongoing",AZ65,IF(RIGHT($K65,2)=RIGHT(BV$39,2),SUM($AV65:AZ65),0)+IF(RIGHT(BV$39,2)>RIGHT($K65,2),AZ65,0)) -> 0.045 | BW65: =+IF($K65="Ongoing",BA65,IF(RIGHT($K65,2)=RIGHT(BW$39,2),SUM($AV65:BA65),0)+IF(RIGHT(BW$39,2)>RIGHT($K65,2),BA65,0)) -> 0.05722891566 | BX65: =+IF($K65="Ongoing",BB65,IF(RIGHT($K65,2)=RIGHT(BX$39,2),SUM($AV65:BB65),0)+IF(RIGHT(BX$39,2)>RIGHT($K65,2),BB65,0)) -> 0.05533807829 | BY65: =+IF($K65="Ongoing",BC65,IF(RIGHT($K65,2)=RIGHT(BY$39,2),SUM($AV65:BC65),0)+IF(RIGHT(BY$39,2)>RIGHT($K65,2),BC65,0)) -> 0.0554446461 | BZ65: =+IF($K65="Ongoing",BD65,IF(RIGHT($K65,2)=RIGHT(BZ$39,2),SUM($AV65:BD65),0)+IF(RIGHT(BZ$39,2)>RIGHT($K65,2),BD65,0)) -> 0.2755754476 | CA65: =+IF($K65="Ongoing",BE65,IF(RIGHT($K65,2)=RIGHT(CA$39,2),SUM($AV65:BE65),0)+IF(RIGHT(CA$39,2)>RIGHT($K65,2),BE65,0)) -> 0.2714438885 | CC65: =+O65*KeyAssumptionsPriceControl_FO!X$15 -> 0.046035 | CD65: =+P65*KeyAssumptionsPriceControl_FO!Y$15 -> 0.047093805 | CE65: =+Q65*KeyAssumptionsPriceControl_FO!Z$15 -> 0.04817696251 | CF65: =+R65*KeyAssumptionsPriceControl_FO!AA$15 -> 0.04928503265 | CG65: =+S65*KeyAssumptionsPriceControl_FO!AB$15 -> 0.0504185884 | CH65: =+T65*KeyAssumptionsPriceControl_FO!AC$15 -> 0.065594786 | CI65: =+U65*KeyAssumptionsPriceControl_FO!AD$15 -> 0.06488637459 | CJ65: =+V65*KeyAssumptionsPriceControl_FO!AE$15 -> 0.06650659071 | CK65: =+W65*KeyAssumptionsPriceControl_FO!AF$15 -> 0.3381592136 | CL65: =+X65*KeyAssumptionsPriceControl_FO!AG$15 -> 0.3407504242 | CN65: 0.0015345 | CO65: 0.0046387935 | CP65: 0.00781448575 | CQ65: 0.01106321892 | CR65: 0.01438667296 | CS65: 0.01825378544 | CT65: 0.02260315746 | CU65: 0.02698292297 | CV65: 0.04047178311 | CW65: 0.06310210437
C66: Emissions Reduction Pledge Implementation | E66: Water | F66: Improvements / Compliance | G66: Corporate | H66: Other Capital expenditure | J66: Straight line | K66: Ongoing | L66: 15 | M66: 15 | O66: 0.03359464666 | P66: 0.02111663504 | Q66: 0.01583747628 | R66: 0.08446654016 | S66: 0.04223327008 | T66: 0.02746550286 | U66: 0.03186965463 | V66: 0.07982756977 | W66: 0.02116082237 | X66: 0.05210892298 | AK66: 0 | AL66: 0 | AM66: 0 | AN66: 0 | AO66: 0 | AP66: 0 | AQ66: 0 | AR66: 0 | AS66: 0 | AT66: 0 | AV66: 0.03359464666 | AW66: 0.02111663504 | AX66: 0.01583747628 | AY66: 0.08446654016 | AZ66: 0.04223327008 | BA66: 0.02746550286 | BB66: 0.03186965463 | BC66: 0.07982756977 | BD66: 0.02116082237 | BE66: 0.05210892298 | BG66: 0.001119821555 | BH66: 0.002943530945 | BI66: 0.004175334656 | BJ66: 0.007518801871 | BK66: 0.01174212888 | BL66: 0.01406542131 | BM66: 0.01604325989 | BN66: 0.01976650071 | BO66: 0.02313278044 | BP66: 0.02557510529 | BR66: =+IF($K66="Ongoing",AV66,IF(RIGHT($K66,2)=RIGHT(BR$39,2),SUM($AV66:AV66),0)+IF(RIGHT(BR$39,2)>RIGHT($K66,2),AV66,0)) -> 0.03359464666 | BS66: =+IF($K66="Ongoing",AW66,IF(RIGHT($K66,2)=RIGHT(BS$39,2),SUM($AV66:AW66),0)+IF(RIGHT(BS$39,2)>RIGHT($K66,2),AW66,0)) -> 0.02111663504 | BT66: =+IF($K66="Ongoing",AX66,IF(RIGHT($K66,2)=RIGHT(BT$39,2),SUM($AV66:AX66),0)+IF(RIGHT(BT$39,2)>RIGHT($K66,2),AX66,0)) -> 0.01583747628 | BU66: =+IF($K66="Ongoing",AY66,IF(RIGHT($K66,2)=RIGHT(BU$39,2),SUM($AV66:AY66),0)+IF(RIGHT(BU$39,2)>RIGHT($K66,2),AY66,0)) -> 0.08446654016 | BV66: =+IF($K66="Ongoing",AZ66,IF(RIGHT($K66,2)=RIGHT(BV$39,2),SUM($AV66:AZ66),0)+IF(RIGHT(BV$39,2)>RIGHT($K66,2),AZ66,0)) -> 0.04223327008 | BW66: =+IF($K66="Ongoing",BA66,IF(RIGHT($K66,2)=RIGHT(BW$39,2),SUM($AV66:BA66),0)+IF(RIGHT(BW$39,2)>RIGHT($K66,2),BA66,0)) -> 0.02746550286 | BX66: =+IF($K66="Ongoing",BB66,IF(RIGHT($K66,2)=RIGHT(BX$39,2),SUM($AV66:BB66),0)+IF(RIGHT(BX$39,2)>RIGHT($K66,2),BB66,0)) -> 0.03186965463 | BY66: =+IF($K66="Ongoing",BC66,IF(RIGHT($K66,2)=RIGHT(BY$39,2),SUM($AV66:BC66),0)+IF(RIGHT(BY$39,2)>RIGHT($K66,2),BC66,0)) -> 0.07982756977 | BZ66: =+IF($K66="Ongoing",BD66,IF(RIGHT($K66,2)=RIGHT(BZ$39,2),SUM($AV66:BD66),0)+IF(RIGHT(BZ$39,2)>RIGHT($K66,2),BD66,0)) -> 0.02116082237 | CA66: =+IF($K66="Ongoing",BE66,IF(RIGHT($K66,2)=RIGHT(CA$39,2),SUM($AV66:BE66),0)+IF(RIGHT(CA$39,2)>RIGHT($K66,2),BE66,0)) -> 0.05210892298 | CC66: =+O66*KeyAssumptionsPriceControl_FO!X$15 -> 0.03436732353 | CD66: =+P66*KeyAssumptionsPriceControl_FO!Y$15 -> 0.02209917095 | CE66: =+Q66*KeyAssumptionsPriceControl_FO!Z$15 -> 0.01695558891 | CF66: =+R66*KeyAssumptionsPriceControl_FO!AA$15 -> 0.09250969311 | CG66: =+S66*KeyAssumptionsPriceControl_FO!AB$15 -> 0.04731870803 | CH66: =+T66*KeyAssumptionsPriceControl_FO!AC$15 -> 0.03148048083 | CI66: =+U66*KeyAssumptionsPriceControl_FO!AD$15 -> 0.03736859704 | CJ66: =+V66*KeyAssumptionsPriceControl_FO!AE$15 -> 0.09575423208 | CK66: =+W66*KeyAssumptionsPriceControl_FO!AF$15 -> 0.02596648982 | CL66: =+X66*KeyAssumptionsPriceControl_FO!AG$15 -> 0.06541365771 | CN66: 0.001145577451 | CO66: 0.003027793934 | CP66: 0.004329619263 | CQ66: 0.007978461997 | CR66: 0.0126394087 | CS66: 0.01526604833 | CT66: 0.01756101759 | CU66: 0.02199844523 | CV66: 0.02605580263 | CW66: 0.02910180754
C67: Emissions Reduction Pledge Implementation | E67: Sewerage | F67: Improvements / Compliance | G67: Corporate | H67: Other Capital expenditure | J67: Straight line | K67: Ongoing | L67: 15 | M67: 15 | O67: 0.03501021588 | P67: 0.02200642141 | Q67: 0.01650481606 | R67: 0.08802568564 | S67: 0.04401284282 | T67: 0.02862280989 | U67: 0.0332125383 | V67: 0.08319124412 | W67: 0.02205247065 | X67: 0.05430462363 | AK67: 0 | AL67: 0 | AM67: 0 | AN67: 0 | AO67: 0 | AP67: 0 | AQ67: 0 | AR67: 0 | AS67: 0 | AT67: 0 | AV67: 0.03501021588 | AW67: 0.02200642141 | AX67: 0.01650481606 | AY67: 0.08802568564 | AZ67: 0.04401284282 | BA67: 0.02862280989 | BB67: 0.0332125383 | BC67: 0.08319124412 | BD67: 0.02205247065 | BE67: 0.05430462363 | BG67: 0.001167007196 | BH67: 0.003067561772 | BI67: 0.004351269688 | BJ67: 0.007835619745 | BK67: 0.01223690403 | BL67: 0.01465809245 | BM67: 0.01671927072 | BN67: 0.0205993968 | BO67: 0.02410752063 | BP67: 0.02665275711 | BR67: =+IF($K67="Ongoing",AV67,IF(RIGHT($K67,2)=RIGHT(BR$39,2),SUM($AV67:AV67),0)+IF(RIGHT(BR$39,2)>RIGHT($K67,2),AV67,0)) -> 0.03501021588 | BS67: =+IF($K67="Ongoing",AW67,IF(RIGHT($K67,2)=RIGHT(BS$39,2),SUM($AV67:AW67),0)+IF(RIGHT(BS$39,2)>RIGHT($K67,2),AW67,0)) -> 0.02200642141 | BT67: =+IF($K67="Ongoing",AX67,IF(RIGHT($K67,2)=RIGHT(BT$39,2),SUM($AV67:AX67),0)+IF(RIGHT(BT$39,2)>RIGHT($K67,2),AX67,0)) -> 0.01650481606 | BU67: =+IF($K67="Ongoing",AY67,IF(RIGHT($K67,2)=RIGHT(BU$39,2),SUM($AV67:AY67),0)+IF(RIGHT(BU$39,2)>RIGHT($K67,2),AY67,0)) -> 0.08802568564 | BV67: =+IF($K67="Ongoing",AZ67,IF(RIGHT($K67,2)=RIGHT(BV$39,2),SUM($AV67:AZ67),0)+IF(RIGHT(BV$39,2)>RIGHT($K67,2),AZ67,0)) -> 0.04401284282 | BW67: =+IF($K67="Ongoing",BA67,IF(RIGHT($K67,2)=RIGHT(BW$39,2),SUM($AV67:BA67),0)+IF(RIGHT(BW$39,2)>RIGHT($K67,2),BA67,0)) -> 0.02862280989 | BX67: =+IF($K67="Ongoing",BB67,IF(RIGHT($K67,2)=RIGHT(BX$39,2),SUM($AV67:BB67),0)+IF(RIGHT(BX$39,2)>RIGHT($K67,2),BB67,0)) -> 0.0332125383 | BY67: =+IF($K67="Ongoing",BC67,IF(RIGHT($K67,2)=RIGHT(BY$39,2),SUM($AV67:BC67),0)+IF(RIGHT(BY$39,2)>RIGHT($K67,2),BC67,0)) -> 0.08319124412 | BZ67: =+IF($K67="Ongoing",BD67,IF(RIGHT($K67,2)=RIGHT(BZ$39,2),SUM($AV67:BD67),0)+IF(RIGHT(BZ$39,2)>RIGHT($K67,2),BD67,0)) -> 0.02205247065 | CA67: =+IF($K67="Ongoing",BE67,IF(RIGHT($K67,2)=RIGHT(CA$39,2),SUM($AV67:BE67),0)+IF(RIGHT(CA$39,2)>RIGHT($K67,2),BE67,0)) -> 0.05430462363 | CC67: =+O67*KeyAssumptionsPriceControl_FO!X$15 -> 0.03581545085 | CD67: =+P67*KeyAssumptionsPriceControl_FO!Y$15 -> 0.02303035819 | CE67: =+Q67*KeyAssumptionsPriceControl_FO!Z$15 -> 0.01767004232 | CF67: =+R67*KeyAssumptionsPriceControl_FO!AA$15 -> 0.09640775092 | CG67: =+S67*KeyAssumptionsPriceControl_FO!AB$15 -> 0.04931256459 | CH67: =+T67*KeyAssumptionsPriceControl_FO!AC$15 -> 0.03280696598 | CI67: =+U67*KeyAssumptionsPriceControl_FO!AD$15 -> 0.03894318827 | CJ67: =+V67*KeyAssumptionsPriceControl_FO!AE$15 -> 0.09978900422 | CK67: =+W67*KeyAssumptionsPriceControl_FO!AF$15 -> 0.0270606333 | CL67: =+X67*KeyAssumptionsPriceControl_FO!AG$15 -> 0.06816997665 | CN67: 0.001193848362 | CO67: 0.00315537533 | CP67: 0.004512055347 | CQ67: 0.008314648455 | CR67: 0.01317199231 | CS67: 0.01590930999 | CT67: 0.0183009818 | CU67: 0.02292538822 | CV67: 0.02715370947 | CW67: 0.03032806313
C68: Emissions Reduction Pledge Implementation | E68: Recycled Water | F68: Improvements / Compliance | G68: Corporate | H68: Other Capital expenditure | J68: Straight line | K68: Ongoing | L68: 15 | M68: 15 | O68: 0.001395137462 | P68: 0.0008769435477 | Q68: 0.0006577076608 | R68: 0.003507774191 | S68: 0.001753887095 | T68: 0.001140602917 | U68: 0.001323501019 | V68: 0.003315124408 | W68: 0.0008787785842 | X68: 0.002164008787 | AK68: 0 | AL68: 0 | AM68: 0 | AN68: 0 | AO68: 0 | AP68: 0 | AQ68: 0 | AR68: 0 | AS68: 0 | AT68: 0 | AV68: 0.001395137462 | AW68: 0.0008769435477 | AX68: 0.0006577076608 | AY68: 0.003507774191 | AZ68: 0.001753887095 | BA68: 0.001140602917 | BB68: 0.001323501019 | BC68: 0.003315124408 | BD68: 0.0008787785842 | BE68: 0.002164008787 | BG68: 4.650458208e-05 | BH68: 0.0001222406157 | BI68: 0.000173395656 | BJ68: 0.0003122450511 | BK68: 0.0004876337606 | BL68: 0.000584116761 | BM68: 0.0006662535589 | BN68: 0.0008208744064 | BO68: 0.0009606711729 | BP68: 0.001062097419 | BR68: =+IF($K68="Ongoing",AV68,IF(RIGHT($K68,2)=RIGHT(BR$39,2),SUM($AV68:AV68),0)+IF(RIGHT(BR$39,2)>RIGHT($K68,2),AV68,0)) -> 0.001395137462 | BS68: =+IF($K68="Ongoing",AW68,IF(RIGHT($K68,2)=RIGHT(BS$39,2),SUM($AV68:AW68),0)+IF(RIGHT(BS$39,2)>RIGHT($K68,2),AW68,0)) -> 0.0008769435477 | BT68: =+IF($K68="Ongoing",AX68,IF(RIGHT($K68,2)=RIGHT(BT$39,2),SUM($AV68:AX68),0)+IF(RIGHT(BT$39,2)>RIGHT($K68,2),AX68,0)) -> 0.0006577076608 | BU68: =+IF($K68="Ongoing",AY68,IF(RIGHT($K68,2)=RIGHT(BU$39,2),SUM($AV68:AY68),0)+IF(RIGHT(BU$39,2)>RIGHT($K68,2),AY68,0)) -> 0.003507774191 | BV68: =+IF($K68="Ongoing",AZ68,IF(RIGHT($K68,2)=RIGHT(BV$39,2),SUM($AV68:AZ68),0)+IF(RIGHT(BV$39,2)>RIGHT($K68,2),AZ68,0)) -> 0.001753887095 | BW68: =+IF($K68="Ongoing",BA68,IF(RIGHT($K68,2)=RIGHT(BW$39,2),SUM($AV68:BA68),0)+IF(RIGHT(BW$39,2)>RIGHT($K68,2),BA68,0)) -> 0.001140602917 | BX68: =+IF($K68="Ongoing",BB68,IF(RIGHT($K68,2)=RIGHT(BX$39,2),SUM($AV68:BB68),0)+IF(RIGHT(BX$39,2)>RIGHT($K68,2),BB68,0)) -> 0.001323501019 | BY68: =+IF($K68="Ongoing",BC68,IF(RIGHT($K68,2)=RIGHT(BY$39,2),SUM($AV68:BC68),0)+IF(RIGHT(BY$39,2)>RIGHT($K68,2),BC68,0)) -> 0.003315124408 | BZ68: =+IF($K68="Ongoing",BD68,IF(RIGHT($K68,2)=RIGHT(BZ$39,2),SUM($AV68:BD68),0)+IF(RIGHT(BZ$39,2)>RIGHT($K68,2),BD68,0)) -> 0.0008787785842 | CA68: =+IF($K68="Ongoing",BE68,IF(RIGHT($K68,2)=RIGHT(CA$39,2),SUM($AV68:BE68),0)+IF(RIGHT(CA$39,2)>RIGHT($K68,2),BE68,0)) -> 0.002164008787 | CC68: =+O68*KeyAssumptionsPriceControl_FO!X$15 -> 0.001427225624 | CD68: =+P68*KeyAssumptionsPriceControl_FO!Y$15 -> 0.000917746854 | CE68: =+Q68*KeyAssumptionsPriceControl_FO!Z$15 -> 0.0007041412738 | CF68: =+R68*KeyAssumptionsPriceControl_FO!AA$15 -> 0.00384179479 | CG68: =+S68*KeyAssumptionsPriceControl_FO!AB$15 -> 0.001965078035 | CH68: =+T68*KeyAssumptionsPriceControl_FO!AC$15 -> 0.00130733919 | CI68: =+U68*KeyAssumptionsPriceControl_FO!AD$15 -> 0.001551864205 | CJ68: =+V68*KeyAssumptionsPriceControl_FO!AE$15 -> 0.003976535837 | CK68: =+W68*KeyAssumptionsPriceControl_FO!AF$15 -> 0.001078351056 | CL68: =+X68*KeyAssumptionsPriceControl_FO!AG$15 -> 0.002716535326 | CN68: 4.757418746e-05 | CO68: 0.0001257399367 | CP68: 0.0001798028743 | CQ68: 0.0003313340764 | CR68: 0.0005248965039 | CS68: 0.0006339770781 | CT68: 0.0007292838579 | CU68: 0.0009135638593 | CV68: 0.001082060089 | CW68: 0.001208556302
C69: Building Asset Management Plan - Stage 3 | E69: Water | F69: Growth | G69: Corporate | H69: Other Capital expenditure | J69: Straight line | K69: Ongoing | L69: 15 | M69: 15 | O69: 0.1100704602 | P69: 0.1377860436 | Q69: 0 | R69: 0 | S69: 0 | T69: 0 | U69: 0.1593482732 | V69: 0 | W69: 0 | X69: 0 | AK69: 0 | AL69: 0 | AM69: 0 | AN69: 0 | AO69: 0 | AP69: 0 | AQ69: 0 | AR69: 0 | AS69: 0 | AT69: 0 | AV69: 0.1100704602 | AW69: 0.1377860436 | AX69: 0 | AY69: 0 | AZ69: 0 | BA69: 0 | BB69: 0.1593482732 | BC69: 0 | BD69: 0 | BE69: 0 | BG69: 0.003669015338 | BH69: 0.0119308988 | BI69: 0.01652376692 | BJ69: 0.01652376692 | BK69: 0.01652376692 | BL69: 0.01652376692 | BM69: 0.02183537602 | BN69: 0.02714698513 | BO69: 0.02714698513 | BP69: 0.02714698513 | BR69: =+IF($K69="Ongoing",AV69,IF(RIGHT($K69,2)=RIGHT(BR$39,2),SUM($AV69:AV69),0)+IF(RIGHT(BR$39,2)>RIGHT($K69,2),AV69,0)) -> 0.1100704602 | BS69: =+IF($K69="Ongoing",AW69,IF(RIGHT($K69,2)=RIGHT(BS$39,2),SUM($AV69:AW69),0)+IF(RIGHT(BS$39,2)>RIGHT($K69,2),AW69,0)) -> 0.1377860436 | BT69: =+IF($K69="Ongoing",AX69,IF(RIGHT($K69,2)=RIGHT(BT$39,2),SUM($AV69:AX69),0)+IF(RIGHT(BT$39,2)>RIGHT($K69,2),AX69,0)) -> 0 | BU69: =+IF($K69="Ongoing",AY69,IF(RIGHT($K69,2)=RIGHT(BU$39,2),SUM($AV69:AY69),0)+IF(RIGHT(BU$39,2)>RIGHT($K69,2),AY69,0)) -> 0 | BV69: =+IF($K69="Ongoing",AZ69,IF(RIGHT($K69,2)=RIGHT(BV$39,2),SUM($AV69:AZ69),0)+IF(RIGHT(BV$39,2)>RIGHT($K69,2),AZ69,0)) -> 0 | BW69: =+IF($K69="Ongoing",BA69,IF(RIGHT($K69,2)=RIGHT(BW$39,2),SUM($AV69:BA69),0)+IF(RIGHT(BW$39,2)>RIGHT($K69,2),BA69,0)) -> 0 | BX69: =+IF($K69="Ongoing",BB69,IF(RIGHT($K69,2)=RIGHT(BX$39,2),SUM($AV69:BB69),0)+IF(RIGHT(BX$39,2)>RIGHT($K69,2),BB69,0)) -> 0.1593482732 | BY69: =+IF($K69="Ongoing",BC69,IF(RIGHT($K69,2)=RIGHT(BY$39,2),SUM($AV69:BC69),0)+IF(RIGHT(BY$39,2)>RIGHT($K69,2),BC69,0)) -> 0 | BZ69: =+IF($K69="Ongoing",BD69,IF(RIGHT($K69,2)=RIGHT(BZ$39,2),SUM($AV69:BD69),0)+IF(RIGHT(BZ$39,2)>RIGHT($K69,2),BD69,0)) -> 0 | CA69: =+IF($K69="Ongoing",BE69,IF(RIGHT($K69,2)=RIGHT(CA$39,2),SUM($AV69:BE69),0)+IF(RIGHT(CA$39,2)>RIGHT($K69,2),BE69,0)) -> 0 | CC69: =+O69*KeyAssumptionsPriceControl_FO!X$15 -> 0.1126020807 | CD69: =+P69*KeyAssumptionsPriceControl_FO!Y$15 -> 0.1441970905 | CE69: =+Q69*KeyAssumptionsPriceControl_FO!Z$15 -> 0 | CF69: =+R69*KeyAssumptionsPriceControl_FO!AA$15 -> 0 | CG69: =+S69*KeyAssumptionsPriceControl_FO!AB$15 -> 0 | CH69: =+T69*KeyAssumptionsPriceControl_FO!AC$15 -> 0 | CI69: =+U69*KeyAssumptionsPriceControl_FO!AD$15 -> 0.1868429852 | CJ69: =+V69*KeyAssumptionsPriceControl_FO!AE$15 -> 0 | CK69: =+W69*KeyAssumptionsPriceControl_FO!AF$15 -> 0 | CL69: =+X69*KeyAssumptionsPriceControl_FO!AG$15 -> 0 | CN69: 0.003753402691 | CO69: 0.01231337506 | CP69: 0.01711994475 | CQ69: 0.01711994475 | CR69: 0.01711994475 | CS69: 0.01711994475 | CT69: 0.02334804425 | CU69: 0.02957614376 | CV69: 0.02957614376 | CW69: 0.02957614376
C70: Building Asset Management Plan - Stage 3 | E70: Sewerage | F70: Growth | G70: Corporate | H70: Other Capital expenditure | J70: Straight line | K70: Ongoing | L70: 15 | M70: 15 | O70: 0.1147084716 | P70: 0.1435918997 | Q70: 0 | R70: 0 | S70: 0 | T70: 0 | U70: 0.1660626915 | V70: 0 | W70: 0 | X70: 0 | AK70: 0 | AL70: 0 | AM70: 0 | AN70: 0 | AO70: 0 | AP70: 0 | AQ70: 0 | AR70: 0 | AS70: 0 | AT70: 0 | AV70: 0.1147084716 | AW70: 0.1435918997 | AX70: 0 | AY70: 0 | AZ70: 0 | BA70: 0 | BB70: 0.1660626915 | BC70: 0 | BD70: 0 | BE70: 0 | BG70: 0.00382361572 | BH70: 0.0124336281 | BI70: 0.01722002475 | BJ70: 0.01722002475 | BK70: 0.01722002475 | BL70: 0.01722002475 | BM70: 0.0227554478 | BN70: 0.02829087085 | BO70: 0.02829087085 | BP70: 0.02829087085 | BR70: =+IF($K70="Ongoing",AV70,IF(RIGHT($K70,2)=RIGHT(BR$39,2),SUM($AV70:AV70),0)+IF(RIGHT(BR$39,2)>RIGHT($K70,2),AV70,0)) -> 0.1147084716 | BS70: =+IF($K70="Ongoing",AW70,IF(RIGHT($K70,2)=RIGHT(BS$39,2),SUM($AV70:AW70),0)+IF(RIGHT(BS$39,2)>RIGHT($K70,2),AW70,0)) -> 0.1435918997 | BT70: =+IF($K70="Ongoing",AX70,IF(RIGHT($K70,2)=RIGHT(BT$39,2),SUM($AV70:AX70),0)+IF(RIGHT(BT$39,2)>RIGHT($K70,2),AX70,0)) -> 0 | BU70: =+IF($K70="Ongoing",AY70,IF(RIGHT($K70,2)=RIGHT(BU$39,2),SUM($AV70:AY70),0)+IF(RIGHT(BU$39,2)>RIGHT($K70,2),AY70,0)) -> 0 | BV70: =+IF($K70="Ongoing",AZ70,IF(RIGHT($K70,2)=RIGHT(BV$39,2),SUM($AV70:AZ70),0)+IF(RIGHT(BV$39,2)>RIGHT($K70,2),AZ70,0)) -> 0 | BW70: =+IF($K70="Ongoing",BA70,IF(RIGHT($K70,2)=RIGHT(BW$39,2),SUM($AV70:BA70),0)+IF(RIGHT(BW$39,2)>RIGHT($K70,2),BA70,0)) -> 0 | BX70: =+IF($K70="Ongoing",BB70,IF(RIGHT($K70,2)=RIGHT(BX$39,2),SUM($AV70:BB70),0)+IF(RIGHT(BX$39,2)>RIGHT($K70,2),BB70,0)) -> 0.1660626915 | BY70: =+IF($K70="Ongoing",BC70,IF(RIGHT($K70,2)=RIGHT(BY$39,2),SUM($AV70:BC70),0)+IF(RIGHT(BY$39,2)>RIGHT($K70,2),BC70,0)) -> 0 | BZ70: =+IF($K70="Ongoing",BD70,IF(RIGHT($K70,2)=RIGHT(BZ$39,2),SUM($AV70:BD70),0)+IF(RIGHT(BZ$39,2)>RIGHT($K70,2),BD70,0)) -> 0 | CA70: =+IF($K70="Ongoing",BE70,IF(RIGHT($K70,2)=RIGHT(CA$39,2),SUM($AV70:BE70),0)+IF(RIGHT(CA$39,2)>RIGHT($K70,2),BE70,0)) -> 0 | CC70: =+O70*KeyAssumptionsPriceControl_FO!X$15 -> 0.1173467665 | CD70: =+P70*KeyAssumptionsPriceControl_FO!Y$15 -> 0.1502730872 | CE70: =+Q70*KeyAssumptionsPriceControl_FO!Z$15 -> 0 | CF70: =+R70*KeyAssumptionsPriceControl_FO!AA$15 -> 0 | CG70: =+S70*KeyAssumptionsPriceControl_FO!AB$15 -> 0 | CH70: =+T70*KeyAssumptionsPriceControl_FO!AC$15 -> 0 | CI70: =+U70*KeyAssumptionsPriceControl_FO!AD$15 -> 0.1947159413 | CJ70: =+V70*KeyAssumptionsPriceControl_FO!AE$15 -> 0 | CK70: =+W70*KeyAssumptionsPriceControl_FO!AF$15 -> 0 | CL70: =+X70*KeyAssumptionsPriceControl_FO!AG$15 -> 0 | CN70: 0.003911558882 | CO70: 0.01283222067 | CP70: 0.01784132358 | CQ70: 0.01784132358 | CR70: 0.01784132358 | CS70: 0.01784132358 | CT70: 0.02433185496 | CU70: 0.03082238633 | CV70: 0.03082238633 | CW70: 0.03082238633
C71: Building Asset Management Plan - Stage 3 | E71: Recycled Water | F71: Growth | G71: Corporate | H71: Other Capital expenditure | J71: Straight line | K71: Ongoing | L71: 15 | M71: 15 | O71: 0.004571068242 | P71: 0.005722056649 | Q71: 0 | R71: 0 | S71: 0 | T71: 0 | U71: 0.006617505095 | V71: 0 | W71: 0 | X71: 0 | AK71: 0 | AL71: 0 | AM71: 0 | AN71: 0 | AO71: 0 | AP71: 0 | AQ71: 0 | AR71: 0 | AS71: 0 | AT71: 0 | AV71: 0.004571068242 | AW71: 0.005722056649 | AX71: 0 | AY71: 0 | AZ71: 0 | BA71: 0 | BB71: 0.006617505095 | BC71: 0 | BD71: 0 | BE71: 0 | BG71: 0.0001523689414 | BH71: 0.0004954731045 | BI71: 0.0006862083261 | BJ71: 0.0006862083261 | BK71: 0.0006862083261 | BL71: 0.0006862083261 | BM71: 0.0009067918293 | BN71: 0.001127375332 | BO71: 0.001127375332 | BP71: 0.001127375332 | BR71: =+IF($K71="Ongoing",AV71,IF(RIGHT($K71,2)=RIGHT(BR$39,2),SUM($AV71:AV71),0)+IF(RIGHT(BR$39,2)>RIGHT($K71,2),AV71,0)) -> 0.004571068242 | BS71: =+IF($K71="Ongoing",AW71,IF(RIGHT($K71,2)=RIGHT(BS$39,2),SUM($AV71:AW71),0)+IF(RIGHT(BS$39,2)>RIGHT($K71,2),AW71,0)) -> 0.005722056649 | BT71: =+IF($K71="Ongoing",AX71,IF(RIGHT($K71,2)=RIGHT(BT$39,2),SUM($AV71:AX71),0)+IF(RIGHT(BT$39,2)>RIGHT($K71,2),AX71,0)) -> 0 | BU71: =+IF($K71="Ongoing",AY71,IF(RIGHT($K71,2)=RIGHT(BU$39,2),SUM($AV71:AY71),0)+IF(RIGHT(BU$39,2)>RIGHT($K71,2),AY71,0)) -> 0 | BV71: =+IF($K71="Ongoing",AZ71,IF(RIGHT($K71,2)=RIGHT(BV$39,2),SUM($AV71:AZ71),0)+IF(RIGHT(BV$39,2)>RIGHT($K71,2),AZ71,0)) -> 0 | BW71: =+IF($K71="Ongoing",BA71,IF(RIGHT($K71,2)=RIGHT(BW$39,2),SUM($AV71:BA71),0)+IF(RIGHT(BW$39,2)>RIGHT($K71,2),BA71,0)) -> 0 | BX71: =+IF($K71="Ongoing",BB71,IF(RIGHT($K71,2)=RIGHT(BX$39,2),SUM($AV71:BB71),0)+IF(RIGHT(BX$39,2)>RIGHT($K71,2),BB71,0)) -> 0.006617505095 | BY71: =+IF($K71="Ongoing",BC71,IF(RIGHT($K71,2)=RIGHT(BY$39,2),SUM($AV71:BC71),0)+IF(RIGHT(BY$39,2)>RIGHT($K71,2),BC71,0)) -> 0 | BZ71: =+IF($K71="Ongoing",BD71,IF(RIGHT($K71,2)=RIGHT(BZ$39,2),SUM($AV71:BD71),0)+IF(RIGHT(BZ$39,2)>RIGHT($K71,2),BD71,0)) -> 0 | CA71: =+IF($K71="Ongoing",BE71,IF(RIGHT($K71,2)=RIGHT(CA$39,2),SUM($AV71:BE71),0)+IF(RIGHT(CA$39,2)>RIGHT($K71,2),BE71,0)) -> 0 | CC71: =+O71*KeyAssumptionsPriceControl_FO!X$15 -> 0.004676202812 | CD71: =+P71*KeyAssumptionsPriceControl_FO!Y$15 -> 0.005988298223 | CE71: =+Q71*KeyAssumptionsPriceControl_FO!Z$15 -> 0 | CF71: =+R71*KeyAssumptionsPriceControl_FO!AA$15 -> 0 | CG71: =+S71*KeyAssumptionsPriceControl_FO!AB$15 -> 0 | CH71: =+T71*KeyAssumptionsPriceControl_FO!AC$15 -> 0 | CI71: =+U71*KeyAssumptionsPriceControl_FO!AD$15 -> 0.007759321027 | CJ71: =+V71*KeyAssumptionsPriceControl_FO!AE$15 -> 0 | CK71: =+W71*KeyAssumptionsPriceControl_FO!AF$15 -> 0 | CL71: =+X71*KeyAssumptionsPriceControl_FO!AG$15 -> 0 | CN71: 0.0001558734271 | CO71: 0.0005113567949 | CP71: 0.0007109667356 | CQ71: 0.0007109667356 | CR71: 0.0007109667356 | CS71: 0.0007109667356 | CT71: 0.0009696107699 | CU71: 0.001228254804 | CV71: 0.001228254804 | CW71: 0.001228254804
C72: Sludge Management Program | E72: Sewerage | F72: Improvements / Compliance | G72: Treatment | H72: Other Capital expenditure | J72: Straight line | K72: Ongoing | L72: 5 | M72: 5 | O72: 0.08 | P72: 0.08 | Q72: 0.08 | R72: 0.08 | S72: 0.08 | T72: 0.08584337349 | U72: 0.08300711744 | V72: 0.08316696915 | W72: 0.08267263427 | X72: 0.08143316655 | AK72: 0 | AL72: 0 | AM72: 0 | AN72: 0 | AO72: 0 | AP72: 0 | AQ72: 0 | AR72: 0 | AS72: 0 | AT72: 0 | AV72: 0.08 | AW72: 0.08 | AX72: 0.08 | AY72: 0.08 | AZ72: 0.08 | BA72: 0.08584337349 | BB72: 0.08300711744 | BC72: 0.08316696915 | BD72: 0.08267263427 | BE72: 0.08143316655 | BG72: 0.008 | BH72: 0.024 | BI72: 0.04 | BJ72: 0.056 | BK72: 0.072 | BL72: 0.08058433735 | BM72: 0.08146938644 | BN72: 0.0820867951 | BO72: 0.08267075544 | BP72: 0.08308133552 | BR72: =+IF($K72="Ongoing",AV72,IF(RIGHT($K72,2)=RIGHT(BR$39,2),SUM($AV72:AV72),0)+IF(RIGHT(BR$39,2)>RIGHT($K72,2),AV72,0)) -> 0.08 | BS72: =+IF($K72="Ongoing",AW72,IF(RIGHT($K72,2)=RIGHT(BS$39,2),SUM($AV72:AW72),0)+IF(RIGHT(BS$39,2)>RIGHT($K72,2),AW72,0)) -> 0.08 | BT72: =+IF($K72="Ongoing",AX72,IF(RIGHT($K72,2)=RIGHT(BT$39,2),SUM($AV72:AX72),0)+IF(RIGHT(BT$39,2)>RIGHT($K72,2),AX72,0)) -> 0.08 | BU72: =+IF($K72="Ongoing",AY72,IF(RIGHT($K72,2)=RIGHT(BU$39,2),SUM($AV72:AY72),0)+IF(RIGHT(BU$39,2)>RIGHT($K72,2),AY72,0)) -> 0.08 | BV72: =+IF($K72="Ongoing",AZ72,IF(RIGHT($K72,2)=RIGHT(BV$39,2),SUM($AV72:AZ72),0)+IF(RIGHT(BV$39,2)>RIGHT($K72,2),AZ72,0)) -> 0.08 | BW72: =+IF($K72="Ongoing",BA72,IF(RIGHT($K72,2)=RIGHT(BW$39,2),SUM($AV72:BA72),0)+IF(RIGHT(BW$39,2)>RIGHT($K72,2),BA72,0)) -> 0.08584337349 | BX72: =+IF($K72="Ongoing",BB72,IF(RIGHT($K72,2)=RIGHT(BX$39,2),SUM($AV72:BB72),0)+IF(RIGHT(BX$39,2)>RIGHT($K72,2),BB72,0)) -> 0.08300711744 | BY72: =+IF($K72="Ongoing",BC72,IF(RIGHT($K72,2)=RIGHT(BY$39,2),SUM($AV72:BC72),0)+IF(RIGHT(BY$39,2)>RIGHT($K72,2),BC72,0)) -> 0.08316696915 | BZ72: =+IF($K72="Ongoing",BD72,IF(RIGHT($K72,2)=RIGHT(BZ$39,2),SUM($AV72:BD72),0)+IF(RIGHT(BZ$39,2)>RIGHT($K72,2),BD72,0)) -> 0.08267263427 | CA72: =+IF($K72="Ongoing",BE72,IF(RIGHT($K72,2)=RIGHT(CA$39,2),SUM($AV72:BE72),0)+IF(RIGHT(CA$39,2)>RIGHT($K72,2),BE72,0)) -> 0.08143316655 | CC72: =+O72*KeyAssumptionsPriceControl_FO!X$15 -> 0.08184 | CD72: =+P72*KeyAssumptionsPriceControl_FO!Y$15 -> 0.08372232 | CE72: =+Q72*KeyAssumptionsPriceControl_FO!Z$15 -> 0.08564793336 | CF72: =+R72*KeyAssumptionsPriceControl_FO!AA$15 -> 0.08761783583 | CG72: =+S72*KeyAssumptionsPriceControl_FO!AB$15 -> 0.08963304605 | CH72: =+T72*KeyAssumptionsPriceControl_FO!AC$15 -> 0.098392179 | CI72: =+U72*KeyAssumptionsPriceControl_FO!AD$15 -> 0.09732956189 | CJ72: =+V72*KeyAssumptionsPriceControl_FO!AE$15 -> 0.09975988607 | CK72: =+W72*KeyAssumptionsPriceControl_FO!AF$15 -> 0.1014477641 | CL72: =+X72*KeyAssumptionsPriceControl_FO!AG$15 -> 0.1022251273 | CN72: 0.008184 | CO72: 0.024740232 | CP72: 0.04167725734 | CQ72: 0.05900383425 | CR72: 0.07672892244 | CS72: 0.08734744495 | CT72: 0.09036338704 | CU72: 0.0931353065 | CV72: 0.09592949459 | CW72: 0.09857169554
C73: Odour and Corrosion Mitigation Program | E73: Sewerage | F73: Improvements / Compliance | G73: Treatment | H73: Other Capital expenditure | J73: Straight line | K73: Ongoing | L73: 15 | M73: 15 | O73: 0 | P73: 0.22 | Q73: 0 | R73: 0.055 | S73: 0.121 | T73: 0 | U73: 0.3320284698 | V73: 0 | W73: 0 | X73: 0 | AK73: 0 | AL73: 0 | AM73: 0 | AN73: 0 | AO73: 0 | AP73: 0 | AQ73: 0 | AR73: 0 | AS73: 0 | AT73: 0 | AV73: 0 | AW73: 0.22 | AX73: 0 | AY73: 0.055 | AZ73: 0.121 | BA73: 0 | BB73: 0.3320284698 | BC73: 0 | BD73: 0 | BE73: 0 | BG73: 0 | BH73: 0.007333333333 | BI73: 0.01466666667 | BJ73: 0.0165 | BK73: 0.02236666667 | BL73: 0.0264 | BM73: 0.03746761566 | BN73: 0.04853523132 | BO73: 0.04853523132 | BP73: 0.04853523132 | BR73: =+IF($K73="Ongoing",AV73,IF(RIGHT($K73,2)=RIGHT(BR$39,2),SUM($AV73:AV73),0)+IF(RIGHT(BR$39,2)>RIGHT($K73,2),AV73,0)) -> 0 | BS73: =+IF($K73="Ongoing",AW73,IF(RIGHT($K73,2)=RIGHT(BS$39,2),SUM($AV73:AW73),0)+IF(RIGHT(BS$39,2)>RIGHT($K73,2),AW73,0)) -> 0.22 | BT73: =+IF($K73="Ongoing",AX73,IF(RIGHT($K73,2)=RIGHT(BT$39,2),SUM($AV73:AX73),0)+IF(RIGHT(BT$39,2)>RIGHT($K73,2),AX73,0)) -> 0 | BU73: =+IF($K73="Ongoing",AY73,IF(RIGHT($K73,2)=RIGHT(BU$39,2),SUM($AV73:AY73),0)+IF(RIGHT(BU$39,2)>RIGHT($K73,2),AY73,0)) -> 0.055 | BV73: =+IF($K73="Ongoing",AZ73,IF(RIGHT($K73,2)=RIGHT(BV$39,2),SUM($AV73:AZ73),0)+IF(RIGHT(BV$39,2)>RIGHT($K73,2),AZ73,0)) -> 0.121 | BW73: =+IF($K73="Ongoing",BA73,IF(RIGHT($K73,2)=RIGHT(BW$39,2),SUM($AV73:BA73),0)+IF(RIGHT(BW$39,2)>RIGHT($K73,2),BA73,0)) -> 0 | BX73: =+IF($K73="Ongoing",BB73,IF(RIGHT($K73,2)=RIGHT(BX$39,2),SUM($AV73:BB73),0)+IF(RIGHT(BX$39,2)>RIGHT($K73,2),BB73,0)) -> 0.3320284698 | BY73: =+IF($K73="Ongoing",BC73,IF(RIGHT($K73,2)=RIGHT(BY$39,2),SUM($AV73:BC73),0)+IF(RIGHT(BY$39,2)>RIGHT($K73,2),BC73,0)) -> 0 | BZ73: =+IF($K73="Ongoing",BD73,IF(RIGHT($K73,2)=RIGHT(BZ$39,2),SUM($AV73:BD73),0)+IF(RIGHT(BZ$39,2)>RIGHT($K73,2),BD73,0)) -> 0 | CA73: =+IF($K73="Ongoing",BE73,IF(RIGHT($K73,2)=RIGHT(CA$39,2),SUM($AV73:BE73),0)+IF(RIGHT(CA$39,2)>RIGHT($K73,2),BE73,0)) -> 0 | CC73: =+O73*KeyAssumptionsPriceControl_FO!X$15 -> 0 | CD73: =+P73*KeyAssumptionsPriceControl_FO!Y$15 -> 0.23023638 | CE73: =+Q73*KeyAssumptionsPriceControl_FO!Z$15 -> 0 | CF73: =+R73*KeyAssumptionsPriceControl_FO!AA$15 -> 0.06023726213 | CG73: =+S73*KeyAssumptionsPriceControl_FO!AB$15 -> 0.1355699822 | CH73: =+T73*KeyAssumptionsPriceControl_FO!AC$15 -> 0 | CI73: =+U73*KeyAssumptionsPriceControl_FO!AD$15 -> 0.3893182476 | CJ73: =+V73*KeyAssumptionsPriceControl_FO!AE$15 -> 0 | CK73: =+W73*KeyAssumptionsPriceControl_FO!AF$15 -> 0 | CL73: =+X73*KeyAssumptionsPriceControl_FO!AG$15 -> 0 | CN73: 0 | CO73: 0.007674546 | CP73: 0.015349092 | CQ73: 0.01735700074 | CR73: 0.02388390888 | CS73: 0.02840290829 | CT73: 0.0413801832 | CU73: 0.05435745812 | CV73: 0.05435745812 | CW73: 0.05435745812
C74: OH&S Compliance Program | E74: Water | F74: Improvements / Compliance | G74: Corporate | H74: Other Capital expenditure | J74: Straight line | K74: Ongoing | L74: 15 | M74: 15 | O74: 0.02111663504 | P74: 0.02111663504 | Q74: 0.02111663504 | R74: 0.01583747628 | S74: 0.01583747628 | T74: 0.09502485768 | U74: 0.02655804553 | V74: 0.02660918992 | W74: 0.02645102797 | X74: 0.02605446149 | AK74: 0 | AL74: 0 | AM74: 0 | AN74: 0 | AO74: 0 | AP74: 0 | AQ74: 0 | AR74: 0 | AS74: 0 | AT74: 0 | AV74: 0.02111663504 | AW74: 0.02111663504 | AX74: 0.02111663504 | AY74: 0.01583747628 | AZ74: 0.01583747628 | BA74: 0.09502485768 | BB74: 0.02655804553 | BC74: 0.02660918992 | BD74: 0.02645102797 | BE74: 0.02605446149 | BG74: 0.0007038878347 | BH74: 0.002111663504 | BI74: 0.003519439174 | BJ74: 0.004751242884 | BK74: 0.005807074636 | BL74: 0.009502485768 | BM74: 0.01355524921 | BN74: 0.01532749039 | BO74: 0.01709616432 | BP74: 0.0188463473 | BR74: =+IF($K74="Ongoing",AV74,IF(RIGHT($K74,2)=RIGHT(BR$39,2),SUM($AV74:AV74),0)+IF(RIGHT(BR$39,2)>RIGHT($K74,2),AV74,0)) -> 0.02111663504 | BS74: =+IF($K74="Ongoing",AW74,IF(RIGHT($K74,2)=RIGHT(BS$39,2),SUM($AV74:AW74),0)+IF(RIGHT(BS$39,2)>RIGHT($K74,2),AW74,0)) -> 0.02111663504 | BT74: =+IF($K74="Ongoing",AX74,IF(RIGHT($K74,2)=RIGHT(BT$39,2),SUM($AV74:AX74),0)+IF(RIGHT(BT$39,2)>RIGHT($K74,2),AX74,0)) -> 0.02111663504 | BU74: =+IF($K74="Ongoing",AY74,IF(RIGHT($K74,2)=RIGHT(BU$39,2),SUM($AV74:AY74),0)+IF(RIGHT(BU$39,2)>RIGHT($K74,2),AY74,0)) -> 0.01583747628 | BV74: =+IF($K74="Ongoing",AZ74,IF(RIGHT($K74,2)=RIGHT(BV$39,2),SUM($AV74:AZ74),0)+IF(RIGHT(BV$39,2)>RIGHT($K74,2),AZ74,0)) -> 0.01583747628 | BW74: =+IF($K74="Ongoing",BA74,IF(RIGHT($K74,2)=RIGHT(BW$39,2),SUM($AV74:BA74),0)+IF(RIGHT(BW$39,2)>RIGHT($K74,2),BA74,0)) -> 0.09502485768 | BX74: =+IF($K74="Ongoing",BB74,IF(RIGHT($K74,2)=RIGHT(BX$39,2),SUM($AV74:BB74),0)+IF(RIGHT(BX$39,2)>RIGHT($K74,2),BB74,0)) -> 0.02655804553 | BY74: =+IF($K74="Ongoing",BC74,IF(RIGHT($K74,2)=RIGHT(BY$39,2),SUM($AV74:BC74),0)+IF(RIGHT(BY$39,2)>RIGHT($K74,2),BC74,0)) -> 0.02660918992 | BZ74: =+IF($K74="Ongoing",BD74,IF(RIGHT($K74,2)=RIGHT(BZ$39,2),SUM($AV74:BD74),0)+IF(RIGHT(BZ$39,2)>RIGHT($K74,2),BD74,0)) -> 0.02645102797 | CA74: =+IF($K74="Ongoing",BE74,IF(RIGHT($K74,2)=RIGHT(CA$39,2),SUM($AV74:BE74),0)+IF(RIGHT(CA$39,2)>RIGHT($K74,2),BE74,0)) -> 0.02605446149 | CC74: =+O74*KeyAssumptionsPriceControl_FO!X$15 -> 0.02160231765 | CD74: =+P74*KeyAssumptionsPriceControl_FO!Y$15 -> 0.02209917095 | CE74: =+Q74*KeyAssumptionsPriceControl_FO!Z$15 -> 0.02260745188 | CF74: =+R74*KeyAssumptionsPriceControl_FO!AA$15 -> 0.01734556746 | CG74: =+S74*KeyAssumptionsPriceControl_FO!AB$15 -> 0.01774451551 | CH74: =+T74*KeyAssumptionsPriceControl_FO!AC$15 -> 0.1089158362 | CI74: =+U74*KeyAssumptionsPriceControl_FO!AD$15 -> 0.03114049753 | CJ74: =+V74*KeyAssumptionsPriceControl_FO!AE$15 -> 0.03191807736 | CK74: =+W74*KeyAssumptionsPriceControl_FO!AF$15 -> 0.03245811227 | CL74: =+X74*KeyAssumptionsPriceControl_FO!AG$15 -> 0.03270682885 | CN74: 0.0007200772549 | CO74: 0.002176793542 | CP74: 0.003667014303 | CQ74: 0.004998781614 | CR74: 0.006168451047 | CS74: 0.01039046277 | CT74: 0.01505900723 | CU74: 0.01716095972 | CV74: 0.01930683271 | CW74: 0.02147899742
C75: OH&S Compliance Program | E75: Sewerage | F75: Improvements / Compliance | G75: Corporate | H75: Other Capital expenditure | J75: Straight line | K75: Ongoing | L75: 15 | M75: 15 | O75: 0.02200642141 | P75: 0.02200642141 | Q75: 0.02200642141 | R75: 0.01650481606 | S75: 0.01650481606 | T75: 0.09902889635 | U75: 0.02767711525 | V75: 0.02773041471 | W75: 0.02756558832 | X75: 0.02715231182 | AK75: 0 | AL75: 0 | AM75: 0 | AN75: 0 | AO75: 0 | AP75: 0 | AQ75: 0 | AR75: 0 | AS75: 0 | AT75: 0 | AV75: 0.02200642141 | AW75: 0.02200642141 | AX75: 0.02200642141 | AY75: 0.01650481606 | AZ75: 0.01650481606 | BA75: 0.09902889635 | BB75: 0.02767711525 | BC75: 0.02773041471 | BD75: 0.02756558832 | BE75: 0.02715231182 | BG75: 0.0007335473804 | BH75: 0.002200642141 | BI75: 0.003667736902 | BJ75: 0.004951444818 | BK75: 0.006051765888 | BL75: 0.009902889635 | BM75: 0.01412642336 | BN75: 0.01597334102 | BO75: 0.01781654112 | BP75: 0.01964047113 | BR75: =+IF($K75="Ongoing",AV75,IF(RIGHT($K75,2)=RIGHT(BR$39,2),SUM($AV75:AV75),0)+IF(RIGHT(BR$39,2)>RIGHT($K75,2),AV75,0)) -> 0.02200642141 | BS75: =+IF($K75="Ongoing",AW75,IF(RIGHT($K75,2)=RIGHT(BS$39,2),SUM($AV75:AW75),0)+IF(RIGHT(BS$39,2)>RIGHT($K75,2),AW75,0)) -> 0.02200642141 | BT75: =+IF($K75="Ongoing",AX75,IF(RIGHT($K75,2)=RIGHT(BT$39,2),SUM($AV75:AX75),0)+IF(RIGHT(BT$39,2)>RIGHT($K75,2),AX75,0)) -> 0.02200642141 | BU75: =+IF($K75="Ongoing",AY75,IF(RIGHT($K75,2)=RIGHT(BU$39,2),SUM($AV75:AY75),0)+IF(RIGHT(BU$39,2)>RIGHT($K75,2),AY75,0)) -> 0.01650481606 | BV75: =+IF($K75="Ongoing",AZ75,IF(RIGHT($K75,2)=RIGHT(BV$39,2),SUM($AV75:AZ75),0)+IF(RIGHT(BV$39,2)>RIGHT($K75,2),AZ75,0)) -> 0.01650481606 | BW75: =+IF($K75="Ongoing",BA75,IF(RIGHT($K75,2)=RIGHT(BW$39,2),SUM($AV75:BA75),0)+IF(RIGHT(BW$39,2)>RIGHT($K75,2),BA75,0)) -> 0.09902889635 | BX75: =+IF($K75="Ongoing",BB75,IF(RIGHT($K75,2)=RIGHT(BX$39,2),SUM($AV75:BB75),0)+IF(RIGHT(BX$39,2)>RIGHT($K75,2),BB75,0)) -> 0.02767711525 | BY75: =+IF($K75="Ongoing",BC75,IF(RIGHT($K75,2)=RIGHT(BY$39,2),SUM($AV75:BC75),0)+IF(RIGHT(BY$39,2)>RIGHT($K75,2),BC75,0)) -> 0.02773041471 | BZ75: =+IF($K75="Ongoing",BD75,IF(RIGHT($K75,2)=RIGHT(BZ$39,2),SUM($AV75:BD75),0)+IF(RIGHT(BZ$39,2)>RIGHT($K75,2),BD75,0)) -> 0.02756558832 | CA75: =+IF($K75="Ongoing",BE75,IF(RIGHT($K75,2)=RIGHT(CA$39,2),SUM($AV75:BE75),0)+IF(RIGHT(CA$39,2)>RIGHT($K75,2),BE75,0)) -> 0.02715231182 | CC75: =+O75*KeyAssumptionsPriceControl_FO!X$15 -> 0.0225125691 | CD75: =+P75*KeyAssumptionsPriceControl_FO!Y$15 -> 0.02303035819 | CE75: =+Q75*KeyAssumptionsPriceControl_FO!Z$15 -> 0.02356005643 | CF75: =+R75*KeyAssumptionsPriceControl_FO!AA$15 -> 0.0180764533 | CG75: =+S75*KeyAssumptionsPriceControl_FO!AB$15 -> 0.01849221172 | CH75: =+T75*KeyAssumptionsPriceControl_FO!AC$15 -> 0.1135051956 | CI75: =+U75*KeyAssumptionsPriceControl_FO!AD$15 -> 0.03245265689 | CJ75: =+V75*KeyAssumptionsPriceControl_FO!AE$15 -> 0.03326300141 | CK75: =+W75*KeyAssumptionsPriceControl_FO!AF$15 -> 0.03382579163 | CL75: =+X75*KeyAssumptionsPriceControl_FO!AG$15 -> 0.03408498832 | CN75: 0.0007504189701 | CO75: 0.002268516547 | CP75: 0.003821530367 | CQ75: 0.005209414025 | CR75: 0.006428369526 | CS75: 0.0108282831 | CT75: 0.01569354485 | CU75: 0.01788406679 | CV75: 0.02012035989 | CW75: 0.02238405256
C76: OH&S Compliance Program | E76: Recycled Water | F76: Improvements / Compliance | G76: Corporate | H76: Other Capital expenditure | J76: Straight line | K76: Ongoing | L76: 15 | M76: 15 | O76: 0.0008769435477 | P76: 0.0008769435477 | Q76: 0.0008769435477 | R76: 0.0006577076608 | S76: 0.0006577076608 | T76: 0.003946245965 | U76: 0.001102917516 | V76: 0.001105041469 | W76: 0.00109847323 | X76: 0.001082004394 | AK76: 0 | AL76: 0 | AM76: 0 | AN76: 0 | AO76: 0 | AP76: 0 | AQ76: 0 | AR76: 0 | AS76: 0 | AT76: 0 | AV76: 0.0008769435477 | AW76: 0.0008769435477 | AX76: 0.0008769435477 | AY76: 0.0006577076608 | AZ76: 0.0006577076608 | BA76: 0.003946245965 | BB76: 0.001102917516 | BC76: 0.001105041469 | BD76: 0.00109847323 | BE76: 0.001082004394 | BG76: 2.923145159e-05 | BH76: 8.769435477e-05 | BI76: 0.000146157258 | BJ76: 0.0001973122982 | BK76: 0.0002411594756 | BL76: 0.0003946245965 | BM76: 0.0005629300458 | BN76: 0.0006365286787 | BO76: 0.0007099791686 | BP76: 0.0007826617561 | BR76: =+IF($K76="Ongoing",AV76,IF(RIGHT($K76,2)=RIGHT(BR$39,2),SUM($AV76:AV76),0)+IF(RIGHT(BR$39,2)>RIGHT($K76,2),AV76,0)) -> 0.0008769435477 | BS76: =+IF($K76="Ongoing",AW76,IF(RIGHT($K76,2)=RIGHT(BS$39,2),SUM($AV76:AW76),0)+IF(RIGHT(BS$39,2)>RIGHT($K76,2),AW76,0)) -> 0.0008769435477 | BT76: =+IF($K76="Ongoing",AX76,IF(RIGHT($K76,2)=RIGHT(BT$39,2),SUM($AV76:AX76),0)+IF(RIGHT(BT$39,2)>RIGHT($K76,2),AX76,0)) -> 0.0008769435477 | BU76: =+IF($K76="Ongoing",AY76,IF(RIGHT($K76,2)=RIGHT(BU$39,2),SUM($AV76:AY76),0)+IF(RIGHT(BU$39,2)>RIGHT($K76,2),AY76,0)) -> 0.0006577076608 | BV76: =+IF($K76="Ongoing",AZ76,IF(RIGHT($K76,2)=RIGHT(BV$39,2),SUM($AV76:AZ76),0)+IF(RIGHT(BV$39,2)>RIGHT($K76,2),AZ76,0)) -> 0.0006577076608 | BW76: =+IF($K76="Ongoing",BA76,IF(RIGHT($K76,2)=RIGHT(BW$39,2),SUM($AV76:BA76),0)+IF(RIGHT(BW$39,2)>RIGHT($K76,2),BA76,0)) -> 0.003946245965 | BX76: =+IF($K76="Ongoing",BB76,IF(RIGHT($K76,2)=RIGHT(BX$39,2),SUM($AV76:BB76),0)+IF(RIGHT(BX$39,2)>RIGHT($K76,2),BB76,0)) -> 0.001102917516 | BY76: =+IF($K76="Ongoing",BC76,IF(RIGHT($K76,2)=RIGHT(BY$39,2),SUM($AV76:BC76),0)+IF(RIGHT(BY$39,2)>RIGHT($K76,2),BC76,0)) -> 0.001105041469 | BZ76: =+IF($K76="Ongoing",BD76,IF(RIGHT($K76,2)=RIGHT(BZ$39,2),SUM($AV76:BD76),0)+IF(RIGHT(BZ$39,2)>RIGHT($K76,2),BD76,0)) -> 0.00109847323 | CA76: =+IF($K76="Ongoing",BE76,IF(RIGHT($K76,2)=RIGHT(CA$39,2),SUM($AV76:BE76),0)+IF(RIGHT(CA$39,2)>RIGHT($K76,2),BE76,0)) -> 0.001082004394 | CC76: =+O76*KeyAssumptionsPriceControl_FO!X$15 -> 0.0008971132493 | CD76: =+P76*KeyAssumptionsPriceControl_FO!Y$15 -> 0.000917746854 | CE76: =+Q76*KeyAssumptionsPriceControl_FO!Z$15 -> 0.0009388550317 | CF76: =+R76*KeyAssumptionsPriceControl_FO!AA$15 -> 0.0007203365231 | CG76: =+S76*KeyAssumptionsPriceControl_FO!AB$15 -> 0.0007369042631 | CH76: =+T76*KeyAssumptionsPriceControl_FO!AC$15 -> 0.004523118367 | CI76: =+U76*KeyAssumptionsPriceControl_FO!AD$15 -> 0.001293220171 | CJ76: =+V76*KeyAssumptionsPriceControl_FO!AE$15 -> 0.001325511946 | CK76: =+W76*KeyAssumptionsPriceControl_FO!AF$15 -> 0.00134793882 | CL76: =+X76*KeyAssumptionsPriceControl_FO!AG$15 -> 0.001358267663 | CN76: 2.990377498e-05 | CO76: 9.039911175e-05 | CP76: 0.0001522858413 | CQ76: 0.0002075922264 | CR76: 0.0002561669193 | CS76: 0.000431501007 | CT76: 0.0006253789582 | CU76: 0.0007126700288 | CV76: 0.0008017850543 | CW76: 0.0008919919371
C77: Software Application Renewal Program | E77: Water | F77: Renewals | G77: Corporate | H77: Other Capital expenditure | J77: Straight line | K77: Ongoing | L77: 4 | M77: 4 | O77: 0.0263957938 | P77: 0.0263957938 | Q77: 0.0263957938 | R77: 0.0263957938 | S77: 0.0263957938 | T77: 0.03295860343 | U77: 0.03186965463 | V77: 0.03193102791 | W77: 0.03174123356 | X77: 0.03126535379 | AK77: 0 | AL77: 0 | AM77: 0 | AN77: 0 | AO77: 0 | AP77: 0 | AQ77: 0 | AR77: 0 | AS77: 0 | AT77: 0 | AV77: 0.0263957938 | AW77: 0.0263957938 | AX77: 0.0263957938 | AY77: 0.0263957938 | AZ77: 0.0263957938 | BA77: 0.03295860343 | BB77: 0.03186965463 | BC77: 0.03193102791 | BD77: 0.03174123356 | BE77: 0.03126535379 | BG77: 0.003299474225 | BH77: 0.009898422676 | BI77: 0.01649737113 | BJ77: 0.02309631958 | BK77: 0.0263957938 | BL77: 0.02721614501 | BM77: 0.02872072881 | BN77: 0.03009686568 | BO77: 0.03145694991 | BP77: 0.03191347368 | BR77: =+IF($K77="Ongoing",AV77,IF(RIGHT($K77,2)=RIGHT(BR$39,2),SUM($AV77:AV77),0)+IF(RIGHT(BR$39,2)>RIGHT($K77,2),AV77,0)) -> 0.0263957938 | BS77: =+IF($K77="Ongoing",AW77,IF(RIGHT($K77,2)=RIGHT(BS$39,2),SUM($AV77:AW77),0)+IF(RIGHT(BS$39,2)>RIGHT($K77,2),AW77,0)) -> 0.0263957938 | BT77: =+IF($K77="Ongoing",AX77,IF(RIGHT($K77,2)=RIGHT(BT$39,2),SUM($AV77:AX77),0)+IF(RIGHT(BT$39,2)>RIGHT($K77,2),AX77,0)) -> 0.0263957938 | BU77: =+IF($K77="Ongoing",AY77,IF(RIGHT($K77,2)=RIGHT(BU$39,2),SUM($AV77:AY77),0)+IF(RIGHT(BU$39,2)>RIGHT($K77,2),AY77,0)) -> 0.0263957938 | BV77: =+IF($K77="Ongoing",AZ77,IF(RIGHT($K77,2)=RIGHT(BV$39,2),SUM($AV77:AZ77),0)+IF(RIGHT(BV$39,2)>RIGHT($K77,2),AZ77,0)) -> 0.0263957938 | BW77: =+IF($K77="Ongoing",BA77,IF(RIGHT($K77,2)=RIGHT(BW$39,2),SUM($AV77:BA77),0)+IF(RIGHT(BW$39,2)>RIGHT($K77,2),BA77,0)) -> 0.03295860343 | BX77: =+IF($K77="Ongoing",BB77,IF(RIGHT($K77,2)=RIGHT(BX$39,2),SUM($AV77:BB77),0)+IF(RIGHT(BX$39,2)>RIGHT($K77,2),BB77,0)) -> 0.03186965463 | BY77: =+IF($K77="Ongoing",BC77,IF(RIGHT($K77,2)=RIGHT(BY$39,2),SUM($AV77:BC77),0)+IF(RIGHT(BY$39,2)>RIGHT($K77,2),BC77,0)) -> 0.03193102791 | BZ77: =+IF($K77="Ongoing",BD77,IF(RIGHT($K77,2)=RIGHT(BZ$39,2),SUM($AV77:BD77),0)+IF(RIGHT(BZ$39,2)>RIGHT($K77,2),BD77,0)) -> 0.03174123356 | CA77: =+IF($K77="Ongoing",BE77,IF(RIGHT($K77,2)=RIGHT(CA$39,2),SUM($AV77:BE77),0)+IF(RIGHT(CA$39,2)>RIGHT($K77,2),BE77,0)) -> 0.03126535379 | CC77: =+O77*KeyAssumptionsPriceControl_FO!X$15 -> 0.02700289706 | CD77: =+P77*KeyAssumptionsPriceControl_FO!Y$15 -> 0.02762396369 | CE77: =+Q77*KeyAssumptionsPriceControl_FO!Z$15 -> 0.02825931486 | CF77: =+R77*KeyAssumptionsPriceControl_FO!AA$15 -> 0.0289092791 | CG77: =+S77*KeyAssumptionsPriceControl_FO!AB$15 -> 0.02957419252 | CH77: =+T77*KeyAssumptionsPriceControl_FO!AC$15 -> 0.037776577 | CI77: =+U77*KeyAssumptionsPriceControl_FO!AD$15 -> 0.03736859704 | CJ77: =+V77*KeyAssumptionsPriceControl_FO!AE$15 -> 0.03830169283 | CK77: =+W77*KeyAssumptionsPriceControl_FO!AF$15 -> 0.03894973472 | CL77: =+X77*KeyAssumptionsPriceControl_FO!AG$15 -> 0.03924819463 | CN77: 0.003375362132 | CO77: 0.01020371973 | CP77: 0.01718912954 | CQ77: 0.02433520379 | CR77: 0.02827027561 | CS77: 0.0298607642 | CT77: 0.03226850114 | CU77: 0.03458121313 | CV77: 0.03692720762 | CW77: 0.0382831026
C78: Software Application Renewal Program | E78: Sewerage | F78: Renewals | G78: Corporate | H78: Other Capital expenditure | J78: Straight line | K78: Ongoing | L78: 4 | M78: 4 | O78: 0.02750802676 | P78: 0.02750802676 | Q78: 0.02750802676 | R78: 0.02750802676 | S78: 0.02750802676 | T78: 0.03434737186 | U78: 0.0332125383 | V78: 0.03327649765 | W78: 0.03307870598 | X78: 0.03258277418 | AK78: 0 | AL78: 0 | AM78: 0 | AN78: 0 | AO78: 0 | AP78: 0 | AQ78: 0 | AR78: 0 | AS78: 0 | AT78: 0 | AV78: 0.02750802676 | AW78: 0.02750802676 | AX78: 0.02750802676 | AY78: 0.02750802676 | AZ78: 0.02750802676 | BA78: 0.03434737186 | BB78: 0.0332125383 | BC78: 0.03327649765 | BD78: 0.03307870598 | BE78: 0.03258277418 | BG78: 0.003438503345 | BH78: 0.01031551004 | BI78: 0.01719251673 | BJ78: 0.02406952342 | BK78: 0.02750802676 | BL78: 0.0283629449 | BM78: 0.02993092698 | BN78: 0.03136504978 | BO78: 0.03278244355 | BP78: 0.03325820374 | BR78: =+IF($K78="Ongoing",AV78,IF(RIGHT($K78,2)=RIGHT(BR$39,2),SUM($AV78:AV78),0)+IF(RIGHT(BR$39,2)>RIGHT($K78,2),AV78,0)) -> 0.02750802676 | BS78: =+IF($K78="Ongoing",AW78,IF(RIGHT($K78,2)=RIGHT(BS$39,2),SUM($AV78:AW78),0)+IF(RIGHT(BS$39,2)>RIGHT($K78,2),AW78,0)) -> 0.02750802676 | BT78: =+IF($K78="Ongoing",AX78,IF(RIGHT($K78,2)=RIGHT(BT$39,2),SUM($AV78:AX78),0)+IF(RIGHT(BT$39,2)>RIGHT($K78,2),AX78,0)) -> 0.02750802676 | BU78: =+IF($K78="Ongoing",AY78,IF(RIGHT($K78,2)=RIGHT(BU$39,2),SUM($AV78:AY78),0)+IF(RIGHT(BU$39,2)>RIGHT($K78,2),AY78,0)) -> 0.02750802676 | BV78: =+IF($K78="Ongoing",AZ78,IF(RIGHT($K78,2)=RIGHT(BV$39,2),SUM($AV78:AZ78),0)+IF(RIGHT(BV$39,2)>RIGHT($K78,2),AZ78,0)) -> 0.02750802676 | BW78: =+IF($K78="Ongoing",BA78,IF(RIGHT($K78,2)=RIGHT(BW$39,2),SUM($AV78:BA78),0)+IF(RIGHT(BW$39,2)>RIGHT($K78,2),BA78,0)) -> 0.03434737186 | BX78: =+IF($K78="Ongoing",BB78,IF(RIGHT($K78,2)=RIGHT(BX$39,2),SUM($AV78:BB78),0)+IF(RIGHT(BX$39,2)>RIGHT($K78,2),BB78,0)) -> 0.0332125383 | BY78: =+IF($K78="Ongoing",BC78,IF(RIGHT($K78,2)=RIGHT(BY$39,2),SUM($AV78:BC78),0)+IF(RIGHT(BY$39,2)>RIGHT($K78,2),BC78,0)) -> 0.03327649765 | BZ78: =+IF($K78="Ongoing",BD78,IF(RIGHT($K78,2)=RIGHT(BZ$39,2),SUM($AV78:BD78),0)+IF(RIGHT(BZ$39,2)>RIGHT($K78,2),BD78,0)) -> 0.03307870598 | CA78: =+IF($K78="Ongoing",BE78,IF(RIGHT($K78,2)=RIGHT(CA$39,2),SUM($AV78:BE78),0)+IF(RIGHT(CA$39,2)>RIGHT($K78,2),BE78,0)) -> 0.03258277418 | CC78: =+O78*KeyAssumptionsPriceControl_FO!X$15 -> 0.02814071138 | CD78: =+P78*KeyAssumptionsPriceControl_FO!Y$15 -> 0.02878794774 | CE78: =+Q78*KeyAssumptionsPriceControl_FO!Z$15 -> 0.02945007054 | CF78: =+R78*KeyAssumptionsPriceControl_FO!AA$15 -> 0.03012742216 | CG78: =+S78*KeyAssumptionsPriceControl_FO!AB$15 -> 0.03082035287 | CH78: =+T78*KeyAssumptionsPriceControl_FO!AC$15 -> 0.03936835917 | CI78: =+U78*KeyAssumptionsPriceControl_FO!AD$15 -> 0.03894318827 | CJ78: =+V78*KeyAssumptionsPriceControl_FO!AE$15 -> 0.03991560169 | CK78: =+W78*KeyAssumptionsPriceControl_FO!AF$15 -> 0.04059094995 | CL78: =+X78*KeyAssumptionsPriceControl_FO!AG$15 -> 0.04090198599 | CN78: 0.003517588922 | CO78: 0.01063367131 | CP78: 0.0179134236 | CQ78: 0.02536061019 | CR78: 0.02946149314 | CS78: 0.03111899976 | CT78: 0.0336281909 | CU78: 0.03603835306 | CV78: 0.03848320014 | CW78: 0.03989622812
C79: Software Application Renewal Program | E79: Recycled Water | F79: Renewals | G79: Corporate | H79: Other Capital expenditure | J79: Straight line | K79: Ongoing | L79: 4 | M79: 4 | O79: 0.001096179435 | P79: 0.001096179435 | Q79: 0.001096179435 | R79: 0.001096179435 | S79: 0.001096179435 | T79: 0.0013687235 | U79: 0.001323501019 | V79: 0.001326049763 | W79: 0.001318167876 | X79: 0.001298405272 | AK79: 0 | AL79: 0 | AM79: 0 | AN79: 0 | AO79: 0 | AP79: 0 | AQ79: 0 | AR79: 0 | AS79: 0 | AT79: 0 | AV79: 0.001096179435 | AW79: 0.001096179435 | AX79: 0.001096179435 | AY79: 0.001096179435 | AZ79: 0.001096179435 | BA79: 0.0013687235 | BB79: 0.001323501019 | BC79: 0.001326049763 | BD79: 0.001318167876 | BE79: 0.001298405272 | BG79: 0.0001370224293 | BH79: 0.000411067288 | BI79: 0.0006851121466 | BJ79: 0.0009591570053 | BK79: 0.001096179435 | BL79: 0.001130247443 | BM79: 0.001192730649 | BN79: 0.001249879638 | BO79: 0.001306361984 | BP79: 0.001325320761 | BR79: =+IF($K79="Ongoing",AV79,IF(RIGHT($K79,2)=RIGHT(BR$39,2),SUM($AV79:AV79),0)+IF(RIGHT(BR$39,2)>RIGHT($K79,2),AV79,0)) -> 0.001096179435 | BS79: =+IF($K79="Ongoing",AW79,IF(RIGHT($K79,2)=RIGHT(BS$39,2),SUM($AV79:AW79),0)+IF(RIGHT(BS$39,2)>RIGHT($K79,2),AW79,0)) -> 0.001096179435 | BT79: =+IF($K79="Ongoing",AX79,IF(RIGHT($K79,2)=RIGHT(BT$39,2),SUM($AV79:AX79),0)+IF(RIGHT(BT$39,2)>RIGHT($K79,2),AX79,0)) -> 0.001096179435 | BU79: =+IF($K79="Ongoing",AY79,IF(RIGHT($K79,2)=RIGHT(BU$39,2),SUM($AV79:AY79),0)+IF(RIGHT(BU$39,2)>RIGHT($K79,2),AY79,0)) -> 0.001096179435 | BV79: =+IF($K79="Ongoing",AZ79,IF(RIGHT($K79,2)=RIGHT(BV$39,2),SUM($AV79:AZ79),0)+IF(RIGHT(BV$39,2)>RIGHT($K79,2),AZ79,0)) -> 0.001096179435 | BW79: =+IF($K79="Ongoing",BA79,IF(RIGHT($K79,2)=RIGHT(BW$39,2),SUM($AV79:BA79),0)+IF(RIGHT(BW$39,2)>RIGHT($K79,2),BA79,0)) -> 0.0013687235 | BX79: =+IF($K79="Ongoing",BB79,IF(RIGHT($K79,2)=RIGHT(BX$39,2),SUM($AV79:BB79),0)+IF(RIGHT(BX$39,2)>RIGHT($K79,2),BB79,0)) -> 0.001323501019 | BY79: =+IF($K79="Ongoing",BC79,IF(RIGHT($K79,2)=RIGHT(BY$39,2),SUM($AV79:BC79),0)+IF(RIGHT(BY$39,2)>RIGHT($K79,2),BC79,0)) -> 0.001326049763 | BZ79: =+IF($K79="Ongoing",BD79,IF(RIGHT($K79,2)=RIGHT(BZ$39,2),SUM($AV79:BD79),0)+IF(RIGHT(BZ$39,2)>RIGHT($K79,2),BD79,0)) -> 0.001318167876 | CA79: =+IF($K79="Ongoing",BE79,IF(RIGHT($K79,2)=RIGHT(CA$39,2),SUM($AV79:BE79),0)+IF(RIGHT(CA$39,2)>RIGHT($K79,2),BE79,0)) -> 0.001298405272 | CC79: =+O79*KeyAssumptionsPriceControl_FO!X$15 -> 0.001121391562 | CD79: =+P79*KeyAssumptionsPriceControl_FO!Y$15 -> 0.001147183568 | CE79: =+Q79*KeyAssumptionsPriceControl_FO!Z$15 -> 0.00117356879 | CF79: =+R79*KeyAssumptionsPriceControl_FO!AA$15 -> 0.001200560872 | CG79: =+S79*KeyAssumptionsPriceControl_FO!AB$15 -> 0.001228173772 | CH79: =+T79*KeyAssumptionsPriceControl_FO!AC$15 -> 0.001568807028 | CI79: =+U79*KeyAssumptionsPriceControl_FO!AD$15 -> 0.001551864205 | CJ79: =+V79*KeyAssumptionsPriceControl_FO!AE$15 -> 0.001590614335 | CK79: =+W79*KeyAssumptionsPriceControl_FO!AF$15 -> 0.001617526584 | CL79: =+X79*KeyAssumptionsPriceControl_FO!AG$15 -> 0.001629921196 | CN79: 0.0001401739452 | CO79: 0.0004237458363 | CP79: 0.000713839881 | CQ79: 0.001010606089 | CR79: 0.001174023974 | CS79: 0.001240074683 | CT79: 0.001340064542 | CU79: 0.001436108152 | CV79: 0.001533533936 | CW79: 0.001589842309
C80: SCADA Strategy Implementation | E80: Water | F80: Renewals | G80: Corporate | H80: Other Capital expenditure | J80: Straight line | K80: Ongoing | L80: 15 | M80: 15 | O80: 0.02399617618 | P80: 0.02399617618 | Q80: 0.02399617618 | R80: 0.02399617618 | S80: 0.02399617618 | T80: 0.03295860343 | U80: 0.03186965463 | V80: 0.03193102791 | W80: 0.03174123356 | X80: 0.03126535379 | AK80: 0 | AL80: 0 | AM80: 0 | AN80: 0 | AO80: 0 | AP80: 0 | AQ80: 0 | AR80: 0 | AS80: 0 | AT80: 0 | AV80: 0.02399617618 | AW80: 0.02399617618 | AX80: 0.02399617618 | AY80: 0.02399617618 | AZ80: 0.02399617618 | BA80: 0.03295860343 | BB80: 0.03186965463 | BC80: 0.03193102791 | BD80: 0.03174123356 | BE80: 0.03126535379 | BG80: 0.0007998725394 | BH80: 0.002399617618 | BI80: 0.003999362697 | BJ80: 0.005599107776 | BK80: 0.007198852855 | BL80: 0.009097345509 | BM80: 0.01125828744 | BN80: 0.01338497686 | BO80: 0.01550738558 | BP80: 0.01760760516 | BR80: =+IF($K80="Ongoing",AV80,IF(RIGHT($K80,2)=RIGHT(BR$39,2),SUM($AV80:AV80),0)+IF(RIGHT(BR$39,2)>RIGHT($K80,2),AV80,0)) -> 0.02399617618 | BS80: =+IF($K80="Ongoing",AW80,IF(RIGHT($K80,2)=RIGHT(BS$39,2),SUM($AV80:AW80),0)+IF(RIGHT(BS$39,2)>RIGHT($K80,2),AW80,0)) -> 0.02399617618 | BT80: =+IF($K80="Ongoing",AX80,IF(RIGHT($K80,2)=RIGHT(BT$39,2),SUM($AV80:AX80),0)+IF(RIGHT(BT$39,2)>RIGHT($K80,2),AX80,0)) -> 0.02399617618 | BU80: =+IF($K80="Ongoing",AY80,IF(RIGHT($K80,2)=RIGHT(BU$39,2),SUM($AV80:AY80),0)+IF(RIGHT(BU$39,2)>RIGHT($K80,2),AY80,0)) -> 0.02399617618 | BV80: =+IF($K80="Ongoing",AZ80,IF(RIGHT($K80,2)=RIGHT(BV$39,2),SUM($AV80:AZ80),0)+IF(RIGHT(BV$39,2)>RIGHT($K80,2),AZ80,0)) -> 0.02399617618 | BW80: =+IF($K80="Ongoing",BA80,IF(RIGHT($K80,2)=RIGHT(BW$39,2),SUM($AV80:BA80),0)+IF(RIGHT(BW$39,2)>RIGHT($K80,2),BA80,0)) -> 0.03295860343 | BX80: =+IF($K80="Ongoing",BB80,IF(RIGHT($K80,2)=RIGHT(BX$39,2),SUM($AV80:BB80),0)+IF(RIGHT(BX$39,2)>RIGHT($K80,2),BB80,0)) -> 0.03186965463 | BY80: =+IF($K80="Ongoing",BC80,IF(RIGHT($K80,2)=RIGHT(BY$39,2),SUM($AV80:BC80),0)+IF(RIGHT(BY$39,2)>RIGHT($K80,2),BC80,0)) -> 0.03193102791 | BZ80: =+IF($K80="Ongoing",BD80,IF(RIGHT($K80,2)=RIGHT(BZ$39,2),SUM($AV80:BD80),0)+IF(RIGHT(BZ$39,2)>RIGHT($K80,2),BD80,0)) -> 0.03174123356 | CA80: =+IF($K80="Ongoing",BE80,IF(RIGHT($K80,2)=RIGHT(CA$39,2),SUM($AV80:BE80),0)+IF(RIGHT(CA$39,2)>RIGHT($K80,2),BE80,0)) -> 0.03126535379 | CC80: =+O80*KeyAssumptionsPriceControl_FO!X$15 -> 0.02454808824 | CD80: =+P80*KeyAssumptionsPriceControl_FO!Y$15 -> 0.02511269426 | CE80: =+Q80*KeyAssumptionsPriceControl_FO!Z$15 -> 0.02569028623 | CF80: =+R80*KeyAssumptionsPriceControl_FO!AA$15 -> 0.02628116282 | CG80: =+S80*KeyAssumptionsPriceControl_FO!AB$15 -> 0.02688562956 | CH80: =+T80*KeyAssumptionsPriceControl_FO!AC$15 -> 0.037776577 | CI80: =+U80*KeyAssumptionsPriceControl_FO!AD$15 -> 0.03736859704 | CJ80: =+V80*KeyAssumptionsPriceControl_FO!AE$15 -> 0.03830169283 | CK80: =+W80*KeyAssumptionsPriceControl_FO!AF$15 -> 0.03894973472 | CL80: =+X80*KeyAssumptionsPriceControl_FO!AG$15 -> 0.03924819463 | CN80: 0.0008182696078 | CO80: 0.002473629025 | CP80: 0.004167061708 | CQ80: 0.005899443343 | CR80: 0.007671669755 | CS80: 0.009827076641 | CT80: 0.01233191578 | CU80: 0.01485425877 | CV80: 0.01742930636 | CW80: 0.020035904
C81: SCADA Strategy Implementation | E81: Sewerage | F81: Renewals | G81: Corporate | H81: Other Capital expenditure | J81: Straight line | K81: Ongoing | L81: 15 | M81: 15 | O81: 0.02500729706 | P81: 0.02500729706 | Q81: 0.02500729706 | R81: 0.02500729706 | S81: 0.02500729706 | T81: 0.03434737186 | U81: 0.0332125383 | V81: 0.03327649765 | W81: 0.03307870598 | X81: 0.03258277418 | AK81: 0 | AL81: 0 | AM81: 0 | AN81: 0 | AO81: 0 | AP81: 0 | AQ81: 0 | AR81: 0 | AS81: 0 | AT81: 0 | AV81: 0.02500729706 | AW81: 0.02500729706 | AX81: 0.02500729706 | AY81: 0.02500729706 | AZ81: 0.02500729706 | BA81: 0.03434737186 | BB81: 0.0332125383 | BC81: 0.03327649765 | BD81: 0.03307870598 | BE81: 0.03258277418 | BG81: 0.0008335765686 | BH81: 0.002500729706 | BI81: 0.004167882843 | BJ81: 0.00583503598 | BK81: 0.007502189117 | BL81: 0.009480678081 | BM81: 0.01173267509 | BN81: 0.01394897629 | BO81: 0.01616081641 | BP81: 0.01834953241 | BR81: =+IF($K81="Ongoing",AV81,IF(RIGHT($K81,2)=RIGHT(BR$39,2),SUM($AV81:AV81),0)+IF(RIGHT(BR$39,2)>RIGHT($K81,2),AV81,0)) -> 0.02500729706 | BS81: =+IF($K81="Ongoing",AW81,IF(RIGHT($K81,2)=RIGHT(BS$39,2),SUM($AV81:AW81),0)+IF(RIGHT(BS$39,2)>RIGHT($K81,2),AW81,0)) -> 0.02500729706 | BT81: =+IF($K81="Ongoing",AX81,IF(RIGHT($K81,2)=RIGHT(BT$39,2),SUM($AV81:AX81),0)+IF(RIGHT(BT$39,2)>RIGHT($K81,2),AX81,0)) -> 0.02500729706 | BU81: =+IF($K81="Ongoing",AY81,IF(RIGHT($K81,2)=RIGHT(BU$39,2),SUM($AV81:AY81),0)+IF(RIGHT(BU$39,2)>RIGHT($K81,2),AY81,0)) -> 0.02500729706 | BV81: =+IF($K81="Ongoing",AZ81,IF(RIGHT($K81,2)=RIGHT(BV$39,2),SUM($AV81:AZ81),0)+IF(RIGHT(BV$39,2)>RIGHT($K81,2),AZ81,0)) -> 0.02500729706 | BW81: =+IF($K81="Ongoing",BA81,IF(RIGHT($K81,2)=RIGHT(BW$39,2),SUM($AV81:BA81),0)+IF(RIGHT(BW$39,2)>RIGHT($K81,2),BA81,0)) -> 0.03434737186 | BX81: =+IF($K81="Ongoing",BB81,IF(RIGHT($K81,2)=RIGHT(BX$39,2),SUM($AV81:BB81),0)+IF(RIGHT(BX$39,2)>RIGHT($K81,2),BB81,0)) -> 0.0332125383 | BY81: =+IF($K81="Ongoing",BC81,IF(RIGHT($K81,2)=RIGHT(BY$39,2),SUM($AV81:BC81),0)+IF(RIGHT(BY$39,2)>RIGHT($K81,2),BC81,0)) -> 0.03327649765 | BZ81: =+IF($K81="Ongoing",BD81,IF(RIGHT($K81,2)=RIGHT(BZ$39,2),SUM($AV81:BD81),0)+IF(RIGHT(BZ$39,2)>RIGHT($K81,2),BD81,0)) -> 0.03307870598 | CA81: =+IF($K81="Ongoing",BE81,IF(RIGHT($K81,2)=RIGHT(CA$39,2),SUM($AV81:BE81),0)+IF(RIGHT(CA$39,2)>RIGHT($K81,2),BE81,0)) -> 0.03258277418 | CC81: =+O81*KeyAssumptionsPriceControl_FO!X$15 -> 0.02558246489 | CD81: =+P81*KeyAssumptionsPriceControl_FO!Y$15 -> 0.02617086158 | CE81: =+Q81*KeyAssumptionsPriceControl_FO!Z$15 -> 0.0267727914 | CF81: =+R81*KeyAssumptionsPriceControl_FO!AA$15 -> 0.0273885656 | CG81: =+S81*KeyAssumptionsPriceControl_FO!AB$15 -> 0.02801850261 | CH81: =+T81*KeyAssumptionsPriceControl_FO!AC$15 -> 0.03936835917 | CI81: =+U81*KeyAssumptionsPriceControl_FO!AD$15 -> 0.03894318827 | CJ81: =+V81*KeyAssumptionsPriceControl_FO!AE$15 -> 0.03991560169 | CK81: =+W81*KeyAssumptionsPriceControl_FO!AF$15 -> 0.04059094995 | CL81: =+X81*KeyAssumptionsPriceControl_FO!AG$15 -> 0.04090198599 | CN81: 0.0008527488297 | CO81: 0.002577859712 | CP81: 0.004342648145 | CQ81: 0.006148026712 | CR81: 0.007994928985 | CS81: 0.01024115771 | CT81: 0.01285154263 | CU81: 0.01548016896 | CV81: 0.01816372068 | CW81: 0.02088015188
C82: SCADA Strategy Implementation | E82: Recycled Water | F82: Renewals | G82: Corporate | H82: Other Capital expenditure | J82: Straight line | K82: Ongoing | L82: 15 | M82: 15 | O82: 0.0009965267588 | P82: 0.0009965267588 | Q82: 0.0009965267588 | R82: 0.0009965267588 | S82: 0.0009965267588 | T82: 0.0013687235 | U82: 0.001323501019 | V82: 0.001326049763 | W82: 0.001318167876 | X82: 0.001298405272 | AK82: 0 | AL82: 0 | AM82: 0 | AN82: 0 | AO82: 0 | AP82: 0 | AQ82: 0 | AR82: 0 | AS82: 0 | AT82: 0 | AV82: 0.0009965267588 | AW82: =+P82-AA82-AL82 -> 0.0009965267588 | AX82: 0.0009965267588 | AY82: 0.0009965267588 | AZ82: 0.0009965267588 | BA82: 0.0013687235 | BB82: 0.001323501019 | BC82: 0.001326049763 | BD82: 0.001318167876 | BE82: 0.001298405272 | BG82: 3.321755863e-05 | BH82: 9.965267588e-05 | BI82: 0.0001660877931 | BJ82: 0.0002325229104 | BK82: 0.0002989580276 | BL82: 0.0003777997029 | BM82: 0.0004675405202 | BN82: 0.0005558588796 | BO82: 0.0006439994676 | BP82: 0.0007312185726 | BR82: =+IF($K82="Ongoing",AV82,IF(RIGHT($K82,2)=RIGHT(BR$39,2),SUM($AV82:AV82),0)+IF(RIGHT(BR$39,2)>RIGHT($K82,2),AV82,0)) -> 0.0009965267588 | BS82: =+IF($K82="Ongoing",AW82,IF(RIGHT($K82,2)=RIGHT(BS$39,2),SUM($AV82:AW82),0)+IF(RIGHT(BS$39,2)>RIGHT($K82,2),AW82,0)) -> 0.0009965267588 | BT82: =+IF($K82="Ongoing",AX82,IF(RIGHT($K82,2)=RIGHT(BT$39,2),SUM($AV82:AX82),0)+IF(RIGHT(BT$39,2)>RIGHT($K82,2),AX82,0)) -> 0.0009965267588 | BU82: =+IF($K82="Ongoing",AY82,IF(RIGHT($K82,2)=RIGHT(BU$39,2),SUM($AV82:AY82),0)+IF(RIGHT(BU$39,2)>RIGHT($K82,2),AY82,0)) -> 0.0009965267588 | BV82: =+IF($K82="Ongoing",AZ82,IF(RIGHT($K82,2)=RIGHT(BV$39,2),SUM($AV82:AZ82),0)+IF(RIGHT(BV$39,2)>RIGHT($K82,2),AZ82,0)) -> 0.0009965267588 | BW82: =+IF($K82="Ongoing",BA82,IF(RIGHT($K82,2)=RIGHT(BW$39,2),SUM($AV82:BA82),0)+IF(RIGHT(BW$39,2)>RIGHT($K82,2),BA82,0)) -> 0.0013687235 | BX82: =+IF($K82="Ongoing",BB82,IF(RIGHT($K82,2)=RIGHT(BX$39,2),SUM($AV82:BB82),0)+IF(RIGHT(BX$39,2)>RIGHT($K82,2),BB82,0)) -> 0.001323501019 | BY82: =+IF($K82="Ongoing",BC82,IF(RIGHT($K82,2)=RIGHT(BY$39,2),SUM($AV82:BC82),0)+IF(RIGHT(BY$39,2)>RIGHT($K82,2),BC82,0)) -> 0.001326049763 | BZ82: =+IF($K82="Ongoing",BD82,IF(RIGHT($K82,2)=RIGHT(BZ$39,2),SUM($AV82:BD82),0)+IF(RIGHT(BZ$39,2)>RIGHT($K82,2),BD82,0)) -> 0.001318167876 | CA82: =+IF($K82="Ongoing",BE82,IF(RIGHT($K82,2)=RIGHT(CA$39,2),SUM($AV82:BE82),0)+IF(RIGHT(CA$39,2)>RIGHT($K82,2),BE82,0)) -> 0.001298405272 | CC82: =+O82*KeyAssumptionsPriceControl_FO!X$15 -> 0.001019446874 | CD82: =+P82*KeyAssumptionsPriceControl_FO!Y$15 -> 0.001042894152 | CE82: =+Q82*KeyAssumptionsPriceControl_FO!Z$15 -> 0.001066880718 | CF82: =+R82*KeyAssumptionsPriceControl_FO!AA$15 -> 0.001091418974 | CG82: =+S82*KeyAssumptionsPriceControl_FO!AB$15 -> 0.001116521611 | CH82: =+T82*KeyAssumptionsPriceControl_FO!AC$15 -> 0.001568807028 | CI82: =+U82*KeyAssumptionsPriceControl_FO!AD$15 -> 0.001551864205 | CJ82: =+V82*KeyAssumptionsPriceControl_FO!AE$15 -> 0.001590614335 | CK82: =+W82*KeyAssumptionsPriceControl_FO!AF$15 -> 0.001617526584 | CL82: =+X82*KeyAssumptionsPriceControl_FO!AG$15 -> 0.001629921196 | CN82: 3.398156247e-05 | CO82: 0.0001027262634 | CP82: 0.0001730520924 | CQ82: 0.0002449954154 | CR82: 0.0003185934349 | CS82: 0.0004081043895 | CT82: 0.000512126764 | CU82: 0.0006168760487 | CV82: 0.0007238140793 | CW82: 0.0008320623386
C83: Hardware Replacement | E83: Water | F83: Renewals | G83: Corporate | H83: Significant projects | J83: Straight line | K83: Ongoing | L83: 4 | M83: 4 | O83: 0.0263957938 | P83: 0.0263957938 | Q83: 0.0263957938 | R83: 0.0263957938 | S83: 0.0263957938 | T83: 0.02746550286 | U83: 0.02655804553 | V83: 0.02660918992 | W83: 0.02645102797 | X83: 0.02605446149 | AK83: 0 | AL83: 0 | AM83: 0 | AN83: 0 | AO83: 0 | AP83: 0 | AQ83: 0 | AR83: 0 | AS83: 0 | AT83: 0 | AV83: =+O83-Z83-AK83 -> 0.0263957938 | AW83: 0.0263957938 | AX83: 0.0263957938 | AY83: 0.0263957938 | AZ83: 0.0263957938 | BA83: 0.02746550286 | BB83: 0.02655804553 | BC83: 0.02660918992 | BD83: 0.02645102797 | BE83: 0.02605446149 | BG83: 0.003299474225 | BH83: 0.009898422676 | BI83: 0.01649737113 | BJ83: 0.02309631958 | BK83: 0.0263957938 | BL83: 0.02652950743 | BM83: 0.02668350253 | BN83: 0.02673045851 | BO83: 0.0267640373 | BP83: 0.0265945614 | BR83: =+IF($K83="Ongoing",AV83,IF(RIGHT($K83,2)=RIGHT(BR$39,2),SUM($AV83:AV83),0)+IF(RIGHT(BR$39,2)>RIGHT($K83,2),AV83,0)) -> 0.0263957938 | BS83: =+IF($K83="Ongoing",AW83,IF(RIGHT($K83,2)=RIGHT(BS$39,2),SUM($AV83:AW83),0)+IF(RIGHT(BS$39,2)>RIGHT($K83,2),AW83,0)) -> 0.0263957938 | BT83: =+IF($K83="Ongoing",AX83,IF(RIGHT($K83,2)=RIGHT(BT$39,2),SUM($AV83:AX83),0)+IF(RIGHT(BT$39,2)>RIGHT($K83,2),AX83,0)) -> 0.0263957938 | BU83: =+IF($K83="Ongoing",AY83,IF(RIGHT($K83,2)=RIGHT(BU$39,2),SUM($AV83:AY83),0)+IF(RIGHT(BU$39,2)>RIGHT($K83,2),AY83,0)) -> 0.0263957938 | BV83: =+IF($K83="Ongoing",AZ83,IF(RIGHT($K83,2)=RIGHT(BV$39,2),SUM($AV83:AZ83),0)+IF(RIGHT(BV$39,2)>RIGHT($K83,2),AZ83,0)) -> 0.0263957938 | BW83: =+IF($K83="Ongoing",BA83,IF(RIGHT($K83,2)=RIGHT(BW$39,2),SUM($AV83:BA83),0)+IF(RIGHT(BW$39,2)>RIGHT($K83,2),BA83,0)) -> 0.02746550286 | BX83: =+IF($K83="Ongoing",BB83,IF(RIGHT($K83,2)=RIGHT(BX$39,2),SUM($AV83:BB83),0)+IF(RIGHT(BX$39,2)>RIGHT($K83,2),BB83,0)) -> 0.02655804553 | BY83: =+IF($K83="Ongoing",BC83,IF(RIGHT($K83,2)=RIGHT(BY$39,2),SUM($AV83:BC83),0)+IF(RIGHT(BY$39,2)>RIGHT($K83,2),BC83,0)) -> 0.02660918992 | BZ83: =+IF($K83="Ongoing",BD83,IF(RIGHT($K83,2)=RIGHT(BZ$39,2),SUM($AV83:BD83),0)+IF(RIGHT(BZ$39,2)>RIGHT($K83,2),BD83,0)) -> 0.02645102797 | CA83: =+IF($K83="Ongoing",BE83,IF(RIGHT($K83,2)=RIGHT(CA$39,2),SUM($AV83:BE83),0)+IF(RIGHT(CA$39,2)>RIGHT($K83,2),BE83,0)) -> 0.02605446149 | CC83: =+O83*KeyAssumptionsPriceControl_FO!X$15 -> 0.02700289706 | CD83: =+P83*KeyAssumptionsPriceControl_FO!Y$15 -> 0.02762396369 | CE83: =+Q83*KeyAssumptionsPriceControl_FO!Z$15 -> 0.02825931486 | CF83: =+R83*KeyAssumptionsPriceControl_FO!AA$15 -> 0.0289092791 | CG83: =+S83*KeyAssumptionsPriceControl_FO!AB$15 -> 0.02957419252 | CH83: =+T83*KeyAssumptionsPriceControl_FO!AC$15 -> 0.03148048083 | CI83: =+U83*KeyAssumptionsPriceControl_FO!AD$15 -> 0.03114049753 | CJ83: =+V83*KeyAssumptionsPriceControl_FO!AE$15 -> 0.03191807736 | CK83: =+W83*KeyAssumptionsPriceControl_FO!AF$15 -> 0.03245811227 | CL83: =+X83*KeyAssumptionsPriceControl_FO!AG$15 -> 0.03270682885 | CN83: 0.003375362132 | CO83: 0.01020371973 | CP83: 0.01718912954 | CQ83: 0.02433520379 | CR83: 0.02827027561 | CS83: 0.02907375218 | CT83: 0.02991596466 | CU83: 0.03065221228 | CV83: 0.03138880203 | CW83: 0.0319025855
C84: Hardware Replacement | E84: Sewerage | F84: Renewals | G84: Corporate | H84: Significant projects | J84: Straight line | K84: Ongoing | L84: 4 | M84: 4 | O84: 0.02750802676 | P84: 0.02750802676 | Q84: 0.02750802676 | R84: 0.02750802676 | S84: 0.02750802676 | T84: 0.02862280989 | U84: 0.02767711525 | V84: 0.02773041471 | W84: 0.02756558832 | X84: 0.02715231182 | AK84: 0 | AL84: 0 | AM84: 0 | AN84: 0 | AO84: 0 | AP84: 0 | AQ84: 0 | AR84: 0 | AS84: 0 | AT84: 0 | AV84: 0.02750802676 | AW84: 0.02750802676 | AX84: 0.02750802676 | AY84: 0.02750802676 | AZ84: 0.02750802676 | BA84: 0.02862280989 | BB84: 0.02767711525 | BC84: 0.02773041471 | BD84: 0.02756558832 | BE84: 0.02715231182 | BG84: 0.003438503345 | BH84: 0.01031551004 | BI84: 0.01719251673 | BJ84: 0.02406952342 | BK84: 0.02750802676 | BL84: 0.02764737465 | BM84: 0.02780785861 | BN84: 0.02785679316 | BO84: =IF($L84=0,0, IF($L84<=0.5,BZ84, IF(AND($J84="straight line",$L84<1.51),(BY84-((BY84/$L84)*0.5))+BZ84/$L84*0.5, IF($J84="straight line", IF((LEFT(BO$39,4)*1)-INT($L84)<LEFT($BG$39,4)*1,0,((OFFSET(BZ84,0,-INT($L84+0.5),1,1))/$L84)*(IF($L84-INT($L84)>0.5,$L84-0.5-INT($L84),IF($L84-INT($L84)<=0.5,$L84-0.5-INT($L84)+1,0)))) +BZ84/$L84*0.5 +SUM(OFFSET(BZ84,0,MAX(-INT($L84+(0.5-(10^-12))),-BO$40)+1,1,MIN(INT($L84+(0.5-(10^-12))),BO$40)-1))*1/$L84, IF($J84="Declining Balance",-$BG$38,0))))) -> 0.02789178685 | BP84: 0.02771516978 | BR84: =+IF($K84="Ongoing",AV84,IF(RIGHT($K84,2)=RIGHT(BR$39,2),SUM($AV84:AV84),0)+IF(RIGHT(BR$39,2)>RIGHT($K84,2),AV84,0)) -> 0.02750802676 | BS84: =+IF($K84="Ongoing",AW84,IF(RIGHT($K84,2)=RIGHT(BS$39,2),SUM($AV84:AW84),0)+IF(RIGHT(BS$39,2)>RIGHT($K84,2),AW84,0)) -> 0.02750802676 | BT84: =+IF($K84="Ongoing",AX84,IF(RIGHT($K84,2)=RIGHT(BT$39,2),SUM($AV84:AX84),0)+IF(RIGHT(BT$39,2)>RIGHT($K84,2),AX84,0)) -> 0.02750802676 | BU84: =+IF($K84="Ongoing",AY84,IF(RIGHT($K84,2)=RIGHT(BU$39,2),SUM($AV84:AY84),0)+IF(RIGHT(BU$39,2)>RIGHT($K84,2),AY84,0)) -> 0.02750802676 | BV84: =+IF($K84="Ongoing",AZ84,IF(RIGHT($K84,2)=RIGHT(BV$39,2),SUM($AV84:AZ84),0)+IF(RIGHT(BV$39,2)>RIGHT($K84,2),AZ84,0)) -> 0.02750802676 | BW84: =+IF($K84="Ongoing",BA84,IF(RIGHT($K84,2)=RIGHT(BW$39,2),SUM($AV84:BA84),0)+IF(RIGHT(BW$39,2)>RIGHT($K84,2),BA84,0)) -> 0.02862280989 | BX84: =+IF($K84="Ongoing",BB84,IF(RIGHT($K84,2)=RIGHT(BX$39,2),SUM($AV84:BB84),0)+IF(RIGHT(BX$39,2)>RIGHT($K84,2),BB84,0)) -> 0.02767711525 | BY84: =+IF($K84="Ongoing",BC84,IF(RIGHT($K84,2)=RIGHT(BY$39,2),SUM($AV84:BC84),0)+IF(RIGHT(BY$39,2)>RIGHT($K84,2),BC84,0)) -> 0.02773041471 | BZ84: =+IF($K84="Ongoing",BD84,IF(RIGHT($K84,2)=RIGHT(BZ$39,2),SUM($AV84:BD84),0)+IF(RIGHT(BZ$39,2)>RIGHT($K84,2),BD84,0)) -> 0.02756558832 | CA84: =+IF($K84="Ongoing",BE84,IF(RIGHT($K84,2)=RIGHT(CA$39,2),SUM($AV84:BE84),0)+IF(RIGHT(CA$39,2)>RIGHT($K84,2),BE84,0)) -> 0.02715231182 | CC84: =+O84*KeyAssumptionsPriceControl_FO!X$15 -> 0.02814071138 | CD84: =+P84*KeyAssumptionsPriceControl_FO!Y$15 -> 0.02878794774 | CE84: =+Q84*KeyAssumptionsPriceControl_FO!Z$15 -> 0.02945007054 | CF84: =+R84*KeyAssumptionsPriceControl_FO!AA$15 -> 0.03012742216 | CG84: =+S84*KeyAssumptionsPriceControl_FO!AB$15 -> 0.03082035287 | CH84: =+T84*KeyAssumptionsPriceControl_FO!AC$15 -> 0.03280696598 | CI84: =+U84*KeyAssumptionsPriceControl_FO!AD$15 -> 0.03245265689 | CJ84: =+V84*KeyAssumptionsPriceControl_FO!AE$15 -> 0.03326300141 | CK84: =+W84*KeyAssumptionsPriceControl_FO!AF$15 -> 0.03382579163 | CL84: =+X84*KeyAssumptionsPriceControl_FO!AG$15 -> 0.03408498832 | CN84: 0.003517588922 | CO84: 0.01063367131 | CP84: 0.0179134236 | CQ84: 0.02536061019 | CR84: 0.02946149314 | CS84: 0.03029882561 | CT84: 0.03117652618 | CU84: 0.03194379688 | CV84: =IF($M84=0,0, IF($M84<=0.5,CK84, IF(AND($J84="straight line",$M84<1.51),(CJ84-((CJ84/$M84)*0.5))+CK84/$M84*0.5, IF($J84="straight line", IF((LEFT(CV$39,4)*1)-INT($M84)<LEFT($CN$39,4)*1,0,((OFFSET(CK84,0,-INT($M84+0.5),1,1))/$M84)*(IF($M84-INT($M84)>0.5,$M84-0.5-INT($M84),IF($M84-INT($M84)<=0.5,$M84-0.5-INT($M84)+1,0)))) +CK84/$M84*0.5 +SUM(OFFSET(CK84,0,MAX(-INT($M84+(0.5-(10^-12))),-CV$40)+1,1,MIN(INT($M84+(0.5-(10^-12))),CV$40)-1))*1/$M84, IF($J84="Declining Balance",-$CN$38,0))))) -> 0.03271142413 | CW84: 0.03324685677
C85: Hardware Replacement | E85: Recycled Water | F85: Renewals | G85: Corporate | H85: Significant projects | J85: Straight line | K85: Ongoing | L85: 4 | M85: 4 | O85: 0.001096179435 | P85: 0.001096179435 | Q85: 0.001096179435 | R85: 0.001096179435 | S85: 0.001096179435 | T85: 0.001140602917 | U85: 0.001102917516 | V85: 0.001105041469 | W85: 0.00109847323 | X85: 0.001082004394 | AK85: 0 | AL85: 0 | AM85: 0 | AN85: 0 | AO85: 0 | AP85: 0 | AQ85: 0 | AR85: 0 | AS85: 0 | AT85: 0 | AV85: 0.001096179435 | AW85: 0.001096179435 | AX85: 0.001096179435 | AY85: 0.001096179435 | AZ85: 0.001096179435 | BA85: 0.001140602917 | BB85: 0.001102917516 | BC85: 0.001105041469 | BD85: 0.00109847323 | BE85: 0.001082004394 | BG85: 0.0001370224293 | BH85: =IF($L85=0,0, IF($L85<=0.5,BS85, IF(AND($J85="straight line",$L85<1.51),(BR85-((BR85/$L85)*0.5))+BS85/$L85*0.5, IF($J85="straight line", IF((LEFT(BH$39,4)*1)-INT($L85)<LEFT($BG$39,4)*1,0,((OFFSET(BS85,0,-INT($L85+0.5),1,1))/$L85)*(IF($L85-INT($L85)>0.5,$L85-0.5-INT($L85),IF($L85-INT($L85)<=0.5,$L85-0.5-INT($L85)+1,0)))) +BS85/$L85*0.5 +SUM(OFFSET(BS85,0,MAX(-INT($L85+(0.5-(10^-12))),-BH$40)+1,1,MIN(INT($L85+(0.5-(10^-12))),BH$40)-1))*1/$L85, IF($J85="Declining Balance",-$BG$38,0))))) -> 0.000411067288 | BI85: 0.0006851121466 | BJ85: 0.0009591570053 | BK85: 0.001096179435 | BL85: 0.00110173237 | BM85: 0.001108127565 | BN85: 0.00111007758 | BO85: 0.001111472059 | BP85: 0.001104433968 | BR85: =+IF($K85="Ongoing",AV85,IF(RIGHT($K85,2)=RIGHT(BR$39,2),SUM($AV85:AV85),0)+IF(RIGHT(BR$39,2)>RIGHT($K85,2),AV85,0)) -> 0.001096179435 | BS85: =+IF($K85="Ongoing",AW85,IF(RIGHT($K85,2)=RIGHT(BS$39,2),SUM($AV85:AW85),0)+IF(RIGHT(BS$39,2)>RIGHT($K85,2),AW85,0)) -> 0.001096179435 | BT85: =+IF($K85="Ongoing",AX85,IF(RIGHT($K85,2)=RIGHT(BT$39,2),SUM($AV85:AX85),0)+IF(RIGHT(BT$39,2)>RIGHT($K85,2),AX85,0)) -> 0.001096179435 | BU85: =+IF($K85="Ongoing",AY85,IF(RIGHT($K85,2)=RIGHT(BU$39,2),SUM($AV85:AY85),0)+IF(RIGHT(BU$39,2)>RIGHT($K85,2),AY85,0)) -> 0.001096179435 | BV85: =+IF($K85="Ongoing",AZ85,IF(RIGHT($K85,2)=RIGHT(BV$39,2),SUM($AV85:AZ85),0)+IF(RIGHT(BV$39,2)>RIGHT($K85,2),AZ85,0)) -> 0.001096179435 | BW85: =+IF($K85="Ongoing",BA85,IF(RIGHT($K85,2)=RIGHT(BW$39,2),SUM($AV85:BA85),0)+IF(RIGHT(BW$39,2)>RIGHT($K85,2),BA85,0)) -> 0.001140602917 | BX85: =+IF($K85="Ongoing",BB85,IF(RIGHT($K85,2)=RIGHT(BX$39,2),SUM($AV85:BB85),0)+IF(RIGHT(BX$39,2)>RIGHT($K85,2),BB85,0)) -> 0.001102917516 | BY85: =+IF($K85="Ongoing",BC85,IF(RIGHT($K85,2)=RIGHT(BY$39,2),SUM($AV85:BC85),0)+IF(RIGHT(BY$39,2)>RIGHT($K85,2),BC85,0)) -> 0.001105041469 | BZ85: =+IF($K85="Ongoing",BD85,IF(RIGHT($K85,2)=RIGHT(BZ$39,2),SUM($AV85:BD85),0)+IF(RIGHT(BZ$39,2)>RIGHT($K85,2),BD85,0)) -> 0.00109847323 | CA85: =+IF($K85="Ongoing",BE85,IF(RIGHT($K85,2)=RIGHT(CA$39,2),SUM($AV85:BE85),0)+IF(RIGHT(CA$39,2)>RIGHT($K85,2),BE85,0)) -> 0.001082004394 | CC85: =+O85*KeyAssumptionsPriceControl_FO!X$15 -> 0.001121391562 | CD85: =+P85*KeyAssumptionsPriceControl_FO!Y$15 -> 0.001147183568 | CE85: =+Q85*KeyAssumptionsPriceControl_FO!Z$15 -> 0.00117356879 | CF85: =+R85*KeyAssumptionsPriceControl_FO!AA$15 -> 0.001200560872 | CG85: =+S85*KeyAssumptionsPriceControl_FO!AB$15 -> 0.001228173772 | CH85: =+T85*KeyAssumptionsPriceControl_FO!AC$15 -> 0.00130733919 | CI85: =+U85*KeyAssumptionsPriceControl_FO!AD$15 -> 0.001293220171 | CJ85: =+V85*KeyAssumptionsPriceControl_FO!AE$15 -> 0.001325511946 | CK85: =+W85*KeyAssumptionsPriceControl_FO!AF$15 -> 0.00134793882 | CL85: =+X85*KeyAssumptionsPriceControl_FO!AG$15 -> 0.001358267663 | CN85: 0.0001401739452 | CO85: =IF($M85=0,0, IF($M85<=0.5,CD85, IF(AND($J85="straight line",$M85<1.51),(CC85-((CC85/$M85)*0.5))+CD85/$M85*0.5, IF($J85="straight line", IF((LEFT(CO$39,4)*1)-INT($M85)<LEFT($CN$39,4)*1,0,((OFFSET(CD85,0,-INT($M85+0.5),1,1))/$M85)*(IF($M85-INT($M85)>0.5,$M85-0.5-INT($M85),IF($M85-INT($M85)<=0.5,$M85-0.5-INT($M85)+1,0)))) +CD85/$M85*0.5 +SUM(OFFSET(CD85,0,MAX(-INT($M85+(0.5-(10^-12))),-CO$40)+1,1,MIN(INT($M85+(0.5-(10^-12))),CO$40)-1))*1/$M85, IF($J85="Declining Balance",-$CN$38,0))))) -> 0.0004237458363 | CP85: 0.000713839881 | CQ85: 0.001010606089 | CR85: 0.001174023974 | CS85: 0.001207391203 | CT85: 0.001242367078 | CU85: 0.001272942385 | CV85: 0.001303531901 | CW85: 0.001324868591
C86: Water Distribution System Civil, Mech & Electrical Works | E86: Water | F86: Renewals | G86: Treatment | H86: Other Capital expenditure | J86: Straight line | K86: Ongoing | L86: 15 | M86: 15 | O86: 0.05 | P86: 0.05 | Q86: 0.05 | R86: 0.06 | S86: 0.065 | T86: 0.05722891566 | U86: 0.05533807829 | V86: 0.0554446461 | W86: 0.05511508951 | X86: 0.0542887777 | AK86: 0 | AL86: 0 | AM86: 0 | AN86: 0 | AO86: 0 | AP86: 0 | AQ86: 0 | AR86: 0 | AS86: 0 | AT86: 0 | AV86: 0.05 | AW86: 0.05 | AX86: 0.05 | AY86: 0.06 | AZ86: 0.065 | BA86: 0.05722891566 | BB86: 0.05533807829 | BC86: 0.0554446461 | BD86: 0.05511508951 | BE86: 0.0542887777 | BG86: 0.001666666667 | BH86: 0.005 | BI86: 0.008333333333 | BJ86: 0.012 | BK86: 0.01616666667 | BL86: 0.02024096386 | BM86: 0.02399319699 | BN86: 0.02768595447 | BO86: 0.03137127899 | BP86: 0.03501807456 | BR86: =+IF($K86="Ongoing",AV86,IF(RIGHT($K86,2)=RIGHT(BR$39,2),SUM($AV86:AV86),0)+IF(RIGHT(BR$39,2)>RIGHT($K86,2),AV86,0)) -> 0.05 | BS86: =+IF($K86="Ongoing",AW86,IF(RIGHT($K86,2)=RIGHT(BS$39,2),SUM($AV86:AW86),0)+IF(RIGHT(BS$39,2)>RIGHT($K86,2),AW86,0)) -> 0.05 | BT86: =+IF($K86="Ongoing",AX86,IF(RIGHT($K86,2)=RIGHT(BT$39,2),SUM($AV86:AX86),0)+IF(RIGHT(BT$39,2)>RIGHT($K86,2),AX86,0)) -> 0.05 | BU86: =+IF($K86="Ongoing",AY86,IF(RIGHT($K86,2)=RIGHT(BU$39,2),SUM($AV86:AY86),0)+IF(RIGHT(BU$39,2)>RIGHT($K86,2),AY86,0)) -> 0.06 | BV86: =+IF($K86="Ongoing",AZ86,IF(RIGHT($K86,2)=RIGHT(BV$39,2),SUM($AV86:AZ86),0)+IF(RIGHT(BV$39,2)>RIGHT($K86,2),AZ86,0)) -> 0.065 | BW86: =+IF($K86="Ongoing",BA86,IF(RIGHT($K86,2)=RIGHT(BW$39,2),SUM($AV86:BA86),0)+IF(RIGHT(BW$39,2)>RIGHT($K86,2),BA86,0)) -> 0.05722891566 | BX86: =+IF($K86="Ongoing",BB86,IF(RIGHT($K86,2)=RIGHT(BX$39,2),SUM($AV86:BB86),0)+IF(RIGHT(BX$39,2)>RIGHT($K86,2),BB86,0)) -> 0.05533807829 | BY86: =+IF($K86="Ongoing",BC86,IF(RIGHT($K86,2)=RIGHT(BY$39,2),SUM($AV86:BC86),0)+IF(RIGHT(BY$39,2)>RIGHT($K86,2),BC86,0)) -> 0.0554446461 | BZ86: =+IF($K86="Ongoing",BD86,IF(RIGHT($K86,2)=RIGHT(BZ$39,2),SUM($AV86:BD86),0)+IF(RIGHT(BZ$39,2)>RIGHT($K86,2),BD86,0)) -> 0.05511508951 | CA86: =+IF($K86="Ongoing",BE86,IF(RIGHT($K86,2)=RIGHT(CA$39,2),SUM($AV86:BE86),0)+IF(RIGHT(CA$39,2)>RIGHT($K86,2),BE86,0)) -> 0.0542887777 | CC86: =+O86*KeyAssumptionsPriceControl_FO!X$15 -> 0.05115 | CD86: =+P86*KeyAssumptionsPriceControl_FO!Y$15 -> 0.05232645 | CE86: =+Q86*KeyAssumptionsPriceControl_FO!Z$15 -> 0.05352995835 | CF86: =+R86*KeyAssumptionsPriceControl_FO!AA$15 -> 0.06571337687 | CG86: =+S86*KeyAssumptionsPriceControl_FO!AB$15 -> 0.07282684992 | CH86: =+T86*KeyAssumptionsPriceControl_FO!AC$15 -> 0.065594786 | CI86: =+U86*KeyAssumptionsPriceControl_FO!AD$15 -> 0.06488637459 | CJ86: =+V86*KeyAssumptionsPriceControl_FO!AE$15 -> 0.06650659071 | CK86: =+W86*KeyAssumptionsPriceControl_FO!AF$15 -> 0.06763184272 | CL86: =+X86*KeyAssumptionsPriceControl_FO!AG$15 -> 0.06815008484 | CN86: 0.001705 | CO86: 0.005154215 | CP86: 0.008682761945 | CQ86: 0.01265753979 | CR86: 0.01727554735 | CS86: 0.02188960188 | CT86: 0.0262389739 | CU86: 0.03061873941 | CV86: 0.03509002052 | CW86: 0.03961608477
C87: Water Quality Compliance Program | E87: Water | F87: Improvements / Compliance | G87: Treatment | H87: Other Capital expenditure | J87: Straight line | K87: 2019-20 | L87: 25 | M87: 25 | O87: 0.24655 | P87: 0.01 | Q87: 0 | R87: 0 | S87: 0 | T87: 0.1144578313 | U87: 0.1106761566 | V87: 0 | W87: 0 | X87: 0 | AK87: 0 | AL87: 0 | AM87: 0 | AN87: 0 | AO87: 0 | AP87: 0 | AQ87: 0 | AR87: 0 | AS87: 0 | AT87: 0 | AV87: 0.24655 | AW87: 0.01 | AX87: 0 | AY87: 0 | AZ87: 0 | BA87: 0.1144578313 | BB87: 0.1106761566 | BC87: 0 | BD87: 0 | BE87: 0 | BG87: 0 | BH87: 0.005131 | BI87: 0.010262 | BJ87: 0.010262 | BK87: 0.010262 | BL87: 0.01255115663 | BM87: 0.01705383638 | BN87: 0.01926735952 | BO87: 0.01926735952 | BP87: 0.01926735952 | BR87: =+IF($K87="Ongoing",AV87,IF(RIGHT($K87,2)=RIGHT(BR$39,2),SUM($AV87:AV87),0)+IF(RIGHT(BR$39,2)>RIGHT($K87,2),AV87,0)) -> 0 | BS87: =+IF($K87="Ongoing",AW87,IF(RIGHT($K87,2)=RIGHT(BS$39,2),SUM($AV87:AW87),0)+IF(RIGHT(BS$39,2)>RIGHT($K87,2),AW87,0)) -> 0.25655 | BT87: =+IF($K87="Ongoing",AX87,IF(RIGHT($K87,2)=RIGHT(BT$39,2),SUM($AV87:AX87),0)+IF(RIGHT(BT$39,2)>RIGHT($K87,2),AX87,0)) -> 0 | BU87: =+IF($K87="Ongoing",AY87,IF(RIGHT($K87,2)=RIGHT(BU$39,2),SUM($AV87:AY87),0)+IF(RIGHT(BU$39,2)>RIGHT($K87,2),AY87,0)) -> 0 | BV87: =+IF($K87="Ongoing",AZ87,IF(RIGHT($K87,2)=RIGHT(BV$39,2),SUM($AV87:AZ87),0)+IF(RIGHT(BV$39,2)>RIGHT($K87,2),AZ87,0)) -> 0 | BW87: =+IF($K87="Ongoing",BA87,IF(RIGHT($K87,2)=RIGHT(BW$39,2),SUM($AV87:BA87),0)+IF(RIGHT(BW$39,2)>RIGHT($K87,2),BA87,0)) -> 0.1144578313 | BX87: =+IF($K87="Ongoing",BB87,IF(RIGHT($K87,2)=RIGHT(BX$39,2),SUM($AV87:BB87),0)+IF(RIGHT(BX$39,2)>RIGHT($K87,2),BB87,0)) -> 0.1106761566 | BY87: =+IF($K87="Ongoing",BC87,IF(RIGHT($K87,2)=RIGHT(BY$39,2),SUM($AV87:BC87),0)+IF(RIGHT(BY$39,2)>RIGHT($K87,2),BC87,0)) -> 0 | BZ87: =+IF($K87="Ongoing",BD87,IF(RIGHT($K87,2)=RIGHT(BZ$39,2),SUM($AV87:BD87),0)+IF(RIGHT(BZ$39,2)>RIGHT($K87,2),BD87,0)) -> 0 | CA87: =+IF($K87="Ongoing",BE87,IF(RIGHT($K87,2)=RIGHT(CA$39,2),SUM($AV87:BE87),0)+IF(RIGHT(CA$39,2)>RIGHT($K87,2),BE87,0)) -> 0 | CC87: =+O87*KeyAssumptionsPriceControl_FO!X$15 -> 0.25222065 | CD87: =+P87*KeyAssumptionsPriceControl_FO!Y$15 -> 0.01046529 | CE87: =+Q87*KeyAssumptionsPriceControl_FO!Z$15 -> 0 | CF87: =+R87*KeyAssumptionsPriceControl_FO!AA$15 -> 0 | CG87: =+S87*KeyAssumptionsPriceControl_FO!AB$15 -> 0 | CH87: =+T87*KeyAssumptionsPriceControl_FO!AC$15 -> 0.131189572 | CI87: =+U87*KeyAssumptionsPriceControl_FO!AD$15 -> 0.1297727492 | CJ87: =+V87*KeyAssumptionsPriceControl_FO!AE$15 -> 0 | CK87: =+W87*KeyAssumptionsPriceControl_FO!AF$15 -> 0 | CL87: =+X87*KeyAssumptionsPriceControl_FO!AG$15 -> 0 | CN87: 0.005044413 | CO87: 0.0102981318 | CP87: 0.0105074376 | CQ87: 0.0105074376 | CR87: 0.0105074376 | CS87: 0.01313122904 | CT87: 0.01835047546 | CU87: 0.02094593045 | CV87: 0.02094593045 | CW87: 0.02094593045
C88: GIS-AMIS Strategy Implementation | E88: Water | F88: Improvements / Compliance | G88: Corporate | H88: Other Capital expenditure | J88: Straight line | K88: Ongoing | L88: 15 | M88: 15 | O88: 0.01439770571 | P88: 0.01439770571 | Q88: 0.01439770571 | R88: 0.01439770571 | S88: 0.01439770571 | T88: 0.02746550286 | U88: 0.02655804553 | V88: 0.02660918992 | W88: 0.02645102797 | X88: 0.02605446149 | AK88: 0 | AL88: 0 | AM88: 0 | AN88: 0 | AO88: 0 | AP88: 0 | AQ88: 0 | AR88: 0 | AS88: 0 | AT88: 0 | AV88: 0.01439770571 | AW88: 0.01439770571 | AX88: 0.01439770571 | AY88: 0.01439770571 | AZ88: 0.01439770571 | BA88: 0.02746550286 | BB88: 0.02655804553 | BC88: 0.02660918992 | BD88: 0.02645102797 | BE88: 0.02605446149 | BG88: 0.0004799235237 | BH88: 0.001439770571 | BI88: 0.002399617618 | BJ88: 0.003359464666 | BK88: 0.004319311713 | BL88: 0.005714751999 | BM88: 0.007515536945 | BN88: 0.009287778127 | BO88: 0.01105645206 | BP88: 0.01280663504 | BR88: =+IF($K88="Ongoing",AV88,IF(RIGHT($K88,2)=RIGHT(BR$39,2),SUM($AV88:AV88),0)+IF(RIGHT(BR$39,2)>RIGHT($K88,2),AV88,0)) -> 0.01439770571 | BS88: =+IF($K88="Ongoing",AW88,IF(RIGHT($K88,2)=RIGHT(BS$39,2),SUM($AV88:AW88),0)+IF(RIGHT(BS$39,2)>RIGHT($K88,2),AW88,0)) -> 0.01439770571 | BT88: =+IF($K88="Ongoing",AX88,IF(RIGHT($K88,2)=RIGHT(BT$39,2),SUM($AV88:AX88),0)+IF(RIGHT(BT$39,2)>RIGHT($K88,2),AX88,0)) -> 0.01439770571 | BU88: =+IF($K88="Ongoing",AY88,IF(RIGHT($K88,2)=RIGHT(BU$39,2),SUM($AV88:AY88),0)+IF(RIGHT(BU$39,2)>RIGHT($K88,2),AY88,0)) -> 0.01439770571 | BV88: =+IF($K88="Ongoing",AZ88,IF(RIGHT($K88,2)=RIGHT(BV$39,2),SUM($AV88:AZ88),0)+IF(RIGHT(BV$39,2)>RIGHT($K88,2),AZ88,0)) -> 0.01439770571 | BW88: =+IF($K88="Ongoing",BA88,IF(RIGHT($K88,2)=RIGHT(BW$39,2),SUM($AV88:BA88),0)+IF(RIGHT(BW$39,2)>RIGHT($K88,2),BA88,0)) -> 0.02746550286 | BX88: =+IF($K88="Ongoing",BB88,IF(RIGHT($K88,2)=RIGHT(BX$39,2),SUM($AV88:BB88),0)+IF(RIGHT(BX$39,2)>RIGHT($K88,2),BB88,0)) -> 0.02655804553 | BY88: =+IF($K88="Ongoing",BC88,IF(RIGHT($K88,2)=RIGHT(BY$39,2),SUM($AV88:BC88),0)+IF(RIGHT(BY$39,2)>RIGHT($K88,2),BC88,0)) -> 0.02660918992 | BZ88: =+IF($K88="Ongoing",BD88,IF(RIGHT($K88,2)=RIGHT(BZ$39,2),SUM($AV88:BD88),0)+IF(RIGHT(BZ$39,2)>RIGHT($K88,2),BD88,0)) -> 0.02645102797 | CA88: =+IF($K88="Ongoing",BE88,IF(RIGHT($K88,2)=RIGHT(CA$39,2),SUM($AV88:BE88),0)+IF(RIGHT(CA$39,2)>RIGHT($K88,2),BE88,0)) -> 0.02605446149 | CC88: =+O88*KeyAssumptionsPriceControl_FO!X$15 -> 0.01472885294 | CD88: =+P88*KeyAssumptionsPriceControl_FO!Y$15 -> 0.01506761656 | CE88: =+Q88*KeyAssumptionsPriceControl_FO!Z$15 -> 0.01541417174 | CF88: =+R88*KeyAssumptionsPriceControl_FO!AA$15 -> 0.01576869769 | CG88: =+S88*KeyAssumptionsPriceControl_FO!AB$15 -> 0.01613137774 | CH88: =+T88*KeyAssumptionsPriceControl_FO!AC$15 -> 0.03148048083 | CI88: =+U88*KeyAssumptionsPriceControl_FO!AD$15 -> 0.03114049753 | CJ88: =+V88*KeyAssumptionsPriceControl_FO!AE$15 -> 0.03191807736 | CK88: =+W88*KeyAssumptionsPriceControl_FO!AF$15 -> 0.03245811227 | CL88: =+X88*KeyAssumptionsPriceControl_FO!AG$15 -> 0.03270682885 | CN88: 0.0004909617647 | CO88: 0.001484177415 | CP88: 0.002500237025 | CQ88: 0.003539666006 | CR88: 0.004603001853 | CS88: 0.006190063805 | CT88: 0.008277429751 | CU88: 0.01037938225 | CV88: 0.01252525523 | CW88: 0.01469741994
C89: GIS-AMIS Strategy Implementation | E89: Sewerage | F89: Improvements / Compliance | G89: Corporate | H89: Other Capital expenditure | J89: Straight line | K89: Ongoing | L89: 15 | M89: 15 | O89: 0.01500437823 | P89: 0.01500437823 | Q89: 0.01500437823 | R89: 0.01500437823 | S89: 0.01500437823 | T89: 0.02862280989 | U89: 0.02767711525 | V89: 0.02773041471 | W89: 0.02756558832 | X89: 0.02715231182 | AK89: 0 | AL89: 0 | AM89: 0 | AN89: 0 | AO89: 0 | AP89: 0 | AQ89: 0 | AR89: 0 | AS89: 0 | AT89: 0 | AV89: 0.01500437823 | AW89: 0.01500437823 | AX89: 0.01500437823 | AY89: 0.01500437823 | AZ89: 0.01500437823 | BA89: 0.02862280989 | BB89: 0.02767711525 | BC89: 0.02773041471 | BD89: 0.02756558832 | BE89: 0.02715231182 | BG89: 0.0005001459412 | BH89: 0.001500437823 | BI89: 0.002500729706 | BJ89: 0.003501021588 | BK89: 0.00450131347 | BL89: 0.005955553074 | BM89: 0.007832217246 | BN89: 0.009679134911 | BO89: 0.01152233501 | BP89: 0.01334626502 | BR89: =+IF($K89="Ongoing",AV89,IF(RIGHT($K89,2)=RIGHT(BR$39,2),SUM($AV89:AV89),0)+IF(RIGHT(BR$39,2)>RIGHT($K89,2),AV89,0)) -> 0.01500437823 | BS89: =+IF($K89="Ongoing",AW89,IF(RIGHT($K89,2)=RIGHT(BS$39,2),SUM($AV89:AW89),0)+IF(RIGHT(BS$39,2)>RIGHT($K89,2),AW89,0)) -> 0.01500437823 | BT89: =+IF($K89="Ongoing",AX89,IF(RIGHT($K89,2)=RIGHT(BT$39,2),SUM($AV89:AX89),0)+IF(RIGHT(BT$39,2)>RIGHT($K89,2),AX89,0)) -> 0.01500437823 | BU89: =+IF($K89="Ongoing",AY89,IF(RIGHT($K89,2)=RIGHT(BU$39,2),SUM($AV89:AY89),0)+IF(RIGHT(BU$39,2)>RIGHT($K89,2),AY89,0)) -> 0.01500437823 | BV89: =+IF($K89="Ongoing",AZ89,IF(RIGHT($K89,2)=RIGHT(BV$39,2),SUM($AV89:AZ89),0)+IF(RIGHT(BV$39,2)>RIGHT($K89,2),AZ89,0)) -> 0.01500437823 | BW89: =+IF($K89="Ongoing",BA89,IF(RIGHT($K89,2)=RIGHT(BW$39,2),SUM($AV89:BA89),0)+IF(RIGHT(BW$39,2)>RIGHT($K89,2),BA89,0)) -> 0.02862280989 | BX89: =+IF($K89="Ongoing",BB89,IF(RIGHT($K89,2)=RIGHT(BX$39,2),SUM($AV89:BB89),0)+IF(RIGHT(BX$39,2)>RIGHT($K89,2),BB89,0)) -> 0.02767711525 | BY89: =+IF($K89="Ongoing",BC89,IF(RIGHT($K89,2)=RIGHT(BY$39,2),SUM($AV89:BC89),0)+IF(RIGHT(BY$39,2)>RIGHT($K89,2),BC89,0)) -> 0.02773041471 | BZ89: =+IF($K89="Ongoing",BD89,IF(RIGHT($K89,2)=RIGHT(BZ$39,2),SUM($AV89:BD89),0)+IF(RIGHT(BZ$39,2)>RIGHT($K89,2),BD89,0)) -> 0.02756558832 | CA89: =+IF($K89="Ongoing",BE89,IF(RIGHT($K89,2)=RIGHT(CA$39,2),SUM($AV89:BE89),0)+IF(RIGHT(CA$39,2)>RIGHT($K89,2),BE89,0)) -> 0.02715231182 | CC89: =+O89*KeyAssumptionsPriceControl_FO!X$15 -> 0.01534947893 | CD89: =+P89*KeyAssumptionsPriceControl_FO!Y$15 -> 0.01570251695 | CE89: =+Q89*KeyAssumptionsPriceControl_FO!Z$15 -> 0.01606367484 | CF89: =+R89*KeyAssumptionsPriceControl_FO!AA$15 -> 0.01643313936 | CG89: =+S89*KeyAssumptionsPriceControl_FO!AB$15 -> 0.01681110157 | CH89: =+T89*KeyAssumptionsPriceControl_FO!AC$15 -> 0.03280696598 | CI89: =+U89*KeyAssumptionsPriceControl_FO!AD$15 -> 0.03245265689 | CJ89: =+V89*KeyAssumptionsPriceControl_FO!AE$15 -> 0.03326300141 | CK89: =+W89*KeyAssumptionsPriceControl_FO!AF$15 -> 0.03382579163 | CL89: =+X89*KeyAssumptionsPriceControl_FO!AG$15 -> 0.03408498832 | CN89: 0.0005116492978 | CO89: 0.001546715827 | CP89: 0.002605588887 | CQ89: 0.003688816027 | CR89: 0.004796957391 | CS89: 0.006450892976 | CT89: 0.008626213738 | CU89: 0.01081673568 | CV89: 0.01305302878 | CW89: 0.01531672145
C90: GIS-AMIS Strategy Implementation | E90: Recycled Water | F90: Improvements / Compliance | G90: Corporate | H90: Other Capital expenditure | J90: Straight line | K90: Ongoing | L90: 15 | M90: 15 | O90: 0.0005979160553 | P90: 0.0005979160553 | Q90: 0.0005979160553 | R90: 0.0005979160553 | S90: 0.0005979160553 | T90: 0.001140602917 | U90: 0.001102917516 | V90: 0.001105041469 | W90: 0.00109847323 | X90: 0.001082004394 | AK90: 0 | AL90: 0 | AM90: 0 | AN90: 0 | AO90: 0 | AP90: 0 | AQ90: 0 | AR90: 0 | AS90: 0 | AT90: 0 | AV90: 0.0005979160553 | AW90: 0.0005979160553 | AX90: 0.0005979160553 | AY90: 0.0005979160553 | AZ90: 0.0005979160553 | BA90: 0.001140602917 | BB90: 0.001102917516 | BC90: 0.001105041469 | BD90: 0.00109847323 | BE90: 0.001082004394 | BG90: 1.993053518e-05 | BH90: 5.979160553e-05 | BI90: 9.965267588e-05 | BJ90: 0.0001395137462 | BK90: 0.0001793748166 | BL90: 0.000237325449 | BM90: 0.0003121094634 | BN90: 0.0003857080962 | BO90: 0.0004591585862 | BP90: 0.0005318411737 | BR90: =+IF($K90="Ongoing",AV90,IF(RIGHT($K90,2)=RIGHT(BR$39,2),SUM($AV90:AV90),0)+IF(RIGHT(BR$39,2)>RIGHT($K90,2),AV90,0)) -> 0.0005979160553 | BS90: =+IF($K90="Ongoing",AW90,IF(RIGHT($K90,2)=RIGHT(BS$39,2),SUM($AV90:AW90),0)+IF(RIGHT(BS$39,2)>RIGHT($K90,2),AW90,0)) -> 0.0005979160553 | BT90: =+IF($K90="Ongoing",AX90,IF(RIGHT($K90,2)=RIGHT(BT$39,2),SUM($AV90:AX90),0)+IF(RIGHT(BT$39,2)>RIGHT($K90,2),AX90,0)) -> 0.0005979160553 | BU90: =+IF($K90="Ongoing",AY90,IF(RIGHT($K90,2)=RIGHT(BU$39,2),SUM($AV90:AY90),0)+IF(RIGHT(BU$39,2)>RIGHT($K90,2),AY90,0)) -> 0.0005979160553 | BV90: =+IF($K90="Ongoing",AZ90,IF(RIGHT($K90,2)=RIGHT(BV$39,2),SUM($AV90:AZ90),0)+IF(RIGHT(BV$39,2)>RIGHT($K90,2),AZ90,0)) -> 0.0005979160553 | BW90: =+IF($K90="Ongoing",BA90,IF(RIGHT($K90,2)=RIGHT(BW$39,2),SUM($AV90:BA90),0)+IF(RIGHT(BW$39,2)>RIGHT($K90,2),BA90,0)) -> 0.001140602917 | BX90: =+IF($K90="Ongoing",BB90,IF(RIGHT($K90,2)=RIGHT(BX$39,2),SUM($AV90:BB90),0)+IF(RIGHT(BX$39,2)>RIGHT($K90,2),BB90,0)) -> 0.001102917516 | BY90: =+IF($K90="Ongoing",BC90,IF(RIGHT($K90,2)=RIGHT(BY$39,2),SUM($AV90:BC90),0)+IF(RIGHT(BY$39,2)>RIGHT($K90,2),BC90,0)) -> 0.001105041469 | BZ90: =+IF($K90="Ongoing",BD90,IF(RIGHT($K90,2)=RIGHT(BZ$39,2),SUM($AV90:BD90),0)+IF(RIGHT(BZ$39,2)>RIGHT($K90,2),BD90,0)) -> 0.00109847323 | CA90: =+IF($K90="Ongoing",BE90,IF(RIGHT($K90,2)=RIGHT(CA$39,2),SUM($AV90:BE90),0)+IF(RIGHT(CA$39,2)>RIGHT($K90,2),BE90,0)) -> 0.001082004394 | CC90: =+O90*KeyAssumptionsPriceControl_FO!X$15 -> 0.0006116681245 | CD90: =+P90*KeyAssumptionsPriceControl_FO!Y$15 -> 0.0006257364914 | CE90: =+Q90*KeyAssumptionsPriceControl_FO!Z$15 -> 0.0006401284307 | CF90: =+R90*KeyAssumptionsPriceControl_FO!AA$15 -> 0.0006548513846 | CG90: =+S90*KeyAssumptionsPriceControl_FO!AB$15 -> 0.0006699129664 | CH90: =+T90*KeyAssumptionsPriceControl_FO!AC$15 -> 0.00130733919 | CI90: =+U90*KeyAssumptionsPriceControl_FO!AD$15 -> 0.001293220171 | CJ90: =+V90*KeyAssumptionsPriceControl_FO!AE$15 -> 0.001325511946 | CK90: =+W90*KeyAssumptionsPriceControl_FO!AF$15 -> 0.00134793882 | CL90: =+X90*KeyAssumptionsPriceControl_FO!AG$15 -> 0.001358267663 | CN90: 2.038893748e-05 | CO90: 6.163575801e-05 | CP90: 0.0001038312554 | CQ90: 0.0001469972493 | CR90: 0.000191156061 | CS90: 0.0002570644662 | CT90: 0.0003437497782 | CU90: 0.0004310408488 | CV90: 0.0005201558743 | CW90: 0.0006103627571
C91: King Road WWTP Civil, Mech & Electrical Works | E91: Sewerage | F91: Renewals | G91: Treatment | H91: Other Capital expenditure | J91: Straight line | K91: Ongoing | L91: 15 | M91: 15 | O91: 0.03 | P91: 0.03 | Q91: 0.03 | R91: 0.03 | S91: 0.03 | T91: 0.05722891566 | U91: 0.05533807829 | V91: 0.0554446461 | W91: 0.05511508951 | X91: 0.0542887777 | AK91: 0 | AL91: 0 | AM91: 0 | AN91: 0 | AO91: 0 | AP91: 0 | AQ91: 0 | AR91: 0 | AS91: 0 | AT91: 0 | AV91: 0.03 | AW91: 0.03 | AX91: 0.03 | AY91: 0.03 | AZ91: 0.03 | BA91: 0.05722891566 | BB91: 0.05533807829 | BC91: 0.0554446461 | BD91: 0.05511508951 | BE91: 0.0542887777 | BG91: 0.001 | BH91: 0.003 | BI91: 0.005 | BJ91: 0.007 | BK91: 0.009 | BL91: 0.01190763052 | BM91: 0.01565986365 | BN91: 0.01935262113 | BO91: 0.02303794565 | BP91: 0.02668474123 | BR91: =+IF($K91="Ongoing",AV91,IF(RIGHT($K91,2)=RIGHT(BR$39,2),SUM($AV91:AV91),0)+IF(RIGHT(BR$39,2)>RIGHT($K91,2),AV91,0)) -> 0.03 | BS91: =+IF($K91="Ongoing",AW91,IF(RIGHT($K91,2)=RIGHT(BS$39,2),SUM($AV91:AW91),0)+IF(RIGHT(BS$39,2)>RIGHT($K91,2),AW91,0)) -> 0.03 | BT91: =+IF($K91="Ongoing",AX91,IF(RIGHT($K91,2)=RIGHT(BT$39,2),SUM($AV91:AX91),0)+IF(RIGHT(BT$39,2)>RIGHT($K91,2),AX91,0)) -> 0.03 | BU91: =+IF($K91="Ongoing",AY91,IF(RIGHT($K91,2)=RIGHT(BU$39,2),SUM($AV91:AY91),0)+IF(RIGHT(BU$39,2)>RIGHT($K91,2),AY91,0)) -> 0.03 | BV91: =+IF($K91="Ongoing",AZ91,IF(RIGHT($K91,2)=RIGHT(BV$39,2),SUM($AV91:AZ91),0)+IF(RIGHT(BV$39,2)>RIGHT($K91,2),AZ91,0)) -> 0.03 | BW91: =+IF($K91="Ongoing",BA91,IF(RIGHT($K91,2)=RIGHT(BW$39,2),SUM($AV91:BA91),0)+IF(RIGHT(BW$39,2)>RIGHT($K91,2),BA91,0)) -> 0.05722891566 | BX91: =+IF($K91="Ongoing",BB91,IF(RIGHT($K91,2)=RIGHT(BX$39,2),SUM($AV91:BB91),0)+IF(RIGHT(BX$39,2)>RIGHT($K91,2),BB91,0)) -> 0.05533807829 | BY91: =+IF($K91="Ongoing",BC91,IF(RIGHT($K91,2)=RIGHT(BY$39,2),SUM($AV91:BC91),0)+IF(RIGHT(BY$39,2)>RIGHT($K91,2),BC91,0)) -> 0.0554446461 | BZ91: =+IF($K91="Ongoing",BD91,IF(RIGHT($K91,2)=RIGHT(BZ$39,2),SUM($AV91:BD91),0)+IF(RIGHT(BZ$39,2)>RIGHT($K91,2),BD91,0)) -> 0.05511508951 | CA91: =+IF($K91="Ongoing",BE91,IF(RIGHT($K91,2)=RIGHT(CA$39,2),SUM($AV91:BE91),0)+IF(RIGHT(CA$39,2)>RIGHT($K91,2),BE91,0)) -> 0.0542887777 | CC91: =+O91*KeyAssumptionsPriceControl_FO!X$15 -> 0.03069 | CD91: =+P91*KeyAssumptionsPriceControl_FO!Y$15 -> 0.03139587 | CE91: =+Q91*KeyAssumptionsPriceControl_FO!Z$15 -> 0.03211797501 | CF91: =+R91*KeyAssumptionsPriceControl_FO!AA$15 -> 0.03285668844 | CG91: =+S91*KeyAssumptionsPriceControl_FO!AB$15 -> 0.03361239227 | CH91: =+T91*KeyAssumptionsPriceControl_FO!AC$15 -> 0.065594786 | CI91: =+U91*KeyAssumptionsPriceControl_FO!AD$15 -> 0.06488637459 | CJ91: =+V91*KeyAssumptionsPriceControl_FO!AE$15 -> 0.06650659071 | CK91: =+W91*KeyAssumptionsPriceControl_FO!AF$15 -> 0.06763184272 | CL91: =+X91*KeyAssumptionsPriceControl_FO!AG$15 -> 0.06815008484 | CN91: 0.001023 | CO91: 0.003092529 | CP91: 0.005209657167 | CQ91: 0.007375479282 | CR91: 0.009591115305 | CS91: 0.01289802125 | CT91: 0.01724739327 | CU91: 0.02162715878 | CV91: 0.02609843989 | CW91: 0.03062450414
C92: Minor storage renewals | E92: Water | F92: Improvements / Compliance | G92: Headworks | H92: Other Capital expenditure | J92: Straight line | K92: 2022-23 | L92: 100 | M92: 100 | O92: 0 | P92: 0 | Q92: 0 | R92: 0 | S92: 0.1679732333 | T92: 0 | U92: 0 | V92: 0 | W92: 0 | X92: 0 | AK92: 0 | AL92: 0 | AM92: 0 | AN92: 0 | AO92: 0 | AP92: 0 | AQ92: 0 | AR92: 0 | AS92: 0 | AT92: 0 | AV92: 0 | AW92: 0 | AX92: 0 | AY92: 0 | AZ92: 0.1679732333 | BA92: 0 | BB92: 0 | BC92: 0 | BD92: 0 | BE92: 0 | BG92: 0 | BH92: 0 | BI92: 0 | BJ92: 0 | BK92: 0.0008398661664 | BL92: 0.001679732333 | BM92: 0.001679732333 | BN92: 0.001679732333 | BO92: 0.001679732333 | BP92: 0.001679732333 | BR92: =+IF($K92="Ongoing",AV92,IF(RIGHT($K92,2)=RIGHT(BR$39,2),SUM($AV92:AV92),0)+IF(RIGHT(BR$39,2)>RIGHT($K92,2),AV92,0)) -> 0 | BS92: =+IF($K92="Ongoing",AW92,IF(RIGHT($K92,2)=RIGHT(BS$39,2),SUM($AV92:AW92),0)+IF(RIGHT(BS$39,2)>RIGHT($K92,2),AW92,0)) -> 0 | BT92: =+IF($K92="Ongoing",AX92,IF(RIGHT($K92,2)=RIGHT(BT$39,2),SUM($AV92:AX92),0)+IF(RIGHT(BT$39,2)>RIGHT($K92,2),AX92,0)) -> 0 | BU92: =+IF($K92="Ongoing",AY92,IF(RIGHT($K92,2)=RIGHT(BU$39,2),SUM($AV92:AY92),0)+IF(RIGHT(BU$39,2)>RIGHT($K92,2),AY92,0)) -> 0 | BV92: =+IF($K92="Ongoing",AZ92,IF(RIGHT($K92,2)=RIGHT(BV$39,2),SUM($AV92:AZ92),0)+IF(RIGHT(BV$39,2)>RIGHT($K92,2),AZ92,0)) -> 0.1679732333 | BW92: =+IF($K92="Ongoing",BA92,IF(RIGHT($K92,2)=RIGHT(BW$39,2),SUM($AV92:BA92),0)+IF(RIGHT(BW$39,2)>RIGHT($K92,2),BA92,0)) -> 0 | BX92: =+IF($K92="Ongoing",BB92,IF(RIGHT($K92,2)=RIGHT(BX$39,2),SUM($AV92:BB92),0)+IF(RIGHT(BX$39,2)>RIGHT($K92,2),BB92,0)) -> 0 | BY92: =+IF($K92="Ongoing",BC92,IF(RIGHT($K92,2)=RIGHT(BY$39,2),SUM($AV92:BC92),0)+IF(RIGHT(BY$39,2)>RIGHT($K92,2),BC92,0)) -> 0 | BZ92: =+IF($K92="Ongoing",BD92,IF(RIGHT($K92,2)=RIGHT(BZ$39,2),SUM($AV92:BD92),0)+IF(RIGHT(BZ$39,2)>RIGHT($K92,2),BD92,0)) -> 0 | CA92: =+IF($K92="Ongoing",BE92,IF(RIGHT($K92,2)=RIGHT(CA$39,2),SUM($AV92:BE92),0)+IF(RIGHT(CA$39,2)>RIGHT($K92,2),BE92,0)) -> 0 | CC92: =+O92*KeyAssumptionsPriceControl_FO!X$15 -> 0 | CD92: =+P92*KeyAssumptionsPriceControl_FO!Y$15 -> 0 | CE92: =+Q92*KeyAssumptionsPriceControl_FO!Z$15 -> 0 | CF92: =+R92*KeyAssumptionsPriceControl_FO!AA$15 -> 0 | CG92: =+S92*KeyAssumptionsPriceControl_FO!AB$15 -> 0.1881994069 | CH92: =+T92*KeyAssumptionsPriceControl_FO!AC$15 -> 0 | CI92: =+U92*KeyAssumptionsPriceControl_FO!AD$15 -> 0 | CJ92: =+V92*KeyAssumptionsPriceControl_FO!AE$15 -> 0 | CK92: =+W92*KeyAssumptionsPriceControl_FO!AF$15 -> 0 | CL92: =+X92*KeyAssumptionsPriceControl_FO!AG$15 -> 0 | CN92: 0 | CO92: 0 | CP92: 0 | CQ92: 0 | CR92: 0.0009409970346 | CS92: 0.001881994069 | CT92: 0.001881994069 | CU92: 0.001881994069 | CV92: 0.001881994069 | CW92: 0.001881994069
C93: Minor storage renewals | E93: Sewerage | F93: Improvements / Compliance | G93: Headworks | H93: Other Capital expenditure | J93: Straight line | K93: 2022-23 | L93: 100 | M93: 100 | O93: 0 | P93: 0 | Q93: 0 | R93: 0 | S93: 0.1750510794 | T93: 0 | U93: 0 | V93: 0 | W93: 0 | X93: 0 | AK93: 0 | AL93: 0 | AM93: 0 | AN93: 0 | AO93: 0 | AP93: 0 | AQ93: 0 | AR93: 0 | AS93: 0 | AT93: 0 | AV93: 0 | AW93: 0 | AX93: 0 | AY93: 0 | AZ93: 0.1750510794 | BA93: 0 | BB93: 0 | BC93: 0 | BD93: 0 | BE93: 0 | BG93: 0 | BH93: 0 | BI93: 0 | BJ93: 0 | BK93: 0.000875255397 | BL93: 0.001750510794 | BM93: 0.001750510794 | BN93: 0.001750510794 | BO93: 0.001750510794 | BP93: 0.001750510794 | BR93: =+IF($K93="Ongoing",AV93,IF(RIGHT($K93,2)=RIGHT(BR$39,2),SUM($AV93:AV93),0)+IF(RIGHT(BR$39,2)>RIGHT($K93,2),AV93,0)) -> 0 | BS93: =+IF($K93="Ongoing",AW93,IF(RIGHT($K93,2)=RIGHT(BS$39,2),SUM($AV93:AW93),0)+IF(RIGHT(BS$39,2)>RIGHT($K93,2),AW93,0)) -> 0 | BT93: =+IF($K93="Ongoing",AX93,IF(RIGHT($K93,2)=RIGHT(BT$39,2),SUM($AV93:AX93),0)+IF(RIGHT(BT$39,2)>RIGHT($K93,2),AX93,0)) -> 0 | BU93: =+IF($K93="Ongoing",AY93,IF(RIGHT($K93,2)=RIGHT(BU$39,2),SUM($AV93:AY93),0)+IF(RIGHT(BU$39,2)>RIGHT($K93,2),AY93,0)) -> 0 | BV93: =+IF($K93="Ongoing",AZ93,IF(RIGHT($K93,2)=RIGHT(BV$39,2),SUM($AV93:AZ93),0)+IF(RIGHT(BV$39,2)>RIGHT($K93,2),AZ93,0)) -> 0.1750510794 | BW93: =+IF($K93="Ongoing",BA93,IF(RIGHT($K93,2)=RIGHT(BW$39,2),SUM($AV93:BA93),0)+IF(RIGHT(BW$39,2)>RIGHT($K93,2),BA93,0)) -> 0 | BX93: =+IF($K93="Ongoing",BB93,IF(RIGHT($K93,2)=RIGHT(BX$39,2),SUM($AV93:BB93),0)+IF(RIGHT(BX$39,2)>RIGHT($K93,2),BB93,0)) -> 0 | BY93: =+IF($K93="Ongoing",BC93,IF(RIGHT($K93,2)=RIGHT(BY$39,2),SUM($AV93:BC93),0)+IF(RIGHT(BY$39,2)>RIGHT($K93,2),BC93,0)) -> 0 | BZ93: =+IF($K93="Ongoing",BD93,IF(RIGHT($K93,2)=RIGHT(BZ$39,2),SUM($AV93:BD93),0)+IF(RIGHT(BZ$39,2)>RIGHT($K93,2),BD93,0)) -> 0 | CA93: =+IF($K93="Ongoing",BE93,IF(RIGHT($K93,2)=RIGHT(CA$39,2),SUM($AV93:BE93),0)+IF(RIGHT(CA$39,2)>RIGHT($K93,2),BE93,0)) -> 0 | CC93: =+O93*KeyAssumptionsPriceControl_FO!X$15 -> 0 | CD93: =+P93*KeyAssumptionsPriceControl_FO!Y$15 -> 0 | CE93: =+Q93*KeyAssumptionsPriceControl_FO!Z$15 -> 0 | CF93: =+R93*KeyAssumptionsPriceControl_FO!AA$15 -> 0 | CG93: =+S93*KeyAssumptionsPriceControl_FO!AB$15 -> 0.1961295183 | CH93: =+T93*KeyAssumptionsPriceControl_FO!AC$15 -> 0 | CI93: =+U93*KeyAssumptionsPriceControl_FO!AD$15 -> 0 | CJ93: =+V93*KeyAssumptionsPriceControl_FO!AE$15 -> 0 | CK93: =+W93*KeyAssumptionsPriceControl_FO!AF$15 -> 0 | CL93: =+X93*KeyAssumptionsPriceControl_FO!AG$15 -> 0 | CN93: 0 | CO93: 0 | CP93: 0 | CQ93: 0 | CR93: 0.0009806475914 | CS93: 0.001961295183 | CT93: 0.001961295183 | CU93: 0.001961295183 | CV93: 0.001961295183 | CW93: 0.001961295183
C94: Minor storage renewals | E94: Recycled Water | F94: Improvements / Compliance | G94: Headworks | H94: Other Capital expenditure | J94: Straight line | K94: 2022-23 | L94: 100 | M94: 100 | O94: 0 | P94: 0 | Q94: 0 | R94: 0 | S94: 0.006975687311 | T94: 0 | U94: 0 | V94: 0 | W94: 0 | X94: 0 | AK94: 0 | AL94: 0 | AM94: 0 | AN94: 0 | AO94: 0 | AP94: 0 | AQ94: 0 | AR94: 0 | AS94: 0 | AT94: 0 | AV94: 0 | AW94: 0 | AX94: 0 | AY94: 0 | AZ94: 0.006975687311 | BA94: 0 | BB94: 0 | BC94: 0 | BD94: 0 | BE94: 0 | BG94: 0 | BH94: 0 | BI94: 0 | BJ94: 0 | BK94: 3.487843656e-05 | BL94: 6.975687311e-05 | BM94: 6.975687311e-05 | BN94: 6.975687311e-05 | BO94: 6.975687311e-05 | BP94: 6.975687311e-05 | BR94: =+IF($K94="Ongoing",AV94,IF(RIGHT($K94,2)=RIGHT(BR$39,2),SUM($AV94:AV94),0)+IF(RIGHT(BR$39,2)>RIGHT($K94,2),AV94,0)) -> 0 | BS94: =+IF($K94="Ongoing",AW94,IF(RIGHT($K94,2)=RIGHT(BS$39,2),SUM($AV94:AW94),0)+IF(RIGHT(BS$39,2)>RIGHT($K94,2),AW94,0)) -> 0 | BT94: =+IF($K94="Ongoing",AX94,IF(RIGHT($K94,2)=RIGHT(BT$39,2),SUM($AV94:AX94),0)+IF(RIGHT(BT$39,2)>RIGHT($K94,2),AX94,0)) -> 0 | BU94: =+IF($K94="Ongoing",AY94,IF(RIGHT($K94,2)=RIGHT(BU$39,2),SUM($AV94:AY94),0)+IF(RIGHT(BU$39,2)>RIGHT($K94,2),AY94,0)) -> 0 | BV94: =+IF($K94="Ongoing",AZ94,IF(RIGHT($K94,2)=RIGHT(BV$39,2),SUM($AV94:AZ94),0)+IF(RIGHT(BV$39,2)>RIGHT($K94,2),AZ94,0)) -> 0.006975687311 | BW94: =+IF($K94="Ongoing",BA94,IF(RIGHT($K94,2)=RIGHT(BW$39,2),SUM($AV94:BA94),0)+IF(RIGHT(BW$39,2)>RIGHT($K94,2),BA94,0)) -> 0 | BX94: =+IF($K94="Ongoing",BB94,IF(RIGHT($K94,2)=RIGHT(BX$39,2),SUM($AV94:BB94),0)+IF(RIGHT(BX$39,2)>RIGHT($K94,2),BB94,0)) -> 0 | BY94: =+IF($K94="Ongoing",BC94,IF(RIGHT($K94,2)=RIGHT(BY$39,2),SUM($AV94:BC94),0)+IF(RIGHT(BY$39,2)>RIGHT($K94,2),BC94,0)) -> 0 | BZ94: =+IF($K94="Ongoing",BD94,IF(RIGHT($K94,2)=RIGHT(BZ$39,2),SUM($AV94:BD94),0)+IF(RIGHT(BZ$39,2)>RIGHT($K94,2),BD94,0)) -> 0 | CA94: =+IF($K94="Ongoing",BE94,IF(RIGHT($K94,2)=RIGHT(CA$39,2),SUM($AV94:BE94),0)+IF(RIGHT(CA$39,2)>RIGHT($K94,2),BE94,0)) -> 0 | CC94: =+O94*KeyAssumptionsPriceControl_FO!X$15 -> 0 | CD94: =+P94*KeyAssumptionsPriceControl_FO!Y$15 -> 0 | CE94: =+Q94*KeyAssumptionsPriceControl_FO!Z$15 -> 0 | CF94: =+R94*KeyAssumptionsPriceControl_FO!AA$15 -> 0 | CG94: =+S94*KeyAssumptionsPriceControl_FO!AB$15 -> 0.007815651275 | CH94: =+T94*KeyAssumptionsPriceControl_FO!AC$15 -> 0 | CI94: =+U94*KeyAssumptionsPriceControl_FO!AD$15 -> 0 | CJ94: =+V94*KeyAssumptionsPriceControl_FO!AE$15 -> 0 | CK94: =+W94*KeyAssumptionsPriceControl_FO!AF$15 -> 0 | CL94: =+X94*KeyAssumptionsPriceControl_FO!AG$15 -> 0 | CN94: 0 | CO94: 0 | CP94: 0 | CQ94: 0 | CR94: 3.907825638e-05 | CS94: 7.815651275e-05 | CT94: 7.815651275e-05 | CU94: 7.815651275e-05 | CV94: 7.815651275e-05 | CW94: 7.815651275e-05
C95: Diversity & Inclusion Plan – Facility Improvement | E95: Water | F95: Improvements / Compliance | G95: Corporate | H95: Other Capital expenditure | J95: Straight line | K95: 2018-19 | L95: 15 | M95: 15 | O95: 0.1055831752 | P95: 0 | Q95: 0 | R95: 0 | S95: 0 | T95: 0 | U95: 0 | V95: 0 | W95: 0 | X95: 0 | AK95: 0 | AL95: 0 | AM95: 0 | AN95: 0 | AO95: 0 | AP95: 0 | AQ95: 0 | AR95: 0 | AS95: 0 | AT95: 0 | AV95: 0.1055831752 | AW95: 0 | AX95: 0 | AY95: 0 | AZ95: 0 | BA95: 0 | BB95: 0 | BC95: 0 | BD95: 0 | BE95: 0 | BG95: 0.003519439174 | BH95: 0.007038878347 | BI95: 0.007038878347 | BJ95: 0.007038878347 | BK95: 0.007038878347 | BL95: 0.007038878347 | BM95: 0.007038878347 | BN95: 0.007038878347 | BO95: 0.007038878347 | BP95: 0.007038878347 | BR95: =+IF($K95="Ongoing",AV95,IF(RIGHT($K95,2)=RIGHT(BR$39,2),SUM($AV95:AV95),0)+IF(RIGHT(BR$39,2)>RIGHT($K95,2),AV95,0)) -> 0.1055831752 | BS95: =+IF($K95="Ongoing",AW95,IF(RIGHT($K95,2)=RIGHT(BS$39,2),SUM($AV95:AW95),0)+IF(RIGHT(BS$39,2)>RIGHT($K95,2),AW95,0)) -> 0 | BT95: =+IF($K95="Ongoing",AX95,IF(RIGHT($K95,2)=RIGHT(BT$39,2),SUM($AV95:AX95),0)+IF(RIGHT(BT$39,2)>RIGHT($K95,2),AX95,0)) -> 0 | BU95: =+IF($K95="Ongoing",AY95,IF(RIGHT($K95,2)=RIGHT(BU$39,2),SUM($AV95:AY95),0)+IF(RIGHT(BU$39,2)>RIGHT($K95,2),AY95,0)) -> 0 | BV95: =+IF($K95="Ongoing",AZ95,IF(RIGHT($K95,2)=RIGHT(BV$39,2),SUM($AV95:AZ95),0)+IF(RIGHT(BV$39,2)>RIGHT($K95,2),AZ95,0)) -> 0 | BW95: =+IF($K95="Ongoing",BA95,IF(RIGHT($K95,2)=RIGHT(BW$39,2),SUM($AV95:BA95),0)+IF(RIGHT(BW$39,2)>RIGHT($K95,2),BA95,0)) -> 0 | BX95: =+IF($K95="Ongoing",BB95,IF(RIGHT($K95,2)=RIGHT(BX$39,2),SUM($AV95:BB95),0)+IF(RIGHT(BX$39,2)>RIGHT($K95,2),BB95,0)) -> 0 | BY95: =+IF($K95="Ongoing",BC95,IF(RIGHT($K95,2)=RIGHT(BY$39,2),SUM($AV95:BC95),0)+IF(RIGHT(BY$39,2)>RIGHT($K95,2),BC95,0)) -> 0 | BZ95: =+IF($K95="Ongoing",BD95,IF(RIGHT($K95,2)=RIGHT(BZ$39,2),SUM($AV95:BD95),0)+IF(RIGHT(BZ$39,2)>RIGHT($K95,2),BD95,0)) -> 0 | CA95: =+IF($K95="Ongoing",BE95,IF(RIGHT($K95,2)=RIGHT(CA$39,2),SUM($AV95:BE95),0)+IF(RIGHT(CA$39,2)>RIGHT($K95,2),BE95,0)) -> 0 | CC95: =+O95*KeyAssumptionsPriceControl_FO!X$15 -> 0.1080115882 | CD95: =+P95*KeyAssumptionsPriceControl_FO!Y$15 -> 0 | CE95: =+Q95*KeyAssumptionsPriceControl_FO!Z$15 -> 0 | CF95: =+R95*KeyAssumptionsPriceControl_FO!AA$15 -> 0 | CG95: =+S95*KeyAssumptionsPriceControl_FO!AB$15 -> 0 | CH95: =+T95*KeyAssumptionsPriceControl_FO!AC$15 -> 0 | CI95: =+U95*KeyAssumptionsPriceControl_FO!AD$15 -> 0 | CJ95: =+V95*KeyAssumptionsPriceControl_FO!AE$15 -> 0 | CK95: =+W95*KeyAssumptionsPriceControl_FO!AF$15 -> 0 | CL95: =+X95*KeyAssumptionsPriceControl_FO!AG$15 -> 0 | CN95: 0.003600386275 | CO95: 0.007200772549 | CP95: 0.007200772549 | CQ95: 0.007200772549 | CR95: 0.007200772549 | CS95: 0.007200772549 | CT95: 0.007200772549 | CU95: 0.007200772549 | CV95: 0.007200772549 | CW95: 0.007200772549
C96: Diversity & Inclusion Plan – Facility Improvement | E96: Sewerage | F96: Improvements / Compliance | G96: Corporate | H96: Other Capital expenditure | J96: Straight line | K96: 2018-19 | L96: 15 | M96: 15 | O96: 0.1100321071 | P96: 0 | Q96: 0 | R96: 0 | S96: 0 | T96: 0 | U96: 0 | V96: 0 | W96: 0 | X96: 0 | AK96: 0 | AL96: 0 | AM96: 0 | AN96: 0 | AO96: 0 | AP96: 0 | AQ96: 0 | AR96: 0 | AS96: 0 | AT96: 0 | AV96: 0.1100321071 | AW96: 0 | AX96: 0 | AY96: 0 | AZ96: 0 | BA96: 0 | BB96: 0 | BC96: 0 | BD96: 0 | BE96: 0 | BG96: 0.003667736902 | BH96: 0.007335473804 | BI96: 0.007335473804 | BJ96: 0.007335473804 | BK96: 0.007335473804 | BL96: 0.007335473804 | BM96: 0.007335473804 | BN96: 0.007335473804 | BO96: 0.007335473804 | BP96: 0.007335473804 | BR96: =+IF($K96="Ongoing",AV96,IF(RIGHT($K96,2)=RIGHT(BR$39,2),SUM($AV96:AV96),0)+IF(RIGHT(BR$39,2)>RIGHT($K96,2),AV96,0)) -> 0.1100321071 | BS96: =+IF($K96="Ongoing",AW96,IF(RIGHT($K96,2)=RIGHT(BS$39,2),SUM($AV96:AW96),0)+IF(RIGHT(BS$39,2)>RIGHT($K96,2),AW96,0)) -> 0 | BT96: =+IF($K96="Ongoing",AX96,IF(RIGHT($K96,2)=RIGHT(BT$39,2),SUM($AV96:AX96),0)+IF(RIGHT(BT$39,2)>RIGHT($K96,2),AX96,0)) -> 0 | BU96: =+IF($K96="Ongoing",AY96,IF(RIGHT($K96,2)=RIGHT(BU$39,2),SUM($AV96:AY96),0)+IF(RIGHT(BU$39,2)>RIGHT($K96,2),AY96,0)) -> 0 | BV96: =+IF($K96="Ongoing",AZ96,IF(RIGHT($K96,2)=RIGHT(BV$39,2),SUM($AV96:AZ96),0)+IF(RIGHT(BV$39,2)>RIGHT($K96,2),AZ96,0)) -> 0 | BW96: =+IF($K96="Ongoing",BA96,IF(RIGHT($K96,2)=RIGHT(BW$39,2),SUM($AV96:BA96),0)+IF(RIGHT(BW$39,2)>RIGHT($K96,2),BA96,0)) -> 0 | BX96: =+IF($K96="Ongoing",BB96,IF(RIGHT($K96,2)=RIGHT(BX$39,2),SUM($AV96:BB96),0)+IF(RIGHT(BX$39,2)>RIGHT($K96,2),BB96,0)) -> 0 | BY96: =+IF($K96="Ongoing",BC96,IF(RIGHT($K96,2)=RIGHT(BY$39,2),SUM($AV96:BC96),0)+IF(RIGHT(BY$39,2)>RIGHT($K96,2),BC96,0)) -> 0 | BZ96: =+IF($K96="Ongoing",BD96,IF(RIGHT($K96,2)=RIGHT(BZ$39,2),SUM($AV96:BD96),0)+IF(RIGHT(BZ$39,2)>RIGHT($K96,2),BD96,0)) -> 0 | CA96: =+IF($K96="Ongoing",BE96,IF(RIGHT($K96,2)=RIGHT(CA$39,2),SUM($AV96:BE96),0)+IF(RIGHT(CA$39,2)>RIGHT($K96,2),BE96,0)) -> 0 | CC96: =+O96*KeyAssumptionsPriceControl_FO!X$15 -> 0.1125628455 | CD96: =+P96*KeyAssumptionsPriceControl_FO!Y$15 -> 0 | CE96: =+Q96*KeyAssumptionsPriceControl_FO!Z$15 -> 0 | CF96: =+R96*KeyAssumptionsPriceControl_FO!AA$15 -> 0 | CG96: =+S96*KeyAssumptionsPriceControl_FO!AB$15 -> 0 | CH96: =+T96*KeyAssumptionsPriceControl_FO!AC$15 -> 0 | CI96: =+U96*KeyAssumptionsPriceControl_FO!AD$15 -> 0 | CJ96: =+V96*KeyAssumptionsPriceControl_FO!AE$15 -> 0 | CK96: =+W96*KeyAssumptionsPriceControl_FO!AF$15 -> 0 | CL96: =+X96*KeyAssumptionsPriceControl_FO!AG$15 -> 0 | CN96: 0.003752094851 | CO96: 0.007504189701 | CP96: 0.007504189701 | CQ96: 0.007504189701 | CR96: 0.007504189701 | CS96: 0.007504189701 | CT96: 0.007504189701 | CU96: 0.007504189701 | CV96: 0.007504189701 | CW96: 0.007504189701
C97: Diversity & Inclusion Plan – Facility Improvement | E97: Recycled Water | F97: Improvements / Compliance | G97: Corporate | H97: Other Capital expenditure | J97: Straight line | K97: 2018-19 | L97: 15 | M97: 15 | O97: 0.004384717739 | P97: 0 | Q97: 0 | R97: 0 | S97: 0 | T97: 0 | U97: 0 | V97: 0 | W97: 0 | X97: 0 | AK97: 0 | AL97: 0 | AM97: 0 | AN97: 0 | AO97: 0 | AP97: 0 | AQ97: 0 | AR97: 0 | AS97: 0 | AT97: 0 | AV97: 0.004384717739 | AW97: 0 | AX97: 0 | AY97: 0 | AZ97: 0 | BA97: 0 | BB97: 0 | BC97: 0 | BD97: 0 | BE97: 0 | BG97: 0.000146157258 | BH97: 0.0002923145159 | BI97: 0.0002923145159 | BJ97: 0.0002923145159 | BK97: 0.0002923145159 | BL97: 0.0002923145159 | BM97: 0.0002923145159 | BN97: 0.0002923145159 | BO97: 0.0002923145159 | BP97: 0.0002923145159 | BR97: =+IF($K97="Ongoing",AV97,IF(RIGHT($K97,2)=RIGHT(BR$39,2),SUM($AV97:AV97),0)+IF(RIGHT(BR$39,2)>RIGHT($K97,2),AV97,0)) -> 0.004384717739 | BS97: =+IF($K97="Ongoing",AW97,IF(RIGHT($K97,2)=RIGHT(BS$39,2),SUM($AV97:AW97),0)+IF(RIGHT(BS$39,2)>RIGHT($K97,2),AW97,0)) -> 0 | BT97: =+IF($K97="Ongoing",AX97,IF(RIGHT($K97,2)=RIGHT(BT$39,2),SUM($AV97:AX97),0)+IF(RIGHT(BT$39,2)>RIGHT($K97,2),AX97,0)) -> 0 | BU97: =+IF($K97="Ongoing",AY97,IF(RIGHT($K97,2)=RIGHT(BU$39,2),SUM($AV97:AY97),0)+IF(RIGHT(BU$39,2)>RIGHT($K97,2),AY97,0)) -> 0 | BV97: =+IF($K97="Ongoing",AZ97,IF(RIGHT($K97,2)=RIGHT(BV$39,2),SUM($AV97:AZ97),0)+IF(RIGHT(BV$39,2)>RIGHT($K97,2),AZ97,0)) -> 0 | BW97: =+IF($K97="Ongoing",BA97,IF(RIGHT($K97,2)=RIGHT(BW$39,2),SUM($AV97:BA97),0)+IF(RIGHT(BW$39,2)>RIGHT($K97,2),BA97,0)) -> 0 | BX97: =+IF($K97="Ongoing",BB97,IF(RIGHT($K97,2)=RIGHT(BX$39,2),SUM($AV97:BB97),0)+IF(RIGHT(BX$39,2)>RIGHT($K97,2),BB97,0)) -> 0 | BY97: =+IF($K97="Ongoing",BC97,IF(RIGHT($K97,2)=RIGHT(BY$39,2),SUM($AV97:BC97),0)+IF(RIGHT(BY$39,2)>RIGHT($K97,2),BC97,0)) -> 0 | BZ97: =+IF($K97="Ongoing",BD97,IF(RIGHT($K97,2)=RIGHT(BZ$39,2),SUM($AV97:BD97),0)+IF(RIGHT(BZ$39,2)>RIGHT($K97,2),BD97,0)) -> 0 | CA97: =+IF($K97="Ongoing",BE97,IF(RIGHT($K97,2)=RIGHT(CA$39,2),SUM($AV97:BE97),0)+IF(RIGHT(CA$39,2)>RIGHT($K97,2),BE97,0)) -> 0 | CC97: =+O97*KeyAssumptionsPriceControl_FO!X$15 -> 0.004485566247 | CD97: =+P97*KeyAssumptionsPriceControl_FO!Y$15 -> 0 | CE97: =+Q97*KeyAssumptionsPriceControl_FO!Z$15 -> 0 | CF97: =+R97*KeyAssumptionsPriceControl_FO!AA$15 -> 0 | CG97: =+S97*KeyAssumptionsPriceControl_FO!AB$15 -> 0 | CH97: =+T97*KeyAssumptionsPriceControl_FO!AC$15 -> 0 | CI97: =+U97*KeyAssumptionsPriceControl_FO!AD$15 -> 0 | CJ97: =+V97*KeyAssumptionsPriceControl_FO!AE$15 -> 0 | CK97: =+W97*KeyAssumptionsPriceControl_FO!AF$15 -> 0 | CL97: =+X97*KeyAssumptionsPriceControl_FO!AG$15 -> 0 | CN97: 0.0001495188749 | CO97: 0.0002990377498 | CP97: 0.0002990377498 | CQ97: 0.0002990377498 | CR97: 0.0002990377498 | CS97: 0.0002990377498 | CT97: 0.0002990377498 | CU97: 0.0002990377498 | CV97: 0.0002990377498 | CW97: 0.0002990377498
C98: IBWPP Emergency Control Room | E98: Water | F98: Improvements / Compliance | G98: Treatment | H98: Other Capital expenditure | J98: Straight line | K98: 2018-19 | L98: 25 | M98: 25 | O98: 0.2 | P98: 0 | Q98: 0 | R98: 0 | S98: 0 | T98: 0 | U98: 0 | V98: 0 | W98: 0 | X98: 0 | AK98: 0 | AL98: 0 | AM98: 0 | AN98: 0 | AO98: 0 | AP98: 0 | AQ98: 0 | AR98: 0 | AS98: 0 | AT98: 0 | AV98: 0.2 | AW98: 0 | AX98: 0 | AY98: 0 | AZ98: 0 | BA98: 0 | BB98: 0 | BC98: 0 | BD98: 0 | BE98: 0 | BG98: 0.004 | BH98: 0.008 | BI98: 0.008 | BJ98: 0.008 | BK98: 0.008 | BL98: 0.008 | BM98: 0.008 | BN98: 0.008 | BO98: 0.008 | BP98: 0.008 | BR98: =+IF($K98="Ongoing",AV98,IF(RIGHT($K98,2)=RIGHT(BR$39,2),SUM($AV98:AV98),0)+IF(RIGHT(BR$39,2)>RIGHT($K98,2),AV98,0)) -> 0.2 | BS98: =+IF($K98="Ongoing",AW98,IF(RIGHT($K98,2)=RIGHT(BS$39,2),SUM($AV98:AW98),0)+IF(RIGHT(BS$39,2)>RIGHT($K98,2),AW98,0)) -> 0 | BT98: =+IF($K98="Ongoing",AX98,IF(RIGHT($K98,2)=RIGHT(BT$39,2),SUM($AV98:AX98),0)+IF(RIGHT(BT$39,2)>RIGHT($K98,2),AX98,0)) -> 0 | BU98: =+IF($K98="Ongoing",AY98,IF(RIGHT($K98,2)=RIGHT(BU$39,2),SUM($AV98:AY98),0)+IF(RIGHT(BU$39,2)>RIGHT($K98,2),AY98,0)) -> 0 | BV98: =+IF($K98="Ongoing",AZ98,IF(RIGHT($K98,2)=RIGHT(BV$39,2),SUM($AV98:AZ98),0)+IF(RIGHT(BV$39,2)>RIGHT($K98,2),AZ98,0)) -> 0 | BW98: =+IF($K98="Ongoing",BA98,IF(RIGHT($K98,2)=RIGHT(BW$39,2),SUM($AV98:BA98),0)+IF(RIGHT(BW$39,2)>RIGHT($K98,2),BA98,0)) -> 0 | BX98: =+IF($K98="Ongoing",BB98,IF(RIGHT($K98,2)=RIGHT(BX$39,2),SUM($AV98:BB98),0)+IF(RIGHT(BX$39,2)>RIGHT($K98,2),BB98,0)) -> 0 | BY98: =+IF($K98="Ongoing",BC98,IF(RIGHT($K98,2)=RIGHT(BY$39,2),SUM($AV98:BC98),0)+IF(RIGHT(BY$39,2)>RIGHT($K98,2),BC98,0)) -> 0 | BZ98: =+IF($K98="Ongoing",BD98,IF(RIGHT($K98,2)=RIGHT(BZ$39,2),SUM($AV98:BD98),0)+IF(RIGHT(BZ$39,2)>RIGHT($K98,2),BD98,0)) -> 0 | CA98: =+IF($K98="Ongoing",BE98,IF(RIGHT($K98,2)=RIGHT(CA$39,2),SUM($AV98:BE98),0)+IF(RIGHT(CA$39,2)>RIGHT($K98,2),BE98,0)) -> 0 | CC98: =+O98*KeyAssumptionsPriceControl_FO!X$15 -> 0.2046 | CD98: =+P98*KeyAssumptionsPriceControl_FO!Y$15 -> 0 | CE98: =+Q98*KeyAssumptionsPriceControl_FO!Z$15 -> 0 | CF98: =+R98*KeyAssumptionsPriceControl_FO!AA$15 -> 0 | CG98: =+S98*KeyAssumptionsPriceControl_FO!AB$15 -> 0 | CH98: =+T98*KeyAssumptionsPriceControl_FO!AC$15 -> 0 | CI98: =+U98*KeyAssumptionsPriceControl_FO!AD$15 -> 0 | CJ98: =+V98*KeyAssumptionsPriceControl_FO!AE$15 -> 0 | CK98: =+W98*KeyAssumptionsPriceControl_FO!AF$15 -> 0 | CL98: =+X98*KeyAssumptionsPriceControl_FO!AG$15 -> 0 | CN98: 0.004092 | CO98: 0.008184 | CP98: 0.008184 | CQ98: 0.008184 | CR98: 0.008184 | CS98: 0.008184 | CT98: 0.008184 | CU98: 0.008184 | CV98: 0.008184 | CW98: 0.008184
C99: Septic Tanker Discharge Pump Station | E99: Sewerage | F99: Improvements / Compliance | G99: Treatment | H99: Other Capital expenditure | J99: Straight line | K99: 2019-20 | L99: 25 | M99: 25 | O99: 0 | P99: 0.17 | Q99: 0 | R99: 0 | S99: 0 | T99: 0 | U99: 0 | V99: 0 | W99: 0 | X99: 0 | AK99: 0 | AL99: 0 | AM99: 0 | AN99: 0 | AO99: 0 | AP99: 0 | AQ99: 0 | AR99: 0 | AS99: 0 | AT99: 0 | AV99: 0 | AW99: 0.17 | AX99: 0 | AY99: 0 | AZ99: 0 | BA99: 0 | BB99: 0 | BC99: 0 | BD99: 0 | BE99: 0 | BG99: 0 | BH99: 0.0034 | BI99: 0.0068 | BJ99: 0.0068 | BK99: 0.0068 | BL99: 0.0068 | BM99: 0.0068 | BN99: 0.0068 | BO99: 0.0068 | BP99: 0.0068 | BR99: =+IF($K99="Ongoing",AV99,IF(RIGHT($K99,2)=RIGHT(BR$39,2),SUM($AV99:AV99),0)+IF(RIGHT(BR$39,2)>RIGHT($K99,2),AV99,0)) -> 0 | BS99: =+IF($K99="Ongoing",AW99,IF(RIGHT($K99,2)=RIGHT(BS$39,2),SUM($AV99:AW99),0)+IF(RIGHT(BS$39,2)>RIGHT($K99,2),AW99,0)) -> 0.17 | BT99: =+IF($K99="Ongoing",AX99,IF(RIGHT($K99,2)=RIGHT(BT$39,2),SUM($AV99:AX99),0)+IF(RIGHT(BT$39,2)>RIGHT($K99,2),AX99,0)) -> 0 | BU99: =+IF($K99="Ongoing",AY99,IF(RIGHT($K99,2)=RIGHT(BU$39,2),SUM($AV99:AY99),0)+IF(RIGHT(BU$39,2)>RIGHT($K99,2),AY99,0)) -> 0 | BV99: =+IF($K99="Ongoing",AZ99,IF(RIGHT($K99,2)=RIGHT(BV$39,2),SUM($AV99:AZ99),0)+IF(RIGHT(BV$39,2)>RIGHT($K99,2),AZ99,0)) -> 0 | BW99: =+IF($K99="Ongoing",BA99,IF(RIGHT($K99,2)=RIGHT(BW$39,2),SUM($AV99:BA99),0)+IF(RIGHT(BW$39,2)>RIGHT($K99,2),BA99,0)) -> 0 | BX99: =+IF($K99="Ongoing",BB99,IF(RIGHT($K99,2)=RIGHT(BX$39,2),SUM($AV99:BB99),0)+IF(RIGHT(BX$39,2)>RIGHT($K99,2),BB99,0)) -> 0 | BY99: =+IF($K99="Ongoing",BC99,IF(RIGHT($K99,2)=RIGHT(BY$39,2),SUM($AV99:BC99),0)+IF(RIGHT(BY$39,2)>RIGHT($K99,2),BC99,0)) -> 0 | BZ99: =+IF($K99="Ongoing",BD99,IF(RIGHT($K99,2)=RIGHT(BZ$39,2),SUM($AV99:BD99),0)+IF(RIGHT(BZ$39,2)>RIGHT($K99,2),BD99,0)) -> 0 | CA99: =+IF($K99="Ongoing",BE99,IF(RIGHT($K99,2)=RIGHT(CA$39,2),SUM($AV99:BE99),0)+IF(RIGHT(CA$39,2)>RIGHT($K99,2),BE99,0)) -> 0 | CC99: =+O99*KeyAssumptionsPriceControl_FO!X$15 -> 0 | CD99: =+P99*KeyAssumptionsPriceControl_FO!Y$15 -> 0.17790993 | CE99: =+Q99*KeyAssumptionsPriceControl_FO!Z$15 -> 0 | CF99: =+R99*KeyAssumptionsPriceControl_FO!AA$15 -> 0 | CG99: =+S99*KeyAssumptionsPriceControl_FO!AB$15 -> 0 | CH99: =+T99*KeyAssumptionsPriceControl_FO!AC$15 -> 0 | CI99: =+U99*KeyAssumptionsPriceControl_FO!AD$15 -> 0 | CJ99: =+V99*KeyAssumptionsPriceControl_FO!AE$15 -> 0 | CK99: =+W99*KeyAssumptionsPriceControl_FO!AF$15 -> 0 | CL99: =+X99*KeyAssumptionsPriceControl_FO!AG$15 -> 0 | CN99: 0 | CO99: 0.0035581986 | CP99: 0.0071163972 | CQ99: 0.0071163972 | CR99: 0.0071163972 | CS99: 0.0071163972 | CT99: 0.0071163972 | CU99: 0.0071163972 | CV99: 0.0071163972 | CW99: 0.0071163972
C100: Community Refill & Potable Hydration Stations | E100: Water | F100: Growth | G100: Corporate | H100: Other Capital expenditure | J100: Straight line | K100: Ongoing | L100: 15 | M100: 15 | O100: 0.024 | P100: 0.042 | Q100: 0 | R100: 0 | S100: 0 | T100: 0.0171686747 | U100: 0.01660142349 | V100: 0.01663339383 | W100: 0 | X100: 0 | AK100: 0 | AL100: 0 | AM100: 0 | AN100: 0 | AO100: 0 | AP100: 0 | AQ100: 0 | AR100: 0 | AS100: 0 | AT100: 0 | AV100: 0.024 | AW100: 0.042 | AX100: 0 | AY100: 0 | AZ100: 0 | BA100: 0.0171686747 | BB100: 0.01660142349 | BC100: 0.01663339383 | BD100: 0 | BE100: 0 | BG100: 0.0008 | BH100: 0.003 | BI100: 0.0044 | BJ100: 0.0044 | BK100: 0.0044 | BL100: 0.004972289157 | BM100: 0.006097959096 | BN100: 0.00720578634 | BO100: 0.007760232801 | BP100: 0.007760232801 | BR100: =+IF($K100="Ongoing",AV100,IF(RIGHT($K100,2)=RIGHT(BR$39,2),SUM($AV100:AV100),0)+IF(RIGHT(BR$39,2)>RIGHT($K100,2),AV100,0)) -> 0.024 | BS100: =+IF($K100="Ongoing",AW100,IF(RIGHT($K100,2)=RIGHT(BS$39,2),SUM($AV100:AW100),0)+IF(RIGHT(BS$39,2)>RIGHT($K100,2),AW100,0)) -> 0.042 | BT100: =+IF($K100="Ongoing",AX100,IF(RIGHT($K100,2)=RIGHT(BT$39,2),SUM($AV100:AX100),0)+IF(RIGHT(BT$39,2)>RIGHT($K100,2),AX100,0)) -> 0 | BU100: =+IF($K100="Ongoing",AY100,IF(RIGHT($K100,2)=RIGHT(BU$39,2),SUM($AV100:AY100),0)+IF(RIGHT(BU$39,2)>RIGHT($K100,2),AY100,0)) -> 0 | BV100: =+IF($K100="Ongoing",AZ100,IF(RIGHT($K100,2)=RIGHT(BV$39,2),SUM($AV100:AZ100),0)+IF(RIGHT(BV$39,2)>RIGHT($K100,2),AZ100,0)) -> 0 | BW100: =+IF($K100="Ongoing",BA100,IF(RIGHT($K100,2)=RIGHT(BW$39,2),SUM($AV100:BA100),0)+IF(RIGHT(BW$39,2)>RIGHT($K100,2),BA100,0)) -> 0.0171686747 | BX100: =+IF($K100="Ongoing",BB100,IF(RIGHT($K100,2)=RIGHT(BX$39,2),SUM($AV100:BB100),0)+IF(RIGHT(BX$39,2)>RIGHT($K100,2),BB100,0)) -> 0.01660142349 | BY100: =+IF($K100="Ongoing",BC100,IF(RIGHT($K100,2)=RIGHT(BY$39,2),SUM($AV100:BC100),0)+IF(RIGHT(BY$39,2)>RIGHT($K100,2),BC100,0)) -> 0.01663339383 | BZ100: =+IF($K100="Ongoing",BD100,IF(RIGHT($K100,2)=RIGHT(BZ$39,2),SUM($AV100:BD100),0)+IF(RIGHT(BZ$39,2)>RIGHT($K100,2),BD100,0)) -> 0 | CA100: =+IF($K100="Ongoing",BE100,IF(RIGHT($K100,2)=RIGHT(CA$39,2),SUM($AV100:BE100),0)+IF(RIGHT(CA$39,2)>RIGHT($K100,2),BE100,0)) -> 0 | CC100: =+O100*KeyAssumptionsPriceControl_FO!X$15 -> 0.024552 | CD100: =+P100*KeyAssumptionsPriceControl_FO!Y$15 -> 0.043954218 | CE100: =+Q100*KeyAssumptionsPriceControl_FO!Z$15 -> 0 | CF100: =+R100*KeyAssumptionsPriceControl_FO!AA$15 -> 0 | CG100: =+S100*KeyAssumptionsPriceControl_FO!AB$15 -> 0 | CH100: =+T100*KeyAssumptionsPriceControl_FO!AC$15 -> 0.0196784358 | CI100: =+U100*KeyAssumptionsPriceControl_FO!AD$15 -> 0.01946591238 | CJ100: =+V100*KeyAssumptionsPriceControl_FO!AE$15 -> 0.01995197721 | CK100: =+W100*KeyAssumptionsPriceControl_FO!AF$15 -> 0 | CL100: =+X100*KeyAssumptionsPriceControl_FO!AG$15 -> 0 | CN100: 0.0008184 | CO100: 0.0031019406 | CP100: 0.0045670812 | CQ100: 0.0045670812 | CR100: 0.0045670812 | CS100: 0.00522302906 | CT100: 0.006527840666 | CU100: 0.007841770319 | CV100: 0.008506836226 | CW100: 0.008506836226
C101: Bass River Pump Station Bund | E101: Water | F101: Improvements / Compliance | G101: Pipelines/network | H101: Other Capital expenditure | J101: Straight line | K101: 2018-19 | L101: 25 | M101: 25 | O101: 0.088 | P101: 0 | Q101: 0 | R101: 0 | S101: 0 | T101: 0 | U101: 0 | V101: 0 | W101: 0 | X101: 0 | AK101: 0 | AL101: 0 | AM101: 0 | AN101: 0 | AO101: 0 | AP101: 0 | AQ101: 0 | AR101: 0 | AS101: 0 | AT101: 0 | AV101: 0.088 | AW101: 0 | AX101: 0 | AY101: 0 | AZ101: 0 | BA101: 0 | BB101: 0 | BC101: 0 | BD101: 0 | BE101: 0 | BG101: 0.00176 | BH101: 0.00352 | BI101: 0.00352 | BJ101: 0.00352 | BK101: 0.00352 | BL101: 0.00352 | BM101: 0.00352 | BN101: 0.00352 | BO101: 0.00352 | BP101: 0.00352 | BR101: =+IF($K101="Ongoing",AV101,IF(RIGHT($K101,2)=RIGHT(BR$39,2),SUM($AV101:AV101),0)+IF(RIGHT(BR$39,2)>RIGHT($K101,2),AV101,0)) -> 0.088 | BS101: =+IF($K101="Ongoing",AW101,IF(RIGHT($K101,2)=RIGHT(BS$39,2),SUM($AV101:AW101),0)+IF(RIGHT(BS$39,2)>RIGHT($K101,2),AW101,0)) -> 0 | BT101: =+IF($K101="Ongoing",AX101,IF(RIGHT($K101,2)=RIGHT(BT$39,2),SUM($AV101:AX101),0)+IF(RIGHT(BT$39,2)>RIGHT($K101,2),AX101,0)) -> 0 | BU101: =+IF($K101="Ongoing",AY101,IF(RIGHT($K101,2)=RIGHT(BU$39,2),SUM($AV101:AY101),0)+IF(RIGHT(BU$39,2)>RIGHT($K101,2),AY101,0)) -> 0 | BV101: =+IF($K101="Ongoing",AZ101,IF(RIGHT($K101,2)=RIGHT(BV$39,2),SUM($AV101:AZ101),0)+IF(RIGHT(BV$39,2)>RIGHT($K101,2),AZ101,0)) -> 0 | BW101: =+IF($K101="Ongoing",BA101,IF(RIGHT($K101,2)=RIGHT(BW$39,2),SUM($AV101:BA101),0)+IF(RIGHT(BW$39,2)>RIGHT($K101,2),BA101,0)) -> 0 | BX101: =+IF($K101="Ongoing",BB101,IF(RIGHT($K101,2)=RIGHT(BX$39,2),SUM($AV101:BB101),0)+IF(RIGHT(BX$39,2)>RIGHT($K101,2),BB101,0)) -> 0 | BY101: =+IF($K101="Ongoing",BC101,IF(RIGHT($K101,2)=RIGHT(BY$39,2),SUM($AV101:BC101),0)+IF(RIGHT(BY$39,2)>RIGHT($K101,2),BC101,0)) -> 0 | BZ101: =+IF($K101="Ongoing",BD101,IF(RIGHT($K101,2)=RIGHT(BZ$39,2),SUM($AV101:BD101),0)+IF(RIGHT(BZ$39,2)>RIGHT($K101,2),BD101,0)) -> 0 | CA101: =+IF($K101="Ongoing",BE101,IF(RIGHT($K101,2)=RIGHT(CA$39,2),SUM($AV101:BE101),0)+IF(RIGHT(CA$39,2)>RIGHT($K101,2),BE101,0)) -> 0 | CC101: =+O101*KeyAssumptionsPriceControl_FO!X$15 -> 0.090024 | CD101: =+P101*KeyAssumptionsPriceControl_FO!Y$15 -> 0 | CE101: =+Q101*KeyAssumptionsPriceControl_FO!Z$15 -> 0 | CF101: =+R101*KeyAssumptionsPriceControl_FO!AA$15 -> 0 | CG101: =+S101*KeyAssumptionsPriceControl_FO!AB$15 -> 0 | CH101: =+T101*KeyAssumptionsPriceControl_FO!AC$15 -> 0 | CI101: =+U101*KeyAssumptionsPriceControl_FO!AD$15 -> 0 | CJ101: =+V101*KeyAssumptionsPriceControl_FO!AE$15 -> 0 | CK101: =+W101*KeyAssumptionsPriceControl_FO!AF$15 -> 0 | CL101: =+X101*KeyAssumptionsPriceControl_FO!AG$15 -> 0 | CN101: 0.00180048 | CO101: 0.00360096 | CP101: 0.00360096 | CQ101: 0.00360096 | CR101: 0.00360096 | CS101: 0.00360096 | CT101: 0.00360096 | CU101: 0.00360096 | CV101: 0.00360096 | CW101: 0.00360096
C102: Cowes WWTP Community Education Display | E102: Water | F102: Growth | G102: Corporate | H102: Other Capital expenditure | J102: Straight line | K102: 2018-19 | L102: 15 | M102: 15 | O102: 0.009598470473 | P102: 0 | Q102: 0 | R102: 0 | S102: 0 | T102: 0 | U102: 0 | V102: 0 | W102: 0 | X102: 0 | AK102: 0 | AL102: 0 | AM102: 0 | AN102: 0 | AO102: 0 | AP102: 0 | AQ102: 0 | AR102: 0 | AS102: 0 | AT102: 0 | AV102: 0.009598470473 | AW102: 0 | AX102: 0 | AY102: 0 | AZ102: 0 | BA102: 0 | BB102: 0 | BC102: 0 | BD102: 0 | BE102: 0 | BG102: 0.0003199490158 | BH102: 0.0006398980315 | BI102: 0.0006398980315 | BJ102: 0.0006398980315 | BK102: 0.0006398980315 | BL102: 0.0006398980315 | BM102: 0.0006398980315 | BN102: 0.0006398980315 | BO102: 0.0006398980315 | BP102: 0.0006398980315 | BR102: =+IF($K102="Ongoing",AV102,IF(RIGHT($K102,2)=RIGHT(BR$39,2),SUM($AV102:AV102),0)+IF(RIGHT(BR$39,2)>RIGHT($K102,2),AV102,0)) -> 0.009598470473 | BS102: =+IF($K102="Ongoing",AW102,IF(RIGHT($K102,2)=RIGHT(BS$39,2),SUM($AV102:AW102),0)+IF(RIGHT(BS$39,2)>RIGHT($K102,2),AW102,0)) -> 0 | BT102: =+IF($K102="Ongoing",AX102,IF(RIGHT($K102,2)=RIGHT(BT$39,2),SUM($AV102:AX102),0)+IF(RIGHT(BT$39,2)>RIGHT($K102,2),AX102,0)) -> 0 | BU102: =+IF($K102="Ongoing",AY102,IF(RIGHT($K102,2)=RIGHT(BU$39,2),SUM($AV102:AY102),0)+IF(RIGHT(BU$39,2)>RIGHT($K102,2),AY102,0)) -> 0 | BV102: =+IF($K102="Ongoing",AZ102,IF(RIGHT($K102,2)=RIGHT(BV$39,2),SUM($AV102:AZ102),0)+IF(RIGHT(BV$39,2)>RIGHT($K102,2),AZ102,0)) -> 0 | BW102: =+IF($K102="Ongoing",BA102,IF(RIGHT($K102,2)=RIGHT(BW$39,2),SUM($AV102:BA102),0)+IF(RIGHT(BW$39,2)>RIGHT($K102,2),BA102,0)) -> 0 | BX102: =+IF($K102="Ongoing",BB102,IF(RIGHT($K102,2)=RIGHT(BX$39,2),SUM($AV102:BB102),0)+IF(RIGHT(BX$39,2)>RIGHT($K102,2),BB102,0)) -> 0 | BY102: =+IF($K102="Ongoing",BC102,IF(RIGHT($K102,2)=RIGHT(BY$39,2),SUM($AV102:BC102),0)+IF(RIGHT(BY$39,2)>RIGHT($K102,2),BC102,0)) -> 0 | BZ102: =+IF($K102="Ongoing",BD102,IF(RIGHT($K102,2)=RIGHT(BZ$39,2),SUM($AV102:BD102),0)+IF(RIGHT(BZ$39,2)>RIGHT($K102,2),BD102,0)) -> 0 | CA102: =+IF($K102="Ongoing",BE102,IF(RIGHT($K102,2)=RIGHT(CA$39,2),SUM($AV102:BE102),0)+IF(RIGHT(CA$39,2)>RIGHT($K102,2),BE102,0)) -> 0 | CC102: =+O102*KeyAssumptionsPriceControl_FO!X$15 -> 0.009819235294 | CD102: =+P102*KeyAssumptionsPriceControl_FO!Y$15 -> 0 | CE102: =+Q102*KeyAssumptionsPriceControl_FO!Z$15 -> 0 | CF102: =+R102*KeyAssumptionsPriceControl_FO!AA$15 -> 0 | CG102: =+S102*KeyAssumptionsPriceControl_FO!AB$15 -> 0 | CH102: =+T102*KeyAssumptionsPriceControl_FO!AC$15 -> 0 | CI102: =+U102*KeyAssumptionsPriceControl_FO!AD$15 -> 0 | CJ102: =+V102*KeyAssumptionsPriceControl_FO!AE$15 -> 0 | CK102: =+W102*KeyAssumptionsPriceControl_FO!AF$15 -> 0 | CL102: =+X102*KeyAssumptionsPriceControl_FO!AG$15 -> 0 | CN102: 0.0003273078431 | CO102: 0.0006546156863 | CP102: 0.0006546156863 | CQ102: 0.0006546156863 | CR102: 0.0006546156863 | CS102: 0.0006546156863 | CT102: 0.0006546156863 | CU102: 0.0006546156863 | CV102: 0.0006546156863 | CW102: 0.0006546156863
C103: Cowes WWTP Community Education Display | E103: Sewerage | F103: Growth | G103: Corporate | H103: Other Capital expenditure | J103: Straight line | K103: 2018-19 | L103: 15 | M103: 15 | O103: 0.01000291882 | P103: 0 | Q103: 0 | R103: 0 | S103: 0 | T103: 0 | U103: 0 | V103: 0 | W103: 0 | X103: 0 | AK103: 0 | AL103: 0 | AM103: 0 | AN103: 0 | AO103: 0 | AP103: 0 | AQ103: 0 | AR103: 0 | AS103: 0 | AT103: 0 | AV103: 0.01000291882 | AW103: 0 | AX103: 0 | AY103: 0 | AZ103: 0 | BA103: 0 | BB103: 0 | BC103: 0 | BD103: 0 | BE103: 0 | BG103: 0.0003334306274 | BH103: 0.0006668612549 | BI103: 0.0006668612549 | BJ103: 0.0006668612549 | BK103: 0.0006668612549 | BL103: 0.0006668612549 | BM103: 0.0006668612549 | BN103: 0.0006668612549 | BO103: 0.0006668612549 | BP103: 0.0006668612549 | BR103: =+IF($K103="Ongoing",AV103,IF(RIGHT($K103,2)=RIGHT(BR$39,2),SUM($AV103:AV103),0)+IF(RIGHT(BR$39,2)>RIGHT($K103,2),AV103,0)) -> 0.01000291882 | BS103: =+IF($K103="Ongoing",AW103,IF(RIGHT($K103,2)=RIGHT(BS$39,2),SUM($AV103:AW103),0)+IF(RIGHT(BS$39,2)>RIGHT($K103,2),AW103,0)) -> 0 | BT103: =+IF($K103="Ongoing",AX103,IF(RIGHT($K103,2)=RIGHT(BT$39,2),SUM($AV103:AX103),0)+IF(RIGHT(BT$39,2)>RIGHT($K103,2),AX103,0)) -> 0 | BU103: =+IF($K103="Ongoing",AY103,IF(RIGHT($K103,2)=RIGHT(BU$39,2),SUM($AV103:AY103),0)+IF(RIGHT(BU$39,2)>RIGHT($K103,2),AY103,0)) -> 0 | BV103: =+IF($K103="Ongoing",AZ103,IF(RIGHT($K103,2)=RIGHT(BV$39,2),SUM($AV103:AZ103),0)+IF(RIGHT(BV$39,2)>RIGHT($K103,2),AZ103,0)) -> 0 | BW103: =+IF($K103="Ongoing",BA103,IF(RIGHT($K103,2)=RIGHT(BW$39,2),SUM($AV103:BA103),0)+IF(RIGHT(BW$39,2)>RIGHT($K103,2),BA103,0)) -> 0 | BX103: =+IF($K103="Ongoing",BB103,IF(RIGHT($K103,2)=RIGHT(BX$39,2),SUM($AV103:BB103),0)+IF(RIGHT(BX$39,2)>RIGHT($K103,2),BB103,0)) -> 0 | BY103: =+IF($K103="Ongoing",BC103,IF(RIGHT($K103,2)=RIGHT(BY$39,2),SUM($AV103:BC103),0)+IF(RIGHT(BY$39,2)>RIGHT($K103,2),BC103,0)) -> 0 | BZ103: =+IF($K103="Ongoing",BD103,IF(RIGHT($K103,2)=RIGHT(BZ$39,2),SUM($AV103:BD103),0)+IF(RIGHT(BZ$39,2)>RIGHT($K103,2),BD103,0)) -> 0 | CA103: =+IF($K103="Ongoing",BE103,IF(RIGHT($K103,2)=RIGHT(CA$39,2),SUM($AV103:BE103),0)+IF(RIGHT(CA$39,2)>RIGHT($K103,2),BE103,0)) -> 0 | CC103: =+O103*KeyAssumptionsPriceControl_FO!X$15 -> 0.01023298596 | CD103: =+P103*KeyAssumptionsPriceControl_FO!Y$15 -> 0 | CE103: =+Q103*KeyAssumptionsPriceControl_FO!Z$15 -> 0 | CF103: =+R103*KeyAssumptionsPriceControl_FO!AA$15 -> 0 | CG103: =+S103*KeyAssumptionsPriceControl_FO!AB$15 -> 0 | CH103: =+T103*KeyAssumptionsPriceControl_FO!AC$15 -> 0 | CI103: =+U103*KeyAssumptionsPriceControl_FO!AD$15 -> 0 | CJ103: =+V103*KeyAssumptionsPriceControl_FO!AE$15 -> 0 | CK103: =+W103*KeyAssumptionsPriceControl_FO!AF$15 -> 0 | CL103: =+X103*KeyAssumptionsPriceControl_FO!AG$15 -> 0 | CN103: 0.0003410995319 | CO103: 0.0006821990637 | CP103: 0.0006821990637 | CQ103: 0.0006821990637 | CR103: 0.0006821990637 | CS103: 0.0006821990637 | CT103: 0.0006821990637 | CU103: 0.0006821990637 | CV103: 0.0006821990637 | CW103: 0.0006821990637
C104: Cowes WWTP Community Education Display | E104: Recycled Water | F104: Growth | G104: Corporate | H104: Other Capital expenditure | J104: Straight line | K104: 2018-19 | L104: 15 | M104: 15 | O104: 0.0003986107035 | P104: 0 | Q104: 0 | R104: 0 | S104: 0 | T104: 0 | U104: 0 | V104: 0 | W104: 0 | X104: 0 | AK104: 0 | AL104: 0 | AM104: 0 | AN104: 0 | AO104: 0 | AP104: 0 | AQ104: 0 | AR104: 0 | AS104: 0 | AT104: 0 | AV104: 0.0003986107035 | AW104: 0 | AX104: 0 | AY104: 0 | AZ104: 0 | BA104: 0 | BB104: 0 | BC104: 0 | BD104: 0 | BE104: 0 | BG104: 1.328702345e-05 | BH104: 2.65740469e-05 | BI104: 2.65740469e-05 | BJ104: 2.65740469e-05 | BK104: 2.65740469e-05 | BL104: 2.65740469e-05 | BM104: 2.65740469e-05 | BN104: 2.65740469e-05 | BO104: 2.65740469e-05 | BP104: 2.65740469e-05 | BR104: =+IF($K104="Ongoing",AV104,IF(RIGHT($K104,2)=RIGHT(BR$39,2),SUM($AV104:AV104),0)+IF(RIGHT(BR$39,2)>RIGHT($K104,2),AV104,0)) -> 0.0003986107035 | BS104: =+IF($K104="Ongoing",AW104,IF(RIGHT($K104,2)=RIGHT(BS$39,2),SUM($AV104:AW104),0)+IF(RIGHT(BS$39,2)>RIGHT($K104,2),AW104,0)) -> 0 | BT104: =+IF($K104="Ongoing",AX104,IF(RIGHT($K104,2)=RIGHT(BT$39,2),SUM($AV104:AX104),0)+IF(RIGHT(BT$39,2)>RIGHT($K104,2),AX104,0)) -> 0 | BU104: =+IF($K104="Ongoing",AY104,IF(RIGHT($K104,2)=RIGHT(BU$39,2),SUM($AV104:AY104),0)+IF(RIGHT(BU$39,2)>RIGHT($K104,2),AY104,0)) -> 0 | BV104: =+IF($K104="Ongoing",AZ104,IF(RIGHT($K104,2)=RIGHT(BV$39,2),SUM($AV104:AZ104),0)+IF(RIGHT(BV$39,2)>RIGHT($K104,2),AZ104,0)) -> 0 | BW104: =+IF($K104="Ongoing",BA104,IF(RIGHT($K104,2)=RIGHT(BW$39,2),SUM($AV104:BA104),0)+IF(RIGHT(BW$39,2)>RIGHT($K104,2),BA104,0)) -> 0 | BX104: =+IF($K104="Ongoing",BB104,IF(RIGHT($K104,2)=RIGHT(BX$39,2),SUM($AV104:BB104),0)+IF(RIGHT(BX$39,2)>RIGHT($K104,2),BB104,0)) -> 0 | BY104: =+IF($K104="Ongoing",BC104,IF(RIGHT($K104,2)=RIGHT(BY$39,2),SUM($AV104:BC104),0)+IF(RIGHT(BY$39,2)>RIGHT($K104,2),BC104,0)) -> 0 | BZ104: =+IF($K104="Ongoing",BD104,IF(RIGHT($K104,2)=RIGHT(BZ$39,2),SUM($AV104:BD104),0)+IF(RIGHT(BZ$39,2)>RIGHT($K104,2),BD104,0)) -> 0 | CA104: =+IF($K104="Ongoing",BE104,IF(RIGHT($K104,2)=RIGHT(CA$39,2),SUM($AV104:BE104),0)+IF(RIGHT(CA$39,2)>RIGHT($K104,2),BE104,0)) -> 0 | CC104: =+O104*KeyAssumptionsPriceControl_FO!X$15 -> 0.0004077787497 | CD104: =+P104*KeyAssumptionsPriceControl_FO!Y$15 -> 0 | CE104: =+Q104*KeyAssumptionsPriceControl_FO!Z$15 -> 0 | CF104: =+R104*KeyAssumptionsPriceControl_FO!AA$15 -> 0 | CG104: =+S104*KeyAssumptionsPriceControl_FO!AB$15 -> 0 | CH104: =+T104*KeyAssumptionsPriceControl_FO!AC$15 -> 0 | CI104: =+U104*KeyAssumptionsPriceControl_FO!AD$15 -> 0 | CJ104: =+V104*KeyAssumptionsPriceControl_FO!AE$15 -> 0 | CK104: =+W104*KeyAssumptionsPriceControl_FO!AF$15 -> 0 | CL104: =+X104*KeyAssumptionsPriceControl_FO!AG$15 -> 0 | CN104: 1.359262499e-05 | CO104: 2.718524998e-05 | CP104: 2.718524998e-05 | CQ104: 2.718524998e-05 | CR104: 2.718524998e-05 | CS104: 2.718524998e-05 | CT104: 2.718524998e-05 | CU104: 2.718524998e-05 | CV104: 2.718524998e-05 | CW104: 2.718524998e-05
C105: Wastewater Future Cowes SPS Upgrade | E105: Sewerage | F105: Growth | G105: Treatment | H105: Other Capital expenditure | J105: Straight line | K105: 2027-28 | L105: 25 | M105: 25 | O105: 0 | P105: 0 | Q105: 0 | R105: 0 | S105: 0 | T105: 0 | U105: 0 | V105: 0.3326678766 | W105: 2.755754476 | X105: 3.257326662 | AK105: 0 | AL105: 0 | AM105: 0 | AN105: 0 | AO105: 0 | AP105: 0 | AQ105: 0 | AR105: 0 | AS105: 0 | AT105: 0 | AV105: 0 | AW105: 0 | AX105: 0 | AY105: 0 | AZ105: 0 | BA105: 0 | BB105: 0 | BC105: 0.3326678766 | BD105: 2.755754476 | BE105: 3.257326662 | BG105: 0 | BH105: 0 | BI105: 0 | BJ105: 0 | BK105: 0 | BL105: 0 | BM105: 0 | BN105: 0 | BO105: 0 | BP105: 0.1269149803 | BR105: =+IF($K105="Ongoing",AV105,IF(RIGHT($K105,2)=RIGHT(BR$39,2),SUM($AV105:AV105),0)+IF(RIGHT(BR$39,2)>RIGHT($K105,2),AV105,0)) -> 0 | BS105: =+IF($K105="Ongoing",AW105,IF(RIGHT($K105,2)=RIGHT(BS$39,2),SUM($AV105:AW105),0)+IF(RIGHT(BS$39,2)>RIGHT($K105,2),AW105,0)) -> 0 | BT105: =+IF($K105="Ongoing",AX105,IF(RIGHT($K105,2)=RIGHT(BT$39,2),SUM($AV105:AX105),0)+IF(RIGHT(BT$39,2)>RIGHT($K105,2),AX105,0)) -> 0 | BU105: =+IF($K105="Ongoing",AY105,IF(RIGHT($K105,2)=RIGHT(BU$39,2),SUM($AV105:AY105),0)+IF(RIGHT(BU$39,2)>RIGHT($K105,2),AY105,0)) -> 0 | BV105: =+IF($K105="Ongoing",AZ105,IF(RIGHT($K105,2)=RIGHT(BV$39,2),SUM($AV105:AZ105),0)+IF(RIGHT(BV$39,2)>RIGHT($K105,2),AZ105,0)) -> 0 | BW105: =+IF($K105="Ongoing",BA105,IF(RIGHT($K105,2)=RIGHT(BW$39,2),SUM($AV105:BA105),0)+IF(RIGHT(BW$39,2)>RIGHT($K105,2),BA105,0)) -> 0 | BX105: =+IF($K105="Ongoing",BB105,IF(RIGHT($K105,2)=RIGHT(BX$39,2),SUM($AV105:BB105),0)+IF(RIGHT(BX$39,2)>RIGHT($K105,2),BB105,0)) -> 0 | BY105: =+IF($K105="Ongoing",BC105,IF(RIGHT($K105,2)=RIGHT(BY$39,2),SUM($AV105:BC105),0)+IF(RIGHT(BY$39,2)>RIGHT($K105,2),BC105,0)) -> 0 | BZ105: =+IF($K105="Ongoing",BD105,IF(RIGHT($K105,2)=RIGHT(BZ$39,2),SUM($AV105:BD105),0)+IF(RIGHT(BZ$39,2)>RIGHT($K105,2),BD105,0)) -> 0 | CA105: =+IF($K105="Ongoing",BE105,IF(RIGHT($K105,2)=RIGHT(CA$39,2),SUM($AV105:BE105),0)+IF(RIGHT(CA$39,2)>RIGHT($K105,2),BE105,0)) -> 6.345749014 | CC105: =+O105*KeyAssumptionsPriceControl_FO!X$15 -> 0 | CD105: =+P105*KeyAssumptionsPriceControl_FO!Y$15 -> 0 | CE105: =+Q105*KeyAssumptionsPriceControl_FO!Z$15 -> 0 | CF105: =+R105*KeyAssumptionsPriceControl_FO!AA$15 -> 0 | CG105: =+S105*KeyAssumptionsPriceControl_FO!AB$15 -> 0 | CH105: =+T105*KeyAssumptionsPriceControl_FO!AC$15 -> 0 | CI105: =+U105*KeyAssumptionsPriceControl_FO!AD$15 -> 0 | CJ105: =+V105*KeyAssumptionsPriceControl_FO!AE$15 -> 0.3990395443 | CK105: =+W105*KeyAssumptionsPriceControl_FO!AF$15 -> 3.381592136 | CL105: =+X105*KeyAssumptionsPriceControl_FO!AG$15 -> 4.08900509 | CN105: 0 | CO105: 0 | CP105: 0 | CQ105: 0 | CR105: 0 | CS105: 0 | CT105: 0 | CU105: 0.007980790885 | CV105: 0.08359342449 | CW105: 0.233005369
C106: Enlighten 3.1.3 to 3.3 Software Upgrade | E106: Water | F106: Improvements / Compliance | G106: Corporate | H106: Other Capital expenditure | J106: Straight line | K106: 2018-19 | L106: 4 | M106: 4 | O106: 0 | P106: 0 | Q106: 0 | R106: 0 | S106: 0 | T106: 0 | U106: 0 | V106: 0 | W106: 0 | X106: 0 | AK106: 0 | AL106: 0 | AM106: 0 | AN106: 0 | AO106: 0 | AP106: 0 | AQ106: 0 | AR106: 0 | AS106: 0 | AT106: 0 | AV106: 0 | AW106: 0 | AX106: 0 | AY106: 0 | AZ106: 0 | BA106: 0 | BB106: 0 | BC106: 0 | BD106: 0 | BE106: 0 | BG106: 0 | BH106: 0 | BI106: 0 | BJ106: 0 | BK106: 0 | BL106: 0 | BM106: 0 | BN106: 0 | BO106: 0 | BP106: 0 | BR106: =+IF($K106="Ongoing",AV106,IF(RIGHT($K106,2)=RIGHT(BR$39,2),SUM($AV106:AV106),0)+IF(RIGHT(BR$39,2)>RIGHT($K106,2),AV106,0)) -> 0 | BS106: =+IF($K106="Ongoing",AW106,IF(RIGHT($K106,2)=RIGHT(BS$39,2),SUM($AV106:AW106),0)+IF(RIGHT(BS$39,2)>RIGHT($K106,2),AW106,0)) -> 0 | BT106: =+IF($K106="Ongoing",AX106,IF(RIGHT($K106,2)=RIGHT(BT$39,2),SUM($AV106:AX106),0)+IF(RIGHT(BT$39,2)>RIGHT($K106,2),AX106,0)) -> 0 | BU106: =+IF($K106="Ongoing",AY106,IF(RIGHT($K106,2)=RIGHT(BU$39,2),SUM($AV106:AY106),0)+IF(RIGHT(BU$39,2)>RIGHT($K106,2),AY106,0)) -> 0 | BV106: =+IF($K106="Ongoing",AZ106,IF(RIGHT($K106,2)=RIGHT(BV$39,2),SUM($AV106:AZ106),0)+IF(RIGHT(BV$39,2)>RIGHT($K106,2),AZ106,0)) -> 0 | BW106: =+IF($K106="Ongoing",BA106,IF(RIGHT($K106,2)=RIGHT(BW$39,2),SUM($AV106:BA106),0)+IF(RIGHT(BW$39,2)>RIGHT($K106,2),BA106,0)) -> 0 | BX106: =+IF($K106="Ongoing",BB106,IF(RIGHT($K106,2)=RIGHT(BX$39,2),SUM($AV106:BB106),0)+IF(RIGHT(BX$39,2)>RIGHT($K106,2),BB106,0)) -> 0 | BY106: =+IF($K106="Ongoing",BC106,IF(RIGHT($K106,2)=RIGHT(BY$39,2),SUM($AV106:BC106),0)+IF(RIGHT(BY$39,2)>RIGHT($K106,2),BC106,0)) -> 0 | BZ106: =+IF($K106="Ongoing",BD106,IF(RIGHT($K106,2)=RIGHT(BZ$39,2),SUM($AV106:BD106),0)+IF(RIGHT(BZ$39,2)>RIGHT($K106,2),BD106,0)) -> 0 | CA106: =+IF($K106="Ongoing",BE106,IF(RIGHT($K106,2)=RIGHT(CA$39,2),SUM($AV106:BE106),0)+IF(RIGHT(CA$39,2)>RIGHT($K106,2),BE106,0)) -> 0 | CC106: =+O106*KeyAssumptionsPriceControl_FO!X$15 -> 0 | CD106: =+P106*KeyAssumptionsPriceControl_FO!Y$15 -> 0 | CE106: =+Q106*KeyAssumptionsPriceControl_FO!Z$15 -> 0 | CF106: =+R106*KeyAssumptionsPriceControl_FO!AA$15 -> 0 | CG106: =+S106*KeyAssumptionsPriceControl_FO!AB$15 -> 0 | CH106: =+T106*KeyAssumptionsPriceControl_FO!AC$15 -> 0 | CI106: =+U106*KeyAssumptionsPriceControl_FO!AD$15 -> 0 | CJ106: =+V106*KeyAssumptionsPriceControl_FO!AE$15 -> 0 | CK106: =+W106*KeyAssumptionsPriceControl_FO!AF$15 -> 0 | CL106: =+X106*KeyAssumptionsPriceControl_FO!AG$15 -> 0 | CN106: 0 | CO106: 0 | CP106: 0 | CQ106: 0 | CR106: 0 | CS106: 0 | CT106: 0 | CU106: 0 | CV106: 0 | CW106: 0
C107: Enlighten 3.1.3 to 3.3 Software Upgrade | E107: Sewerage | F107: Improvements / Compliance | G107: Corporate | H107: Other Capital expenditure | J107: Straight line | K107: 2018-19 | L107: 4 | M107: 4 | O107: 0 | P107: 0 | Q107: 0 | R107: 0 | S107: 0 | T107: 0 | U107: 0 | V107: 0 | W107: 0 | X107: 0 | AK107: 0 | AL107: 0 | AM107: 0 | AN107: 0 | AO107: 0 | AP107: 0 | AQ107: 0 | AR107: 0 | AS107: 0 | AT107: 0 | AV107: 0 | AW107: 0 | AX107: 0 | AY107: 0 | AZ107: 0 | BA107: 0 | BB107: 0 | BC107: 0 | BD107: 0 | BE107: 0 | BG107: =IF($L107=0,0, IF($L107<=0.5,BR107, IF($J107="straight line", IF((LEFT(BG$39,4)*1)-INT($L107)<LEFT($BG$39,4)*1,0,((OFFSET(BR107,0,-INT($L107+0.5),1,1))/$L107)*(IF($L107-INT($L107)>0.5,$L107-0.5-INT($L107),IF($L107-INT($L107)<=0.5,$L107-0.5-INT($L107)+1,0)))) +BR107/$L107*0.5, IF($J107="Declining Balance",-$BG$38,0)))) -> 0 | BH107: 0 | BI107: 0 | BJ107: 0 | BK107: 0 | BL107: 0 | BM107: 0 | BN107: 0 | BO107: 0 | BP107: 0 | BR107: =+IF($K107="Ongoing",AV107,IF(RIGHT($K107,2)=RIGHT(BR$39,2),SUM($AV107:AV107),0)+IF(RIGHT(BR$39,2)>RIGHT($K107,2),AV107,0)) -> 0 | BS107: =+IF($K107="Ongoing",AW107,IF(RIGHT($K107,2)=RIGHT(BS$39,2),SUM($AV107:AW107),0)+IF(RIGHT(BS$39,2)>RIGHT($K107,2),AW107,0)) -> 0 | BT107: =+IF($K107="Ongoing",AX107,IF(RIGHT($K107,2)=RIGHT(BT$39,2),SUM($AV107:AX107),0)+IF(RIGHT(BT$39,2)>RIGHT($K107,2),AX107,0)) -> 0 | BU107: =+IF($K107="Ongoing",AY107,IF(RIGHT($K107,2)=RIGHT(BU$39,2),SUM($AV107:AY107),0)+IF(RIGHT(BU$39,2)>RIGHT($K107,2),AY107,0)) -> 0 | BV107: =+IF($K107="Ongoing",AZ107,IF(RIGHT($K107,2)=RIGHT(BV$39,2),SUM($AV107:AZ107),0)+IF(RIGHT(BV$39,2)>RIGHT($K107,2),AZ107,0)) -> 0 | BW107: =+IF($K107="Ongoing",BA107,IF(RIGHT($K107,2)=RIGHT(BW$39,2),SUM($AV107:BA107),0)+IF(RIGHT(BW$39,2)>RIGHT($K107,2),BA107,0)) -> 0 | BX107: =+IF($K107="Ongoing",BB107,IF(RIGHT($K107,2)=RIGHT(BX$39,2),SUM($AV107:BB107),0)+IF(RIGHT(BX$39,2)>RIGHT($K107,2),BB107,0)) -> 0 | BY107: =+IF($K107="Ongoing",BC107,IF(RIGHT($K107,2)=RIGHT(BY$39,2),SUM($AV107:BC107),0)+IF(RIGHT(BY$39,2)>RIGHT($K107,2),BC107,0)) -> 0 | BZ107: =+IF($K107="Ongoing",BD107,IF(RIGHT($K107,2)=RIGHT(BZ$39,2),SUM($AV107:BD107),0)+IF(RIGHT(BZ$39,2)>RIGHT($K107,2),BD107,0)) -> 0 | CA107: =+IF($K107="Ongoing",BE107,IF(RIGHT($K107,2)=RIGHT(CA$39,2),SUM($AV107:BE107),0)+IF(RIGHT(CA$39,2)>RIGHT($K107,2),BE107,0)) -> 0 | CC107: =+O107*KeyAssumptionsPriceControl_FO!X$15 -> 0 | CD107: =+P107*KeyAssumptionsPriceControl_FO!Y$15 -> 0 | CE107: =+Q107*KeyAssumptionsPriceControl_FO!Z$15 -> 0 | CF107: =+R107*KeyAssumptionsPriceControl_FO!AA$15 -> 0 | CG107: =+S107*KeyAssumptionsPriceControl_FO!AB$15 -> 0 | CH107: =+T107*KeyAssumptionsPriceControl_FO!AC$15 -> 0 | CI107: =+U107*KeyAssumptionsPriceControl_FO!AD$15 -> 0 | CJ107: =+V107*KeyAssumptionsPriceControl_FO!AE$15 -> 0 | CK107: =+W107*KeyAssumptionsPriceControl_FO!AF$15 -> 0 | CL107: =+X107*KeyAssumptionsPriceControl_FO!AG$15 -> 0 | CN107: =IF($M107=0,0, IF($M107<=0.5,CC107, IF($J107="straight line", IF((LEFT(CN$39,4)*1)-INT($M107)<LEFT($CN$39,4)*1,0,((OFFSET(CC107,0,-INT($M107+0.5),1,1))/$M107)*(IF($M107-INT($M107)>0.5,$M107-0.5-INT($M107),IF($M107-INT($M107)<=0.5,$M107-0.5-INT($M107)+1,0)))) +CC107/$M107*0.5, IF($J107="Declining Balance",-$CN$38,0)))) -> 0 | CO107: 0 | CP107: 0 | CQ107: 0 | CR107: 0 | CS107: 0 | CT107: 0 | CU107: 0 | CV107: 0 | CW107: 0
C108: Enlighten 3.1.3 to 3.3 Software Upgrade | E108: Recycled Water | F108: Improvements / Compliance | G108: Corporate | H108: Other Capital expenditure | J108: Straight line | K108: 2018-19 | L108: 4 | M108: 4 | O108: 0 | P108: 0 | Q108: 0 | R108: 0 | S108: 0 | T108: 0 | U108: 0 | V108: 0 | W108: 0 | X108: 0 | AK108: 0 | AL108: 0 | AM108: 0 | AN108: 0 | AO108: 0 | AP108: 0 | AQ108: 0 | AR108: 0 | AS108: 0 | AT108: 0 | AV108: 0 | AW108: 0 | AX108: 0 | AY108: 0 | AZ108: 0 | BA108: 0 | BB108: 0 | BC108: 0 | BD108: 0 | BE108: 0 | BG108: 0 | BH108: 0 | BI108: 0 | BJ108: 0 | BK108: 0 | BL108: 0 | BM108: 0 | BN108: 0 | BO108: 0 | BP108: 0 | BR108: =+IF($K108="Ongoing",AV108,IF(RIGHT($K108,2)=RIGHT(BR$39,2),SUM($AV108:AV108),0)+IF(RIGHT(BR$39,2)>RIGHT($K108,2),AV108,0)) -> 0 | BS108: =+IF($K108="Ongoing",AW108,IF(RIGHT($K108,2)=RIGHT(BS$39,2),SUM($AV108:AW108),0)+IF(RIGHT(BS$39,2)>RIGHT($K108,2),AW108,0)) -> 0 | BT108: =+IF($K108="Ongoing",AX108,IF(RIGHT($K108,2)=RIGHT(BT$39,2),SUM($AV108:AX108),0)+IF(RIGHT(BT$39,2)>RIGHT($K108,2),AX108,0)) -> 0 | BU108: =+IF($K108="Ongoing",AY108,IF(RIGHT($K108,2)=RIGHT(BU$39,2),SUM($AV108:AY108),0)+IF(RIGHT(BU$39,2)>RIGHT($K108,2),AY108,0)) -> 0 | BV108: =+IF($K108="Ongoing",AZ108,IF(RIGHT($K108,2)=RIGHT(BV$39,2),SUM($AV108:AZ108),0)+IF(RIGHT(BV$39,2)>RIGHT($K108,2),AZ108,0)) -> 0 | BW108: =+IF($K108="Ongoing",BA108,IF(RIGHT($K108,2)=RIGHT(BW$39,2),SUM($AV108:BA108),0)+IF(RIGHT(BW$39,2)>RIGHT($K108,2),BA108,0)) -> 0 | BX108: =+IF($K108="Ongoing",BB108,IF(RIGHT($K108,2)=RIGHT(BX$39,2),SUM($AV108:BB108),0)+IF(RIGHT(BX$39,2)>RIGHT($K108,2),BB108,0)) -> 0 | BY108: =+IF($K108="Ongoing",BC108,IF(RIGHT($K108,2)=RIGHT(BY$39,2),SUM($AV108:BC108),0)+IF(RIGHT(BY$39,2)>RIGHT($K108,2),BC108,0)) -> 0 | BZ108: =+IF($K108="Ongoing",BD108,IF(RIGHT($K108,2)=RIGHT(BZ$39,2),SUM($AV108:BD108),0)+IF(RIGHT(BZ$39,2)>RIGHT($K108,2),BD108,0)) -> 0 | CA108: =+IF($K108="Ongoing",BE108,IF(RIGHT($K108,2)=RIGHT(CA$39,2),SUM($AV108:BE108),0)+IF(RIGHT(CA$39,2)>RIGHT($K108,2),BE108,0)) -> 0 | CC108: =+O108*KeyAssumptionsPriceControl_FO!X$15 -> 0 | CD108: =+P108*KeyAssumptionsPriceControl_FO!Y$15 -> 0 | CE108: =+Q108*KeyAssumptionsPriceControl_FO!Z$15 -> 0 | CF108: =+R108*KeyAssumptionsPriceControl_FO!AA$15 -> 0 | CG108: =+S108*KeyAssumptionsPriceControl_FO!AB$15 -> 0 | CH108: =+T108*KeyAssumptionsPriceControl_FO!AC$15 -> 0 | CI108: =+U108*KeyAssumptionsPriceControl_FO!AD$15 -> 0 | CJ108: =+V108*KeyAssumptionsPriceControl_FO!AE$15 -> 0 | CK108: =+W108*KeyAssumptionsPriceControl_FO!AF$15 -> 0 | CL108: =+X108*KeyAssumptionsPriceControl_FO!AG$15 -> 0 | CN108: 0 | CO108: 0 | CP108: 0 | CQ108: 0 | CR108: 0 | CS108: 0 | CT108: 0 | CU108: 0 | CV108: 0 | CW108: 0
C109: SPS SCADA PLC Upgrades | E109: Water | F109: Renewals | G109: Corporate | H109: Other Capital expenditure | J109: Straight line | K109: Ongoing | L109: 15 | M109: 15 | O109: 0 | P109: 0 | Q109: 0 | R109: 0 | S109: 0 | T109: 0 | U109: 0 | V109: 0 | W109: 0.1058041119 | X109: 0.1563267689 | AK109: 0 | AL109: 0 | AM109: 0 | AN109: 0 | AO109: 0 | AP109: 0 | AQ109: 0 | AR109: 0 | AS109: 0 | AT109: 0 | AV109: 0 | AW109: 0 | AX109: 0 | AY109: 0 | AZ109: 0 | BA109: 0 | BB109: 0 | BC109: 0 | BD109: 0.1058041119 | BE109: 0.1563267689 | BG109: 0 | BH109: 0 | BI109: 0 | BJ109: 0 | BK109: 0 | BL109: 0 | BM109: 0 | BN109: 0 | BO109: 0.003526803729 | BP109: 0.01226449976 | BR109: =+IF($K109="Ongoing",AV109,IF(RIGHT($K109,2)=RIGHT(BR$39,2),SUM($AV109:AV109),0)+IF(RIGHT(BR$39,2)>RIGHT($K109,2),AV109,0)) -> 0 | BS109: =+IF($K109="Ongoing",AW109,IF(RIGHT($K109,2)=RIGHT(BS$39,2),SUM($AV109:AW109),0)+IF(RIGHT(BS$39,2)>RIGHT($K109,2),AW109,0)) -> 0 | BT109: =+IF($K109="Ongoing",AX109,IF(RIGHT($K109,2)=RIGHT(BT$39,2),SUM($AV109:AX109),0)+IF(RIGHT(BT$39,2)>RIGHT($K109,2),AX109,0)) -> 0 | BU109: =+IF($K109="Ongoing",AY109,IF(RIGHT($K109,2)=RIGHT(BU$39,2),SUM($AV109:AY109),0)+IF(RIGHT(BU$39,2)>RIGHT($K109,2),AY109,0)) -> 0 | BV109: =+IF($K109="Ongoing",AZ109,IF(RIGHT($K109,2)=RIGHT(BV$39,2),SUM($AV109:AZ109),0)+IF(RIGHT(BV$39,2)>RIGHT($K109,2),AZ109,0)) -> 0 | BW109: =+IF($K109="Ongoing",BA109,IF(RIGHT($K109,2)=RIGHT(BW$39,2),SUM($AV109:BA109),0)+IF(RIGHT(BW$39,2)>RIGHT($K109,2),BA109,0)) -> 0 | BX109: =+IF($K109="Ongoing",BB109,IF(RIGHT($K109,2)=RIGHT(BX$39,2),SUM($AV109:BB109),0)+IF(RIGHT(BX$39,2)>RIGHT($K109,2),BB109,0)) -> 0 | BY109: =+IF($K109="Ongoing",BC109,IF(RIGHT($K109,2)=RIGHT(BY$39,2),SUM($AV109:BC109),0)+IF(RIGHT(BY$39,2)>RIGHT($K109,2),BC109,0)) -> 0 | BZ109: =+IF($K109="Ongoing",BD109,IF(RIGHT($K109,2)=RIGHT(BZ$39,2),SUM($AV109:BD109),0)+IF(RIGHT(BZ$39,2)>RIGHT($K109,2),BD109,0)) -> 0.1058041119 | CA109: =+IF($K109="Ongoing",BE109,IF(RIGHT($K109,2)=RIGHT(CA$39,2),SUM($AV109:BE109),0)+IF(RIGHT(CA$39,2)>RIGHT($K109,2),BE109,0)) -> 0.1563267689 | CC109: =+O109*KeyAssumptionsPriceControl_FO!X$15 -> 0 | CD109: =+P109*KeyAssumptionsPriceControl_FO!Y$15 -> 0 | CE109: =+Q109*KeyAssumptionsPriceControl_FO!Z$15 -> 0 | CF109: =+R109*KeyAssumptionsPriceControl_FO!AA$15 -> 0 | CG109: =+S109*KeyAssumptionsPriceControl_FO!AB$15 -> 0 | CH109: =+T109*KeyAssumptionsPriceControl_FO!AC$15 -> 0 | CI109: =+U109*KeyAssumptionsPriceControl_FO!AD$15 -> 0 | CJ109: =+V109*KeyAssumptionsPriceControl_FO!AE$15 -> 0 | CK109: =+W109*KeyAssumptionsPriceControl_FO!AF$15 -> 0.1298324491 | CL109: =+X109*KeyAssumptionsPriceControl_FO!AG$15 -> 0.1962409731 | CN109: 0 | CO109: 0 | CP109: 0 | CQ109: 0 | CR109: 0 | CS109: 0 | CT109: 0 | CU109: 0 | CV109: 0.004327748303 | CW109: 0.01519686238
C110: SPS SCADA PLC Upgrades | E110: Sewerage | F110: Renewals | G110: Corporate | H110: Other Capital expenditure | J110: Straight line | K110: Ongoing | L110: 15 | M110: 15 | O110: 0 | P110: 0 | Q110: 0 | R110: 0 | S110: 0 | T110: 0 | U110: 0 | V110: 0 | W110: 0.1102623533 | X110: 0.1629138709 | AK110: 0 | AL110: 0 | AM110: 0 | AN110: 0 | AO110: 0 | AP110: 0 | AQ110: 0 | AR110: 0 | AS110: 0 | AT110: 0 | AV110: 0 | AW110: 0 | AX110: 0 | AY110: 0 | AZ110: =+S110-AD110-AO110 -> 0 | BA110: 0 | BB110: 0 | BC110: 0 | BD110: 0.1102623533 | BE110: 0.1629138709 | BG110: 0 | BH110: 0 | BI110: 0 | BJ110: 0 | BK110: 0 | BL110: 0 | BM110: 0 | BN110: 0 | BO110: 0.003675411776 | BP110: 0.01278128591 | BR110: =+IF($K110="Ongoing",AV110,IF(RIGHT($K110,2)=RIGHT(BR$39,2),SUM($AV110:AV110),0)+IF(RIGHT(BR$39,2)>RIGHT($K110,2),AV110,0)) -> 0 | BS110: =+IF($K110="Ongoing",AW110,IF(RIGHT($K110,2)=RIGHT(BS$39,2),SUM($AV110:AW110),0)+IF(RIGHT(BS$39,2)>RIGHT($K110,2),AW110,0)) -> 0 | BT110: =+IF($K110="Ongoing",AX110,IF(RIGHT($K110,2)=RIGHT(BT$39,2),SUM($AV110:AX110),0)+IF(RIGHT(BT$39,2)>RIGHT($K110,2),AX110,0)) -> 0 | BU110: =+IF($K110="Ongoing",AY110,IF(RIGHT($K110,2)=RIGHT(BU$39,2),SUM($AV110:AY110),0)+IF(RIGHT(BU$39,2)>RIGHT($K110,2),AY110,0)) -> 0 | BV110: =+IF($K110="Ongoing",AZ110,IF(RIGHT($K110,2)=RIGHT(BV$39,2),SUM($AV110:AZ110),0)+IF(RIGHT(BV$39,2)>RIGHT($K110,2),AZ110,0)) -> 0 | BW110: =+IF($K110="Ongoing",BA110,IF(RIGHT($K110,2)=RIGHT(BW$39,2),SUM($AV110:BA110),0)+IF(RIGHT(BW$39,2)>RIGHT($K110,2),BA110,0)) -> 0 | BX110: =+IF($K110="Ongoing",BB110,IF(RIGHT($K110,2)=RIGHT(BX$39,2),SUM($AV110:BB110),0)+IF(RIGHT(BX$39,2)>RIGHT($K110,2),BB110,0)) -> 0 | BY110: =+IF($K110="Ongoing",BC110,IF(RIGHT($K110,2)=RIGHT(BY$39,2),SUM($AV110:BC110),0)+IF(RIGHT(BY$39,2)>RIGHT($K110,2),BC110,0)) -> 0 | BZ110: =+IF($K110="Ongoing",BD110,IF(RIGHT($K110,2)=RIGHT(BZ$39,2),SUM($AV110:BD110),0)+IF(RIGHT(BZ$39,2)>RIGHT($K110,2),BD110,0)) -> 0.1102623533 | CA110: =+IF($K110="Ongoing",BE110,IF(RIGHT($K110,2)=RIGHT(CA$39,2),SUM($AV110:BE110),0)+IF(RIGHT(CA$39,2)>RIGHT($K110,2),BE110,0)) -> 0.1629138709 | CC110: =+O110*KeyAssumptionsPriceControl_FO!X$15 -> 0 | CD110: =+P110*KeyAssumptionsPriceControl_FO!Y$15 -> 0 | CE110: =+Q110*KeyAssumptionsPriceControl_FO!Z$15 -> 0 | CF110: =+R110*KeyAssumptionsPriceControl_FO!AA$15 -> 0 | CG110: =+S110*KeyAssumptionsPriceControl_FO!AB$15 -> 0 | CH110: =+T110*KeyAssumptionsPriceControl_FO!AC$15 -> 0 | CI110: =+U110*KeyAssumptionsPriceControl_FO!AD$15 -> 0 | CJ110: =+V110*KeyAssumptionsPriceControl_FO!AE$15 -> 0 | CK110: =+W110*KeyAssumptionsPriceControl_FO!AF$15 -> 0.1353031665 | CL110: =+X110*KeyAssumptionsPriceControl_FO!AG$15 -> 0.2045099299 | CN110: 0 | CO110: 0 | CP110: 0 | CQ110: 0 | CR110: 0 | CS110: 0 | CT110: 0 | CU110: 0 | CV110: 0.004510105551 | CW110: 0.01583720877
C111: SPS SCADA PLC Upgrades | E111: Recycled Water | F111: Renewals | G111: Corporate | H111: Other Capital expenditure | J111: Straight line | K111: Ongoing | L111: 15 | M111: 15 | O111: 0 | P111: 0 | Q111: 0 | R111: 0 | S111: 0 | T111: 0 | U111: 0 | V111: 0 | W111: 0.004393892921 | X111: 0.006492026361 | AK111: 0 | AL111: 0 | AM111: 0 | AN111: 0 | AO111: 0 | AP111: 0 | AQ111: 0 | AR111: 0 | AS111: 0 | AT111: 0 | AV111: 0 | AW111: 0 | AX111: 0 | AY111: 0 | AZ111: 0 | BA111: 0 | BB111: 0 | BC111: 0 | BD111: 0.004393892921 | BE111: 0.006492026361 | BG111: 0 | BH111: 0 | BI111: 0 | BJ111: 0 | BK111: 0 | BL111: 0 | BM111: 0 | BN111: 0 | BO111: 0.0001464630974 | BP111: 0.0005093270734 | BR111: =+IF($K111="Ongoing",AV111,IF(RIGHT($K111,2)=RIGHT(BR$39,2),SUM($AV111:AV111),0)+IF(RIGHT(BR$39,2)>RIGHT($K111,2),AV111,0)) -> 0 | BS111: =+IF($K111="Ongoing",AW111,IF(RIGHT($K111,2)=RIGHT(BS$39,2),SUM($AV111:AW111),0)+IF(RIGHT(BS$39,2)>RIGHT($K111,2),AW111,0)) -> 0 | BT111: =+IF($K111="Ongoing",AX111,IF(RIGHT($K111,2)=RIGHT(BT$39,2),SUM($AV111:AX111),0)+IF(RIGHT(BT$39,2)>RIGHT($K111,2),AX111,0)) -> 0 | BU111: =+IF($K111="Ongoing",AY111,IF(RIGHT($K111,2)=RIGHT(BU$39,2),SUM($AV111:AY111),0)+IF(RIGHT(BU$39,2)>RIGHT($K111,2),AY111,0)) -> 0 | BV111: =+IF($K111="Ongoing",AZ111,IF(RIGHT($K111,2)=RIGHT(BV$39,2),SUM($AV111:AZ111),0)+IF(RIGHT(BV$39,2)>RIGHT($K111,2),AZ111,0)) -> 0 | BW111: =+IF($K111="Ongoing",BA111,IF(RIGHT($K111,2)=RIGHT(BW$39,2),SUM($AV111:BA111),0)+IF(RIGHT(BW$39,2)>RIGHT($K111,2),BA111,0)) -> 0 | BX111: =+IF($K111="Ongoing",BB111,IF(RIGHT($K111,2)=RIGHT(BX$39,2),SUM($AV111:BB111),0)+IF(RIGHT(BX$39,2)>RIGHT($K111,2),BB111,0)) -> 0 | BY111: =+IF($K111="Ongoing",BC111,IF(RIGHT($K111,2)=RIGHT(BY$39,2),SUM($AV111:BC111),0)+IF(RIGHT(BY$39,2)>RIGHT($K111,2),BC111,0)) -> 0 | BZ111: =+IF($K111="Ongoing",BD111,IF(RIGHT($K111,2)=RIGHT(BZ$39,2),SUM($AV111:BD111),0)+IF(RIGHT(BZ$39,2)>RIGHT($K111,2),BD111,0)) -> 0.004393892921 | CA111: =+IF($K111="Ongoing",BE111,IF(RIGHT($K111,2)=RIGHT(CA$39,2),SUM($AV111:BE111),0)+IF(RIGHT(CA$39,2)>RIGHT($K111,2),BE111,0)) -> 0.006492026361 | CC111: =+O111*KeyAssumptionsPriceControl_FO!X$15 -> 0 | CD111: =+P111*KeyAssumptionsPriceControl_FO!Y$15 -> 0 | CE111: =+Q111*KeyAssumptionsPriceControl_FO!Z$15 -> 0 | CF111: =+R111*KeyAssumptionsPriceControl_FO!AA$15 -> 0 | CG111: =+S111*KeyAssumptionsPriceControl_FO!AB$15 -> 0 | CH111: =+T111*KeyAssumptionsPriceControl_FO!AC$15 -> 0 | CI111: =+U111*KeyAssumptionsPriceControl_FO!AD$15 -> 0 | CJ111: =+V111*KeyAssumptionsPriceControl_FO!AE$15 -> 0 | CK111: =+W111*KeyAssumptionsPriceControl_FO!AF$15 -> 0.005391755281 | CL111: =+X111*KeyAssumptionsPriceControl_FO!AG$15 -> 0.008149605979 | CN111: 0 | CO111: 0 | CP111: 0 | CQ111: 0 | CR111: 0 | CS111: 0 | CT111: 0 | CU111: 0 | CV111: 0.000179725176 | CW111: 0.0006311038847
C112: NCCs Water | E112: Water | F112: Growth | G112: Pipelines/network | H112: Other Capital expenditure | J112: Straight line | K112: Ongoing | L112: 80 | M112: 80 | O112: 0 | P112: 0 | Q112: 0 | R112: 0 | S112: 0 | T112: 0 | U112: 0 | V112: 0 | W112: 0 | X112: 0 | AK112: 0.3326565352 | AL112: 0.3387232198 | AM112: 0.3458010184 | AN112: 0.3286120789 | AO112: 0.3094009112 | AP112: 0.3154675957 | AQ112: 0.3195120521 | AR112: 0.3265898507 | AS112: 0.3306343071 | AT112: 0.3367009916 | AV112: -0.3326565352 | AW112: -0.3387232198 | AX112: -0.3458010184 | AY112: -0.3286120789 | AZ112: -0.3094009112 | BA112: -0.3154675957 | BB112: -0.3195120521 | BC112: -0.3265898507 | BD112: -0.3306343071 | BE112: -0.3367009916 | BG112: -0.002079103345 | BH112: -0.006275226814 | BI112: -0.0105535033 | BJ112: -0.01476858516 | BK112: -0.01875616635 | BL112: -0.02266159452 | BM112: -0.02663021732 | BN112: -0.03066835421 | BO112: -0.03477600519 | BP112: -0.03894685081 | BR112: =+IF($K112="Ongoing",AV112,IF(RIGHT($K112,2)=RIGHT(BR$39,2),SUM($AV112:AV112),0)+IF(RIGHT(BR$39,2)>RIGHT($K112,2),AV112,0)) -> -0.3326565352 | BS112: =+IF($K112="Ongoing",AW112,IF(RIGHT($K112,2)=RIGHT(BS$39,2),SUM($AV112:AW112),0)+IF(RIGHT(BS$39,2)>RIGHT($K112,2),AW112,0)) -> -0.3387232198 | BT112: =+IF($K112="Ongoing",AX112,IF(RIGHT($K112,2)=RIGHT(BT$39,2),SUM($AV112:AX112),0)+IF(RIGHT(BT$39,2)>RIGHT($K112,2),AX112,0)) -> -0.3458010184 | BU112: =+IF($K112="Ongoing",AY112,IF(RIGHT($K112,2)=RIGHT(BU$39,2),SUM($AV112:AY112),0)+IF(RIGHT(BU$39,2)>RIGHT($K112,2),AY112,0)) -> -0.3286120789 | BV112: =+IF($K112="Ongoing",AZ112,IF(RIGHT($K112,2)=RIGHT(BV$39,2),SUM($AV112:AZ112),0)+IF(RIGHT(BV$39,2)>RIGHT($K112,2),AZ112,0)) -> -0.3094009112 | BW112: =+IF($K112="Ongoing",BA112,IF(RIGHT($K112,2)=RIGHT(BW$39,2),SUM($AV112:BA112),0)+IF(RIGHT(BW$39,2)>RIGHT($K112,2),BA112,0)) -> -0.3154675957 | BX112: =+IF($K112="Ongoing",BB112,IF(RIGHT($K112,2)=RIGHT(BX$39,2),SUM($AV112:BB112),0)+IF(RIGHT(BX$39,2)>RIGHT($K112,2),BB112,0)) -> -0.3195120521 | BY112: =+IF($K112="Ongoing",BC112,IF(RIGHT($K112,2)=RIGHT(BY$39,2),SUM($AV112:BC112),0)+IF(RIGHT(BY$39,2)>RIGHT($K112,2),BC112,0)) -> -0.3265898507 | BZ112: =+IF($K112="Ongoing",BD112,IF(RIGHT($K112,2)=RIGHT(BZ$39,2),SUM($AV112:BD112),0)+IF(RIGHT(BZ$39,2)>RIGHT($K112,2),BD112,0)) -> -0.3306343071 | CA112: =+IF($K112="Ongoing",BE112,IF(RIGHT($K112,2)=RIGHT(CA$39,2),SUM($AV112:BE112),0)+IF(RIGHT(CA$39,2)>RIGHT($K112,2),BE112,0)) -> -0.3367009916 | CC112: =+O112*KeyAssumptionsPriceControl_FO!X$15 -> 0 | CD112: =+P112*KeyAssumptionsPriceControl_FO!Y$15 -> 0 | CE112: =+Q112*KeyAssumptionsPriceControl_FO!Z$15 -> 0 | CF112: =+R112*KeyAssumptionsPriceControl_FO!AA$15 -> 0 | CG112: =+S112*KeyAssumptionsPriceControl_FO!AB$15 -> 0 | CH112: =+T112*KeyAssumptionsPriceControl_FO!AC$15 -> 0 | CI112: =+U112*KeyAssumptionsPriceControl_FO!AD$15 -> 0 | CJ112: =+V112*KeyAssumptionsPriceControl_FO!AE$15 -> 0 | CK112: =+W112*KeyAssumptionsPriceControl_FO!AF$15 -> 0 | CL112: =+X112*KeyAssumptionsPriceControl_FO!AG$15 -> 0 | CN112: 0 | CO112: 0 | CP112: 0 | CQ112: 0 | CR112: 0 | CS112: 0 | CT112: 0 | CU112: 0 | CV112: 0 | CW112: 0
C113: NCCs Sewerage | E113: Sewerage | F113: Growth | G113: Pipelines/network | H113: Other Capital expenditure | J113: Straight line | K113: Ongoing | L113: 80 | M113: 80 | O113: 0 | P113: 0 | Q113: 0 | R113: 0 | S113: 0 | T113: 0 | U113: 0 | V113: 0 | W113: 0 | X113: 0 | AK113: 0.2467912126 | AL113: 0.2560637148 | AM113: 0.2610566006 | AN113: 0.2496442902 | AO113: 0.2375187104 | AP113: 0.240371788 | AQ113: 0.2453646738 | AR113: 0.247504482 | AS113: 0.2517840984 | AT113: 0.254637176 | AV113: -0.2467912126 | AW113: -0.2560637148 | AX113: -0.2610566006 | AY113: -0.2496442902 | AZ113: -0.2375187104 | BA113: -0.240371788 | BB113: -0.2453646738 | BC113: -0.247504482 | BD113: -0.2517840984 | BE113: -0.254637176 | BG113: -0.001542445079 | BH113: -0.004685288375 | BI113: -0.007917290347 | BJ113: -0.01110917091 | BK113: -0.01415393967 | BL113: -0.01714075528 | BM113: -0.02017660817 | BN113: -0.02325704039 | BO113: -0.02637759402 | BP113: -0.02954272699 | BR113: =+IF($K113="Ongoing",AV113,IF(RIGHT($K113,2)=RIGHT(BR$39,2),SUM($AV113:AV113),0)+IF(RIGHT(BR$39,2)>RIGHT($K113,2),AV113,0)) -> -0.2467912126 | BS113: =+IF($K113="Ongoing",AW113,IF(RIGHT($K113,2)=RIGHT(BS$39,2),SUM($AV113:AW113),0)+IF(RIGHT(BS$39,2)>RIGHT($K113,2),AW113,0)) -> -0.2560637148 | BT113: =+IF($K113="Ongoing",AX113,IF(RIGHT($K113,2)=RIGHT(BT$39,2),SUM($AV113:AX113),0)+IF(RIGHT(BT$39,2)>RIGHT($K113,2),AX113,0)) -> -0.2610566006 | BU113: =+IF($K113="Ongoing",AY113,IF(RIGHT($K113,2)=RIGHT(BU$39,2),SUM($AV113:AY113),0)+IF(RIGHT(BU$39,2)>RIGHT($K113,2),AY113,0)) -> -0.2496442902 | BV113: =+IF($K113="Ongoing",AZ113,IF(RIGHT($K113,2)=RIGHT(BV$39,2),SUM($AV113:AZ113),0)+IF(RIGHT(BV$39,2)>RIGHT($K113,2),AZ113,0)) -> -0.2375187104 | BW113: =+IF($K113="Ongoing",BA113,IF(RIGHT($K113,2)=RIGHT(BW$39,2),SUM($AV113:BA113),0)+IF(RIGHT(BW$39,2)>RIGHT($K113,2),BA113,0)) -> -0.240371788 | BX113: =+IF($K113="Ongoing",BB113,IF(RIGHT($K113,2)=RIGHT(BX$39,2),SUM($AV113:BB113),0)+IF(RIGHT(BX$39,2)>RIGHT($K113,2),BB113,0)) -> -0.2453646738 | BY113: =+IF($K113="Ongoing",BC113,IF(RIGHT($K113,2)=RIGHT(BY$39,2),SUM($AV113:BC113),0)+IF(RIGHT(BY$39,2)>RIGHT($K113,2),BC113,0)) -> -0.247504482 | BZ113: =+IF($K113="Ongoing",BD113,IF(RIGHT($K113,2)=RIGHT(BZ$39,2),SUM($AV113:BD113),0)+IF(RIGHT(BZ$39,2)>RIGHT($K113,2),BD113,0)) -> -0.2517840984 | CA113: =+IF($K113="Ongoing",BE113,IF(RIGHT($K113,2)=RIGHT(CA$39,2),SUM($AV113:BE113),0)+IF(RIGHT(CA$39,2)>RIGHT($K113,2),BE113,0)) -> -0.254637176 | CC113: =+O113*KeyAssumptionsPriceControl_FO!X$15 -> 0 | CD113: =+P113*KeyAssumptionsPriceControl_FO!Y$15 -> 0 | CE113: =+Q113*KeyAssumptionsPriceControl_FO!Z$15 -> 0 | CF113: =+R113*KeyAssumptionsPriceControl_FO!AA$15 -> 0 | CG113: =+S113*KeyAssumptionsPriceControl_FO!AB$15 -> 0 | CH113: =+T113*KeyAssumptionsPriceControl_FO!AC$15 -> 0 | CI113: =+U113*KeyAssumptionsPriceControl_FO!AD$15 -> 0 | CJ113: =+V113*KeyAssumptionsPriceControl_FO!AE$15 -> 0 | CK113: =+W113*KeyAssumptionsPriceControl_FO!AF$15 -> 0 | CL113: =+X113*KeyAssumptionsPriceControl_FO!AG$15 -> 0 | CN113: 0 | CO113: 0 | CP113: 0 | CQ113: 0 | CR113: 0 | CS113: 0 | CT113: 0 | CU113: 0 | CV113: 0 | CW113: 0
C114: NCCs Recycled Water | E114: Recycled Water | F114: Growth | G114: Pipelines/network | H114: Other Capital expenditure | J114: Straight line | K114: Ongoing | L114: 80 | M114: 80 | O114: 0 | P114: 0 | Q114: 0 | R114: 0 | S114: 0 | T114: 0 | U114: 0 | V114: 0 | W114: 0 | X114: 0 | AK114: 0 | AL114: 0 | AM114: 0 | AN114: 0 | AO114: 0 | AP114: 0 | AQ114: 0 | AR114: 0 | AS114: 0 | AT114: 0 | AV114: 0 | AW114: 0 | AX114: 0 | AY114: 0 | AZ114: 0 | BA114: 0 | BB114: 0 | BC114: 0 | BD114: 0 | BE114: 0 | BG114: 0 | BH114: 0 | BI114: 0 | BJ114: 0 | BK114: 0 | BL114: 0 | BM114: 0 | BN114: 0 | BO114: 0 | BP114: 0 | BR114: =+IF($K114="Ongoing",AV114,IF(RIGHT($K114,2)=RIGHT(BR$39,2),SUM($AV114:AV114),0)+IF(RIGHT(BR$39,2)>RIGHT($K114,2),AV114,0)) -> 0 | BS114: =+IF($K114="Ongoing",AW114,IF(RIGHT($K114,2)=RIGHT(BS$39,2),SUM($AV114:AW114),0)+IF(RIGHT(BS$39,2)>RIGHT($K114,2),AW114,0)) -> 0 | BT114: =+IF($K114="Ongoing",AX114,IF(RIGHT($K114,2)=RIGHT(BT$39,2),SUM($AV114:AX114),0)+IF(RIGHT(BT$39,2)>RIGHT($K114,2),AX114,0)) -> 0 | BU114: =+IF($K114="Ongoing",AY114,IF(RIGHT($K114,2)=RIGHT(BU$39,2),SUM($AV114:AY114),0)+IF(RIGHT(BU$39,2)>RIGHT($K114,2),AY114,0)) -> 0 | BV114: =+IF($K114="Ongoing",AZ114,IF(RIGHT($K114,2)=RIGHT(BV$39,2),SUM($AV114:AZ114),0)+IF(RIGHT(BV$39,2)>RIGHT($K114,2),AZ114,0)) -> 0 | BW114: =+IF($K114="Ongoing",BA114,IF(RIGHT($K114,2)=RIGHT(BW$39,2),SUM($AV114:BA114),0)+IF(RIGHT(BW$39,2)>RIGHT($K114,2),BA114,0)) -> 0 | BX114: =+IF($K114="Ongoing",BB114,IF(RIGHT($K114,2)=RIGHT(BX$39,2),SUM($AV114:BB114),0)+IF(RIGHT(BX$39,2)>RIGHT($K114,2),BB114,0)) -> 0 | BY114: =+IF($K114="Ongoing",BC114,IF(RIGHT($K114,2)=RIGHT(BY$39,2),SUM($AV114:BC114),0)+IF(RIGHT(BY$39,2)>RIGHT($K114,2),BC114,0)) -> 0 | BZ114: =+IF($K114="Ongoing",BD114,IF(RIGHT($K114,2)=RIGHT(BZ$39,2),SUM($AV114:BD114),0)+IF(RIGHT(BZ$39,2)>RIGHT($K114,2),BD114,0)) -> 0 | CA114: =+IF($K114="Ongoing",BE114,IF(RIGHT($K114,2)=RIGHT(CA$39,2),SUM($AV114:BE114),0)+IF(RIGHT(CA$39,2)>RIGHT($K114,2),BE114,0)) -> 0 | CC114: =+O114*KeyAssumptionsPriceControl_FO!X$15 -> 0 | CD114: =+P114*KeyAssumptionsPriceControl_FO!Y$15 -> 0 | CE114: =+Q114*KeyAssumptionsPriceControl_FO!Z$15 -> 0 | CF114: =+R114*KeyAssumptionsPriceControl_FO!AA$15 -> 0 | CG114: =+S114*KeyAssumptionsPriceControl_FO!AB$15 -> 0 | CH114: =+T114*KeyAssumptionsPriceControl_FO!AC$15 -> 0 | CI114: =+U114*KeyAssumptionsPriceControl_FO!AD$15 -> 0 | CJ114: =+V114*KeyAssumptionsPriceControl_FO!AE$15 -> 0 | CK114: =+W114*KeyAssumptionsPriceControl_FO!AF$15 -> 0 | CL114: =+X114*KeyAssumptionsPriceControl_FO!AG$15 -> 0 | CN114: 0 | CO114: 0 | CP114: 0 | CQ114: 0 | CR114: 0 | CS114: 0 | CT114: 0 | CU114: 0 | CV114: 0 | CW114: 0
C115: [Capex Item - Significant Project / Capital Program / Other Capex] | E115: [Service] | F115: [Major Cost Driver] | G115: [Asset category] | H115: [Capital type] | J115: Straight line | K115: [Year finalised?] | AV115: 0 | AW115: 0 | AX115: 0 | AY115: 0 | AZ115: 0 | BA115: 0 | BB115: 0 | BC115: 0 | BD115: 0 | BE115: 0 | BG115: 0 | BH115: 0 | BI115: 0 | BJ115: 0 | BK115: 0 | BL115: 0 | BM115: 0 | BN115: 0 | BO115: 0 | BP115: 0 | BR115: =+IF($K115="Ongoing",AV115,IF(RIGHT($K115,2)=RIGHT(BR$39,2),SUM($AV115:AV115),0)+IF(RIGHT(BR$39,2)>RIGHT($K115,2),AV115,0)) -> 0 | BS115: =+IF($K115="Ongoing",AW115,IF(RIGHT($K115,2)=RIGHT(BS$39,2),SUM($AV115:AW115),0)+IF(RIGHT(BS$39,2)>RIGHT($K115,2),AW115,0)) -> 0 | BT115: =+IF($K115="Ongoing",AX115,IF(RIGHT($K115,2)=RIGHT(BT$39,2),SUM($AV115:AX115),0)+IF(RIGHT(BT$39,2)>RIGHT($K115,2),AX115,0)) -> 0 | BU115: =+IF($K115="Ongoing",AY115,IF(RIGHT($K115,2)=RIGHT(BU$39,2),SUM($AV115:AY115),0)+IF(RIGHT(BU$39,2)>RIGHT($K115,2),AY115,0)) -> 0 | BV115: =+IF($K115="Ongoing",AZ115,IF(RIGHT($K115,2)=RIGHT(BV$39,2),SUM($AV115:AZ115),0)+IF(RIGHT(BV$39,2)>RIGHT($K115,2),AZ115,0)) -> 0 | BW115: =+IF($K115="Ongoing",BA115,IF(RIGHT($K115,2)=RIGHT(BW$39,2),SUM($AV115:BA115),0)+IF(RIGHT(BW$39,2)>RIGHT($K115,2),BA115,0)) -> 0 | BX115: =+IF($K115="Ongoing",BB115,IF(RIGHT($K115,2)=RIGHT(BX$39,2),SUM($AV115:BB115),0)+IF(RIGHT(BX$39,2)>RIGHT($K115,2),BB115,0)) -> 0 | BY115: =+IF($K115="Ongoing",BC115,IF(RIGHT($K115,2)=RIGHT(BY$39,2),SUM($AV115:BC115),0)+IF(RIGHT(BY$39,2)>RIGHT($K115,2),BC115,0)) -> 0 | BZ115: =+IF($K115="Ongoing",BD115,IF(RIGHT($K115,2)=RIGHT(BZ$39,2),SUM($AV115:BD115),0)+IF(RIGHT(BZ$39,2)>RIGHT($K115,2),BD115,0)) -> 0 | CA115: =+IF($K115="Ongoing",BE115,IF(RIGHT($K115,2)=RIGHT(CA$39,2),SUM($AV115:BE115),0)+IF(RIGHT(CA$39,2)>RIGHT($K115,2),BE115,0)) -> 0 | CC115: =+O115*KeyAssumptionsPriceControl_FO!X$15 -> 0 | CD115: =+P115*KeyAssumptionsPriceControl_FO!Y$15 -> 0 | CE115: =+Q115*KeyAssumptionsPriceControl_FO!Z$15 -> 0 | CF115: =+R115*KeyAssumptionsPriceControl_FO!AA$15 -> 0 | CG115: =+S115*KeyAssumptionsPriceControl_FO!AB$15 -> 0 | CH115: =+T115*KeyAssumptionsPriceControl_FO!AC$15 -> 0 | CI115: =+U115*KeyAssumptionsPriceControl_FO!AD$15 -> 0 | CJ115: =+V115*KeyAssumptionsPriceControl_FO!AE$15 -> 0 | CK115: =+W115*KeyAssumptionsPriceControl_FO!AF$15 -> 0 | CL115: =+X115*KeyAssumptionsPriceControl_FO!AG$15 -> 0 | CN115: 0 | CO115: 0 | CP115: 0 | CQ115: 0 | CR115: 0 | CS115: 0 | CT115: 0 | CU115: 0 | CV115: 0 | CW115: 0
